{"text_format":"1","workbook":"xlsx","n_sheets":22,"sheets":["Hospitality - Configuration","Hospitality - System","Hospitality - DATA","Travel DATA","Travel - Temp DATA","Travel plan Template","Travel - System","Delegation","System","Questionnaire","Memo Labor","Note Travail","Memo ESDC-SC","Note EDSC-SC","Authorisation - Autorisation","Travel Plan - Plan de voyage","Hospitality - Accueil","Hospitality - Accueil old","Memo CheckList (EN)","Memo CheckList (FR)","Memo - System","System - Messages"],"not_rendered":{"charts":0,"images":20,"macros":1,"external_links":1,"defined_names":257,"comments":3,"pivot_tables":0},"unopened":[],"bounds":{"document_bytes":16777216,"sheet_cells":100000,"rows_first":2000,"rows_last":500,"rows_between":2000,"halvings":0,"cell_chars":16384,"cell_head_chars":4096},"cells_cut":0,"cells_raw":0,"read":"whole","date_system":"1900"}

{"sheet":"Hospitality - Configuration","index":0,"n_rows":67,"n_cols":19,"rows_kept":67,"cut":false,"hidden":true,"merged":[[0,1,0,2],[0,12,0,15]]}
[null,"Tax Rates",null,"Breakfast","Break","Lunch","Break","Dinner","Réception",null,null,null,"Meal allowances",null,null,null,null,"Tax description EN","Tax description FR"]
["Tax Rate ID","Tax description","Rate",1.5,0.5,2,0.5,1.75,2,null,null,null,"Canada & É.-U.","Yukon & Alaska","T.N.O.","Nunavut",null,"HST 13% - Ontario","13% TVH - Ontario"]
[1,"GST 5% - Alberta",0.05,{"$f":"ROUNDDOWN($D$2*$M$3,2)","v":32.020000000000003},{"$f":"ROUNDDOWN($E$2*$M$3,2)","v":10.67},{"$f":"$F$2*$M$4","v":43.2},{"$f":"ROUNDDOWN($G$2*$M$3,2)","v":10.67},{"$f":"ROUNDDOWN($H$2*$M$5,2)","v":92.75},{"$f":"$I$2*$M$3","v":42.7},1,null,"Breakfast",21.35,22.9,24.8,28.25,null,"HST 15% - New Brunswick","15% TVH - Nouveau Brunswick"]
[2,"GST 5% - British Columbia",0.05,{"$f":"ROUNDDOWN($D$2*$M$3,2)","v":32.020000000000003},{"$f":"ROUNDDOWN($E$2*$M$3,2)","v":10.67},{"$f":"$F$2*$M$4","v":43.2},{"$f":"ROUNDDOWN($G$2*$M$3,2)","v":10.67},{"$f":"ROUNDDOWN($H$2*$M$5,2)","v":92.75},{"$f":"$I$2*$M$3","v":42.7},2,null,"Lunch",21.6,21.05,30.05,34.299999999999997,null,"HST 15% - Newfoundland and Labrador","15% TVH - Terre-Neuve et Labrador"]
[3,"HST 5% - Manitoba (GST only)",0.05,{"$f":"ROUNDDOWN($D$2*$M$3,2)","v":32.020000000000003},{"$f":"ROUNDDOWN($E$2*$M$3,2)","v":10.67},43.2,{"$f":"ROUNDDOWN($G$2*$M$3,2)","v":10.67},{"$f":"ROUNDDOWN($H$2*$M$5,2)","v":92.75},42.7,3,null,"Dinner",53,60.65,64.349999999999994,91.35,null,"GST 5% - Alberta","5% TPS - Alberta"]
[4,"HST 15% - New Brunswick",0.15,{"$f":"ROUNDDOWN($D$2*$M$3,2)","v":32.020000000000003},{"$f":"ROUNDDOWN($E$2*$M$3,2)","v":10.67},43.2,{"$f":"ROUNDDOWN($G$2*$M$3,2)","v":10.67},{"$f":"ROUNDDOWN($H$2*$M$5,2)","v":92.75},42.7,4,null,null,null,null,null,null,null,"GST 5% - British Columbia","5% TPS - Colombie-Britannique"]
[5,"HST 15% - Newfoundland and Labrador",0.15,{"$f":"ROUNDDOWN($D$2*$M$3,2)","v":32.020000000000003},{"$f":"ROUNDDOWN($E$2*$M$3,2)","v":10.67},43.2,{"$f":"ROUNDDOWN($G$2*$M$3,2)","v":10.67},{"$f":"ROUNDDOWN($H$2*$M$5,2)","v":92.75},42.7,5,null,null,null,null,null,null,null,"GST 5% - Northwest Territories","5% TPS - Territoires du Nord-Ouest"]
[6,"GST 5% - Northwest Territories",0.05,{"$f":"ROUNDDOWN($D$2*$O$3,2)","v":37.200000000000003},{"$f":"ROUNDDOWN($E$2*$O$3,2)","v":12.4},{"$f":"$F$2*$O$4","v":60.1},{"$f":"ROUNDDOWN($G$2*$O$3,2)","v":12.4},{"$f":"ROUNDDOWN($H$2*$O$5,2)","v":112.61},{"$f":"$I$2*$O$3","v":49.6},5,null,null,null,null,null,null,null,"GST 5% - Nunavut","5% TPS - Nunavut"]
[7,"HST 15% - Nova Scotia",0.15,{"$f":"ROUNDDOWN($D$2*$M$3,2)","v":32.020000000000003},{"$f":"ROUNDDOWN($E$2*$M$3,2)","v":10.67},43.2,{"$f":"ROUNDDOWN($G$2*$M$3,2)","v":10.67},{"$f":"ROUNDDOWN($H$2*$M$5,2)","v":92.75},42.7,6,null,null,null,null,null,null,null,"GST 5% - Yukon, Alaska","5% TPS - Yukon, Alaska"]
[8,"GST 5% - Nunavut",0.05,{"$f":"ROUNDDOWN($D$2*$P$3,2)","v":42.37},{"$f":"ROUNDDOWN($E$2*$P$3,2)","v":14.12},{"$f":"$F$2*$P$4","v":68.599999999999994},{"$f":"ROUNDDOWN($G$2*$P$3,2)","v":14.12},{"$f":"ROUNDDOWN($H$2*$P$5,2)","v":159.86000000000001},{"$f":"$I$2*$P$3","v":56.5},7,null,null,null,null,null,null,null,"HST 14.975% - Quebec","14.975% TVH - Québec"]
[9,"HST 13% - Ontario",0.13,{"$f":"ROUNDDOWN($D$2*$M$3,2)","v":32.020000000000003},{"$f":"ROUNDDOWN($E$2*$M$3,2)","v":10.67},43.2,{"$f":"ROUNDDOWN($G$2*$M$3,2)","v":10.67},{"$f":"ROUNDDOWN($H$2*$M$5,2)","v":92.75},42.7,8,null,null,null,null,null,null,null,"HST 15% - Nova Scotia","15% TVH - Nouvelle-Écosse"]
[10,"HST 15% - PEI",0.15,{"$f":"ROUNDDOWN($D$2*$M$3,2)","v":32.020000000000003},{"$f":"ROUNDDOWN($E$2*$M$3,2)","v":10.67},43.2,{"$f":"ROUNDDOWN($G$2*$M$3,2)","v":10.67},{"$f":"ROUNDDOWN($H$2*$M$5,2)","v":92.75},42.7,9,null,null,null,null,null,null,null,"HST 15% - PEI","15% TVH - Île-du-Prince-Édouard"]
[11,"HST 14.975% - Quebec",0.14974999999999999,{"$f":"ROUNDDOWN($D$2*$M$3,2)","v":32.020000000000003},{"$f":"ROUNDDOWN($E$2*$M$3,2)","v":10.67},43.2,{"$f":"ROUNDDOWN($G$2*$M$3,2)","v":10.67},{"$f":"ROUNDDOWN($H$2*$M$5,2)","v":92.75},42.7,10,null,null,null,null,null,null,null,"HST 5% - Manitoba (GST only)","5% TVH - Manitoba (TPS seulement)"]
[12,"HST 5% - Saskatchewan (GST only)",0.05,{"$f":"ROUNDDOWN($D$2*$M$3,2)","v":32.020000000000003},{"$f":"ROUNDDOWN($E$2*$M$3,2)","v":10.67},43.2,{"$f":"ROUNDDOWN($G$2*$M$3,2)","v":10.67},{"$f":"ROUNDDOWN($H$2*$M$5,2)","v":92.75},42.7,11,null,null,null,null,null,null,null,"HST 5% - Saskatchewan (GST only)","5% TVH - Saskatchewan  (TPS seulement)"]
[13,"GST 5% - Yukon",0.05,{"$f":"ROUNDDOWN($D$2*$N$3,2)","v":34.35},{"$f":"ROUNDDOWN($E$2*$N$3,2)","v":11.45},{"$f":"$F$2*$N$4","v":42.1},{"$f":"ROUNDDOWN($G$2*$N$3,2)","v":11.45},{"$f":"ROUNDDOWN($H$2*$N$5,2)","v":106.13},{"$f":"$I$2*$N$3","v":45.8},12]
[{"$f":"IF(B16=\"\",\"\",A15+1)","v":""}]
[{"$f":"IF(B17=\"\",\"\",A16+1)","v":""}]
[{"$f":"IF(B18=\"\",\"\",A17+1)","v":""}]
[{"$f":"IF(B19=\"\",\"\",A18+1)","v":""}]
[{"$f":"IF(B20=\"\",\"\",A19+1)","v":""}]
[""]
[""]
[""]
[""]
[""]
[""]
[""]
[""]
[""]
[""]
[""]
[""]
[""]
[""]
[""]
[""]
[""]
[""]
[""]
[""]
[""]
[""]
[""]
[""]
[""]
[""]
[""]
[""]
[""]
[""]
[""]
[""]
[""]
[""]
[""]
[""]
[""]
[]
[]
[{"$f":"IF(B60=\"\",\"\",A59+1)","v":""}]
[""]
[""]
[""]
[""]
[""]
[""]
[""]

{"sheet":"Hospitality - System","index":1,"n_rows":72,"n_cols":12,"rows_kept":72,"cut":false,"hidden":true,"merged":[]}
["Tax Rates Range",{"$f":"CONCATENATE(\"'Configuration - Hospitality'!B3:B\",MAX('Hospitality - Configuration'!A3:A53)+2)","v":"'Configuration - Hospitality'!B3:B15"},null,null,"Column Name",null,"Row","Colum","Calculation","Row","Column","Form Control"]
["Selected Tax Range",{"$f":"OFFSET('Hospitality - DATA'!AQ3,Selected_Day-1,0)","v":1},null,null,"Selected Function Meal Rate B - Breakfast",null,11,2,{"$f":"OFFSET('Hospitality - DATA'!$A$1,'Hospitality - System'!$B$4+1,1)","v":0},{"$f":"$B$4+2","v":3},2,"txtBreakFastMealRate"]
["Selected Tax Rate",{"$f":"OFFSET('Hospitality - Configuration'!A3,'Hospitality - System'!B2-1,2)","v":0.05},null,null,"Selected Public Servants D - Breakfast",null,11,"4",{"$f":"OFFSET('Hospitality - DATA'!$A$1,'Hospitality - System'!$B$4+1,2)","v":0},3,3,"txtBreakFastPS"]
["Selected Day",1,0,null,"Selected Non-Public Servants F - Breakfast",null,11,"6",{"$f":"OFFSET('Hospitality - DATA'!$A$1,'Hospitality - System'!$B$4+1,3)","v":0},3,4,"txtBreakFastNonPS"]
["Number of Days",6,null,null,"Selected Cost of Service N - Breakfast",null,11,"14",{"$f":"OFFSET('Hospitality - DATA'!$A$1,'Hospitality - System'!$B$4+1,4)","v":0},3,5,"txtBreakFastServCost"]
["Selected Breakfast rate",{"$f":"OFFSET('Hospitality - Configuration'!A3,'Hospitality - System'!B2-1,3)","v":32.020000000000003},null,null,"Selected Function Meal Rate B - Break",null,13,"2",{"$f":"OFFSET('Hospitality - DATA'!$A$1,'Hospitality - System'!$B$4+1,5)","v":0},3,6,"txtAMBreakMealRate"]
["Selected Morning Break Rate",{"$f":"OFFSET('Hospitality - Configuration'!A3,'Hospitality - System'!B2-1,4)","v":10.67},null,null,"Selected Public Servants D - Break",null,"13","4",{"$f":"OFFSET('Hospitality - DATA'!$A$1,'Hospitality - System'!$B$4+1,6)","v":0},3,7,"txtAMBreakPS"]
["Selected Lunch Rate",{"$f":"OFFSET('Hospitality - Configuration'!A3,'Hospitality - System'!B2-1,5)","v":43.2},null,null,"Selected Non-Public Servants F - Break",null,"13","6",{"$f":"OFFSET('Hospitality - DATA'!$A$1,'Hospitality - System'!$B$4+1,7)","v":0},3,8,"txtAMBreakNonPS"]
["Selected Afternoon Break Rate",{"$f":"OFFSET('Hospitality - Configuration'!A3,'Hospitality - System'!B2-1,6)","v":10.67},null,null,"Selected Cost of Service N - Break",null,"13","14",{"$f":"OFFSET('Hospitality - DATA'!$A$1,'Hospitality - System'!$B$4+1,8)","v":0},3,9,"txtAMBreakServCost"]
["Selected Dinner Rate",{"$f":"OFFSET('Hospitality - Configuration'!A3,'Hospitality - System'!B2-1,7)","v":92.75},null,null,"Selected Function Meal Rate B - Lunch",null,"15","2",{"$f":"OFFSET('Hospitality - DATA'!$A$1,'Hospitality - System'!$B$4+1,9)","v":0},3,10,"txtLunchMealRate"]
["Selected Reception Rate",{"$f":"OFFSET('Hospitality - Configuration'!A3,'Hospitality - System'!B2-1,8)","v":42.7},null,null,"Selected Public Servants D - Lunch",null,"15","4",{"$f":"OFFSET('Hospitality - DATA'!$A$1,'Hospitality - System'!$B$4+1,10)","v":0},3,11,"txtLunchPS"]
["Hospitality_BreakFast_Rate",{"$f":"\"'Hospitality - DATA'!B$3:B\" & B$5+2","v":"'Hospitality - DATA'!B$3:B8"},null,null,"Selected Non-Public Servants F - Lunch",null,"15","6",{"$f":"OFFSET('Hospitality - DATA'!$A$1,'Hospitality - System'!$B$4+1,11)","v":0},3,12,"txtLunchNonPS"]
["Hospitality_BreakFast_PS",{"$f":"\"'Hospitality - DATA'!C$3:C\" & B$5+2","v":"'Hospitality - DATA'!C$3:C8"},null,null,"Selected Cost of Service N - Lunch",null,"15","14",{"$f":"OFFSET('Hospitality - DATA'!$A$1,'Hospitality - System'!$B$4+1,12)","v":0},3,13,"txtLunchServCost"]
["Hospitality_BreakFast_NonPS",{"$f":"\"'Hospitality - DATA'!D$3:D\" & B$5+2","v":"'Hospitality - DATA'!D$3:D8"},null,null,"Selected Function Meal Rate B - Break",null,"17","2",{"$f":"OFFSET('Hospitality - DATA'!$A$1,'Hospitality - System'!$B$4+1,13)","v":0},3,14,"txtPMBreakMealRate"]
["Hospitality_BreakFast_Service",{"$f":"\"'Hospitality - DATA'!E$3:E\" & B$5+2","v":"'Hospitality - DATA'!E$3:E8"},null,null,"Selected Public Servants D - Break",null,"17","4",{"$f":"OFFSET('Hospitality - DATA'!$A$1,'Hospitality - System'!$B$4+1,14)","v":0},3,15,"txtPMBreakPS"]
["Hospitality_AMBreak_Rate",{"$f":"\"'Hospitality - DATA'!F$3:F\" & B$5+2","v":"'Hospitality - DATA'!F$3:F8"},null,null,"Selected Non-Public Servants F - Break",null,"17","6",{"$f":"OFFSET('Hospitality - DATA'!$A$1,'Hospitality - System'!$B$4+1,15)","v":0},3,16,"txtPMBreakNonPS"]
["Hospitality_AMBreak_PS",{"$f":"\"'Hospitality - DATA'!G$3:G\" & B$5+2","v":"'Hospitality - DATA'!G$3:G8"},null,null,"Selected Cost of Service N - Break",null,"17","14",{"$f":"OFFSET('Hospitality - DATA'!$A$1,'Hospitality - System'!$B$4+1,16)","v":0},3,17,"txtPMBreakServCost"]
["Hospitality_AMBreak_NonPS",{"$f":"\"'Hospitality - DATA'!H$3:H\" & B$5+2","v":"'Hospitality - DATA'!H$3:H8"},null,null,"Selected Function Meal Rate B - Dinner",null,"19","2",{"$f":"OFFSET('Hospitality - DATA'!$A$1,'Hospitality - System'!$B$4+1,17)","v":0},3,18,"txtDinnerMealRate"]
["Hospitality_AMBreak_Service",{"$f":"\"'Hospitality - DATA'!I$3:I\" & B$5+2","v":"'Hospitality - DATA'!I$3:I8"},null,null,"Selected Public Servants D - Dinner",null,"19","4",{"$f":"OFFSET('Hospitality - DATA'!$A$1,'Hospitality - System'!$B$4+1,18)","v":0},3,19,"txtDinnerPS"]
["Hospitality_Lunch_Rate",{"$f":"\"'Hospitality - DATA'!J$3:J\" & B$5+2","v":"'Hospitality - DATA'!J$3:J8"},null,null,"Selected Non-Public Servants F - Dinner",null,"19","6",{"$f":"OFFSET('Hospitality - DATA'!$A$1,'Hospitality - System'!$B$4+1,19)","v":0},3,20,"txtDinnerNonPS"]
["Hospitality_Lunch_PS",{"$f":"\"'Hospitality - DATA'!K$3:K\" & B$5+2","v":"'Hospitality - DATA'!K$3:K8"},null,null,"Selected Cost of Service N - Dinner",null,"19","14",{"$f":"OFFSET('Hospitality - DATA'!$A$1,'Hospitality - System'!$B$4+1,20)","v":0},3,21,"txtDinnerServCost"]
["Hospitality_Lunch_NonPS",{"$f":"\"'Hospitality - DATA'!L$3:L\" & B$5+2","v":"'Hospitality - DATA'!L$3:L8"},null,null,"Selected Function Meal Rate B - Reception",null,"21","2",{"$f":"OFFSET('Hospitality - DATA'!$A$1,'Hospitality - System'!$B$4+1,21)","v":0},3,22,"txtreceptionMealRate"]
["Hospitality_Lunch_Service",{"$f":"\"'Hospitality - DATA'!M$3:M\" & B$5+2","v":"'Hospitality - DATA'!M$3:M8"},null,null,"Selected Public Servants D - Reception",null,"21","4",{"$f":"OFFSET('Hospitality - DATA'!$A$1,'Hospitality - System'!$B$4+1,22)","v":0},3,23,"txtReceptionPS"]
["Hospitality_PMBreak_Rate",{"$f":"\"'Hospitality - DATA'!N$3:N\" & B$5+2","v":"'Hospitality - DATA'!N$3:N8"},null,null,"Selected Non-Public Servants F - Reception",null,"21","6",{"$f":"OFFSET('Hospitality - DATA'!$A$1,'Hospitality - System'!$B$4+1,23)","v":0},3,24,"txtReceptionNonPS"]
["Hospitality_PMBreak_PS",{"$f":"\"'Hospitality - DATA'!O$3:O\" & B$5+2","v":"'Hospitality - DATA'!O$3:O8"},null,null,"Selected Cost of Service N - Reception",null,"21","14",{"$f":"OFFSET('Hospitality - DATA'!$A$1,'Hospitality - System'!$B$4+1,24)","v":0},3,25,"txtReceptionServCost"]
["Hospitality_PMBreak_NonPS",{"$f":"\"'Hospitality - DATA'!P$3:P\" & B$5+2","v":"'Hospitality - DATA'!P$3:P8"},null,null,"Selected Function Meal Rate B - Alcohol",null,"23","2",{"$f":"OFFSET('Hospitality - DATA'!$A$1,'Hospitality - System'!$B$4+1,25)","v":0},3,26,"txtAlcoholMealRate"]
["Hospitality_PMBreak_Service",{"$f":"\"'Hospitality - DATA'!Q$3:Q\" & B$5+2","v":"'Hospitality - DATA'!Q$3:Q8"},null,null,"Selected Public Servants D - Alcohol",null,"23","4",{"$f":"OFFSET('Hospitality - DATA'!$A$1,'Hospitality - System'!$B$4+1,26)","v":0},3,27,"txtAlcoholPS"]
["Hospitality_Dinner_Rate",{"$f":"\"'Hospitality - DATA'!R$3:R\" & B$5+2","v":"'Hospitality - DATA'!R$3:R8"},null,null,"Selected Non-Public Servants F - Alcohol",null,"23","6",{"$f":"OFFSET('Hospitality - DATA'!$A$1,'Hospitality - System'!$B$4+1,27)","v":0},3,28,"txtAlcoholNonPS"]
["Hospitality_Dinner_PS",{"$f":"\"'Hospitality - DATA'!S$3:S\" & B$5+2","v":"'Hospitality - DATA'!S$3:S8"},null,null,"Selected Cost of Service N - Alcohol",null,"23","14",{"$f":"OFFSET('Hospitality - DATA'!$A$1,'Hospitality - System'!$B$4+1,28)","v":0},3,29,"txtAlcoholServCost"]
["Hospitality_Dinner_NonPS",{"$f":"\"'Hospitality - DATA'!T$3:T\" & B$5+2","v":"'Hospitality - DATA'!T$3:T8"},null,null,"Selected Public Servants D - Others",null,"25","4",{"$f":"OFFSET('Hospitality - DATA'!$A$1,'Hospitality - System'!$B$4+1,29)","v":0},3,30,"txtOtherPS"]
["Hospitality_Dinner_Service",{"$f":"\"'Hospitality - DATA'!U$3:U\" & B$5+2","v":"'Hospitality - DATA'!U$3:U8"},null,null,"Selected Non-Public Servants F - Others",null,"25","6",{"$f":"OFFSET('Hospitality - DATA'!$A$1,'Hospitality - System'!$B$4+1,30)","v":0},3,31,"txtOtherNonPS"]
["Hospitality_Reception_Rate",{"$f":"\"'Hospitality - DATA'!V$3:V\" & B$5+2","v":"'Hospitality - DATA'!V$3:V8"},null,null,"Selected Total Cost - Others",null,"25","18",{"$f":"OFFSET('Hospitality - DATA'!$A$1,'Hospitality - System'!$B$4+1,31)","v":0},3,32,"txtOtherTotalCost"]
["Hospitality_Reception_PS",{"$f":"\"'Hospitality - DATA'!W$3:W\" & B$5+2","v":"'Hospitality - DATA'!W$3:W8"},null,null,"Selected Public Servants D - Others Exceptional",null,null,null,{"$f":"OFFSET('Hospitality - DATA'!$A$1,'Hospitality - System'!$B$4+1,32)","v":0},3,33,"txtOtherExceptionalPS"]
["Hospitality_Reception_NonPS",{"$f":"\"'Hospitality - DATA'!X$3:X\" & B$5+2","v":"'Hospitality - DATA'!X$3:X8"},null,null,"Selected Non-Public Servants F - Others Exceptional",null,null,null,{"$f":"OFFSET('Hospitality - DATA'!$A$1,'Hospitality - System'!$B$4+1,33)","v":0},3,34,"txtOtherExceptionalNonPS"]
["Hospitality_Reception_Service",{"$f":"\"'Hospitality - DATA'!Y$3:Y\" & B$5+2","v":"'Hospitality - DATA'!Y$3:Y8"},null,null,"Selected Total Cost - Others Exceptional",null,null,null,{"$f":"OFFSET('Hospitality - DATA'!$A$1,'Hospitality - System'!$B$4+1,34)","v":0},3,35,"txtOtherExceptionalTotalCost"]
["Hospitality_Alcohol_Rate",{"$f":"\"'Hospitality - DATA'!Z$3:Z\" & B$5+2","v":"'Hospitality - DATA'!Z$3:Z8"},null,null,"BreakFast Total Cost",null,"11","22",{"$f":"OFFSET('Hospitality - DATA'!$A$1,'Hospitality - System'!$B$4+1,43)","v":0},3,44,"txtBreakFastTotalCost"]
["Hospitality_Alcohol_PS",{"$f":"\"'Hospitality - DATA'!AA$3:AA\" & B$5+2","v":"'Hospitality - DATA'!AA$3:AA8"},null,null,"AM Break Total Cost",null,"13","22",{"$f":"OFFSET('Hospitality - DATA'!$A$1,'Hospitality - System'!$B$4+1,44)","v":0},3,45,"txtAMBreakTotalCost"]
["Hospitality_Alcohol_NonPS",{"$f":"\"'Hospitality - DATA'!AB$3:AB\" & B$5+2","v":"'Hospitality - DATA'!AB$3:AB8"},null,null,"Lunch Total Cost",null,"15","22",{"$f":"OFFSET('Hospitality - DATA'!$A$1,'Hospitality - System'!$B$4+1,45)","v":0},3,46,"txtLunchTotalCost"]
["Hospitality_Alcohol_Service",{"$f":"\"'Hospitality - DATA'!AC$3:AC\" & B$5+2","v":"'Hospitality - DATA'!AC$3:AC8"},null,null,"PM Break Total Cost",null,"17","22",{"$f":"OFFSET('Hospitality - DATA'!$A$1,'Hospitality - System'!$B$4+1,46)","v":0},3,47,"txtPMBreakTotalCost"]
["Hospitality_Others_PS",{"$f":"\"'Hospitality - DATA'!AD$3:AD\" & B$5+2","v":"'Hospitality - DATA'!AD$3:AD8"},null,null,"Dinner Total Cost",null,"19","22",{"$f":"OFFSET('Hospitality - DATA'!$A$1,'Hospitality - System'!$B$4+1,47)","v":0},3,48,"txtDinnerTotalCost"]
["Hospitality_Others_NonPS",{"$f":"\"'Hospitality - DATA'!AE$3:AE\" & B$5+2","v":"'Hospitality - DATA'!AE$3:AE8"},null,null,"Reception Total Cost",null,"21","22",{"$f":"OFFSET('Hospitality - DATA'!$A$1,'Hospitality - System'!$B$4+1,48)","v":0},3,49,"txtReceptionTotalCost"]
["Hospitality_Others_TotalCost",{"$f":"\"'Hospitality - DATA'!AF$3:AF\" & B$5+2","v":"'Hospitality - DATA'!AF$3:AF8"},null,null,"Alcohol Total Cost",null,"23","22",{"$f":"OFFSET('Hospitality - DATA'!$A$1,'Hospitality - System'!$B$4+1,49)","v":0},3,50,"txtAlcoholTotalCost"]
["Hospitality_Others_Exceptional_PS",{"$f":"\"'Hospitality - DATA'!AG$3:AG\" & B$5+2","v":"'Hospitality - DATA'!AG$3:AG8"}]
["Hospitality_Others_Exceptional_NonPS",{"$f":"\"'Hospitality - DATA'!AH$3:AH\" & B$5+2","v":"'Hospitality - DATA'!AH$3:AH8"}]
["Hospitality_Others_Exceptional_TotalCost",{"$f":"\"'Hospitality - DATA'!AI$3:AI\" & B$5+2","v":"'Hospitality - DATA'!AI$3:AI8"}]
["Hospitality_Selected_Tax_Rate",{"$f":"\"'Hospitality - DATA'!AJ$3:AJ\" & B$5+2","v":"'Hospitality - DATA'!AJ$3:AJ8"}]
["Hospitality_Selected_Breakfast_Rate",{"$f":"\"'Hospitality - DATA'!AK$3:AK\" & B$5+2","v":"'Hospitality - DATA'!AK$3:AK8"}]
["Hospitality_Morning_Break_Rate",{"$f":"\"'Hospitality - DATA'!AL$3:AL\" & B$5+2","v":"'Hospitality - DATA'!AL$3:AL8"}]
["Hospitality_Selected_Lunch_Rate",{"$f":"\"'Hospitality - DATA'!AM$3:AM\" & B$5+2","v":"'Hospitality - DATA'!AM$3:AM8"}]
["Hospitality_Afternoon_Break_Rate",{"$f":"\"'Hospitality - DATA'!AN$3:AN\" & B$5+2","v":"'Hospitality - DATA'!AN$3:AN8"}]
["Hospitality_Selected_Dinner_Rate",{"$f":"\"'Hospitality - DATA'!AO$3:AO\" & B$5+2","v":"'Hospitality - DATA'!AO$3:AO8"}]
["Hospitality_Selected_Reception_Rate",{"$f":"\"'Hospitality - DATA'!AP$3:AP\" & B$5+2","v":"'Hospitality - DATA'!AP$3:AP8"}]
["Hospitality_Breakfast_Tcost",{"$f":"\"'Hospitality - DATA'!AR$3:AR\" & B$5+2","v":"'Hospitality - DATA'!AR$3:AR8"}]
["Hospitality_Morning_Break_Tcost",{"$f":"\"'Hospitality - DATA'!AS$3:AS\" & B$5+2","v":"'Hospitality - DATA'!AS$3:AS8"}]
["Hospitality_Lunch_Tcost",{"$f":"\"'Hospitality - DATA'!AT$3:AT\" & B$5+2","v":"'Hospitality - DATA'!AT$3:AT8"}]
["Hospitality_Afternoon_Break_Tcost",{"$f":"\"'Hospitality - DATA'!AU$3:AU\" & B$5+2","v":"'Hospitality - DATA'!AU$3:AU8"}]
["Hospitality_Dinner_Tcost",{"$f":"\"'Hospitality - DATA'!AV$3:AV\" & B$5+2","v":"'Hospitality - DATA'!AV$3:AV8"}]
["Hospitality_Reception_Tcost",{"$f":"\"'Hospitality - DATA'!AW$3:AW\" & B$5+2","v":"'Hospitality - DATA'!AW$3:AW8"}]
["Hospitality_Alcohol_Tcost",{"$f":"\"'Hospitality - DATA'!AX$3:AX\" & B$5+2","v":"'Hospitality - DATA'!AX$3:AX8"}]
["Hospitality_BreakFast_Exceed_Standard",{"$f":"SUM(IF(NOT(Hospitality_BreakFast_NonPS+Hospitality_BreakFast_PS=0),IF((Hospitality_Breakfast_Tcost/(Hospitality_BreakFast_NonPS+Hospitality_BreakFast_PS))>Hospitality_Selected_Breakfast_Rate,1,0),0))","v":0}]
["Hospitality_MornBreak_Exceed_Standard",{"$f":"SUM(IF(NOT(Hospitality_AMBreak_NonPS+Hospitality_AMBreak_PS=0),IF((Hospitality_Morning_Break_Tcost/(Hospitality_AMBreak_NonPS+Hospitality_AMBreak_PS))>Hospitality_Morning_Break_Rate,1,0),0))","v":0}]
["Hospitality_lunch_Exceed_Standard",{"$f":"SUM(IF(NOT(Hospitality_Lunch_NonPS+Hospitality_Lunch_PS=0),IF((Hospitality_Lunch_Tcost/(Hospitality_Lunch_NonPS+Hospitality_Lunch_PS))>Hospitality_Selected_Lunch_Rate,1,0),0))","v":0}]
["Hospitality_AftBreak_Exceed_Standard",{"$f":"SUM(IF(NOT(Hospitality_PMBreak_NonPS+Hospitality_PMBreak_PS=0),IF((Hospitality_Afternoon_Break_Tcost/(Hospitality_PMBreak_NonPS+Hospitality_PMBreak_PS))>Hospitality_Afternoon_Break_Rate,1,0),0))","v":0}]
["Hospitality_Dinner_Exceed_Standard",{"$f":"SUM(IF(NOT(Hospitality_Dinner_NonPS+Hospitality_Dinner_PS=0),IF((Hospitality_Dinner_Tcost/(Hospitality_Dinner_NonPS+Hospitality_Dinner_PS))>Hospitality_Selected_Dinner_Rate,1,0),0))","v":0}]
["Hospitality_Reception_Exceed_Standard",{"$f":"SUM(IF(NOT(Hospitality_Reception_NonPS+Hospitality_Reception_PS=0),IF((Hospitality_Reception_Tcost/(Hospitality_Reception_NonPS+Hospitality_Reception_PS))>Hospitality_Selected_Reception_Rate,1,0),0))","v":0}]
["Hospitality_BreakFast_Exceed_Maximum",{"$f":"SUM(IF(NOT(Hospitality_BreakFast_NonPS+Hospitality_BreakFast_PS=0),IF((Hospitality_Breakfast_Tcost/(Hospitality_BreakFast_NonPS+Hospitality_BreakFast_PS))>(1.5*Hospitality_Selected_Breakfast_Rate),1,0),0))","v":0}]
["Hospitality_MornBreak_Exceed_Maximum",{"$f":"SUM(IF(NOT(Hospitality_AMBreak_NonPS+Hospitality_AMBreak_PS=0),IF((Hospitality_Morning_Break_Tcost/(Hospitality_AMBreak_NonPS+Hospitality_AMBreak_PS))>(1.5*Hospitality_Morning_Break_Rate),1,0),0))","v":0}]
["Hospitality_lunch_Exceed_Maximum",{"$f":"SUM(IF(NOT(Hospitality_Lunch_NonPS+Hospitality_Lunch_PS=0),IF((Hospitality_Lunch_Tcost/(Hospitality_Lunch_NonPS+Hospitality_Lunch_PS))>(1.5*Hospitality_Selected_Lunch_Rate),1,0),0))","v":0}]
["Hospitality_AftBreak_Exceed_Maximum",{"$f":"SUM(IF(NOT(Hospitality_PMBreak_NonPS+Hospitality_PMBreak_PS=0),IF((Hospitality_Afternoon_Break_Tcost/(Hospitality_PMBreak_NonPS+Hospitality_PMBreak_PS))>(1.5*Hospitality_Afternoon_Break_Rate),1,0),0))","v":0}]
["Hospitality_Dinner_Exceed_Maximum",{"$f":"SUM(IF(NOT(Hospitality_Dinner_NonPS+Hospitality_Dinner_PS=0),IF((Hospitality_Dinner_Tcost/(Hospitality_Dinner_NonPS+Hospitality_Dinner_PS))>(1.5*Hospitality_Selected_Dinner_Rate),1,0),0))","v":0}]
["Hospitality_Reception_Exceed_Maximum",{"$f":"SUM(IF(NOT(Hospitality_Reception_NonPS+Hospitality_Reception_PS=0),IF((Hospitality_Reception_Tcost/(Hospitality_Reception_NonPS+Hospitality_Reception_PS))>(1.5*Hospitality_Selected_Reception_Rate),1,0),0))","v":0}]
["Current_Tax_Range",{"$f":"\"'Hospitality - DATA'!AQ\"&Selected_Day+2","v":"'Hospitality - DATA'!AQ3"}]

{"sheet":"Hospitality - DATA","index":2,"n_rows":8,"n_cols":50,"rows_kept":8,"cut":false,"hidden":true,"merged":[[0,32,0,34],[0,25,0,28],[0,29,0,31],[0,1,0,4],[0,5,0,8],[0,9,0,12],[0,13,0,16],[0,17,0,20],[0,21,0,24]]}
["\n\n","Breakfast",null,null,null,"Break",null,null,null,"Lunch",null,null,null,"Break",null,null,null,"Dinner",null,null,null,"Reception",null,null,null,"Alcohol",null,null,null,"Others",null,null,"Exceptional"]
["Event date","Function Meal Rate B","Public Servants D","Non-Public Servants F","Cost of Service N","Function Meal Rate B","Public Servants D","Non-Public Servants F","Cost of Service N","Function Meal Rate B","Public Servants D","Non-Public Servants F","Cost of Service N","Function Meal Rate B","Public Servants D","Non-Public Servants F","Cost of Service N","Function Meal Rate B","Public Servants D","Non-Public Servants F","Cost of Service N","Function Meal Rate B","Public Servants D","Non-Public Servants F","Cost of Service N","Function Meal Rate B","Public Servants D","Non-Public Servants F","Cost of Service N","Public Servants D","Non-Public Servants F","Total Cost","Public Servants D","Non-Public Servants F","Total Cost","Selected Tax Rate","Selected Breakfast Rate","Selected Morning Break Rate","Selected Lunch Rate","Selected Afternoon Break Rate","Selected Dinner Rate","Selected Reception Rate","Selected Rate Package","Breakfast Total Cost","Morning Break Total Cost","Lunch Total Cost","Afternoon Break Total Cost","Dinner total Cost","Reception total Cost","Alcohol Total Cost"]
["",0,0,0,0,0,0,0,0,0,0,0,0,0,0,0,0,0,0,0,0,0,0,0,0,0,0,0,0,0,0,0,0,0,0,{"$f":"OFFSET('Hospitality - Configuration'!$A$3,AQ3-1,2)","v":0.05},{"$f":"OFFSET('Hospitality - Configuration'!$A$3,AQ3-1,3)","v":32.020000000000003},{"$f":"OFFSET('Hospitality - Configuration'!$A$3,AQ3-1,4)","v":10.67},{"$f":"OFFSET('Hospitality - Configuration'!$A$3,AQ3-1,5)","v":43.2},{"$f":"OFFSET('Hospitality - Configuration'!$A$3,AQ3-1,6)","v":10.67},{"$f":"OFFSET('Hospitality - Configuration'!$A$3,AQ3-1,7)","v":92.75},{"$f":"OFFSET('Hospitality - Configuration'!$A$3,AQ3-1,8)","v":42.7},1,{"$f":"(((C3+D3)*B3)+E3)+((((C3+D3)*B3)+E3)*AJ3)","v":0},{"$f":"(((G3+H3)*F3)+I3)+((((G3+H3)*F3)+I3)*AJ3)","v":0},{"$f":"(((K3+L3)*J3)+M3)+((((K3+L3)*J3)+M3)*AJ3)","v":0},{"$f":"(((O3+P3)*N3)+Q3)+((((O3+P3)*N3)+Q3)*AJ3)","v":0},{"$f":"(((S3+T3)*R3)+U3)+((((S3+T3)*R3)+U3)*AJ3)","v":0},{"$f":"(((W3+X3)*V3)+Y3)+((((W3+X3)*V3)+Y3)*AJ3)","v":0},{"$f":"(((AA3+AB3)*Z3)+AC3)+((((AA3+AB3)*Z3)+AC3)*AJ3)","v":0}]
[null,0,0,0,0,0,0,0,0,0,0,0,0,0,0,0,0,0,0,0,0,0,0,0,0,0,0,0,0,0,0,0,0,0,0,{"$f":"OFFSET('Hospitality - Configuration'!$A$3,AQ4-1,2)","v":0.05},{"$f":"OFFSET('Hospitality - Configuration'!$A$3,AQ4-1,3)","v":32.020000000000003},{"$f":"OFFSET('Hospitality - Configuration'!$A$3,AQ4-1,4)","v":10.67},{"$f":"OFFSET('Hospitality - Configuration'!$A$3,AQ4-1,5)","v":43.2},{"$f":"OFFSET('Hospitality - Configuration'!$A$3,AQ4-1,6)","v":10.67},{"$f":"OFFSET('Hospitality - Configuration'!$A$3,AQ4-1,7)","v":92.75},{"$f":"OFFSET('Hospitality - Configuration'!$A$3,AQ4-1,8)","v":42.7},1,0,0,0,0,0,0,0]
[null,0,0,0,0,0,0,0,0,0,0,0,0,0,0,0,0,0,0,0,0,0,0,0,0,0,0,0,0,0,0,0,0,0,0,{"$f":"OFFSET('Hospitality - Configuration'!$A$3,AQ5-1,2)","v":0.05},{"$f":"OFFSET('Hospitality - Configuration'!$A$3,AQ5-1,3)","v":32.020000000000003},{"$f":"OFFSET('Hospitality - Configuration'!$A$3,AQ5-1,4)","v":10.67},{"$f":"OFFSET('Hospitality - Configuration'!$A$3,AQ5-1,5)","v":43.2},{"$f":"OFFSET('Hospitality - Configuration'!$A$3,AQ5-1,6)","v":10.67},{"$f":"OFFSET('Hospitality - Configuration'!$A$3,AQ5-1,7)","v":92.75},{"$f":"OFFSET('Hospitality - Configuration'!$A$3,AQ5-1,8)","v":42.7},1,0,0,0,0,0,0,0]
[null,0,0,0,0,0,0,0,0,0,0,0,0,0,0,0,0,0,0,0,0,0,0,0,0,0,0,0,0,0,0,0,0,0,0,{"$f":"OFFSET('Hospitality - Configuration'!$A$3,AQ6-1,2)","v":0.05},{"$f":"OFFSET('Hospitality - Configuration'!$A$3,AQ6-1,3)","v":32.020000000000003},{"$f":"OFFSET('Hospitality - Configuration'!$A$3,AQ6-1,4)","v":10.67},{"$f":"OFFSET('Hospitality - Configuration'!$A$3,AQ6-1,5)","v":43.2},{"$f":"OFFSET('Hospitality - Configuration'!$A$3,AQ6-1,6)","v":10.67},{"$f":"OFFSET('Hospitality - Configuration'!$A$3,AQ6-1,7)","v":92.75},{"$f":"OFFSET('Hospitality - Configuration'!$A$3,AQ6-1,8)","v":42.7},1,0,0,0,0,0,0,0]
[null,0,0,0,0,0,0,0,0,0,0,0,0,0,0,0,0,0,0,0,0,0,0,0,0,0,0,0,0,0,0,0,0,0,0,{"$f":"OFFSET('Hospitality - Configuration'!$A$3,AQ7-1,2)","v":0.05},{"$f":"OFFSET('Hospitality - Configuration'!$A$3,AQ7-1,3)","v":32.020000000000003},{"$f":"OFFSET('Hospitality - Configuration'!$A$3,AQ7-1,4)","v":10.67},{"$f":"OFFSET('Hospitality - Configuration'!$A$3,AQ7-1,5)","v":43.2},{"$f":"OFFSET('Hospitality - Configuration'!$A$3,AQ7-1,6)","v":10.67},{"$f":"OFFSET('Hospitality - Configuration'!$A$3,AQ7-1,7)","v":92.75},{"$f":"OFFSET('Hospitality - Configuration'!$A$3,AQ7-1,8)","v":42.7},1,0,0,0,0,0,0,0]
[null,0,0,0,0,0,0,0,0,0,0,0,0,0,0,0,0,0,0,0,0,0,0,0,0,0,0,0,0,0,0,0,0,0,0,{"$f":"OFFSET('Hospitality - Configuration'!$A$3,AQ8-1,2)","v":0.05},{"$f":"OFFSET('Hospitality - Configuration'!$A$3,AQ8-1,3)","v":32.020000000000003},{"$f":"OFFSET('Hospitality - Configuration'!$A$3,AQ8-1,4)","v":10.67},{"$f":"OFFSET('Hospitality - Configuration'!$A$3,AQ8-1,5)","v":43.2},{"$f":"OFFSET('Hospitality - Configuration'!$A$3,AQ8-1,6)","v":10.67},{"$f":"OFFSET('Hospitality - Configuration'!$A$3,AQ8-1,7)","v":92.75},{"$f":"OFFSET('Hospitality - Configuration'!$A$3,AQ8-1,8)","v":42.7},1,0,0,0,0,0,0,0]

{"sheet":"Travel DATA","index":3,"n_rows":3,"n_cols":37,"rows_kept":3,"cut":false,"hidden":true,"merged":[]}
["General Information","General Information","General Information","General Information","General Information","General Information","General Information","General Information","General Information","General Information","Tansportation","Tansportation","Tansportation","Tansportation","Tansportation","Tansportation","Tansportation","Tansportation","Tansportation","Tansportation","Tansportation","Accommodations","Accommodations","Accommodations","Accommodations","Meals","Meals","Meals","Incidentals and other costs","Incidentals and other costs","Transportation","Accommodations","Meals","Incidentals and other costs","Sort Index","General Information","General Information"]
["Name","Branch","Start Date","End Date","Origin","Destination","Objective","Category","Traveller","Virtual presence or other remote meeting solutions","Air","Train","Bus","Ferry","Taxi","Personal Vehicle","Rental Vehicle","Govt Vehicle","Public Transit","Parking","Other Mode","Commercial","Unlisted Commercial","Private","Other","Breakfast","Lunch","Dinner","Incidentals","Other Costs","Rationale - Mode of Transportation","Rationale - Accommodations","Excluded Meals Details","Additional Information - Incidentals and other costs","Sort Index","Travel Date Unknown","CategoryOther"]
[null,null,"","",null,null,null,null,null,null,0,0,0,0,0,0,0,0,0,0,0,0,0,0,0,0,0,0,0,0,null,null,null,null,null,false,""]

{"sheet":"Travel - Temp DATA","index":4,"n_rows":1,"n_cols":37,"rows_kept":1,"cut":false,"hidden":true,"merged":[]}
[null,null,"","",null,null,null,null,null,null,0,0,0,0,0,0,0,0,0,0,0,0,0,0,0,0,0,0,0,0,null,null,null,null,null,false,""]

{"sheet":"Travel plan Template","index":5,"n_rows":31,"n_cols":28,"rows_kept":31,"cut":false,"hidden":true,"merged":[[23,21,23,24],[23,1,23,2],[23,4,23,5],[23,7,23,9],[23,11,23,13],[23,15,23,18],[15,1,15,27],[16,1,16,27],[17,1,17,27],[18,1,18,27],[20,1,20,5],[20,7,20,13],[20,15,20,24],[10,22,10,24],[10,25,11,25],[10,26,11,26],[10,27,11,27],[7,1,7,4],[7,5,7,27],[8,1,8,4],[8,5,8,27],[10,1,11,1],[10,2,11,2],[10,3,10,4],[10,5,10,6],[10,18,10,21],[10,7,10,17],[4,1,4,4],[4,5,4,27],[5,1,5,4],[5,5,5,27],[6,1,6,4],[6,5,6,27],[3,5,3,27],[1,5,1,27],[2,5,2,27],[1,1,2,2],[0,5,0,27],[0,3,0,4],[22,21,22,24],[22,1,22,2],[22,4,22,5],[22,7,22,9],[22,11,22,13],[22,15,22,18]]}
["Report Header",null,null,"Activity Title\nTitre de l'activité",null,{"$f":"IF(Activity_Title=0,\"\",Activity_Title)","v":""}]
["Section header","Travel Plan\nPlan des voyages",null,null,"Branch / Direction générale : "]
["Section header",null,null,null,"Categorie / Catégorie :"]
["Section header",null,null,null,"Travel Objective / Objectif des voyages :"]
["Section header","Rationale for transportation / Raison pour le transport :"]
["Section header","Rationale for accomodations / Raison pour le logement :"]
["Section header","Rationale for Meals / Raison pour les repas :"]
["Section header","Rationale for Incidentals and other costs / Raison pour les faux frais ou autres coûts :"]
["Section header","Rationale why virtual presence or other remote meeting solutions were not applied / Raison pour laquelle la présence virtuelle ou une autre solution de réunion à distance n'a pu être appliquée :"]
["Section header"]
["Section header","Travellers Name / Nom des voyageurs","Public Servant or Non Public Servant / Fonctionnaire ou non-Fonctionnaire","Travel Dates / Dates du voyage",null,"(City, Country / Ville, Pays)",null,"Mode of Transportation / Mode de transport",null,null,null,null,null,null,null,null,null,null,"Accomodations / Logement",null,null,null,"Meals / Repas",null,null,"Incidentals / Faux frais\n**","Other costs / Autres coûts\n*","Total Travel Costs / Coût total du voyage"]
["Section header",null,null,"From / Du\ndd/mm/yyyy\njj-mm-aaaa","To / Au\ndd/mm/yyyy\njj-mm-aaaa","Origin / Origine ","Destination","Air / Avion","Rail / Train","Bus / Autobus","Ferry / Traversier","Taxis / Taxi","Personal Vehicle / Véhicule privé","Rental vehicle / Véhicule loué","Govt vehicle / Véhicule gouvernemantal","Public transit / Transport en commun","Parking /  Stationnement","Other mode / Autre mode","Commercial / Commercial","Unlisted commercial / Non listé commercial","Private / Privé","Other / Autre","Breakfast / Déjeuner","Lunch / Dîner","Dinner / Souper"]
["Content",null,null,null,null,null,null,0,0,0,0,0,0,0,0,0,0,0,0,0,0,0,0,0,0,0,0,{"$f":"SUM(H13:AA13)","v":0}]
["Section footer","Total",null,null,null,null,null,{"$f":"SUM(H13:H13)","v":0},{"$f":"SUM(I13:I13)","v":0},0,0,0,0,0,0,0,0,0,0,0,0,0,0,0,0,0,0,0]
["Section footer"]
["Level2 Footer","* Provide a description in the appropriate rationale above. / Fournir une description dans la raison approprié ci-dessus.   "]
["Level2 Footer","** For Public Servant only / Pour fonctionnaires seulement"]
["Level2 Footer","I certify that travel, hospitality, conferences and event expenditures are managed with prudence and probity and represent the most economic and efficient use of funds given the nature of the activity in relation to the achievement of our department's objectives."]
["Level2 Footer","Je certifie que les dépenses de voyages, d'accueil, de conférences et d'événements sont gérées avec prudence et probité, et elles représentent la façon la plus économique et la plus efficace d'utiliser les fonds publics, compte tenu de la nature de l'activité par rapport à la réalisation des objectifs de notre ministère."]
["Level2 Footer"]
["Level2 Footer"," Recommender / Recommandation : (If needed / si nécessaire)",null,null,null,null,null," Recommender / Recommandation : (If needed / si nécessaire)",null,null,null,null,null,null,null," Approver / Approbation :"]
["Level2 Footer"]
["Level2 Footer"]
["Level2 Footer","Recommended by / Recommandé par",null,null,"Position Title / Titre du poste",null,null,"Recommended by / Recommandé par",null,null,null,"Position Title / Titre du poste",null,null,null,"Approved by / Approuvé par",null,null,null,null,null,"Position Title / Titre du poste"]
["Level2 Footer"]
["Level2 Footer"]
["Level2 Footer"," Signature",null,null,"Date",null,null," Signature",null,null,null,"Date",null,null,null," Signature",null,null,null,null,null,"Date"]
["Level2 Footer"]
["Level2 Footer"]
["Report footer","Grand Total",null,null,null,null,null,{"$f":"SUM(H28:H28)","v":0},{"$f":"SUM(I28:I28)","v":0},0,0,0,0,0,0,0,0,0,0,0,0,0,0,0,0,0,0,0]
["Report footer"]

{"sheet":"Travel - System","index":6,"n_rows":37,"n_cols":25,"rows_kept":37,"cut":false,"hidden":true,"merged":[]}
["Selected Traveller",1,null,null,"Column Name","Value","Row Form","Colum Form","Calculation","Row Database","Column Database","Default Value","Form Control","Category ID","Category Drop Down","Traveller ID","Traveller Drop Down","Selected Branches PS (Calculated)","Selected Branches Non PS (Calculated)","ID","Category Drop Down EN","Category Drop Down FR","ID","Traveller Drop Down EN","Traveller Drop Down FR"]
["Number of Traveller",1,null,null,"Selected Traveller Name",null,6,5,null,{"$f":"Selected_Traveller+2","v":3},1,null,"txtName",null,null,null,"","sf"]
[null,null,null,null,"Branch",null,7,5,null,3,2,{"$f":"IF(Selected_Traveller>1,IF(INDIRECT(\"'Travel DATA'!B\"&J3-1)=\"\",\"\",INDIRECT(\"'Travel DATA'!B\"&J3-1)),\"\")","v":""},"txtBranch",1,{"$f":"IF(Language=French_Select,V3,U3)","v":"Activités opérationnelles – les voyages requis pour appuyer les activités opérationnelles du ministère (autres que les catégories suivantes), les exigences législatives ou juridiques"},1,{"$f":"IF(Language=French_Select,Y3,X3)","v":"Fonctionnaire"},null,null,1,"Operational activities - Travel required to support the department’s operational activities (other than the following categories), legislative or legal requirements","Activités opérationnelles – les voyages requis pour appuyer les activités opérationnelles du ministère (autres que les catégories suivantes), les exigences législatives ou juridiques",1,"Public Servant","Fonctionnaire"]
[null,null,null,null,"Origin",null,8,9,null,3,5,{"$f":"IF(Selected_Traveller>1,IF(INDIRECT(\"'Travel DATA'!E\"&J4-1)=\"\",\"\",INDIRECT(\"'Travel DATA'!E\"&J4-1)),\"\")","v":""},"txtOrigin",2,{"$f":"IF(Language=French_Select,V4,U4)","v":"Voyages nécessaires pour mobiliser des intervenants clés à l'égard du renouvellement ou de l'élaboration d'un règlement, d'une politique, un programme ou d'autres questions qui soutiennent les relations de travail ou les opérations continues des ministères avec ces communautés"},2,{"$f":"IF(Language=French_Select,Y4,X4)","v":"Non-fonctionnaire"},null,null,2,"Travel that is necessary to engage key stakeholders in relation to policy, program or regulatory development or renewal or other matters that support the departments' ongoing working relationship or operations with such communities;","Voyages nécessaires pour mobiliser des intervenants clés à l'égard du renouvellement ou de l'élaboration d'un règlement, d'une politique, un programme ou d'autres questions qui soutiennent les relations de travail ou les opérations continues des ministères avec ces communautés",2,"Non-Public Servant","Non-fonctionnaire"]
[null,null,null,null,"Destination",null,8,10,null,3,6,{"$f":"IF(Selected_Traveller>1,IF(INDIRECT(\"'Travel DATA'!F\"&J5-1)=\"\",\"\",INDIRECT(\"'Travel DATA'!F\"&J5-1)),\"\")","v":""},"txtDestination",3,{"$f":"IF(Language=French_Select,V5,U5)","v":"Voyages nécessaires pour appuyer la saine gouvernance interne d'un ministère, y compris pour des réunions de la direction et du comité ministériel de vérification, ou aux fins du recrutement ou de l'embauche d'employés\n"}," ",null,null,null,3,"Travel that is necessary to support sound internal governance of a department including management meetings and Departmental Audit Committee meetings, or that is necessary for the recruitment or hiring of employees;","Voyages nécessaires pour appuyer la saine gouvernance interne d'un ministère, y compris pour des réunions de la direction et du comité ministériel de vérification, ou aux fins du recrutement ou de l'embauche d'employés\n"]
["Traveller_Type",{"$f":"\"'Travel DATA'!I3:I\" & B2+2","v":"'Travel DATA'!I3:I3"},null,null,"Objective",null,12,5,null,3,7,{"$f":"IF(Selected_Traveller>1,IF(INDIRECT(\"'Travel DATA'!G\"&J6-1)=\"\",\"\",INDIRECT(\"'Travel DATA'!G\"&J6-1)),\"\")","v":""},"txtObjective",4,{"$f":"IF(Language=French_Select,V6,U6)","v":"Voyages d'employés aux fins d'une formation qui leur permettra de s'acquitter des fonctions propres à leur poste"}," ",null,null,null,4,"Travel to enable the training of employees to meet the assigned duties of their positions;","Voyages d'employés aux fins d'une formation qui leur permettra de s'acquitter des fonctions propres à leur poste"," "]
["Travel_Transportation",{"$f":"\"'Travel DATA'!K3:U\" & B2+2","v":"'Travel DATA'!K3:U3"},null,null,"Category",null,13,5,null,3,8,{"$f":"IF(Selected_Traveller>1,IF(INDIRECT(\"'Travel DATA'!H\"&J7-1)=\"\",\"\",INDIRECT(\"'Travel DATA'!H\"&J7-1)),\"\")","v":""},"cmbCategory",5,{"$f":"IF(Language=French_Select,V7,U7)","v":"Autres voyages"},null,null,null,null,5,"Other travel;","Autres voyages"]
["Travel_Accomodations",{"$f":"\"'Travel DATA'!V3:Y\" & B2+2","v":"'Travel DATA'!V3:Y3"},null,null,"CategoryOther",null,null,null,null,3,37,{"$f":"IF(Selected_Traveller>1,IF(INDIRECT(\"'Travel DATA'!AK\"&J12-1)=\"\",\"\",INDIRECT(\"'Travel DATA'!AK\"&J12-1)),\"\")","v":""},"txtCategoryOther"]
["Travel_Meals",{"$f":"\"'Travel DATA'!Z3:AB\" & B2+2","v":"'Travel DATA'!Z3:AB3"},null,null,"Traveller",null,14,5,null,3,9,{"$f":"IF(Selected_Traveller>1,IF(INDIRECT(\"'Travel DATA'!I\"&J9-1)=\"\",\"\",INDIRECT(\"'Travel DATA'!I\"&J9-1)),\"\")","v":""},"cmbTraveller"]
["Travel_Incidentals",{"$f":"\"'Travel DATA'!AC3:AD\" & B2+2","v":"'Travel DATA'!AC3:AD3"},null,null,"Start Date",null,null,null,null,3,3,{"$f":"IF(Selected_Traveller>1,IF(INDIRECT(\"'Travel DATA'!C\"&J10-1)=\"\",\"\",INDIRECT(\"'Travel DATA'!C\"&J10-1)),\"\")","v":""},"txtFromDate"]
["Traveller_Branch",{"$f":"\"'Travel DATA'!B3:B\" & B2+2","v":"'Travel DATA'!B3:B3"},null,null,"End Date",null,null,null,null,3,4,{"$f":"IF(Selected_Traveller>1,IF(INDIRECT(\"'Travel DATA'!D\"&J11-1)=\"\",\"\",INDIRECT(\"'Travel DATA'!D\"&J11-1)),\"\")","v":""},"txtToDate"]
["Max Branches PS",{"$f":"COUNTA(R2:R100)","v":1},null,null,"Travel Date Unknown",null,null,null,null,3,36,{"$f":"IF(Selected_Traveller>1,IF(INDIRECT(\"'Travel DATA'!aj\"&J12-1)=\"\",\"\",INDIRECT(\"'Travel DATA'!aj\"&J12-1)),\"\")","v":""},"chkUnknown"]
["Max Branches non PS",0,null,null,"Virtual presence or other remote meeting solutions",null,15,5,null,3,10,{"$f":"IF(Selected_Traveller>1,IF(INDIRECT(\"'Travel DATA'!J\"&J13-1)=\"\",\"\",INDIRECT(\"'Travel DATA'!J\"&J13-1)),\"\")","v":""},"txtVirtual"]
["Travel_Category",{"$f":"\"'Travel DATA'!H3\"","v":"'Travel DATA'!H3"},null,null,"Air",null,18,6,null,3,11,0,"txtAir"]
["Travel_CategoryOther",{"$f":"\"'Travel DATA'!AK3\"","v":"'Travel DATA'!AK3"},null,null,"Rail",null,19,6,null,3,12,0,"txtRail"]
["Virtual_Presence_Justification",{"$f":"\"'Travel DATA'!J3\"","v":"'Travel DATA'!J3"},null,null,"Bus",null,20,6,null,3,13,0,"txtBus"]
[null,null,null,null,"Ferry",null,21,6,null,3,14,0,"txtFerry"]
[null,null,null,null,"Taxi",null,22,6,null,3,15,0,"txtTaxi"]
[null,null,null,null,"Personal Vehicle",null,23,6,null,3,16,0,"txtPersVeh"]
[null,null,null,null,"Rental Vehicle",null,24,6,null,3,17,0,"txtRentVeh"]
[null,null,null,null,"Govt Vehicle",null,25,6,null,3,18,0,"txtGovVeh"]
[null,null,null,null,"Public Transit",null,26,6,null,3,19,0,"txtPublic"]
[null,null,null,null,"Parking",null,27,6,null,3,20,0,"txtPark"]
[null,null,null,null,"Other Mode",null,28,6,null,3,21,0,"txtOtherTrans"]
[null,null,null,null,"Commercial",null,31,6,null,{"$f":"Selected_Traveller+2","v":3},22,0,"txtAccComm"]
[null,null,null,null,"Unlisted Commercial",null,32,6,null,3,23,0,"txtAccUnlst"]
[null,null,null,null,"Private",null,33,6,null,3,24,0,"txtAccPvt"]
[null,null,null,null,"Other",null,34,6,null,3,25,0,"txtAccOther"]
[null,null,null,null,"Breakfast",null,37,6,null,3,26,0,"txtMealBreakfast"]
[null,null,null,null,"Lunch",null,38,6,null,3,27,0,"txtMealLunch"]
[null,null,null,null,"Dinner",null,39,6,null,3,28,0,"txtMealDinner"]
[null,null,null,null,"Incidentals",null,42,6,null,3,29,0,"txtIncidentals"]
[null,null,null,null,"Other Costs",null,43,6,null,3,30,0,"txtOtherCosts"]
[null,null,null,null,"Transportation Rationale",null,18,7,null,3,31,{"$f":"IF(Selected_Traveller>1,IF(INDIRECT(\"'Travel DATA'!AE\"&J34-1)=\"\",\"\",INDIRECT(\"'Travel DATA'!AE\"&J34-1)),\"\")","v":""},"txtTransJustification"]
[null,null,null,null,"Accommodation Rationale",null,31,7,null,3,32,{"$f":"IF(Selected_Traveller>1,IF(INDIRECT(\"'Travel DATA'!AF\"&J35-1)=\"\",\"\",INDIRECT(\"'Travel DATA'!AF\"&J35-1)),\"\")","v":""},"txtAccJustification"]
[null,null,null,null,"Excluded Meals Details",null,37,7,null,3,33,{"$f":"IF(Selected_Traveller>1,IF(INDIRECT(\"'Travel DATA'!AG\"&J36-1)=\"\",\"\",INDIRECT(\"'Travel DATA'!AG\"&J36-1)),\"\")","v":""},"txtMealJustification"]
[null,null,null,null,"Additional Information",null,42,7,null,3,34,{"$f":"IF(Selected_Traveller>1,IF(INDIRECT(\"'Travel DATA'!AH\"&J37-1)=\"\",\"\",INDIRECT(\"'Travel DATA'!AH\"&J37-1)),\"\")","v":""},"txtOtherJustification"]

{"sheet":"Delegation","index":7,"n_rows":29,"n_cols":36,"rows_kept":29,"cut":false,"hidden":true,"merged":[[0,4,0,6],[0,8,0,10],[0,12,0,14],[0,16,0,18],[0,20,0,22]]}
["Level","Description","Description",null,"Events",null,null,null,"Travel",null,null,null,"Hospitality",null,null,null,"Conference (Excludes Training)",null,null,null,"Other Costs",null,null,null,"Overall Event Approval Level --­>",{"$f":"MAX(Event_Delegation_Level_Part1,Travel_Delegation_Level,Hospitality_Delegation_Event_Level,Conference_Delegation_Level,OtherCosts_Delegation_Level)","v":0},null,"Test ID","Validation Item Desc EN","Validation Item Desc FR",null,"To include in Memo text EN","To include in Memo text FR",null,"Memo text EN","Memo text FR"]
[0,"No additional authorization required","Aucune autorisation supplémentaire nécessaire.",null,"Test ID","Description","Authority",null,"Test ID","Description","Authority",null,"Test ID","Description","Authority",null,"Test ID","Description","Authority",null,"Test ID","Description","Authority",null,null,null,null,2,"the total departmental cost for a single event is exceeding $25,000","les frais pour un seul et même événement s'élèvent à plus de 25 000 $",null,{"$f":"IF(G4=Event_Delegation_Level,AC2,\"\")","v":"the total departmental cost for a single event is exceeding $25,000"},{"$f":"IF(G4=Event_Delegation_Level,AD2,\"\")","v":"les frais pour un seul et même événement s'élèvent à plus de 25 000 $"},{"$f":"IF(AF2=\"\",0,1)","v":1},{"$f":"IF(AF2=\"\",AI3,IF(MAX($AH$2:$AH$28)=1,(AF2)&\".\",IF(AI3=\" \",\"and \"&AF2&\".\",IF(MIN($AH$2:$AH$28)=AH2,AF2&\"; \"&AI3,AF2&\"; \"&AI3))))","v":{"$error":"#REF!"}},{"$f":"IF(AG2=\"\",AJ3,IF(MAX($AH$2:$AH$28)=1,(AG2)&\".\",IF(AJ3=\" \",\"et \"&AG2&\".\",IF(MIN($AH$2:$AH$28)=AI2,AG2&\"; \"&AJ3,AG2&\"; \"&AJ3))))","v":{"$error":"#REF!"}}]
[0.5,"No additional authorization required for travel with BTA.","Aucune autorisation supplémentaire nécessaire pour voyage avec AGV.",null,1,"Events Delegation Level",{"$f":"IF(AND(Activity_is_Event,NOT(Event_Total_Cost=0),SUM(G4:G7)=0),5,MAX(G4:G7))","v":0},null,11,"Travel Delegation Level",{"$f":"IF(Travel_Expenses=Yes_Select,\n          IF(AND(NOT(Travel_Total_Cost=0),OR(Travel_Type=Travel_Local_Select,AND(Travel_Type=Travel_International_Select,Travel_On_Plan=Yes_Select))),\n               0,\n               IF(AND(SUM(K4:K16)=0,NOT(Travel_Total_Cost=0)),5,MAX(K4:K16))),\n         0)","v":0},null,18,"Hospitality Delegation Level",{"$f":"IF(Hospitality,IF(AND(SUM(O5:O20)=0,NOT(Hospitality_Total_Cost=0)),5,IF(Activity_is_Event,MAX(MAX(O5:O15),MIN(O17:O20)),MAX(MAX(O5:O15),MIN(O16:O20)))),0)","v":0},null,31,"Conference Delegation Level",{"$f":"IF(Conference,MAX(S4:S17),0)","v":0},null,34,"Other Costs Delegation Level",{"$f":"IF(NOT(Other_Total_Cost=0),1,0)","v":0},null,null,null,null,3,"the total departmental cost for a single event is exceeding $5,000 and up to $25,000","les frais pour un seul et même événement s'élèvent à plus de 5 000 $ jusqu'à 25 000 $",null,{"$f":"IF(G5=Event_Delegation_Level,AC3,\"\")","v":"the total departmental cost for a single event is exceeding $5,000 and up to $25,000"},{"$f":"IF(G5=Event_Delegation_Level,AD3,\"\")","v":"les frais pour un seul et même événement s'élèvent à plus de 5 000 $ jusqu'à 25 000 $"},{"$f":"IF(AF3=\"\",AH2,AH2+1)","v":2},{"$error":"#REF!"},{"$error":"#REF!"}]
[1,"Director","Directeur",null,2,"More than $50,000",{"$f":"IF(AND(Activity_is_Event,(Event_Total_Cost>50000)),5,0)","v":0},null,13,"International not on plan",{"$f":"IF(AND(Travel_Type=Travel_International_Select,NOT(Travel_On_Plan=Yes_Select)),\n       IF(OR(Approving_Entity=Labour_Select,Approving_Entity=ServCan_Select),\n                   4,\n                  3.5),\n       0)","v":0},null,18.5,"Hospitality Delegation Event Level",{"$f":"IF(Hospitality,IF(AND(SUM(O5:O20)=0,NOT(Hospitality_Total_Cost=0)),5,MAX(MAX(O5:O15),2)),0)","v":0},null,33.200000000000003,"ADM in Conference",{"$f":"IF(Conference_ADM_Attend=Yes_Select,4,0)","v":0},null,null,null,null,null,null,null,null,4,"the total departmental cost for a single event is $5,000 and less","les frais pour un seul et même événement s'élèvent à 5 000 $ et moins",null,{"$f":"IF(G6=Event_Delegation_Level,AC4,\"\")","v":"the total departmental cost for a single event is $5,000 and less"},{"$f":"IF(G6=Event_Delegation_Level,AD4,\"\")","v":"les frais pour un seul et même événement s'élèvent à 5 000 $ et moins"},{"$f":"IF(AF4=\"\",AH3,AH3+1)","v":3},{"$error":"#REF!"},{"$error":"#REF!"}]
[2,"Director General","Directeur Général",null,3,"More than $25,000 to $50,000",{"$f":"IF(AND(Activity_is_Event,(Event_Total_Cost>25000),(Event_Total_Cost<=50000)),4,0)","v":0},null,14,"Domestic Travel",{"$f":"IF(Travel_Type=Travel_Domestic_Select,2,0)","v":0},null,19,"More = than $10,000",{"$f":"IF((Hospitality_Total_Cost>10000),5,0)","v":0},null,33.299999999999997,"DM in Conference",{"$f":"IF(Conference_DM_Attend=Yes_Select,4.1, 0)","v":0},null,null,null,null,null,null,null,null,5,"the total departmental cost for a single event is $1,500 and less without any travel charges or conference fees","les frais pour un seul et même événement s'élèvent à 1 500 $ et moins sans frais de voyage ou de conférence",null,{"$f":"IF(G7=Event_Delegation_Level,AC5,\"\")","v":"the total departmental cost for a single event is $1,500 and less without any travel charges or conference fees"},{"$f":"IF(G7=Event_Delegation_Level,AD5,\"\")","v":"les frais pour un seul et même événement s'élèvent à 1 500 $ et moins sans frais de voyage ou de conférence"},4,{"$error":"#REF!"},{"$error":"#REF!"}]
[3,"Assistant Deputy Minister","Sous-ministre adjoint",null,4,"More than $15,000 to $25,000",{"$f":"IF(AND(Activity_is_Event,Event_Total_Cost>15000,Event_Total_Cost<=25000),3,0)","v":0},null,15.9,"DG a Traveller",{"$f":"IF(DG_A_Traveller=Yes_Select,3,0)","v":0},null,20,"More = than $3,000 to $10,000",{"$f":"IF(AND((Hospitality_Total_Cost>3000),(Hospitality_Total_Cost<=10000)),4,0)","v":0},null,33.5,"Sponsorship of a conference",{"$f":"IF(Conference_Sponsorship=Yes_Select,\n         IF(Conference_DM_Attend=Yes_Select,4.1,4),0)","v":0},null,null,null,null,null,null,null,null,6,"the Director General is a participant of the hospitality event","le directeur général est un participant à l'événement d'accueil",null,{"$f":"IF(G25=Event_Delegation_Level,AC6,\"\")","v":"the Director General is a participant of the hospitality event"},{"$f":"IF(G25=Event_Delegation_Level,AD6,\"\")","v":"le directeur général est un participant à l'événement d'accueil"},5,{"$error":"#REF!"},{"$error":"#REF!"}]
[3.5,"SADM SSPB & CFO","SMA PSS & DPF",null,5,"Less than or equal $15,000",{"$f":"IF(AND(Activity_is_Event,Event_Total_Cost>0,Event_Total_Cost<=15000),2,0)","v":0},null,16,"ADM a Traveller",{"$f":"IF(ADM_A_Traveller=Yes_Select,4,0)","v":0},null,20.100000000000001,"More = than $2,000 to $3,000",{"$f":"IF(AND((Hospitality_Total_Cost>2000),(Hospitality_Total_Cost<=3000)),3,0)","v":0},null,2,"More than $50,000",{"$f":"IF(AND(Conference,(Conference_Total_Cost>50000)),5,0)","v":0},null,null,null,null,null,null,null,null,12,"the international travel is part of the approved International Travel Plan","le voyage international fait partie du plan des voyages internationaux approuvé",null,{"$f":"IF(#REF!=Event_Delegation_Level,AC7,\"\")","v":{"$error":"#REF!"}},{"$f":"IF(#REF!=Event_Delegation_Level,AD7,\"\")","v":{"$error":"#REF!"}},{"$error":"#REF!"},{"$error":"#REF!"},{"$error":"#REF!"}]
[3.7,"Assistant Deputy Minister and CFO","Sous-ministre adjoint et DPF",null,null,null,null,null,17,"DM a Traveller",{"$f":"IF(DM_A_Traveller=Yes_Select,4.1,0)","v":0},null,20.2,"More = than $1,000 to $2,000",{"$f":"IF(AND((Hospitality_Total_Cost>1000),(Hospitality_Total_Cost<=2000)),2,0)","v":0},null,3,"More than $25,000 to $50,000",{"$f":"IF(AND(Conference,Conference_Total_Cost>25000,Conference_Total_Cost<=50000),4,0)","v":0},null,null,null,null,null,null,null,null,13,"the international travel is not part of the approved International Travel Plan","le voyage international ne fait pas partie du plan des voyages internationaux approuvé",null,{"$f":"IF(K4=Event_Delegation_Level,AC8,\"\")","v":"the international travel is not part of the approved International Travel Plan"},{"$f":"IF(K4=Event_Delegation_Level,AD8,\"\")","v":"le voyage international ne fait pas partie du plan des voyages internationaux approuvé"},{"$error":"#REF!"},{"$f":"IF(AF8=\"\",AI9,IF(MAX($AH$2:$AH$28)=1,(AF8)&\".\",IF(AI9=\" \",\"and \"&AF8&\".\",IF(MIN($AH$2:$AH$28)=AH8,AF8&\"; \"&AI9,AF8&\"; \"&AI9))))","v":{"$error":"#REF!"}},{"$f":"IF(AG8=\"\",AJ9,IF(MAX($AH$2:$AH$28)=1,(AG8)&\".\",IF(AJ9=\" \",\"et \"&AG8&\".\",IF(MIN($AH$2:$AH$28)=AI8,AG8&\"; \"&AJ9,AG8&\"; \"&AJ9))))","v":{"$error":"#REF!"}}]
[3.9,"Chief Operating Officer","Chef de l'exploitation",null,null,null,null,null,null,null,null,null,21,"Less or equal than $1,000",{"$f":"IF(AND(((Hospitality_Total_Cost>0)),(Hospitality_Total_Cost<=1000)),1,0)","v":0},null,4,"Less than or equal $25,000",{"$f":"IF(AND(NOT(Conference_Cost=0),Conference,Conference_Total_Cost<=25000),3,0)","v":0},null,null,null,null,null,null,null,null,14,"there is domestic travel","il y a des voyages domestiques",null,{"$f":"IF(K5=Event_Delegation_Level,AC9,\"\")","v":"there is domestic travel"},{"$f":"IF(K5=Event_Delegation_Level,AD9,\"\")","v":"il y a des voyages domestiques"},{"$error":"#REF!"},{"$error":"#REF!"},{"$error":"#REF!"}]
[4,{"$f":"IF(Approving_Entity=ServCan_Select,\"Chief Operating Officer\",\"Deputy Minister\")","v":"Deputy Minister"},{"$f":"IF(Approving_Entity=ServCan_Select,\"Chef de l'exploitation\",\"Sous-ministre\")","v":"Sous-ministre"},null,null,null,null,null,null,null,null,null,22,"Over Standard Cost",{"$f":"IF(SUM(Meals_Exceeding_Standard)>0,4,0)","v":0},null,null,null,null,null,null,null,null,null,null,null,null,15.9,"the Director General is a traveller","le directeur général est un voyageur",null,{"$f":"IF(K6=Event_Delegation_Level,AC10,\"\")","v":"the Director General is a traveller"},{"$f":"IF(K6=Event_Delegation_Level,AD10,\"\")","v":"le directeur général est un voyageur"},{"$error":"#REF!"},{"$error":"#REF!"},{"$error":"#REF!"}]
[4.0999999999999996,"Chief Financial Officer","Dirigeant principal des finances",null,null,null,null,null,null,null,null,null,23,"Over Maximum Cost",{"$f":"IF(SUM(Meals_Exceeding_Maximum)>0,4,0)","v":0},null,null,null,null,null,null,null,null,null,null,null,null,16,"the Assistant Deputy Minister is a traveller","le sous-ministre adjoint est un voyageur",null,{"$f":"IF(K7=Event_Delegation_Level,AC11,\"\")","v":"the Assistant Deputy Minister is a traveller"},{"$f":"IF(K7=Event_Delegation_Level,AD11,\"\")","v":"le sous-ministre adjoint est un voyageur"},{"$error":"#REF!"},{"$error":"#REF!"},{"$error":"#REF!"}]
[4.3,{"$f":"IF(Approving_Entity=ServCan_Select,\"Chief Operating Officer\",\"Deputy Minister\") & \" and CFO\"","v":"Deputy Minister and CFO"},{"$f":"IF(Approving_Entity=ServCan_Select,\"Chef de l'exploitation\",\"Sous-ministre\") & \" et DPF\"","v":"Sous-ministre et DPF"},null,null,null,null,null,null,null,null,null,24,"Hospitality in the residence",{"$f":"IF(Hospitality_In_Residence=Yes_Select,4,0)","v":0},null,null,null,null,null,null,null,null,null,null,null,null,17,"the Deputy Minister is a traveller","le sous-ministre est un voyageur",null,{"$f":"IF(K8=Event_Delegation_Level,AC12,\"\")","v":"the Deputy Minister is a traveller"},{"$f":"IF(K8=Event_Delegation_Level,AD12,\"\")","v":"le sous-ministre est un voyageur"},{"$error":"#REF!"},{"$error":"#REF!"},{"$error":"#REF!"}]
[4.5,"Chief financial Officer for the Deputy Minister","Dirigeant principal des finances pour Sous-ministre",null,null,null,null,null,null,null,null,null,25,"Exceptional Hospitality",{"$f":"IF(Hospitality_Other_Exceptional>0,4,0)","v":0},null,null,null,null,null,null,null,null,null,null,null,null,19,"the hospitality costs are exceeding $5,000","les coûts d'accueil s'élèvent à plus de 5 000 $",null,{"$f":"IF(O5=Event_Delegation_Level,AC13,\"\")","v":"the hospitality costs are exceeding $5,000"},{"$f":"IF(O5=Event_Delegation_Level,AD13,\"\")","v":"les coûts d'accueil s'élèvent à plus de 5 000 $"},{"$error":"#REF!"},{"$error":"#REF!"},{"$error":"#REF!"}]
[5,"Minister","Ministre",null,null,null,null,null,null,null,null,null,26,"Alcohol",{"$f":"IF((Hospitality_Alcohol = Yes_Select),5,0)","v":0},null,null,null,null,null,null,null,null,null,null,null,null,20,"the hospitality costs are exceeding $1,500 and up to $5,000","les coûts d'accueil s'élèvent à plus de 1 500 $ jusqu'à 5 000 $",null,{"$f":"IF(O6=Event_Delegation_Level,AC14,\"\")","v":"the hospitality costs are exceeding $1,500 and up to $5,000"},{"$f":"IF(O6=Event_Delegation_Level,AD14,\"\")","v":"les coûts d'accueil s'élèvent à plus de 1 500 $ jusqu'à 5 000 $"},{"$error":"#REF!"},{"$error":"#REF!"},{"$error":"#REF!"}]
[null,null,null,null,null,null,null,null,null,null,null,null,27,"Hospitality given to a spouse",{"$f":"IF(Exc_Spouse_Hospitality=Yes_Select,4,0)","v":0},null,null,null,null,null,null,null,null,null,null,null,null,21,"the hospitality costs are $1,500 and less","les coûts d'accueil s'élèvent à 1 500 $ et moins",null,{"$f":"IF(O9=Event_Delegation_Level,AC15,\"\")","v":"the hospitality costs are $1,500 and less"},{"$f":"IF(O9=Event_Delegation_Level,AD15,\"\")","v":"les coûts d'accueil s'élèvent à 1 500 $ et moins"},{"$error":"#REF!"},{"$error":"#REF!"},{"$error":"#REF!"}]
[null,null,null,null,null,null,null,null,null,null,null,null,27.5,"DIR in Hospitality",{"$f":"IF(Hospitality_DIR_Participant=Yes_Select,TRUE,IF(MAX(O5:O15)<=1,IF(Hospitality_Total_Cost<=1000,1,FALSE),FALSE))","v":1},null,null,null,null,null,null,null,null,null,null,null,null,22,"the hospitality cost per person is over the standard cost","le coût d'accueil par personne excède le coût standard",null,"the hospitality cost per person is over the standard cost","le coût d'accueil par personne excède le coût standard",{"$error":"#REF!"},{"$error":"#REF!"},{"$error":"#REF!"}]
[null,null,null,null,null,null,null,null,null,null,null,null,28,"DG in Hospitality",{"$f":"IF(Hospitality_DG_Participant=Yes_Select,TRUE,IF(MAX(O5:O15)<=1,IF(Hospitality_Total_Cost<=2000,2,FALSE),FALSE))","v":2},null,null,null,null,null,null,null,null,null,null,null,null,23,"the hospitality cost per person is over the maximum cost","le coût d'accueil par personne excède le coût maximum",null,"the hospitality cost per person is over the maximum cost","le coût d'accueil par personne excède le coût maximum",{"$error":"#REF!"},{"$error":"#REF!"},{"$error":"#REF!"}]
[null,null,null,null,null,null,null,null,null,null,null,null,29,"ADM in Hospitality",{"$f":"IF(Hospitality_ADM_Participant=Yes_Select,TRUE,IF(MAX(O5:O15)<=1,IF(Hospitality_Total_Cost<=3000,3,FALSE),FALSE))","v":3},null,null,null,null,null,null,null,null,null,null,null,null,24,"the hospitality is extend at the residence of a public servant","l'accueil est offerte à la résidence d'un fonctionnaire",null,"the hospitality is extend at the residence of a public servant","l'accueil est offerte à la résidence d'un fonctionnaire",{"$error":"#REF!"},{"$error":"#REF!"},{"$error":"#REF!"}]
[null,null,null,null,null,null,null,null,null,null,null,null,29.5,"CFO in Hospitality",{"$f":"IF(Hospitality_Total_Cost<=10000,\nIF(Hospitality_CFO_Participant=Yes_Select,IF(Hospitality_DM_Participant=Yes_Select,4.1,4),IF(Hospitality_DM_Participant=Yes_Select,4.1,4.1)),\nFALSE)","v":4.0999999999999996},null,null,null,null,null,null,null,null,null,null,null,null,25,"the hospitality includes exceptional form of hospitality","l'accueil inclus des formes exceptionnelles d'accueil",null,"the hospitality includes exceptional form of hospitality","l'accueil inclus des formes exceptionnelles d'accueil",{"$error":"#REF!"},{"$error":"#REF!"},{"$error":"#REF!"}]
[null,null,null,null,null,null,null,null,null,null,null,null,30,"DM in Hospitality",{"$f":"IF(Hospitality_DM_Participant=Yes_Select,\n      TRUE,\n      IF(Hospitality_Total_Cost<=10000,IF(OR(Hospitality_CFO_Participant=Yes_Select,SUM(O10,O11,Hospitality_Restrictions,O13,O15,Hospitality_Total_Cost>3000)>0),4,4.1),FALSE))","v":4.0999999999999996},null,null,null,null,null,null,null,null,null,null,null,null,26,"the hospitality includes alcohol","l'accueil inclus de l'alcool",null,"the hospitality includes alcohol","l'accueil inclus de l'alcool",{"$error":"#REF!"},{"$error":"#REF!"},{"$error":"#REF!"}]
[null,null,null,null,null,null,null,null,null,null,null,null,null,null,null,null,null,null,null,null,null,null,null,null,null,null,null,27,"the hospitality is given to a spouse or to a person accompanying the event participant","l'accueil est donné à un époux ou une personne accompagnant le participant à l'événement",null,"the hospitality is given to a spouse or to a person accompanying the event participant","l'accueil est donné à un époux ou une personne accompagnant le participant à l'événement",{"$error":"#REF!"},{"$error":"#REF!"},{"$error":"#REF!"}]
[null,null,null,null,null,null,null,null,null,null,null,null,null,null,null,null,null,null,null,null,null,null,null,null,null,null,null,28,"the Director General is a participant of the hospitality event","le directeur général est un participant à l'événement d'accueil",null,{"$f":"IF(O17=Event_Delegation_Level,AC22,\"\")","v":""},{"$f":"IF(O17=Event_Delegation_Level,AD22,\"\")","v":""},{"$error":"#REF!"},{"$error":"#REF!"},{"$error":"#REF!"}]
[null,null,null,null,null,null,null,null,null,null,null,null,null,null,null,null,null,null,null,null,null,null,null,null,null,null,null,29,"the Assistant Deputy Minister is a participant of the hospitality event","le sous-ministre adjoint est un participant à l'événement d'accueil",null,{"$f":"IF(O27=Event_Delegation_Level,AC23,\"\")","v":"the Assistant Deputy Minister is a participant of the hospitality event"},{"$f":"IF(O27=Event_Delegation_Level,AD23,\"\")","v":"le sous-ministre adjoint est un participant à l'événement d'accueil"},{"$error":"#REF!"},{"$error":"#REF!"},{"$error":"#REF!"}]
[null,null,null,null,null,null,null,null,null,null,null,null,null,"They can't approve FALSE",{"$f":"IF(Hospitality_DIR_Participant=Yes_Select,TRUE,IF(Hospitality_Total_Cost<=1000,1,FALSE))","v":1},null,null,null,null,null,null,null,null,null,null,null,null,30,"the Deputy Minister is a participant of the hospitality event","le sous-ministre est un participant à l'événement d'accueil",null,{"$f":"IF(O29=Event_Delegation_Level,AC24,\"\")","v":"the Deputy Minister is a participant of the hospitality event"},{"$f":"IF(O29=Event_Delegation_Level,AD24,\"\")","v":"le sous-ministre est un participant à l'événement d'accueil"},{"$error":"#REF!"},{"$error":"#REF!"},{"$error":"#REF!"}]
[null,null,null,null,null,null,null,null,null,null,null,null,null,"They are going",true,null,null,null,null,null,null,null,null,null,null,null,null,34,"other Costs","autres coûts",null,{"$f":"IF(W3=Event_Delegation_Level,AC25,\"\")","v":"other Costs"},{"$f":"IF(W3=Event_Delegation_Level,AD25,\"\")","v":"autres coûts"},{"$error":"#REF!"},{"$error":"#REF!"},{"$error":"#REF!"}]
[null,null,null,null,null,null,null,null,null,null,null,null,null,"Approval level","Number",null,null,null,null,null,null,null,null,null,null,null,null,33.200000000000003,"the Assistant Deputy Minister is part of the conference","le sous-ministre adjoint est un participant à la conférence",null,{"$f":"IF(S4=Event_Delegation_Level,AC26,\"\")","v":"the Assistant Deputy Minister is part of the conference"},{"$f":"IF(S4=Event_Delegation_Level,AD26,\"\")","v":"le sous-ministre adjoint est un participant à la conférence"},{"$error":"#REF!"},{"$error":"#REF!"},{"$error":"#REF!"}]
[null,null,null,null,null,null,null,null,null,null,null,null,null,null,null,null,null,null,null,null,null,null,null,null,null,null,null,33.299999999999997,"the Deputy Minister is part of the conference","le sous-ministre est un participant à la conférence",null,{"$f":"IF(S5=Event_Delegation_Level,AC27,\"\")","v":"the Deputy Minister is part of the conference"},{"$f":"IF(S5=Event_Delegation_Level,AD27,\"\")","v":"le sous-ministre est un participant à la conférence"},{"$error":"#REF!"},{"$error":"#REF!"},{"$error":"#REF!"}]
[null,null,null,null,null,null,null,null,null,null,null,null,null,null,null,null,null,null,null,null,null,null,null,null,null,null,null,33.5,"the department sponsors a conference","le ministère parraine une conférence",null,{"$f":"IF(G8=Event_Delegation_Level,AC28,\"\")","v":"the department sponsors a conference"},{"$f":"IF(G8=Event_Delegation_Level,AD28,\"\")","v":"le ministère parraine une conférence"},{"$error":"#REF!"},{"$error":"#REF!"},{"$error":"#REF!"}]
[null,null,null,null,null,null,null,null,null,null,null,null,null,null,null,null,null,null,null,null,null,null,null,null,null,null,null,null,null,null,null,null,null,null," "," "]

{"sheet":"System","index":8,"n_rows":22,"n_cols":38,"rows_kept":22,"cut":false,"hidden":true,"merged":[]}
[null,"Document to unhide","Unhide documents when …","Password","Language Drop Down",null,null,"Travel Drop Down","Travel DD En","Travel DD FR","Questions Drop Down","Questions DD EN","Question DD FR","Conference Drop Down","Conference DD EN","Conference DD FR","Paid by Drop Down","Paid by DD EN","Paid by DD FR","Entity Drop Down","Entity DD EN","Entity DD FR","HyperLink Label","Hyperlink EN","Hyperlink FR","Date Range",null,"THCEE Template Version","V 8-49",null,"Tool","CurrentVersion","Publishing Date","Title","Item Type","Path","Modified","Modified By"]
["Sheet1","Questionnaire",true,"boum!","English",null,null,null,null,null,null,null,null,null,null,null,null,null,null,null,null,null,"Travel ","http://iservice.prv/eng/finance/aic/hospitality/docs/Travel_Hospitality_Conferences_Event_20171030.pdf#page=4","http://iservice.prv/fra/finance/ici/frais_accueil/docs/politique_min_voyages_accueil_conferences_evenements.pdf#page=5",{"$f":"YEAR(NOW())","v":2021},null,"Current Version",{"$f":"AC1=VLOOKUP(\"THCEE\",Table_owssvr[[#All],[Tool]:[CurrentVersion]],2,FALSE)","v":false},null,"Journal Voucher","3","2018-07-26","Excel Template","Item","grp/CR-AR/Lists/ToolCurrentVersion",43308.349930555552,"Chavez Vibanco, Alejandra A [NC]"]
["Sheet2","Travel DATA",false,null,"Français",null,null,{"$f":"IF(Language=French_Select,J3,I3)","v":"International"},"International","International",{"$f":"IF(Language=French_Select,M3,L3)","v":"Oui"},"Yes","Oui",{"$f":"IF(Language=French_Select,P3,O3)","v":"Formation"},"Maintain or acquire skills and knowledge (considered training)","Formation",{"$f":"IF(Language=French_Select,S3,R3)","v":"Un seul centre financier"},"Only one fund centre","Un seul centre financier",{"$f":"IF(Language=French_Select,V3,U3)","v":"EDSC"},"ESDC","EDSC","Hospitality","http://iservice.prv/eng/finance/aic/hospitality/docs/Travel_Hospitality_Conferences_Event_20171030.pdf#page=5","http://iservice.prv/fra/finance/ici/frais_accueil/docs/politique_min_voyages_accueil_conferences_evenements.pdf#page=8",{"$f":"YEAR(NOW())+1","v":2022},null,null,null,null,"THCEE","V 8-43","2018-10-30","Excel Template","Item","grp/CR-AR/Lists/ToolCurrentVersion",43768.640682870369,"Matson, Andy A [NC]"]
["Sheet8","System",false,null,null,null,null,{"$f":"IF(Language=French_Select,J4,I4)","v":"Domestique"},"Domestic","Domestique",{"$f":"IF(Language=French_Select,M4,L4)","v":"Non"},"No","Non",{"$f":"IF(Language=French_Select,P4,O4)","v":"Représenter le gouvernement fédéral à titre officiel lors d'une conférence"},"Represent the department in an official capacity OR Conference sponsorship/cost sharing","Représenter le gouvernement fédéral à titre officiel lors d'une conférence",{"$f":"IF(Language=French_Select,S4,R4)","v":"Plusieurs centres finaciers"},"Multiple  fund centres","Plusieurs centres finaciers",{"$f":"IF(Language=French_Select,V4,U4)","v":"Programme du travail"},"Labour","Programme du travail",null,null,null,{"$f":"YEAR(NOW())+2","v":2023}]
["Sheet7","Authorisation - Autorisation",{"$f":"Questionnaire!D248","v":false},null,null,null,null,{"$f":"IF(Language=French_Select,J5,I5)","v":"Locale (voir définition - article 4.2.5 )"},"Local (see definition -article 4.2.5 )","Locale (voir définition - article 4.2.5 )",null,null,null,null,null,null,null,null,null,{"$f":"IF(Language=French_Select,V5,U5)","v":"Service Canada"},"Service Canada","Service Canada",null,null,null,{"$f":"YEAR(NOW())-1","v":2020}]
["Sheet10","Hospitality - Accueil",{"$f":"IF(AND(Questionnaire!D248,Hospitality,NOT(Hospitality_Total_Cost=0)),TRUE,FALSE)","v":false}]
["Sheet11","Hospitality - Configuration",false]
["Sheet12","Hospitality - System",false]
["Sheet13","Hospitality - DATA",false]
["Sheet14","Travel - System",false]
["Sheet19","Delegation",false]
["Sheet6","Travel Plan - Plan de voyage",{"$f":"IF(AND(Questionnaire!D248,Travel_Expenses=Yes_Select,NOT(Travel_Total_Cost=0)),TRUE,FALSE)","v":false}]
["Sheet3","Travel plan Template",false]
["Sheet5","Travel - Temp Data",false]
["Sheet4","Note EDSC-SC",false,{"$f":"AND(Questionnaire!E248,OR(Approving_Entity=ESDC_Select,Approving_Entity=ServCan_Select))","v":false}]
["Sheet9","Memo ESDC-SC",false,{"$f":"AND(Questionnaire!E248,OR(Approving_Entity=ESDC_Select,Approving_Entity=ServCan_Select))","v":false}]
["Sheet15","Memo Labor",false,{"$f":"AND(Questionnaire!E248,OR(Approving_Entity=Labour_Select))","v":false}]
["Sheet16","Note Travail",false,{"$f":"AND(Questionnaire!E248,OR(Approving_Entity=Labour_Select))","v":false}]
["Sheet17","Memo - System",false]
["Sheet18","System - Messages",false]
["Sheet20","Memo CheckList (EN)",{"$f":"Questionnaire!D251","v":false}]
["Sheet21","Memo CheckList (FR)",{"$f":"Questionnaire!D251","v":false}]

{"sheet":"Questionnaire","index":9,"n_rows":258,"n_cols":35,"rows_kept":258,"cut":false,"hidden":false,"merged":[[233,13,233,26],[227,16,227,20],[234,21,234,26],[256,13,256,26],[255,13,255,26],[254,13,254,26],[252,13,252,26],[242,13,242,26],[244,13,244,26],[250,13,250,26],[249,15,249,24],[247,12,247,27],[243,13,243,26],[253,13,253,26],[235,21,235,26],[235,13,235,19],[213,16,213,19],[187,16,187,19],[181,16,181,20],[201,21,203,25],[205,21,207,25],[213,21,215,25],[209,16,209,19],[209,21,211,25],[241,13,241,26],[236,21,236,26],[240,13,240,26],[239,13,239,26],[236,13,236,19],[238,13,238,26],[251,13,251,26],[245,13,245,26],[65,17,65,18],[67,17,67,18],[199,13,199,24],[79,16,79,24],[167,16,167,24],[120,16,120,20],[169,16,169,24],[175,16,175,20],[232,13,232,26],[230,12,230,27],[234,13,234,19],[201,16,201,19],[205,16,205,19],[195,16,195,20],[221,21,223,25],[217,21,219,25],[217,16,217,19],[225,16,225,20],[221,16,221,19],[107,16,107,25],[127,16,127,21],[1,12,1,27],[4,15,4,24],[57,12,57,27],[63,16,63,25],[77,16,77,17],[49,13,49,26],[53,13,53,26],[61,16,61,24],[6,12,6,27],[18,13,18,26],[75,16,75,25],[69,17,69,18],[71,16,71,24],[59,16,59,25],[73,16,73,24],[87,18,88,26],[89,18,90,26],[91,18,92,26],[177,16,177,24],[104,16,104,17],[109,12,109,27],[118,16,118,24],[121,13,121,24],[173,16,173,24],[171,16,171,20],[159,16,159,24],[139,16,139,20],[107,13,107,14],[145,16,145,24],[163,16,163,24],[10,13,10,24],[55,13,55,14],[35,13,35,23],[12,13,12,16],[14,13,14,16],[16,13,16,16],[51,13,51,14],[36,13,36,21],[43,13,43,21],[93,18,94,26],[85,18,86,26],[100,16,100,17],[81,16,81,24],[102,16,102,24],[98,16,98,21],[96,16,96,21]]}
[null,null,null,null,null,null,"Yes",null,null,null,null,null,null,null,null,null,null,null,null,null,null,null,null,null,null,{"$f":"IF(Language=French_Select,AE6,AD6)","v":"Vous devez remplir les champs indiqués par"},"Ü",null,null,"Changed or new need to be translated"]
[null,null,null,null,null,null,null,null,null,{"$f":"COUNTIF(K:K,\"=\"&TRUE)=0","v":false},null,null,{"$f":"IF(Language=French_Select,AE2,AD2)","v":"Directive sur les dépenses de voyages, d'accueil, de conférences et d'événements (DVACÉ)"},null,null,null,null,null,null,null,null,null,null,null,null,null,null,null,null,"Directive on Travel, Hospitality, Conference and Event Expenditures approvals (THCEE)","Directive sur les dépenses de voyages, d'accueil, de conférences et d'événements (DVACÉ)"]
[]
[]
["Type","ID","Evaluate","Display Row when …","Clear Field on Hide","Value to clear","Modify Display","Previous Display Value","Criteria 1 (Show)","Criteria 2 (Hidden)","Missing Mandatory",null,null,{"$f":"IF(Language=French_Select,AE5,AD5)","v":"S V P   N E   P A S   I M P R I M E R"},null,{"$f":"IF(Language=French_Select,\"Sélectionner votre langue -->\",\"Select Language -->\")","v":"Sélectionner votre langue -->"},null,null,null,null,null,null,null,null,null,"Français",null,null,null,"P L E A S E   D O   N O T   P R I N T","S V P   N E   P A S   I M P R I M E R"]
[null,null,null,null,null,null,null,null,null,null,null,null,null,null,null,null,null,null,null,null,null,null,null,null,null,null,null,null,null,"You must complete all fields indicated by","Vous devez remplir les champs indiqués par"]
[null,null,null,null,null,null,null,null,null,null,null,null,{"$f":"IF(Language=French_Select,AE7,AD7)","v":"Informations Générales"},null,null,null,null,null,null,null,null,null,null,null,null,null,null,null,null,"Basic Information","Informations Générales"]
[]
["Q",null,null,true,"Yes",null,"Yes",true,{"$f":"Q9","v":0},null,{"$f":"IF(AND(D9,I9=0),TRUE,FALSE)","v":true},null,"Ü",{"$f":"IF(Language=French_Select,AE9,AD9)","v":"S'agit-il d'une participation à une conférence?"},null,null,null,null,null,null,null,null,null,null,null,null,null,null,null,"Is there conference participation?","S'agit-il d'une participation à une conférence?",null,null,{"$f":"IF(Q9=Yes_Select_FR,Yes_Select_EN,IF(Q9=No_Select_FR,No_Select_EN,\"\"))","v":""},{"$f":"IF(Q9=Yes_Select_EN,Yes_Select_FR,IF(Q9=No_Select_EN,No_Select_FR,\"\"))","v":""}]
[null,null,"Yes",{"$f":"D9","v":true},null,null,null,true]
[null,null,"Yes",{"$f":"D10","v":true},null,null,null,true,null,null,null,null,null,{"$f":"IF(Language=French_Select,AE11,AD11)","v":"Les congrès, conventions ou séminaires ou autre rassemblement formel normalement organisés par de tierces parties ne faisant pas partie du gouvernement et dont les participants débattent du statut d’une discipline ou en sont informés. Les frais de participation aux conférences, les frais de ceux qui participent directement à une conférence ou qui représentent le ministère dans une capacité officielle (p. ex., kiosque d'exposants, commanditaires, etc.) doivent être inclus."},null,null,null,null,null,null,null,null,null,null,null,null,null,null,null,"Congress, convention, seminar, symposium or other formal gathering, which are usually organized by a third party external to government, where the participants debate or are informed of the status of a discipline. Fees for official conference participation (e.g. exhibitor booth, co-sponsor, official representation) are to be included.","Les congrès, conventions ou séminaires ou autre rassemblement formel normalement organisés par de tierces parties ne faisant pas partie du gouvernement et dont les participants débattent du statut d’une discipline ou en sont informés. Les frais de participation aux conférences, les frais de ceux qui participent directement à une conférence ou qui représentent le ministère dans une capacité officielle (p. ex., kiosque d'exposants, commanditaires, etc.) doivent être inclus."]
[null,null,"Yes",{"$f":"D11","v":true},null,null,null,true]
["Q",null,"Yes",{"$f":"Conference_Included=Yes_Select","v":false},"Yes",null,"Yes",false,{"$f":"IF(btnConfParticipation=1,Yes_Select,No_Select)","v":"Non"},0,{"$f":"IF(AND(Conference_Included=Yes_Select,J13=0),TRUE,FALSE)","v":false},null,"Ü",{"$f":"IF(Language=French_Select,AE13,AD13)","v":"a. Pour obtenir des renseignements sur un produit ou un service"},null,null,null,null,null,null,null,null,null,null,null,null,null,null,null,"a. To gain information on a product or service","a. Pour obtenir des renseignements sur un produit ou un service",null,null,{"$f":"IF(Q13=Yes_Select_FR,Yes_Select_EN,IF(Q13=No_Select_FR,No_Select_EN,\"\"))","v":""},{"$f":"IF(Q13=Yes_Select_EN,Yes_Select_FR,IF(Q13=No_Select_EN,No_Select_FR,\"\"))","v":""}]
[null,null,"Yes",false,null,null,null,false]
["Q",null,"Yes",false,"Yes",null,null,false,{"$f":"IF(btnConfParticipation=2,Yes_Select,No_Select)","v":"Non"},null,null,null,"Ü",{"$f":"IF(Language=French_Select,AE15,AD15)","v":"b. Pour promouvoir un programme/service ministériel ou mobiliser des intervenants"},null,null,null,null,null,null,null,null,null,null,null,null,null,null,null,"b. To promote a Departmental program/service or to engage stakeholders","b. Pour promouvoir un programme/service ministériel ou mobiliser des intervenants",null,null,{"$f":"IF(Q15=Yes_Select_FR,Yes_Select_EN,IF(Q15=No_Select_FR,No_Select_EN,\"\"))","v":""},{"$f":"IF(Q15=Yes_Select_EN,Yes_Select_FR,IF(Q15=No_Select_EN,No_Select_FR,\"\"))","v":""}]
[null,null,"Yes",false,null,null,null,false]
["Q",null,"Yes",false,"Yes",null,null,false,{"$f":"IF(btnConfParticipation=3,Yes_Select,No_Select)","v":"Non"},null,null,null,"Ü",{"$f":"IF(Language=French_Select,AE17,AD17)","v":"c. Pour soutenir l'apprentissage ou le perfectionnement professionel"},null,null,null,null,null,null,null,null,null,null,null,null,null,null,null,"c. To support learning or professional development","c. Pour soutenir l'apprentissage ou le perfectionnement professionel",null,null,{"$f":"IF(Q17=Yes_Select_FR,Yes_Select_EN,IF(Q17=No_Select_FR,No_Select_EN,\"\"))","v":""},{"$f":"IF(Q17=Yes_Select_EN,Yes_Select_FR,IF(Q17=No_Select_EN,No_Select_FR,\"\"))","v":""}]
[null,null,"Yes",false,null,null,null,false]
["A",null,"Yes",{"$f":"AND(btnConfParticipation=3,D17)","v":false},null,null,null,false,null,null,"-",null,"C",{"$f":"IF(Language=French_Select,AE19,AD19)","v":"Cliquez sur le lien pour rechercher votre conférence et répondre aux questions suivantes"},null,null,null,null,null,null,null,null,null,null,null,null,null,null,null,"Click on the link to look for your conference and answer the following question","Cliquez sur le lien pour rechercher votre conférence et répondre aux questions suivantes"]
[null,null,"Yes",{"$f":"D19","v":false},null,null,null,false]
["Q",null,"Yes",false,null,null,"Yes",false,null,0,{"$f":"IF(AND(D21,J21=0),TRUE,FALSE)","v":false},null,"Ü",{"$f":"IF(Language=French_Select,AE21,AD21)","v":"Selon la liste ministérielle de conférence vs formation, cette conférence est :"},null,null,null,null,null,null,null,null,null,null,null,null,null,null,null,"As per the Departmental Conference vs Training List, this conference is: ","Selon la liste ministérielle de conférence vs formation, cette conférence est :",null,null,{"$f":"IF(Q21=Yes_Select_FR,Yes_Select_EN,IF(Q21=No_Select_FR,No_Select_EN,\"\"))","v":""},{"$f":"IF(Q21=Yes_Select_EN,Yes_Select_FR,IF(Q21=No_Select_EN,No_Select_FR,\"\"))","v":""}]
["Q",null,"Yes",false,null,null,null,false,{"$f":"IF(btnConfList=1,Yes_Select,No_Select)","v":"Non"},null,null,null,null,{"$f":"IF(Language=French_Select,AE22,AD22)","v":"1. Une formation"},null,null,null,null,null,null,null,null,null,null,null,null,null,null,null,"1. A training","1. Une formation"]
[null,null,"Yes",false,null,null,null,false]
["Q",null,"Yes",false,null,null,null,false,{"$f":"IF(btnConfList=2,Yes_Select,No_Select)","v":"Non"},null,null,null,null,{"$f":"IF(Language=French_Select,AE24,AD24)","v":"2. Un Événement"},null,null,null,null,null,null,null,null,null,null,null,null,null,null,null,"2. An Event","2. Un Événement"]
[null,null,"Yes",false,null,null,null,false]
["Q",null,"Yes",false,null,null,null,false,{"$f":"IF(btnConfList=3,Yes_Select,No_Select)","v":"Non"},null,null,null,null,{"$f":"IF(Language=French_Select,AE26,AD26)","v":"3. Absente de la liste"},null,null,null,null,null,null,null,null,null,null,null,null,null,null,null,"3 Not included in the list","3. Absente de la liste"]
[null,null,"Yes",false,null,null,null,false]
[null,null,"Yes",{"$f":"Conference_Included=No_Select","v":false},null,null,"Yes",false,null,0,{"$f":"IF(AND(D28,J28=0),TRUE,FALSE)","v":false},null,"Ü",{"$f":"IF(Language=French_Select,AE28,AD28)","v":"Est-ce que votre activité est considérée comme une de ces cinq types d'Événements?"},null,null,null,null,null,null,null,null,null,null,null,null,null,null,null,"Is your activity considered one of these five type of events? ","Est-ce que votre activité est considérée comme une de ces cinq types d'Événements?"]
[null,null,"Yes",false,null,null,null,false]
["Q",null,"Yes",{"$f":"D28","v":false},"Yes",null,null,false,{"$f":"IF(btnTypeEventOper=1,Yes_Select,No_Select)","v":"Non"},null,null,null,null,{"$f":"IF(Language=French_Select,AE30,AD30)","v":"a. Journée de réflexion de la direction/du personnel"},null,null,null,null,null,null,null,null,null,null,null,null,null,null,null,"a. Management/Staff Retreat","a. Journée de réflexion de la direction/du personnel",null,null,{"$f":"IF(Q30=Yes_Select_FR,Yes_Select_EN,IF(Q30=No_Select_FR,No_Select_EN,\"\"))","v":""},{"$f":"IF(Q30=Yes_Select_EN,Yes_Select_FR,IF(Q30=No_Select_EN,No_Select_FR,\"\"))","v":""}]
[null,null,"Yes",{"$f":"D30","v":false},null,null,null,false]
["Q",null,"Yes",{"$f":"D31","v":false},"Yes",null,null,false,{"$f":"IF(btnTypeEventOper=2,Yes_Select,No_Select)","v":"Non"},null,null,null,null,{"$f":"IF(Language=French_Select,AE32,AD32)","v":"b. Cérémonie de remise de prix et de reconnaissance"},null,null,null,null,null,null,null,null,null,null,null,null,null,null,null,"b. Award and Recognition ceremony","b. Cérémonie de remise de prix et de reconnaissance",null,null,{"$f":"IF(Q32=Yes_Select_FR,Yes_Select_EN,IF(Q32=No_Select_FR,No_Select_EN,\"\"))","v":""},{"$f":"IF(Q32=Yes_Select_EN,Yes_Select_FR,IF(Q32=No_Select_EN,No_Select_FR,\"\"))","v":""}]
[null,null,"Yes",false,null,null,null,false]
["Q",null,"Yes",false,"Yes",null,null,false,{"$f":"IF(btnTypeEventOper=3,Yes_Select,No_Select)","v":"Non"},null,null,null,null,{"$f":"IF(Language=French_Select,AE34,AD34)","v":"c. Célébration ministérielle/gouvernementale"},null,null,null,null,null,null,null,null,null,null,null,null,null,null,null,"c. Departmental/Governmental Celebration","c. Célébration ministérielle/gouvernementale",null,null,{"$f":"IF(Q34=Yes_Select_FR,Yes_Select_EN,IF(Q34=No_Select_FR,No_Select_EN,\"\"))","v":""},{"$f":"IF(Q34=Yes_Select_EN,Yes_Select_FR,IF(Q34=No_Select_EN,No_Select_FR,\"\"))","v":""}]
[null,null,"Yes",false,null,null,null,false]
["Q",null,"Yes",false,null,null,null,false,{"$f":"IF(btnTypeEventOper=4,Yes_Select,No_Select)","v":"Non"},null,null,null,null,{"$f":"IF(Language=French_Select,AE36,AD36)","v":"d. Toutes les réunions ou rassemblements de fonctionnaires, peu importe l’objet, qui se tiennent à l’extérieur de la zone"},null,null,null,null,null,null,null,null,null,null,null,null,null,null,null,"d. All meetings or gatherings of public servants, regardless of the purpose, that are held outside the headquarters area","d. Toutes les réunions ou rassemblements de fonctionnaires, peu importe l’objet, qui se tiennent à l’extérieur de la zone",null,null,{"$f":"IF(Q36=Yes_Select_FR,Yes_Select_EN,IF(Q36=No_Select_FR,No_Select_EN,\"\"))","v":""},{"$f":"IF(Q36=Yes_Select_EN,Yes_Select_FR,IF(Q36=No_Select_EN,No_Select_FR,\"\"))","v":""}]
[null,null,"Yes",false,null,null,null,false,null,null,null,null,null,{"$f":"IF(Language=French_Select,AE37,AD37)","v":"d’affectation (rayon de 16 km) de la majorité des participants ministériels et pour lesquelles le ministère a le pouvoir discrétionnaire de choisir l’endroit et choisit de tenir l’activité dans un établissement non gouvernemental."},null,null,null,null,null,null,null,null,null,null,null,null,null,null,null,"(16km radius) of the majority of the departmental participants and for which the department has the discretion to select the venue and chooses to hold the activity in a non-government facility.","d’affectation (rayon de 16 km) de la majorité des participants ministériels et pour lesquelles le ministère a le pouvoir discrétionnaire de choisir l’endroit et choisit de tenir l’activité dans un établissement non gouvernemental."]
[null,null,"Yes",false,null,null,null,false]
["Q",null,"Yes",false,"Yes",null,null,false,{"$f":"IF(btnTypeEventOper=5,Yes_Select,No_Select)","v":"Non"},null,null,null,null,{"$f":"IF(Language=French_Select,AE39,AD39)","v":"e. Autre activité non-opérationnelle"},null,null,null,null,null,null,null,null,null,null,null,null,null,null,null,"e. Other non-operational activity","e. Autre activité non-opérationnelle",null,null,{"$f":"IF(Q39=Yes_Select_FR,Yes_Select_EN,IF(Q39=No_Select_FR,No_Select_EN,\"\"))","v":""},{"$f":"IF(Q39=Yes_Select_EN,Yes_Select_FR,IF(Q39=No_Select_EN,No_Select_FR,\"\"))","v":""}]
[null,null,"Yes",{"$f":"D39","v":false},null,null,null,false]
["Q",null,"Yes",{"$f":"D40","v":false},"Yes",null,"Yes",false,null,null,null,null,null,{"$f":"IF(Language=French_Select,AE41,AD41)","v":"Ou est-ce que votre activité est une activité opérationnelle ou une formation?"},null,null,null,null,null,null,null,null,null,null,null,null,null,null,null,"Or is your activity considered an operational activity or training?","Ou est-ce que votre activité est une activité opérationnelle ou une formation?"]
[null,null,"Yes",{"$f":"D41","v":false},null,null,null,false]
["Q",null,"Yes",{"$f":"D42","v":false},null,null,null,false,{"$f":"IF(btnTypeEventOper=6,Yes_Select,No_Select)","v":"Non"},null,null,null,null,{"$f":"IF(Language=French_Select,AE43,AD43)","v":"f. Activité opérationnelle"},null,null,null,null,null,null,null,null,null,null,null,null,null,null,null,"f. Operational Activity","f. Activité opérationnelle"]
[null,null,"Yes",false,null,null,null,false,null,null,null,null,null,{"$f":"IF(Language=French_Select,AE44,AD44)","v":"Activité à l'appuie et prestation des programmes et services ministériels. Ces activités comprennent les services internes et, pour les personnes, toutes les activités réalisées dans l'exercise de leurs fonctions."},null,null,null,null,null,null,null,null,null,null,null,null,null,null,null,"Activities in support and delivery of departmental programs and services. These activities include internal services and for individuals, all activities in performance of their assigned duties.","Activité à l'appuie et prestation des programmes et services ministériels. Ces activités comprennent les services internes et, pour les personnes, toutes les activités réalisées dans l'exercise de leurs fonctions."]
[null,null,"Yes",false,null,null,null,false]
["Q",null,"Yes",{"$f":"D44","v":false},null,null,null,false,{"$f":"IF(btnTypeEventOper=7,Yes_Select,No_Select)","v":"Non"},null,null,null,null,{"$f":"IF(Language=French_Select,AE46,AD46)","v":"g. Formation"},null,null,null,null,null,null,null,null,null,null,null,null,null,null,null,"g. Training","g. Formation"]
[null,null,"Yes",false,null,null,null,false]
["Q",null,"Yes",false,null,null,null,false,{"$f":"IF(btnTypeEventOper=8,Yes_Select,No_Select)","v":"Non"},null,null,null,null,{"$f":"IF(Language=French_Select,AE48,AD48)","v":"h. Autre"},null,null,null,null,null,null,null,null,null,null,null,null,null,null,null,"h. Other","h. Autre"]
[null,null,"Yes",{"$f":"D48","v":false},null,null,null,false]
["A",null,"Yes",{"$f":"btnTypeEventOper=8","v":false},null,null,null,false,null,null,"-",null,"C",{"$f":"IF(Language=French_Select,AE50,AD50)","v":"Veuillez contacter l'Équipe des politiques financières pour discuter de la nature de votre activité"},null,null,null,null,null,null,null,null,null,null,null,null,null,null,null,"Please contact the Financial Policy Team to discuss the nature of your activity","Veuillez contacter l'Équipe des politiques financières pour discuter de la nature de votre activité"]
[null,null,"Yes",{"$f":"D50","v":false},null,null,null,false]
["Q",null,"Yes",{"$f":"AND(COUNTIF(K9:K48,\"=\"&TRUE)=0,NOT(D50),OR(btnConfParticipation=2,AND(btnConfParticipation=3,btnConfList=1),btnTypeEventOper=6,btnTypeEventOper=7))","v":false},"Yes",null,"Yes",false,{"$f":"Q52","v":0},null,{"$f":"IF(AND(D52,Hospitality_Expenses=0),TRUE,FALSE)","v":false},null,"Ü",{"$f":"IF(Language=French_Select,AE52,AD52)","v":"Est-ce que des frais d'accueil sont inclus dans votre activité?"},null,null,null,null,"?",null,null,null,null,null,null,null,null,null,null,"Do you have any hospitality included in your activity?","Est-ce que des frais d'accueil sont inclus dans votre activité?",null,null,{"$f":"IF(Q52=Yes_Select_FR,Yes_Select_EN,IF(Q52=No_Select_FR,No_Select_EN,\"\"))","v":""},{"$f":"IF(Q52=Yes_Select_EN,Yes_Select_FR,IF(Q52=No_Select_EN,No_Select_FR,\"\"))","v":""}]
[null,null,"Yes",{"$f":"D52","v":false},null,null,null,false]
["A",null,"Yes",{"$f":"AND(NOT(Activity_is_Event),OR(Conference,Training,btnTypeEventOper=6),COUNTIF(K9:K52,\"=\"&TRUE)=0)","v":false},null,null,null,false,null,null,"-",null,"C",{"$f":"IF(Language=French_Select,AE54,AD54)","v":"Vous planifiez une activité opérationnelle, vous devez utiliser cet outil pour vos dépenses d'accueil ou de conférences. Cependant, vous avez l'option d'inclure toutes les dépenses qui pourraient être approuvées par d'autres moyens tels que SAP, SABA, etc."},null,null,null,null,null,null,null,null,null,null,null,null,null,null,null,"You are planning an operational activity, you MUST use this tool for hospitality and conferences expenditures, however you have the option to enter all the expenditures that could otherwise be approved by other means like SAP, SABA, etc.","Vous planifiez une activité opérationnelle, vous devez utiliser cet outil pour vos dépenses d'accueil ou de conférences. Cependant, vous avez l'option d'inclure toutes les dépenses qui pourraient être approuvées par d'autres moyens tels que SAP, SABA, etc."]
[null,null,"Yes",{"$f":"D54","v":false},null,null,null,false]
["Q",null,"Yes",{"$f":"D55","v":false},"Yes",null,"Yes",false,{"$f":"Q56","v":0},null,{"$f":"IF(AND(D56,UseTool=0),TRUE,FALSE)","v":false},null,"Ü",{"$f":"IF(Language=French_Select,AE56,AD56)","v":"Voulez-vous utiliser l'outil pour toutes les dépenses?"},null,null,null,null,null,null,null,null,null,null,null,null,null,null,null,"Do you want to use this tool to enter all your expenditures?","Voulez-vous utiliser l'outil pour toutes les dépenses?",null,null,{"$f":"IF(Q56=Yes_Select_FR,Yes_Select_EN,IF(Q56=No_Select_FR,No_Select_EN,\"\"))","v":""},{"$f":"IF(Q56=Yes_Select_EN,Yes_Select_FR,IF(Q56=No_Select_EN,No_Select_FR,\"\"))","v":""}]
[null,null,"Yes",{"$f":"D56","v":false},null,null,null,false]
[null,null,"Yes",{"$f":"AND(CompleteCriteria,OR(Activity_is_Event,Hospitality_Expenses=Yes_Select,UseTool=Yes_Select,Conference))","v":false},null,null,null,false,null,{"$f":"AND(COUNTIF(K9:K56,\"=\"&TRUE)=0,NOT(D50))","v":false},"-",null,{"$f":"IF(Language=French_Select,AE58,AD58)","v":"Renseignements généraux"},null,null,null,null,null,null,null,null,null,null,null,null,null,null,null,null,"General Information","Renseignements généraux"]
[null,null,"Yes",{"$f":"D58","v":false},null,null,null,false]
["Q",null,"Yes",{"$f":"D59","v":false},null,null,"Yes",false,{"$f":"Q60","v":0},null,{"$f":"IF(AND(D60,Activity_Title=0),TRUE,FALSE)","v":false},null,"Ü",{"$f":"IF(Language=French_Select,AE60,AD60)","v":"Veuillez indiquer le titre de votre activité (aucun acronyme, max. 200 caractères)"},null,null,null,null,null,null,null,null,null,null,null,null,null,null,null,"Please provide the title of your activity (No acronyms, max. 200 characters)","Veuillez indiquer le titre de votre activité (aucun acronyme, max. 200 caractères)"]
[null,null,"Yes",{"$f":"D60","v":false},null,null,null,false]
["Q",null,"Yes",{"$f":"D61","v":false},null,null,null,false,{"$f":"Q62","v":0},null,false,null,"Ü",{"$f":"IF(Language=French_Select,AE62,AD62)","v":"Numéro WebCIMS (si connu - max. 40 caractères)"},null,null,null,null,null,null,null,null,null,null,null,null,null,null,null,"WebCIMS number (if known - Max. 40 characters)","Numéro WebCIMS (si connu - max. 40 caractères)"]
[null,null,"Yes",{"$f":"D62","v":false},null,null,null,false]
["Q",null,"Yes",{"$f":"D62","v":false},null,null,"Yes",false,{"$f":"Q64","v":0},null,{"$f":"IF(AND(D64,Purpose=0),TRUE,FALSE)","v":false},null,"Ü",{"$f":"IF(Language=French_Select,AE64,AD64)","v":"Indiquer la nature, le but et l'objectif de votre activité (Max. 2 000 caractères). De plus, \n\n- identifier les mesures prises pour vous assurer que les coûts estimés offrent le meilleur rapport qualité/prix; et \n\n- donner l'assurance que les dépenses de voyage, d'accueil, de conférences et d'Évenements sont nécessaires pour soutenir les activités opérationnelles, les objectives ou les priorités du ministère."},null,null,null,null,null,null,null,null,null,null,null,null,null,null,null,"Provide the nature, purpose and objective of your activity (Max. 2,000 characters). Also,\n\n- identify how travel, hospitality, conference and Event costs were avoided or minimized; and\n\n- provide assurance that travel, hospitality, conference and Event expenditures are necessary to support the departmental operational activities, objectives or priorities.","Indiquer la nature, le but et l'objectif de votre activité (Max. 2 000 caractères). De plus, \n\n- identifier les mesures prises pour vous assurer que les coûts estimés offrent le meilleur rapport qualité/prix; et \n\n- donner l'assurance que les dépenses de voyage, d'accueil, de conférences et d'Évenements sont nécessaires pour soutenir les activités opérationnelles, les objectives ou les priorités du ministère."]
[null,null,"Yes",{"$f":"D64","v":false},null,null,null,false,null,null,null,null,null,null,null,null,null,null,null,null,null,null,null,null,null,null,null,null,null,null,null,"Day","Jour"]
[null,null,"Yes",{"$f":"D64","v":false},null,null,null,false,null,null,null,null,null,{"$f":"IF(Language=French_Select,AE66,AD66)","v":"Indiquer les dates de votre activité"},null,null,{"$f":"IF(Language=French_Select,AG65,AF65)","v":"Jour"},{"$f":"IF(Language=French_Select,AG66,AF66)","v":"Mois"},null,{"$f":"IF(Language=French_Select,AG67,AF67)","v":"Année"},null,null,null,null,null,null,null,null,null,"Provide the dates for your activity ","Indiquer les dates de votre activité","Month","Mois"]
[null,null,"Yes",{"$f":"D66","v":false},null,null,null,false,null,null,null,null,null,null,null,null,null,null,null,null,null,null,null,null,null,null,null,null,null,null,null,"Year","Année"]
["Q",null,"Yes",{"$f":"D66","v":false},null,null,null,false,{"$f":"IF(OR(T68=\"\",R68=\"\",Q68=\"\",ISERROR(DATE(T68,R68,Q68))),NOW(),DATE(T68,R68,Q68))","v":"2021-10-22T11:32:08.790"},false,null,null,null,null,null,{"$f":"IF(Language=French_Select,AG68,AF68)","v":"Du"},null,null,null,null,null,null,null,null,null,null,null,null,null,"Provide the dates for your activity ","Indiquer les dates de votre activité","From","Du"]
[null,null,"Yes",{"$f":"D68","v":false},null,null,null,false]
["Q",null,"Yes",{"$f":"D68","v":false},null,null,null,false,{"$f":"IF(OR(T70=\"\",R70=\"\",Q70=\"\",ISERROR(DATE(T70,R70,Q70))),Activity_From_Date,DATE(T70,R70,Q70))","v":"2021-10-22T11:32:08.790"},null,null,null,null,null,null,{"$f":"IF(Language=French_Select,AG70,AF70)","v":"Au"},null,null,null,null,null,null,null,null,null,null,null,null,null,null,null,"To","Au"]
[null,null,"Yes",{"$f":"D70","v":false},null,null,null,false]
["Q",null,"Yes",{"$f":"D70","v":false},null,null,"Yes",false,{"$f":"Q72","v":0},null,{"$f":"IF(AND(D72,Requester_Name=0),TRUE,FALSE)","v":false},null,"Ü",{"$f":"IF(Language=French_Select,AE72,AD72)","v":"Nom du demandeur. (Max. 40 caractères)"},null,null,null,null,null,null,null,null,null,null,null,null,null,null,null,"Name of the requester. (Max. 40 characters)","Nom du demandeur. (Max. 40 caractères)"]
[null,null,"Yes",{"$f":"D72","v":false},null,null,null,false]
["Q",null,"Yes",{"$f":"D72","v":false},null,null,"Yes",false,{"$f":"Q74","v":0},null,{"$f":"IF(AND(D74,Requester_Title=0),TRUE,FALSE)","v":false},null,"Ü",{"$f":"IF(Language=French_Select,AE74,AD74)","v":"Titre du demandeur. (Max. 40 caractères)"},null,null,null,null,null,null,null,null,null,null,null,null,null,null,null,"Title of the requester. (Max. 40 characters)","Titre du demandeur. (Max. 40 caractères)"]
[null,null,"Yes",{"$f":"D74","v":false},null,null,null,false]
["Q",null,"Yes",{"$f":"D74","v":false},null,null,"Yes",false,{"$f":"Q76","v":0},null,{"$f":"IF(AND(D76,Requester_Branch=0),TRUE,FALSE)","v":false},null,"Ü",{"$f":"IF(Language=French_Select,AE76,AD76)","v":"Direction générale du demandeur. (Max. 80 caractères)"},null,null,null,null,null,null,null,null,null,null,null,null,null,null,null,"Branch of the requester. (Max. 80 characters)","Direction générale du demandeur. (Max. 80 caractères)"]
[null,null,"Yes",{"$f":"D76","v":false},null,null,null,false]
["Q",null,"Yes",{"$f":"D76","v":false},null,null,"Yes",false,{"$f":"Q78","v":0},null,{"$f":"IF(AND(D78,Requester_RC=0),TRUE,FALSE)","v":false},null,"Ü",{"$f":"IF(Language=French_Select,AE78,AD78)","v":"Centre financier du demandeur. (Max. 6 caractères)"},null,null,null,null,null,null,null,null,null,null,null,null,null,null,null,"Fund Centre of the requester. (Max. 6 characters)","Centre financier du demandeur. (Max. 6 caractères)"]
[null,null,"Yes",{"$f":"D78","v":false},null,null,null,false]
["Q",null,"Yes",{"$f":"D78","v":false},null,null,"Yes",false,{"$f":"Q80","v":0},null,{"$f":"IF(AND(D80,Prepared_by=0),TRUE,FALSE)","v":false},null,"Ü",{"$f":"IF(Language=French_Select,AE80,AD80)","v":"Dossier DVACÉ préparé par : Nom et numéro de téléphone. (Max. 50 caractères)"},null,null,null,null,null,null,null,null,null,null,null,null,null,null,null,"THCEE file prepared by : Name and phone number. (Max. 50 characters)","Dossier DVACÉ préparé par : Nom et numéro de téléphone. (Max. 50 caractères)"]
[null,null,"Yes",{"$f":"D80","v":false},null,null,null,false]
["Q",null,"Yes",{"$f":"D80","v":false},null,null,"Yes",false,{"$f":"Q82","v":0},null,{"$f":"IF(AND(D82,Activity_Location=0),TRUE,FALSE)","v":false},null,"Ü",{"$f":"IF(Language=French_Select,AE82,AD82)","v":"Endroit où l'activité se déroule? (ville, province, pays) (Max. 40 caractères)"},null,null,null,null,null,null,null,null,null,null,null,null,null,null,null,"Where is your activity being held? (city, province, country) (Max. 40 characters)","Endroit où l'activité se déroule? (ville, province, pays) (Max. 40 caractères)"]
[null,null,"Yes",{"$f":"D82","v":false},null,null,null,false]
["Q",null,"Yes",{"$f":"D82","v":false},null,null,"Yes",false,{"$f":"Q84","v":0},null,{"$f":"IF(AND(D84,Government_Facility=0),TRUE,FALSE)","v":false},null,"Ü",{"$f":"IF(Language=French_Select,AE84,AD84)","v":"Est-ce dans une installation du gouvernement? "},null,null,null,null,null,null,null,null,null,null,null,null,null,null,null,"Is the activity being held in a government facility?","Est-ce dans une installation du gouvernement? ",null,null,{"$f":"IF(Q84=Yes_Select_FR,Yes_Select_EN,IF(Q84=No_Select_FR,No_Select_EN,\"\"))","v":""},{"$f":"IF(Q84=Yes_Select_EN,Yes_Select_FR,IF(Q84=No_Select_EN,No_Select_FR,\"\"))","v":""}]
[null,null,"Yes",{"$f":"D84","v":false},null,null,null,false]
["Q",null,"Yes",{"$f":"AND(Government_Facility=No_Select,D58)","v":false},null,null,"Yes",false,{"$f":"Q86","v":0},null,{"$f":"IF(AND(D86,COUNTIF(I86:I94,\"=\" & Yes_Select)=0),TRUE,FALSE)","v":false},null,"Ü",{"$f":"IF(Language=French_Select,AE86,AD86)","v":"Justification (choisir tous les cas applicables)"},null,null,null,null,{"$f":"IF(Language=French_Select,AG86,AF86)","v":"Le ministère n’a aucun pouvoir discrétionnaire pour choisir le lieu"},null,null,null,null,null,null,null,null,null,null,"Justification (choose all applicable)","Justification (choisir tous les cas applicables)","The department has no discretion in selecting the venue","Le ministère n’a aucun pouvoir discrétionnaire pour choisir le lieu",{"$f":"IF(Q86=Yes_Select_FR,Yes_Select_EN,IF(Q86=No_Select_FR,No_Select_EN,\"\"))","v":""},{"$f":"IF(Q86=Yes_Select_EN,Yes_Select_FR,IF(Q86=No_Select_EN,No_Select_FR,\"\"))","v":""}]
[null,null,"Yes",{"$f":"D86","v":false},null,null,null,false]
[null,null,"Yes",{"$f":"D87","v":false},null,null,"Yes",false,{"$f":"Q88","v":0},null,null,null,null,null,null,null,null,null,{"$f":"IF(Language=French_Select,AG88,AF88)","v":"L’installation choisie peut fournir les services et l’infrastructure nécessaires à la tenue de l’activité, alors que les installations du gouvernement ne le peuvent pas"},null,null,null,null,null,null,null,null,null,null,null,null,"The chosen facility can provide the services and infrastructure required for the activity which government facilities cannot","L’installation choisie peut fournir les services et l’infrastructure nécessaires à la tenue de l’activité, alors que les installations du gouvernement ne le peuvent pas",{"$f":"IF(Q88=Yes_Select_FR,Yes_Select_EN,IF(Q88=No_Select_FR,No_Select_EN,\"\"))","v":""},{"$f":"IF(Q88=Yes_Select_EN,Yes_Select_FR,IF(Q88=No_Select_EN,No_Select_FR,\"\"))","v":""}]
[null,null,"Yes",{"$f":"D88","v":false},null,null,null,false]
[null,null,"Yes",{"$f":"D87","v":false},null,null,"Yes",false,{"$f":"Q90","v":0},null,null,null,null,null,null,null,null,null,{"$f":"IF(Language=French_Select,AG90,AF90)","v":"Les installations du gouvernement n’existent pas dans la région géographique où aura lieu l’activité"},null,null,null,null,null,null,null,null,null,null,null,null,"Government facilities are not available in the geographic area where the activity is to be held","Les installations du gouvernement n’existent pas dans la région géographique où aura lieu l’activité",{"$f":"IF(Q90=Yes_Select_FR,Yes_Select_EN,IF(Q90=No_Select_FR,No_Select_EN,\"\"))","v":""},{"$f":"IF(Q90=Yes_Select_EN,Yes_Select_FR,IF(Q90=No_Select_EN,No_Select_FR,\"\"))","v":""}]
[null,null,"Yes",{"$f":"D90","v":false},null,null,null,false]
[null,null,"Yes",false,null,null,"Yes",false,{"$f":"Q92","v":0},null,null,null,null,null,null,null,null,null,{"$f":"IF(Language=French_Select,AG92,AF92)","v":"Les installations du gouvernement existent dans la région géographique mais ne sont pas libres au moment où l’activité aura lieu et le calendrier de l’activité ne peut être convenablement modifié"},null,null,null,null,null,null,null,null,null,null,null,null,"Government facilities exist in the geographic area but are not available at the time of the activity and the activity timetable cannot be suitably altered","Les installations du gouvernement existent dans la région géographique mais ne sont pas libres au moment où l’activité aura lieu et le calendrier de l’activité ne peut être convenablement modifié",{"$f":"IF(Q92=Yes_Select_FR,Yes_Select_EN,IF(Q92=No_Select_FR,No_Select_EN,\"\"))","v":""},{"$f":"IF(Q92=Yes_Select_EN,Yes_Select_FR,IF(Q92=No_Select_EN,No_Select_FR,\"\"))","v":""}]
[null,null,"Yes",false,null,null,null,false]
[null,null,"Yes",false,null,null,"Yes",false,{"$f":"Q94","v":0},null,null,null,null,null,null,null,null,null,{"$f":"IF(Language=French_Select,AG94,AF94)","v":"Le choix d’une installation non gouvernementale peut se révéler économique et résister à un examen du public"},null,null,null,null,null,null,null,null,null,null,null,null,"The choice of a non-government facility can be shown to be cost-effective and withstand public scrutiny","Le choix d’une installation non gouvernementale peut se révéler économique et résister à un examen du public",{"$f":"IF(Q94=Yes_Select_FR,Yes_Select_EN,IF(Q94=No_Select_FR,No_Select_EN,\"\"))","v":""},{"$f":"IF(Q94=Yes_Select_EN,Yes_Select_FR,IF(Q94=No_Select_EN,No_Select_FR,\"\"))","v":""}]
[null,null,"Yes",false,null,null,null,false]
[null,null,"Yes",false,null,null,null,false]
["Q",null,"Yes",{"$f":"D85","v":false},null,null,"Yes",false,{"$f":"Q97","v":0},null,{"$f":"IF(AND(D97,Activity_Paid_By=0),TRUE,FALSE)","v":false},null,"Ü",{"$f":"IF(Language=French_Select,AE97,AD97)","v":"Le coût sera payé par"},null,null,null,null,null,null,null,null,null,null,null,null,null,null,null,"Please confirm if the cost will be paid by","Le coût sera payé par",null,null,{"$f":"IF(Q97=One_RC_Select_FR,One_RC_Select_EN,IF(Q97=Multiple_RC_Select_FR,Multiple_RC_Select_EN,\"\"))","v":""},{"$f":"IF(Q97=One_RC_Select_EN,One_RC_Select_FR,IF(Q97=Multiple_RC_Select_EN,Multiple_RC_Select_FR,\"\"))","v":""}]
[null,null,"Yes",{"$f":"D97","v":false},null,null,null,false]
["Q",null,"Yes",{"$f":"D97","v":false},null,null,"Yes",false,{"$f":"Q99","v":0},null,{"$f":"IF(AND(D99,Approving_Entity=0),TRUE,FALSE)","v":false},null,"Ü",{"$f":"IF(Language=French_Select,AE99,AD99)","v":"Sous quelle entité l'activité sera-t-elle approuvée?"},null,null,null,null,null,null,null,null,null,null,null,null,null,null,null,"Under which entity will this activity be approved?","Sous quelle entité l'activité sera-t-elle approuvée?",null,null,{"$f":"IF(Q99=ESDC_Select_FR,ESDC_Select_EN,IF(Q99=Labour_Select_FR,Labour_Select_EN,IF(Q99=ServCan_Select_FR,ServCan_Select_EN,\"\")))","v":""},{"$f":"IF(Q99=ESDC_Select_EN,ESDC_Select_FR,IF(Q99=Labour_Select_EN,Labour_Select_FR,IF(Q99=ServCan_Select_EN,ServCan_Select_FR,\"\")))","v":""}]
[null,null,"Yes",{"$f":"D99","v":false},null,null,null,false]
["Q",null,"Yes",{"$f":"D99","v":false},null,null,"Yes",false,{"$f":"IF(Q101=\"\",\"\",Q101)","v":""},null,{"$f":"IF(OR(NOT(D101),AND(ISNUMBER(PS_Participants),IF(ISERROR(Non_PS_Participants+PS_Participants>0),TRUE,Non_PS_Participants+PS_Participants>0))),FALSE, TRUE)","v":false},null,"Ü",{"$f":"IF(Language=French_Select,AE101,AD101)","v":"Nombre de fonctionnaires participant à l'activité"},null,null,null,null,null,null,null,null,null,null,null,null,null,null,null,"Number of public servants attending the activity","Nombre de fonctionnaires participant à l'activité"]
[null,null,"Yes",{"$f":"D101","v":false},null,null,null,false]
["Q",null,"Yes",{"$f":"D101","v":false},null,null,"Yes",false,{"$f":"Q103","v":0},null,{"$f":"IF(AND(D103,PS_Participants_Justification=0),TRUE,FALSE)","v":false},null,"Ü",{"$f":"IF(Language=French_Select,AE103,AD103)","v":"Veuillez expliquer en quoi ce nombre de fonctionnaire est le nombre minimal requis pour réaliser les objectifs de l'activité. (Max. 250 caractères)"},null,null,null,null,null,null,null,null,null,null,null,null,null,null,null,"Please explain how the number of Public Servants is the minimum required to achieve the objective of the activity. (Max. 250 characters)","Veuillez expliquer en quoi ce nombre de fonctionnaire est le nombre minimal requis pour réaliser les objectifs de l'activité. (Max. 250 caractères)"]
[null,null,"Yes",{"$f":"D103","v":false},null,null,null,false]
["Q",null,"Yes",{"$f":"D103","v":false},null,null,"Yes",false,{"$f":"IF(Q105=\"\",\"\",Q105)","v":""},null,{"$f":"IF(OR(NOT(D105),AND(ISNUMBER(Non_PS_Participants),IF(ISERROR(Non_PS_Participants+PS_Participants>0),TRUE,Non_PS_Participants+PS_Participants>0))),FALSE,TRUE)","v":false},null,"Ü",{"$f":"IF(Language=French_Select,AE105,AD105)","v":"Nombre de non-fonctionnaires participant à l'activité"},null,null,null,null,null,null,null,null,null,null,null,null,null,null,null,"Number of non-public servants attending the activity","Nombre de non-fonctionnaires participant à l'activité"]
["Q",null,"Yes",{"$f":"D105","v":false},null,null,null,false,null,null,null,null,null,{"$f":"IF(Language=French_Select,AE106,AD106)","v":"Autres commentaires"},null,null,null,null,null,null,null,null,null,null,null,null,null,null,null,"Other comments","Autres commentaires"]
[null,null,"Yes",{"$f":"D106","v":false},null,null,null,false]
["Q",null,"Yes",{"$f":"D106","v":false},null,null,null,false,{"$f":"Q108","v":0}," ",null,null,null,{"$f":"IF(Language=French_Select,AE108,AD108)","v":"Veuillez inclure ce qui suit: (Max. 1 000 caractères)\n\n- S'il s'agit d'une activité récurrente, veuillez confirmer la réduction des coûts par rapport à l'année précédente, incluant le montant de la diminution et comment cette réduction a été obtenue. Une justification complète est nécessaire si les coûts ont augmentés.\n\n- Le cas échéant, donner l'explication des motifs pour lesquels un autre ministère/province/territoire participe à un Événement organisé par EDSC mais sans papyer ses propres coûts.\n\n- Tout autre commentaire pour l'approbateur."},null,null,null,null,null,null,null,null,null,null,null,null,null,null,null,"Please provide the following. (Max. 1,000 characters)\n\n- If this is a recurrent activity, please confirm cost reduction from previous year(s), including the amount by which costs have decreased and how the reduction was achieved. A full explanation is required if the costs have increased.\n\n- If applicable, provide clarification as to why another Department/Province/Territory is participating in an ESDC hosted Event but not covering their own costs.\n\n- Any other comments that the approver should be made aware of.","Veuillez inclure ce qui suit: (Max. 1 000 caractères)\n\n- S'il s'agit d'une activité récurrente, veuillez confirmer la réduction des coûts par rapport à l'année précédente, incluant le montant de la diminution et comment cette réduction a été obtenue. Une justification complète est nécessaire si les coûts ont augmentés.\n\n- Le cas échéant, donner l'explication des motifs pour lesquels un autre ministère/province/territoire participe à un Événement organisé par EDSC mais sans papyer ses propres coûts.\n\n- Tout autre commentaire pour l'approbateur."]
[null,null,"Yes",{"$f":"D105","v":false},null,null,null,false]
[null,null,"Yes",{"$f":"AND(CompleteInfo,OR(Activity_is_Event,UseTool=Yes_Select,Hospitality_Expenses=Yes_Select,Conference))","v":false},null,null,null,false,null,{"$f":"COUNTIF(K9:K105,\"=\"&TRUE)=0","v":false},"-",null,{"$f":"IF(Language=French_Select,AE110,AD110)","v":"Détail des coûts"},null,null,null,null,null,null,null,null,null,null,null,null,null,null,null,null,"Cost Details","Détail des coûts"]
[null,null,"Yes",{"$f":"AND(Activity_is_Event,CompleteInfo)","v":false},null,null,null,false]
["Q",null,"Yes",{"$f":"D111","v":false},null,null,null,false,null,{"$f":"OR(AND(Conference_Included=Yes_Select,OR(btnConfParticipation=1,AND(btnConfParticipation=3,OR(btnConfList=2,btnConfList=3)))),AND(Conference_Included=No_Select,btnTypeEventOper>=1,btnTypeEventOper<=5))","v":false},null,null,null,{"$f":"IF(Language=French_Select,AE112,AD112)","v":"Événement"},null,null,null,null,null,null,null,null,null,null,null,null,null,null,null,"   Event","Événement"]
[null,null,"Yes",{"$f":"D112","v":false},null,null,null,false]
["Q",null,"Yes",{"$f":"D112","v":false},"Yes",null,"Yes",false,{"$f":"Q114","v":0},null,{"$f":"IF(AND(D114,Hosting_Dept=0),TRUE,FALSE)","v":false},null,"Ü",{"$f":"IF(Language=French_Select,AE114,AD114)","v":"Est-ce que EDSC est l'hôte de cet événement?"},null,null,null,null,null,null,null,"Global:",null,null,{"$f":"Event_Delegation_Level","v":0},null,null,null,null,"Is ESDC the host for this event?","Est-ce que EDSC est l'hôte de cet événement?",null,null,{"$f":"IF(Q114=Yes_Select_FR,Yes_Select_EN,IF(Q114=No_Select_FR,No_Select_EN,\"\"))","v":""},{"$f":"IF(Q114=Yes_Select_EN,Yes_Select_FR,IF(Q114=No_Select_EN,No_Select_FR,\"\"))","v":""}]
[null,null,"Yes",{"$f":"D114","v":false},null,null,null,false]
["Q",null,"Yes",{"$f":"D115","v":false},"Yes",null,"Yes",false,{"$f":"Q116","v":0},null,{"$f":"IF(AND(D116,Is_Cost_For_OGD=0),TRUE,FALSE)","v":false},null,"Ü",{"$f":"IF(Language=French_Select,AE116,AD116)","v":"S'il vous plaît confirmer si des coûts additionels sont couverts par d'autres ministères"},null,null,null,null,null,null,null,"Part 1:",null,null,{"$f":"Event_Delegation_Level_Part1","v":0},null,null,null,null,"Please confirm if additional costs are covered by other government department(s)","S'il vous plaît confirmer si des coûts additionels sont couverts par d'autres ministères",null,null,{"$f":"IF(Q116=Yes_Select_FR,Yes_Select_EN,IF(Q116=No_Select_FR,No_Select_EN,\"\"))","v":""},{"$f":"IF(Q116=Yes_Select_EN,Yes_Select_FR,IF(Q116=No_Select_EN,No_Select_FR,\"\"))","v":""}]
["Q",null,"Yes",{"$f":"D116","v":false},null,null,null,false,null,null,null,null,null,{"$f":"IF(Language=French_Select,AE117,AD117)","v":"et/ou organisations externes au gouvernement."},null,null,null,null,null,null,null,null,null,null,null,null,null,null,null,"and/or organisation(s) outside the government.","et/ou organisations externes au gouvernement."]
[null,null,"Yes",{"$f":"D116","v":false},null,null,null,false]
["Q",null,"Yes",{"$f":"Is_Cost_For_OGD=Yes_Select","v":false},"Yes",null,"Yes",false,{"$f":"Q119","v":0},null,{"$f":"IF(AND(D119,Name_Of_OGD=0),TRUE,FALSE)","v":false},null,"Ü",{"$f":"IF(Language=French_Select,AE119,AD119)","v":"Nom des autres ministères/organisations. (Max. 40 caractères)"},null,null,null,null,null,null,null,null,null,null,null,null,null,null,null,"Name of the other government department(s)/organisation(s). (Max. 40 characters)","Nom des autres ministères/organisations. (Max. 40 caractères)"]
[null,null,"Yes",{"$f":"D119","v":false},null,null,null,false]
["Q",null,"Yes",{"$f":"(Is_Cost_For_OGD=Yes_Select)","v":false},"Yes",0,"Yes",false,{"$f":"Q121","v":0},null,{"$f":"IF(AND(D121,Cost_For_OGD=0),TRUE,FALSE)","v":false},null,"Ü",{"$f":"IF(Language=French_Select,AE121,AD121)","v":"Coûts payés par les autres ministères/organisations"},null,null,0,null,null,null,null,null,null,null,null,null,null,null,null,"Cost paid by the other government department(s)/organisation(s).","Coûts payés par les autres ministères/organisations"]
["Q",null,"Yes",{"$f":"D121","v":false},null,null,null,false,null,null,null,null,null,{"$f":"IF(Language=French_Select,AE122,AD122)","v":"Si EDSC paie pour une activité / dépense et qu’elle sera remboursée par la suite, vous devez obtenir l’approbation du coût total (y compris le montant qui sera remboursé plus tard).\n\nSi EDSC paie seulement pour une portion de l’activité / dépense (c.-à-d. que nous n’obtiendrons pas de remboursement plus tard, qu’il s’agit d’un partage des coûts), vous devez obtenir l’approbation seulement pour la portion payée par EDSC."},null,null,null,null,null,null,null,null,null,null,null,null,null,null,null,"If ESDC is paying for an activity/expense and will get reimbursed afterwards, you must obtain approval for the total cost (including the amount that will be reimbursed later).\n\nIf ESDC is only paying a portion of an activity/expense (i.e. NOT getting reimbursed, just sharing the costs), you must obtain approval for only the portion that ESDC is paying.","Si EDSC paie pour une activité / dépense et qu’elle sera remboursée par la suite, vous devez obtenir l’approbation du coût total (y compris le montant qui sera remboursé plus tard).\n\nSi EDSC paie seulement pour une portion de l’activité / dépense (c.-à-d. que nous n’obtiendrons pas de remboursement plus tard, qu’il s’agit d’un partage des coûts), vous devez obtenir l’approbation seulement pour la portion payée par EDSC."]
[null,null,"Yes",{"$f":"D121","v":false},null,null,null,false]
["Q",null,"Yes",{"$f":"AND(CompleteInfo,OR(Activity_is_Event,UseTool=Yes_Select))","v":false},null,null,null,false,null,null,null,null,null,{"$f":"IF(Language=French_Select,AE124,AD124)","v":"   Voyage"},null,null,null,null,null,null,null,null,null,null,null,null,null,null,null,"   Travel","   Voyage"]
[null,null,"Yes",{"$f":"D124","v":false},null,null,null,false]
["Q",null,"Yes",{"$f":"D125","v":false},"Yes",null,"Yes",false,{"$f":"Q126","v":0},null,{"$f":"IF(AND(D126,Travel_Expenses=0),TRUE,FALSE)","v":false},null,"Ü",{"$f":"IF(Language=French_Select,AE126,AD126)","v":"Avez-vous des frais de voyage inclus dans votre activité?"},null,null,null,null,"?",null,null,null,null,null,null,null,null,null,null,"Do you have any travel expenses included in your activity?","Avez-vous des frais de voyage inclus dans votre activité?",null,null,{"$f":"IF(Q126=Yes_Select_FR,Yes_Select_EN,IF(Q126=No_Select_FR,No_Select_EN,\"\"))","v":""},{"$f":"IF(Q126=Yes_Select_EN,Yes_Select_FR,IF(Q126=No_Select_EN,No_Select_FR,\"\"))","v":""}]
[null,null,"Yes",{"$f":"D126","v":false},null,null,null,false]
["Q",null,"Yes",{"$f":"Travel_Expenses=Yes_Select","v":false},"Yes",null,"Yes",false,{"$f":"Q128","v":0},null,{"$f":"IF(AND(D128,Travel_Type=0),TRUE,FALSE)","v":false},null,"Ü",{"$f":"IF(Language=French_Select,AE128,AD128)","v":"Quel type de voyage?"},null,null,null,null,null,null,null,null,null,"?",null,null,null,null,null,"Which type of travel?","Quel type de voyage?",null,null,{"$f":"IF(Q128=Travel_International_Select_FR,Travel_International_Select_EN,IF(Q128=Travel_Domestic_Select_FR,Travel_Domestic_Select_EN,IF(Q128=Travel_Local_Select_FR,Travel_Local_Select_EN,\"\")))","v":""},{"$f":"IF(Q128=Travel_International_Select_EN,Travel_International_Select_FR,IF(Q128=Travel_Domestic_Select_EN,Travel_Domestic_Select_FR,IF(Q128=Travel_Local_Select_EN,Travel_Local_Select_FR,\"\")))","v":""}]
[null,null,"Yes",{"$f":"D128","v":false},null,null,null,false]
["Q",null,"Yes",{"$f":"(Travel_Type=Travel_International_Select)","v":false},"Yes",null,"Yes",false,{"$f":"Q130","v":0},null,{"$f":"IF(AND(D130,Travel_On_Plan=0),TRUE,FALSE)","v":false},null,"Ü",{"$f":"IF(Language=French_Select,AE130,AD130)","v":"Est-ce que le voyage figure dans le Plan des voyages internationaux approuvé?"},null,null,null,null,null,null,null,null,null,null,null,null,null,null,null,"Is the travel on the approved International Travel Plan?","Est-ce que le voyage figure dans le Plan des voyages internationaux approuvé?",null,null,{"$f":"IF(Q130=Yes_Select_FR,Yes_Select_EN,IF(Q130=No_Select_FR,No_Select_EN,\"\"))","v":""},{"$f":"IF(Q130=Yes_Select_EN,Yes_Select_FR,IF(Q130=No_Select_EN,No_Select_FR,\"\"))","v":""}]
[null,null,"Yes",{"$f":"D130","v":false},null,null,null,false]
["Q",null,"Yes",{"$f":"AND(Activity_is_Event,Travel_Type=Travel_Domestic_Select)","v":false},"Yes",null,"Yes",false,{"$f":"Q132","v":0},null,{"$f":"IF(AND(D132,DG_A_Traveller=0),TRUE,FALSE)","v":false},null,"Ü",{"$f":"IF(Language=French_Select,AE132,AD132)","v":"Est-ce qu'un des voyageurs est le Directeur général?"},null,null,null,null,null,null,null,null,null,null,null,null,null,null,null,"Is one of the travellers the Director General?","Est-ce qu'un des voyageurs est le Directeur général?",null,null,{"$f":"IF(Q132=Yes_Select_FR,Yes_Select_EN,IF(Q132=No_Select_FR,No_Select_EN,\"\"))","v":""},{"$f":"IF(Q132=Yes_Select_EN,Yes_Select_FR,IF(Q132=No_Select_EN,No_Select_FR,\"\"))","v":""}]
[null,null,"Yes",{"$f":"D132","v":false},null,null,null,false]
["Q",null,"Yes",{"$f":"D133","v":false},"Yes",null,"Yes",false,{"$f":"Q134","v":0},null,{"$f":"IF(AND(D134,ADM_A_Traveller=0),TRUE,FALSE)","v":false},null,"Ü",{"$f":"IF(Language=French_Select,AE134,AD134)","v":"Est-ce qu'un des voyageurs est le Sous-ministre adjoint?"},null,null,null,null,null,null,null,null,null,null,null,null,null,null,null,"Is one of the travellers the Assistant Deputy Minister?","Est-ce qu'un des voyageurs est le Sous-ministre adjoint?",null,null,{"$f":"IF(Q134=Yes_Select_FR,Yes_Select_EN,IF(Q134=No_Select_FR,No_Select_EN,\"\"))","v":""},{"$f":"IF(Q134=Yes_Select_EN,Yes_Select_FR,IF(Q134=No_Select_EN,No_Select_FR,\"\"))","v":""}]
[null,null,"Yes",{"$f":"D134","v":false},null,null,null,false]
["Q",null,"Yes",{"$f":"AND(Activity_is_Event,OR(Travel_Type=Travel_Domestic_Select,AND(Travel_Type=Travel_International_Select,Travel_On_Plan=No_Select,Approving_Entity<>ESDC_Select)))","v":false},"Yes",null,"Yes",false,{"$f":"Q136","v":0},null,{"$f":"IF(AND(D136,DM_A_Traveller=0),TRUE,FALSE)","v":false},null,"Ü",{"$f":"IF(Language=French_Select,AE136,AD136)","v":"Est-ce qu'un des voyageurs est le Sous-ministre?"},null,null,null,null,null,null,null,null,null,null,null,null,null,null,null,"Is one of the travellers the Deputy Minister?","Est-ce qu'un des voyageurs est le Sous-ministre?",null,null,{"$f":"IF(Q136=Yes_Select_FR,Yes_Select_EN,IF(Q136=No_Select_FR,No_Select_EN,\"\"))","v":""},{"$f":"IF(Q136=Yes_Select_EN,Yes_Select_FR,IF(Q136=No_Select_EN,No_Select_FR,\"\"))","v":""}]
[null,null,"Yes",{"$f":"D136","v":false},null,null,null,false]
["Q",null,"Yes",{"$f":"Travel_Expenses=Yes_Select","v":false},null,null,null,false,null,null,null,null,null,{"$f":"IF(Language=French_Select,AE138,AD138)","v":"Cliquez ici pour compléter la grille d'estimation des coûts de voyage"},null,null,null,null,null,null,null,null,null,null,null,null,null,null,null,"Click here to complete the estimated travel cost worksheet","Cliquez ici pour compléter la grille d'estimation des coûts de voyage"]
[null,null,"Yes",{"$f":"D138","v":false},null,null,null,false]
["Q",null,"Yes",{"$f":"D139","v":false},null,null,null,false,{"$f":"Q140","v":0},null,null,null,null,{"$f":"IF(Language=French_Select,AE140,AD140)","v":"$ Coût total estimé des frais de voyage (champ calculé)"},null,null,{"$f":"SUM(Travel_Transportation_Costs)+SUM(Travel_Accomodations_Cost)+SUM(Travel_Meals_Cost)+SUM(Travel_Incidentals_Cost)","v":0},null,null,null,null,null,null,null,{"$f":"Travel_Delegation_Level","v":0},null,null,null,null,"$ Total Estimated Travel Cost (Calculated field)","$ Coût total estimé des frais de voyage (champ calculé)"]
[null,null,"Yes",{"$f":"D140","v":false},null,null,null,false]
["Q",null,"Yes",{"$f":"AND(CompleteInfo, OR(Hospitality_Expenses=Yes_Select, Activity_is_Event))","v":false},null,null,null,false,null,{"$f":"OR(Hospitality_Expenses=Yes_Select,Hospitality_Expenses_Event=Yes_Select)","v":false},null,null,null,{"$f":"IF(Language=French_Select,AE142,AD142)","v":"   Accueil"},null,null,null,null,null,null,null,null,null,null,null,null,null,null,null,"   Hospitality","   Accueil"]
[null,null,"Yes",{"$f":"D142","v":false},null,null,null,false]
["Q",null,"Yes",{"$f":"AND(D143,NOT(D52))","v":false},"Yes",null,"Yes",false,{"$f":"Q144","v":0},null,{"$f":"IF(AND(D144,Hospitality_Expenses_Event=0),TRUE,FALSE)","v":false},null,"Ü",{"$f":"IF(Language=French_Select,AE144,AD144)","v":"Est-ce que des frais d'accueil sont inclus dans votre activité?"},null,null,null,null,"?",null,null,null,null,null,null,null,null,null,null,"Do you have any hospitality included in your activity?","Est-ce que des frais d'accueil sont inclus dans votre activité?",null,null,{"$f":"IF(Q144=Yes_Select_FR,Yes_Select_EN,IF(Q144=No_Select_FR,No_Select_EN,\"\"))","v":""},{"$f":"IF(Q144=Yes_Select_EN,Yes_Select_FR,IF(Q144=No_Select_EN,No_Select_FR,\"\"))","v":""}]
[null,null,"Yes",{"$f":"D144","v":false},null,null,null,false]
["Q",null,"Yes",{"$f":"IF(D144,IF(Hospitality_Expenses_Event=Yes_Select,TRUE,FALSE),D143)","v":false},"Yes",null,"Yes",false,{"$f":"Q146","v":0},null,{"$f":"IF(AND(D146,Hospitality_Justification=0),TRUE,FALSE)","v":false},null,"Ü",{"$f":"IF(Language=French_Select,AE146,AD146)","v":"Veuillez fournir les détails et les raisons pour lesquelles l'accueil est offerte? (Max. 250 caractères)"},null,null,null,null,null,null,null,null,null,null,null,null,null,null,null,"Please provide details and reasons why the hospitality is being offered? (Max. 250 characters)","Veuillez fournir les détails et les raisons pour lesquelles l'accueil est offerte? (Max. 250 caractères)"]
[null,null,"Yes",{"$f":"D146","v":false},null,null,null,false]
["Q",null,"Yes",{"$f":"AND(Hospitality_Expenses=Yes_Select,D142)","v":false},"Yes",null,"Yes",false,{"$f":"Q148","v":0},null,{"$f":"IF(AND(D148,Hospitality_DG_Participant=0),TRUE,FALSE)","v":false},null,"Ü",{"$f":"IF(Language=French_Select,AE148,AD148)","v":"Est-ce que le Directeur bénéficie des frais d'accueil?"},null,null,null,null,1,{"$f":"Delegation!O16","v":1},null,null,null,null,null,null,null,null,null,"Will the Director benefit from the hospitality?","Est-ce que le Directeur bénéficie des frais d'accueil?",null,null,{"$f":"IF(Q148=Yes_Select_FR,Yes_Select_EN,IF(Q148=No_Select_FR,No_Select_EN,\"\"))","v":""},{"$f":"IF(Q148=Yes_Select_EN,Yes_Select_FR,IF(Q148=No_Select_EN,No_Select_FR,\"\"))","v":""}]
[null,null,"Yes",{"$f":"D148","v":false},null,null,null,false]
["Q",null,"Yes",{"$f":"AND(D142,OR(Hospitality_Expenses=Yes_Select,Hospitality_Expenses_Event=Yes_Select))","v":false},"Yes",null,"Yes",false,{"$f":"Q150","v":0},null,{"$f":"IF(AND(D150,Hospitality_DG_Participant=0),TRUE,FALSE)","v":false},null,"Ü",{"$f":"IF(Language=French_Select,AE150,AD150)","v":"Est-ce que le Directeur général bénéficie des frais d'accueil?"},null,null,null,null,2,{"$f":"Delegation!O17","v":2},null,null,null,null,null,null,null,null,null,"Will the Director General benefit from the hospitality?","Est-ce que le Directeur général bénéficie des frais d'accueil?",null,null,{"$f":"IF(Q150=Yes_Select_FR,Yes_Select_EN,IF(Q150=No_Select_FR,No_Select_EN,\"\"))","v":""},{"$f":"IF(Q150=Yes_Select_EN,Yes_Select_FR,IF(Q150=No_Select_EN,No_Select_FR,\"\"))","v":""}]
[null,null,"Yes",{"$f":"D150","v":false},null,null,null,false]
["Q",null,"Yes",{"$f":"D151","v":false},"Yes",null,"Yes",false,{"$f":"Q152","v":0},null,{"$f":"IF(AND(D152,Hospitality_ADM_Participant=0),TRUE,FALSE)","v":false},null,"Ü",{"$f":"IF(Language=French_Select,AE152,AD152)","v":"Est-ce que le Sous-ministre adjoint bénéficie des frais d'accueil?"},null,null,null,null,3,{"$f":"Delegation!O18","v":3},null,null,null,null,null,null,null,null,null,"Will the Assistant Deputy Minister benefit from the hospitality?","Est-ce que le Sous-ministre adjoint bénéficie des frais d'accueil?",null,null,{"$f":"IF(Q152=Yes_Select_FR,Yes_Select_EN,IF(Q152=No_Select_FR,No_Select_EN,\"\"))","v":""},{"$f":"IF(Q152=Yes_Select_EN,Yes_Select_FR,IF(Q152=No_Select_EN,No_Select_FR,\"\"))","v":""}]
[null,null,"Yes",{"$f":"D150","v":false},null,null,null,false]
["Q",null,"Yes",{"$f":"D153","v":false},"Yes",null,"Yes",false,{"$f":"Q154","v":0},null,{"$f":"IF(AND(D154,Hospitality_CFO_Participant=0),TRUE,FALSE)","v":false},null,"Ü",{"$f":"IF(Language=French_Select,AE154,AD154)","v":"Est-ce que le CFO bénéficie des frais d'accueil?"},null,null,null,null,4.0999999999999996,{"$f":"Delegation!O19","v":4.0999999999999996},null,null,null,null,{"$f":"Hospitality_Delegation_Event_Level","v":0},"Hosp Event",null,null,null,"Will the CFO benefit from the hospitality?","Est-ce que le CFO bénéficie des frais d'accueil?",null,null,{"$f":"IF(Q154=Yes_Select_FR,Yes_Select_EN,IF(Q154=No_Select_FR,No_Select_EN,\"\"))","v":""},{"$f":"IF(Q154=Yes_Select_EN,Yes_Select_FR,IF(Q154=No_Select_EN,No_Select_FR,\"\"))","v":""}]
[null,null,"Yes",{"$f":"D152","v":false},null,null,null,false]
["Q",null,"Yes",{"$f":"D155","v":false},"Yes",null,"Yes",false,{"$f":"Q156","v":0},null,{"$f":"IF(AND(D156,Hospitality_DM_Participant=0),TRUE,FALSE)","v":false},null,"Ü",{"$f":"IF(Language=French_Select,AE156,AD156)","v":"Est-ce que le Sous-ministre bénéficie des frais d'accueil?"},null,null,null,null,4,{"$f":"Delegation!O20","v":4.0999999999999996},null,null,null,null,{"$f":"Hospitality_Delegation_Level","v":0},"Hosp Only",null,null,null,"Will the Deputy Minister benefit from the hospitality?","Est-ce que le Sous-ministre bénéficie des frais d'accueil?",null,null,{"$f":"IF(Q156=Yes_Select_FR,Yes_Select_EN,IF(Q156=No_Select_FR,No_Select_EN,\"\"))","v":""},{"$f":"IF(Q156=Yes_Select_EN,Yes_Select_FR,IF(Q156=No_Select_EN,No_Select_FR,\"\"))","v":""}]
[null,null,"Yes",{"$f":"D156","v":false},null,null,null,false]
["Q",null,"Yes",{"$f":"D147","v":false},"Yes",null,"Yes",false,{"$f":"Q158","v":0},null,{"$f":"AND(D158,Hospitality_Alcohol=0)","v":false},null,"Ü",{"$f":"IF(Language=French_Select,AE158,AD158)","v":"Est-ce que l’accueil inclus des dépenses d’alcool?"},null,null,null,null,null,null,null,null,null,null,null,null,null,null,null,"Does the hospitality include alcohol expenses?","Est-ce que l’accueil inclus des dépenses d’alcool?",null,null,{"$f":"IF(Q158=Yes_Select_FR,Yes_Select_EN,IF(Q158=No_Select_FR,No_Select_EN,\"\"))","v":""},{"$f":"IF(Q158=Yes_Select_EN,Yes_Select_FR,IF(Q158=No_Select_EN,No_Select_FR,\"\"))","v":""}]
[null,null,"Yes",{"$f":"D158","v":false},null,null,null,false]
["Q",null,"Yes",{"$f":"(Hospitality_Alcohol=Yes_Select)","v":false},"Yes",null,"Yes",false,{"$f":"Q160","v":0},null,{"$f":"IF(AND(D160,Hospitality_Alcohol_Justification=0),TRUE,FALSE)","v":false},null,"Ü",{"$f":"IF(Language=French_Select,AE160,AD160)","v":"Fournir le détail et la justification des dépenses d'alcool. (Max. 250 caractères)"},null,null,null,null,null,null,null,null,null,null,null,null,null,null,null,"Provide the details and justification for the alcohol expenses. (Max. 250 characters)","Fournir le détail et la justification des dépenses d'alcool. (Max. 250 caractères)"]
[null,null,"Yes",{"$f":"D160","v":false},null,null,null,false]
["Q",null,"Yes",{"$f":"D146","v":false},"Yes",null,"Yes",false,{"$f":"Q162","v":0},null,{"$f":"IF(AND(D162,Exc_Spouse_Hospitality=0),TRUE,FALSE)","v":false},null,"Ü",{"$f":"IF(Language=French_Select,AE162,AD162)","v":"Est-ce que l'acceuil a été offert à une personne accompagnant un participant?"},null,"",null,null,null,null,null,null,null,null,null,null,null,null,null,"Is the hospitality provided to a person accompanying the participant?","Est-ce que l'acceuil a été offert à une personne accompagnant un participant?",null,null,{"$f":"IF(Q162=Yes_Select_FR,Yes_Select_EN,IF(Q162=No_Select_FR,No_Select_EN,\"\"))","v":""},{"$f":"IF(Q162=Yes_Select_EN,Yes_Select_FR,IF(Q162=No_Select_EN,No_Select_FR,\"\"))","v":""}]
[null,null,"Yes",{"$f":"D162","v":false},null,null,null,false]
["Q",null,"Yes",{"$f":"(Exc_Spouse_Hospitality=Yes_Select)","v":false},"Yes",null,"Yes",false,{"$f":"Q164","v":0},null,{"$f":"IF(AND(D164,Exc_Spouse_Hospitality_Justification=0),TRUE,FALSE)","v":false},null,"Ü",{"$f":"IF(Language=French_Select,AE164,AD164)","v":"Fournir la justification pour l'acceuil offert à une personne accompagnant un participant. (Max. 250 caractères)"},null,null,null,null,null,null,null,null,null,null,null,null,null,null,null,"Provide the justification for hospitality provided to a person accompanying a participant. (Max. 250 characters)","Fournir la justification pour l'acceuil offert à une personne accompagnant un participant. (Max. 250 caractères)"]
[null,null,"Yes",{"$f":"D164","v":false},null,null,null,false]
["Q",null,"Yes",{"$f":"D146","v":false},"Yes",null,"Yes",false,{"$f":"Q166","v":0},null,{"$f":"IF(AND(D166,Hospitality_In_Residence=0),TRUE,FALSE)","v":false},null,"Ü",{"$f":"IF(Language=French_Select,AE166,AD166)","v":"Est-ce offert dans la résidence d'un employé fédéral?"},null,null,null,null,null,null,null,null,null,null,null,null,null,null,null,"Will this hospitality be offered at the residence of a federal employee?","Est-ce offert dans la résidence d'un employé fédéral?",null,null,{"$f":"IF(Q166=Yes_Select_FR,Yes_Select_EN,IF(Q166=No_Select_FR,No_Select_EN,\"\"))","v":""},{"$f":"IF(Q166=Yes_Select_EN,Yes_Select_FR,IF(Q166=No_Select_EN,No_Select_FR,\"\"))","v":""}]
[null,null,"Yes",{"$f":"D166","v":false},null,null,null,false]
["Q",null,"Yes",{"$f":"AND(D146,Hospitality, Hospitality_In_Residence=Yes_Select)","v":false},"Yes",null,"Yes",false,{"$f":"Q168","v":0},null,{"$f":"IF(AND(D168,Hospitality_In_Residence_Justification=0),TRUE,FALSE)","v":false},null,"Ü",{"$f":"IF(Language=French_Select,AE168,AD168)","v":"Fournir la justification pour l'accueil offerte dans la résidence d'un employé fédéral. (Max. 250 caractères)"},null,null,null,null,null,null,null,null,null,null,null,null,null,null,null,"Provide the justification for hospitality offered at the residence of a federal employee. (Max. 250 characters)","Fournir la justification pour l'accueil offerte dans la résidence d'un employé fédéral. (Max. 250 caractères)"]
[null,null,"Yes",{"$f":"D168","v":false},null,null,null,false]
["Q",null,"Yes",{"$f":"AND(D146,SUM(Hospitality_Breakfast_Tcost)>0)","v":false},"Yes",null,"Yes",false,{"$f":"Q170","v":0},null,{"$f":"IF(AND(D170,Hospitality_BreakFast_Justification=0),TRUE,FALSE)","v":false},null,"Ü",{"$f":"IF(Language=French_Select,AE170,AD170)","v":"Le petit déjeuner doit être offert uniquement dans des circonstances exceptionelles. Veuillez expliquer comment elle est une circonstance exceptionelle. (Max. 250 caractères)"},null,null,null,null,null,null,null,null,null,null,null,null,null,null,null,"Breakfast should only be offered in exceptional circumstances. Please justify how it is an exceptional circumstance. (Max. 250 characters)","Le petit déjeuner doit être offert uniquement dans des circonstances exceptionelles. Veuillez expliquer comment elle est une circonstance exceptionelle. (Max. 250 caractères)"]
[null,null,"Yes",{"$f":"D170","v":false},null,null,null,false]
["Q",null,"Yes",{"$f":"AND(D146,Hospitality_Other>0)","v":false},null,null,"Yes",false,{"$f":"SUM(Hospitality_Others_TotalCost)","v":0},null,null,null,"Ü",{"$f":"IF(Language=French_Select,AE172,AD172)","v":"Montant pour autre forme régulière d'accueil (champ calculé)"},null,null,{"$f":"Hospitality_Other","v":0},null,null,null,null,null,null,null,null,null,null,null,null,"Amount for other form of regular hospitality (Calculated field)","Montant pour autre forme régulière d'accueil (champ calculé)"]
[null,null,"Yes",{"$f":"D172","v":false},null,null,null,false]
["Q",null,"Yes",{"$f":"D173","v":false},"Yes",null,"Yes",false,{"$f":"Q174","v":0},null,{"$f":"IF(AND(D174,Hospitality_Other_Justification=0),TRUE,FALSE)","v":false},null,"Ü",{"$f":"IF(Language=French_Select,AE174,AD174)","v":"Fournir une justification détaillée pour les autres formes régulières d'accueil (ex. Petite marque d'appréciation, offrandes cérémonielles, etc.) (Max. 250 caractères)"},null,null,null,null,null,null,null,null,null,null,null,null,null,null,null,"Provide a detailed justification for offering other forms of regular hospitality (ex: small tokens of appreciation, ceremonial offerings, etc.) (Max. 250 characters)","Fournir une justification détaillée pour les autres formes régulières d'accueil (ex. Petite marque d'appréciation, offrandes cérémonielles, etc.) (Max. 250 caractères)"]
[null,null,"Yes",{"$f":"D174","v":false},null,null,null,false]
["Q",null,"Yes",{"$f":"AND(D146,Hospitality_Other_Exceptional>0)","v":false},null,null,"Yes",false,{"$f":"SUM(Hospitality_Others_Exceptional_TotalCost)","v":0},null,null,null,"Ü",{"$f":"IF(Language=French_Select,AE176,AD176)","v":"Montant pour autre forme exceptionnelle d'accueil (champ calculé)"},null,null,{"$f":"Hospitality_Other_Exceptional","v":0},null,null,null,null,null,null,null,null,null,null,null,null,"Amount for exceptional form of hospitality (Calculated field)","Montant pour autre forme exceptionnelle d'accueil (champ calculé)"]
[null,null,"Yes",{"$f":"D176","v":false},null,null,null,false]
["Q",null,"Yes",{"$f":"D177","v":false},"Yes",null,"Yes",false,{"$f":"Q178","v":0},null,{"$f":"IF(AND(D178,Other_Exceptional_Justification=0),TRUE,FALSE)","v":false},null,"Ü",{"$f":"IF(Language=French_Select,AE178,AD178)","v":"Fournir le détail et la justification pour l'autre forme exceptionnelle d'accueil. (Max. 250 caractères)"},null,null,null,null,null,null,null,null,null,null,null,null,null,null,null,"Provide the details and justification for the exceptional form of hospitality. (Max. 250 characters)","Fournir le détail et la justification pour l'autre forme exceptionnelle d'accueil. (Max. 250 caractères)"]
[null,null,"Yes",{"$f":"D178","v":false},null,null,null,false]
["Q",null,"Yes",{"$f":"D157","v":false},null,null,null,false,null,null,null,null,null,{"$f":"IF(Language=French_Select,AE180,AD180)","v":"Cliquez ici pour compléter la grille d'estimation des frais d'accueil"},null,null,null,null,null,null,null,null,null,null,null,null,null,null,null,"Click here to complete the estimated hospitality cost worksheet","Cliquez ici pour compléter la grille d'estimation des frais d'accueil"]
[null,null,"Yes",{"$f":"D180","v":false},null,null,null,false]
["Q",null,"Yes",{"$f":"D181","v":false},null,null,null,false,{"$f":"ROUND(SUM(Hospitality_Breakfast_Tcost)+SUM(Hospitality_Morning_Break_Tcost)+SUM(Hospitality_Lunch_Tcost)+SUM(Hospitality_Afternoon_Break_Tcost)+SUM(Hospitality_Dinner_Tcost)+SUM(Hospitality_Reception_Tcost)+SUM(Hospitality_Alcohol_Tcost)+SUM(Hospitality_Others_TotalCost)+SUM(Hospitality_Others_Exceptional_TotalCost),2)","v":0},null,null,null,null,{"$f":"IF(Language=French_Select,AE182,AD182)","v":"$ Coût total estimé de l'accueil (champ calculé)"},null,null,{"$f":"Hospitality_Total_Cost","v":0},null,null,null,null,null,null,null,null,null,null,null,null,"$ Total Estimated Hospitality Cost (Calculated field)","$ Coût total estimé de l'accueil (champ calculé)"]
[null,null,"Yes",{"$f":"D182","v":false},null,null,null,false]
["Q",null,"Yes",{"$f":"AND(CompleteInfo,OR(Conference, UseTool=Yes_Select))","v":false},null,null,null,false,null,{"$f":"AND(Conference_Included=Yes_Select,OR(btnConfParticipation=1,btnConfParticipation=2,AND(btnConfParticipation=3,OR(btnConfList=2,btnConfList=3))))","v":false},null,null,null,{"$f":"IF(Language=French_Select,AE184,AD184)","v":"Conférence ou Formation"},null,null,null,null,null,null,null,null,null,null,null,null,null,null,null,"Conference or Training","Conférence ou Formation"]
[null,null,"Yes",{"$f":"D184","v":false},null,null,null,false]
["Q",null,"Yes",{"$f":"AND(D184,NOT(Conference),NOT(Training))","v":false},"Yes",null,"Yes",false,{"$f":"Q186","v":0},{"$f":"OR(AND(btnConfParticipation=3,btnConfList=1),btnTypeEventOper=7)","v":false},{"$f":"IF(AND(D186,Conference_Fees=0),TRUE,FALSE)","v":false},null,"Ü",{"$f":"IF(Language=French_Select,AE186,AD186)","v":"Avez-vous des frais de conférence ou de formation inclus dans votre activité?"},null,null,null,null,null,null,null,null,null,null,null,null,null,null,null,"Do you have any Conference or Training fees included in your activity?","Avez-vous des frais de conférence ou de formation inclus dans votre activité?",null,null,{"$f":"IF(Q186=Yes_Select_FR,Yes_Select_EN,IF(Q186=No_Select_FR,No_Select_EN,\"\"))","v":""},{"$f":"IF(Q186=Yes_Select_EN,Yes_Select_FR,IF(Q186=No_Select_EN,No_Select_FR,\"\"))","v":""}]
[null,null,"Yes",{"$f":"D186","v":false},null,null,null,false]
["Q",null,"Yes",{"$f":"AND(D184,OR(Conference_Fees=Yes_Select,Conference,Training))","v":false},"Yes",0,"Yes",false,{"$f":"Q188","v":0},null,false,null,"Ü",{"$f":"IF(Language=French_Select,AE188,AD188)","v":"Quel est le coût de cette conférence ou formation?"},null,null,0,null,null,null,null,null,null,null,{"$f":"Conference_Delegation_Level","v":0},null,null,null,null,"What are the fees for this conference or training?","Quel est le coût de cette conférence ou formation?"]
[null,null,"Yes",{"$f":"D188","v":false},null,null,null,false]
["Q",null,"Yes",{"$f":"AND(D188,Conference)","v":false},"Yes",null,"Yes",false,{"$f":"Q190","v":0},null,{"$f":"IF(AND(D190,Conference_ADM_Attend=0),TRUE,FALSE)","v":false},null,"Ü",{"$f":"IF(Language=French_Select,AE190,AD190)","v":"Est-ce que le Sous-ministre adjoint participe à la conférence?"},null,null,null,null,null,null,null,null,null,null,null,null,null,null,null,"Will the Assistant Deputy Minister attend the conference?","Est-ce que le Sous-ministre adjoint participe à la conférence?",null,null,{"$f":"IF(Q190=Yes_Select_FR,Yes_Select_EN,IF(Q190=No_Select_FR,No_Select_EN,\"\"))","v":""},{"$f":"IF(Q190=Yes_Select_EN,Yes_Select_FR,IF(Q190=No_Select_EN,No_Select_FR,\"\"))","v":""}]
[null,null,"Yes",{"$f":"D190","v":false},null,null,null,false]
["Q",null,"Yes",false,"Yes",null,"Yes",false,{"$f":"Q192","v":0},null,{"$f":"IF(AND(D192,Conference_DM_Attend=0),TRUE,FALSE)","v":false},null,"Ü",{"$f":"IF(Language=French_Select,AE192,AD192)","v":"Est-ce que le Sous-ministre participe à la conférence?"},null,null,null,null,null,null,null,null,null,null,null,null,null,null,null,"Will the Deputy Minister attend the conference?","Est-ce que le Sous-ministre participe à la conférence?",null,null,{"$f":"IF(Q192=Yes_Select_FR,Yes_Select_EN,IF(Q192=No_Select_FR,No_Select_EN,\"\"))","v":""},{"$f":"IF(Q192=Yes_Select_EN,Yes_Select_FR,IF(Q192=No_Select_EN,No_Select_FR,\"\"))","v":""}]
[null,null,"Yes",false,null,null,null,false]
["Q",null,"Yes",false,"Yes",null,"Yes",false,{"$f":"Q194","v":0},null,{"$f":"IF(AND(D194,Conference_Sponsorship=0),TRUE,FALSE)","v":false},null,"Ü",{"$f":"IF(Language=French_Select,AE194,AD194)","v":"Est-ce que vous parrainez une conférence (en partie ou en totalité)?"},null,null,null,null,null,null,null,null,null,null,null,null,null,null,null,"Are you sponsoring a conference (in part or in full)?","Est-ce que vous parrainez une conférence (en partie ou en totalité)?",null,null,{"$f":"IF(Q194=Yes_Select_FR,Yes_Select_EN,IF(Q194=No_Select_FR,No_Select_EN,\"\"))","v":""},{"$f":"IF(Q194=Yes_Select_EN,Yes_Select_FR,IF(Q194=No_Select_EN,No_Select_FR,\"\"))","v":""}]
[null,null,"Yes",{"$f":"D194","v":false},null,null,null,false]
["Q",null,"Yes",{"$f":"(Conference_Fees=Yes_Select)","v":false},null,null,null,false,{"$f":"Q196","v":0},null,null,null,null,{"$f":"IF(Language=French_Select,AE196,AD196)","v":"$ Coût total estimé de la conférence ou formation"},null,null,{"$f":"Conference_Cost","v":0},null,null,null,null,null,null,null,null,null,null,null,null,"$ Total Estimated Conference or Training Cost","$ Coût total estimé de la conférence ou formation"]
[null,null,"Yes",{"$f":"D196","v":false},null,null,null,false]
["Q",null,"Yes",{"$f":"AND(CompleteInfo,OR(Activity_is_Event,UseTool=Yes_Select))","v":false},null,null,null,false,null,null,null,null,null,{"$f":"IF(Language=French_Select,AE198,AD198)","v":"Autres coûts"},null,null,null,null,null,null,null,null,null,null,null,null,null,null,null,"Other Costs","Autres coûts"]
[null,null,"Yes",{"$f":"D198","v":false},null,null,null,false]
["Q",null,"Yes",{"$f":"D199","v":false},null,null,null,false,null,null,null,null,null,{"$f":"IF(Language=French_Select,AE200,AD200)","v":"Si des dépenses parmis les suivantes sont incluses dans votre activité, indiquez les détails, les montants et les justifications pour chacune. (Max. 250 caractères) Inclure dans les justifications l'assurance que le coût le plus économique a été obtenu et comment."},null,null,null,null,null,null,null,null,null,null,null,{"$f":"OtherCosts_Delegation_Level","v":0},null,null,null,"If you have any of the following expenses, provide the details, the amount and justification for each. (Max. 250 characters) Include in the justification the assurance that the most economical rate was obtained and how.","Si des dépenses parmis les suivantes sont incluses dans votre activité, indiquez les détails, les montants et les justifications pour chacune. (Max. 250 caractères) Inclure dans les justifications l'assurance que le coût le plus économique a été obtenu et comment."]
[null,null,"Yes",false,null,null,null,false]
["Q",null,"Yes",false,"Yes",0,"Yes",false,{"$f":"Q202","v":0},null,null,null,"Ü",{"$f":"IF(Language=French_Select,AE202,AD202)","v":"Location de salle"},null,null,0,null,null,null,"Ü",null,null,null,null,null,null,null,null,"Room Rental","Location de salle"]
[null,null,"Yes",false,"Yes"," ","Yes",false,{"$f":"V202","v":0},null,{"$f":"IF(AND(D203,Other_Room_Justification=0,NOT(Other_Room_Cost=0)),TRUE,FALSE)","v":false}]
["Q",null,"Yes",false,null,null,null,false]
[null,null,"Yes",false,null,null,null,false]
["Q",null,"Yes",false,"Yes",0,"Yes",false,{"$f":"Q206","v":0},null,null,null,null,{"$f":"IF(Language=French_Select,AE206,AD206)","v":"Location d'équipement"},null,null,0,null,null,null,"Ü",null,null,null,null,null,null,null,null,"Equipment Rental","Location d'équipement"]
[null,null,"Yes",false,"Yes"," ","Yes",false,{"$f":"V206","v":0},null,{"$f":"IF(AND(D207,Other_Equipment_Justification=0,NOT(Other_Equipement_Cost=0)),TRUE,FALSE)","v":false}]
["Q",null,"Yes",false,null,null,null,false]
[null,null,"Yes",false,null,null,null,false]
["Q",null,"Yes",false,"Yes",0,"Yes",false,{"$f":"Q210","v":0},null,null,null,null,{"$f":"IF(Language=French_Select,AE210,AD210)","v":"Matériel pour les participants"},null,null,0,null,null,null,"Ü",null,null,null,null,null,null,null,null,"Materials for Participants","Matériel pour les participants"]
[null,null,"Yes",false,"Yes"," ","Yes",false,{"$f":"V210","v":0},null,{"$f":"IF(AND(D211,Other_Material_Justification=0,NOT(Other_Material_Cost=0)),TRUE,FALSE)","v":false}]
["Q",null,"Yes",false,null,null,null,false]
[null,null,"Yes",false,null,null,null,false]
["Q",null,"Yes",false,"Yes",0,"Yes",false,{"$f":"Q214","v":0},null,null,null,null,{"$f":"IF(Language=French_Select,AE214,AD214)","v":"Services professionnels"},null,null,0,null,null,null,"Ü",null,null,null,null,null,null,null,null,"Professional Fees","Services professionnels"]
[null,null,"Yes",false,"Yes"," ","Yes",false,{"$f":"V214","v":0},null,{"$f":"IF(AND(D215,Other_Professional_Justification=0,NOT(Other_Professional_Cost=0)),TRUE,FALSE)","v":false}]
["Q",null,"Yes",false,null,null,null,false]
[null,null,"Yes",false,null,null,null,false]
["Q",null,"Yes",false,"Yes",0,"Yes",false,{"$f":"Q218","v":0},null,null,null,null,{"$f":"IF(Language=French_Select,AE218,AD218)","v":"Prix de reconnaissance"},null,null,0,null,null,null,"Ü",null,null,null,null,null,null,null,null,"Recognition Awards","Prix de reconnaissance"]
[null,null,"Yes",false,"Yes"," ","Yes",false,{"$f":"V218","v":0},null,{"$f":"IF(AND(D219,Other_Awards_Justification=0,NOT(Other_Awards_Cost=0)),TRUE,FALSE)","v":false}]
["Q",null,"Yes",false,null,null,null,false]
[null,null,"Yes",false,null,null,null,false]
["Q",null,"Yes",false,"Yes",0,"Yes",false,{"$f":"Q222","v":0},null,null,null,null,{"$f":"IF(Language=French_Select,AE222,AD222)","v":"Autres, fournir une description"},null,null,0,null,null,null,"Ü",null,null,null,null,null,null,null,null,"Other, provide description","Autres, fournir une description"]
[null,null,"Yes",false,"Yes"," ","Yes",false,{"$f":"V222","v":0},null,{"$f":"IF(AND(D223,Other_Other_Justification=0,NOT(Other_Other_Cost=0)),TRUE,FALSE)","v":false}]
["Q",null,"Yes",false,null,null,null,false]
[null,null,"Yes",false,null,null,null,false]
["Q",null,"Yes",false,null,null,null,false,{"$f":"Q226","v":0},null,null,null,null,{"$f":"IF(Language=French_Select,AE226,AD226)","v":"$ Total estimé des autres coûts"},null,null,{"$f":"Other_Room_Cost+Other_Equipement_Cost+Other_Material_Cost+Other_Professional_Cost+Other_Awards_Cost+Other_Other_Cost","v":0},null,null,null,null,null,null,null,null,null,null,null,null,"$ Total Estimated Other Costs","$ Total estimé des autres coûts"]
[null,null,"Yes",false,null,null,null,false]
["Q",null,"Yes",{"$f":"IF(AND(CompleteInfo,Q228>0),TRUE,FALSE)","v":false},null,null,null,false,{"$f":"ROUND(Q228,2)","v":0},null,null,null,null,{"$f":"IF(Language=French_Select,AE228,AD228)","v":"$ Coût Total de l'activité"},null,null,{"$f":"IF(Travel_Expenses=Yes_Select,Travel_Total_Cost,0)+IF(Hospitality,Hospitality_Total_Cost,0)+Conference_Total_Cost+Other_Total_Cost","v":0},null,null,null,null,null,null,null,null,null,null,null,null,"$ Total Cost for Activity","$ Coût Total de l'activité"]
[null,null,"Yes",{"$f":"D228","v":false},null,null,null,false]
[null,null,"Yes",{"$f":"D229","v":false},null,null,null,false]
[null,null,"Yes",{"$f":"AND(CompleteCriteria,COUNTIF(D233:D246,\"=\"&TRUE)>0)","v":false},null,null,null,false,null,null,null,null,{"$f":"IF(Language=French_Select,AE231,AD231)","v":"Instructions et avertissements"},null,null,null,null,null,null,null,null,null,null,null,null,null,null,null,null,"Instructions and warnings","Instructions et avertissements"]
[null,null,"Yes",{"$f":"D231","v":false},null,null,null,false]
["Q",null,"Yes",{"$f":"AND(Activity_is_Event,CompleteInfo)","v":false},null,null,null,false,null,null,null,null,"C",{"$f":"IF(Language=French_Select,AE233,AD233)","v":"Vous préparez un dossier d'Événement. Assurez-vous d'inclure tous les coûts pour cet événement, incluant les taxes ainsi que les frais encourus par les autres directions générales."},null,null,null,null,null,null,null,null,null,null,null,null,null,null,null,"You are preparing an Event file. Make sure you include all the costs for this Event including taxes and expenses from all the other branches.","Vous préparez un dossier d'Événement. Assurez-vous d'inclure tous les coûts pour cet événement, incluant les taxes ainsi que les frais encourus par les autres directions générales."]
["A",null,"Yes",{"$f":"AND(NOT(Activity_is_Event),OR(Conference, Hospitality,UseTool=No_Select),CompleteCriteria )","v":false},null,null,null,false,null,null,null,null,"C",{"$f":"IF(Language=French_Select,AE234,AD234)","v":"Veuillez approuver les dépenses par d'autre moyen tel que SAP, SABA, etc."},null,null,null,null,null,null,null,null,null,null,null,null,null,null,null,"Please approve expenditures through other means like SAP, SABA, etc.","Veuillez approuver les dépenses par d'autre moyen tel que SAP, SABA, etc."]
["A",28,"Yes",{"$f":"AND(CompleteALL, Activity_is_Event,NOT(Event_Delegation_Level=0),COUNTIF(K:K,\"=\"&TRUE)=0)","v":false},null,null,null,false,null,null,null,null,"?",{"$f":"IF(Language=French_Select,AE235,AD235)","v":"Selon vos informations, le niveau d'approbation minimum requis pour votre ÉVÉNEMENT est :"},null,null,null,null,null,null,null,{"$f":"IF(Language=French_Select,IF(ISERROR(VLOOKUP(Event_Delegation_Level,Delegation!A2:C14,3,FALSE)),0,VLOOKUP(Event_Delegation_Level,Delegation!A2:C14,3,FALSE)),IF(ISERROR(VLOOKUP(Event_Delegation_Level,Delegation!A2:C14,2,FALSE)),0,VLOOKUP(Event_Delegation_Level,Delegation!A2:C14,2,FALSE)))","v":"Aucune autorisation supplémentaire nécessaire."},null,null,null,null,null,null,null,"According to your answers, the minimum level of authority required for your EVENT is:","Selon vos informations, le niveau d'approbation minimum requis pour votre ÉVÉNEMENT est :"]
["A",28,"Yes",{"$f":"AND(CompleteALL, NOT(Activity_is_Event),NOT(Hospitality_Delegation_Level=0),Hospitality)","v":false},null,null,null,false,null,null,null,null,"?",{"$f":"IF(Language=French_Select,AE236,AD236)","v":"Selon vos informations, le niveau d'approbation minimum requis pour les frais d'ACCUEIL est :"},null,null,null,null,null,null,null,{"$f":"IF(Language=French_Select,IF(ISERROR(VLOOKUP(Hospitality_Delegation_Level,Delegation!A2:C14,3,FALSE)),0,VLOOKUP(Hospitality_Delegation_Level,Delegation!A2:C14,3,FALSE)),IF(ISERROR(VLOOKUP(Hospitality_Delegation_Level,Delegation!A2:C14,2,FALSE)),0,VLOOKUP(Hospitality_Delegation_Level,Delegation!A2:C14,2,FALSE)))","v":"Aucune autorisation supplémentaire nécessaire."},null,null,null,null,null,null,null,"According to your answers, the minimum level of authority required for the HOSPITALITY costs is:","Selon vos informations, le niveau d'approbation minimum requis pour les frais d'ACCUEIL est :"]
["A",28,"Yes",{"$f":"AND(CompleteALL,NOT(Activity_is_Event),Conference,NOT(Conference_Delegation_Level=0))","v":false},null,null,null,false,null,null,null,null,"?",{"$f":"IF(Language=French_Select,AE237,AD237)","v":"Selon vos informations, le niveau d'approbation minimum requis pour les frais de CONFÉRENCE est :"},null,null,null,null,null,null,null,{"$f":"IF(Language=French_Select,IF(ISERROR(VLOOKUP(Conference_Delegation_Level,Delegation!A2:C14,3,FALSE)),0,VLOOKUP(Conference_Delegation_Level,Delegation!A2:C14,3,FALSE)),IF(ISERROR(VLOOKUP(Conference_Delegation_Level,Delegation!A2:C14,2,FALSE)),0,VLOOKUP(Conference_Delegation_Level,Delegation!A2:C14,2,FALSE)))","v":"Aucune autorisation supplémentaire nécessaire."},null,null,null,null,null,null,null,"According to your answers, the minimum level of authority required for the CONFERENCE costs is:","Selon vos informations, le niveau d'approbation minimum requis pour les frais de CONFÉRENCE est :"]
[null,null,"Yes",{"$f":"OR(D233,D234,D235,D236,D237)","v":false},null,null,null,false]
["A",null,"Yes",{"$f":"AND(CompleteInfo, D130,Travel_On_Plan=No_Select)","v":false},null,null,null,false,null,null,null,null,"I",{"$f":"IF(Language=French_Select,AE239,AD239)","v":"Attention! Votre demande doit être soumise pour approbation dans le Plan des voyages internationaux ou comme une demande ad hoc.\nVeuillez contacter l'équipe responsible du plan de voyage international."},null,null,null,null,null,null,null,null,null,null,null,null,null,null,null,"Warning! Your request must be submitted for approval on the International Travel Plan or as an ad hoc request.\nPlease contact the team responsible for the International Travel Plan.","Attention! Votre demande doit être soumise pour approbation dans le Plan des voyages internationaux ou comme une demande ad hoc.\nVeuillez contacter l'équipe responsible du plan de voyage international."]
["A",null,"Yes",{"$f":"AND(CompleteInfo,OR(Activity_is_Event,UseTool=Yes_Select,Hospitality_Expenses=Yes_Select, Conference))","v":false},null,null,null,false,null,null,null,null,"I",{"$f":"IF(Language=French_Select,AE240,AD240)","v":"Attention! Un participant ne peut pas approuver ses propres frais d'accueil, de voyage ou de conférence/formation, son niveau supérieur devra approuver."},null,null,null,null,null,null,null,null,null,null,null,null,null,null,null,"Warning! A participant cannot approve their own hospitality, travel or conference/training fees, their superior would have to approve.","Attention! Un participant ne peut pas approuver ses propres frais d'accueil, de voyage ou de conférence/formation, son niveau supérieur devra approuver."]
["A",null,"Yes",{"$f":"AND(CompleteInfo,Hospitality,Hospitality_DM_Participant=Yes_Select)","v":false},null,null,null,false,null,null,null,null,"I",{"$f":"IF(Language=French_Select,AE241,AD241)","v":"Attention! Si le sous-ministre est un participant, vous devez obtenir l'approbation du DPF."},null,null,null,null,null,null,null,null,null,null,null,null,null,null,null,"Warning! If the DM is a participant, you must obtain CFO approval.","Attention! Si le sous-ministre est un participant, vous devez obtenir l'approbation du DPF."]
["A",null,"Yes",{"$f":"AND(CompleteInfo,Activity_is_Event,Event_Total_Cost<5000,ADM_A_Traveller=Yes_Select)","v":false},null,null,null,false,null,null,null,null,"I",{"$f":"IF(Language=French_Select,AE242,AD242)","v":"Attention! Si le coût de l'Événement est inférieur à 25 000 $ et que le SMA voyage, le DPF peut approuver le voyage dans SAPP à condition d'avoir un courriel du S-M qui approuve le voyage."},null,null,null,null,null,null,null,null,null,null,null,null,null,null,null,"Warning! If the Event is below $25,000 and the ADM is travelling, the CFO can approve the travel in SAP as long as there is an email from the DM approving the travel.","Attention! Si le coût de l'Événement est inférieur à 25 000 $ et que le SMA voyage, le DPF peut approuver le voyage dans SAPP à condition d'avoir un courriel du S-M qui approuve le voyage."]
["A",null,"Yes",{"$f":"IF(AND(CompleteALL,OR(UseTool=Yes_Select,Activity_is_Event),OR((MAX(MAX(Hospitality_BreakFast_PS),MAX(Hospitality_AMBreak_PS),MAX(Hospitality_Lunch_PS),MAX(Hospitality_PMBreak_PS),MAX(Hospitality_Dinner_PS),MAX(Hospitality_Reception_PS),MAX(Hospitality_Alcohol_PS),MAX(Hospitality_Others_PS))>PS_Participants),(MAX(MAX(Hospitality_BreakFast_NonPS),MAX(Hospitality_AMBreak_NonPS),MAX(Hospitality_Lunch_NonPS),MAX(Hospitality_PMBreak_NonPS),MAX(Hospitality_Dinner_NonPS),MAX(Hospitality_Reception_NonPS),MAX(Hospitality_Alcohol_NonPS),MAX(Hospitality_Others_NonPS))>Non_PS_Participants))),TRUE,FALSE)","v":false},null,null,null,false,null,null,null,null,"I","Attention! Le nombre de fonctionnaires et/ou de non-fonctionnaires qui participent à l'activité d'accueil dépasse le nombre entré pour l'activité.",null,null,null,null,null,null,null,null,null,null,null,null,null,null,null,"Warning! The number of public servants or non-public servants attending the hospitality exceeds the number entered for this activity.","Attention! Le nombre de fonctionnaires et/ou de non-fonctionnaires qui participent à l'activité d'accueil dépasse le nombre entré pour l'activité."]
["A",null,"Yes",{"$f":"AND(CompleteALL,OR(UseTool=Yes_Select,Activity_is_Event),OR((I244>PS_Participants),(J244>Non_PS_Participants)))","v":false},null,null,null,false,{"$f":"SUM(IF(EXACT(Traveller_Type,'Travel - System'!P3),1,0))","v":0},{"$f":"SUM(IF(EXACT(Traveller_Type,'Travel - System'!P4),1,0))","v":0},null,null,"I","Attention! Le nombre de fonctionnaires ou de non-fonctionnaires qui voyagent dépasse le nombre entré pour l'activité.",null,null,null,null,null,null,null,null,null,null,null,null,null,null,null,"Warning! The number of public servants or non-public servants travelling exceeds the number entered for this activity.","Attention! Le nombre de fonctionnaires ou de non-fonctionnaires qui voyagent dépasse le nombre entré pour l'activité."]
["A",null,"Yes",{"$f":"AND(CompleteInfo,OR(UseTool=Yes_Select,Activity_is_Event),Travel_Expenses=Yes_Select,Travel_Total_Cost=0)","v":false},null,null,null,false,null,null,null,null,"I","Attention! Vous devez entrer toutes vos dépenses de voyage dans la grille d'estimation des coûts de voyage.",null,null,null,null,null,null,null,null,null,null,null,null,null,null,null,"Warning! You must enter all your travel expenses in the estimated travel cost worksheet.","Attention! Vous devez entrer toutes vos dépenses de voyage dans la grille d'estimation des coûts de voyage."]
["A",null,"Yes",{"$f":"AND(CompleteInfo,OR(UseTool=Yes_Select,Activity_is_Event),Hospitality,Hospitality_Total_Cost=0)","v":false},null,null,null,false,null,null,null,null,"I","Attention! Vous devez entrer toutes vos dépenses d'accueil dans la grille d'estimation des coûts d'accueil.",null,null,null,null,null,null,null,null,null,null,null,null,null,null,null,"Warning! You must enter all your hospitality expenses in the estimated hospitality cost worksheet","Attention! Vous devez entrer toutes vos dépenses d'accueil dans la grille d'estimation des coûts d'accueil."]
[null,null,"Yes",{"$f":"D231","v":false},null,null,null,false]
[null,null,"Yes",{"$f":"AND(OR(AND(NOT(Activity_is_Event),UseTool=Yes_Select),Conference,Hospitality,AND(Activity_is_Event,NOT(Event_Delegation_Level=0))),CompleteALL)","v":false},null,null,null,false,null,null,null,null,{"$f":"IF(Language=French_Select,AE248,AD248)","v":"Ce que vous devez soumettre"},null,null,null,null,null,null,null,null,null,null,null,null,null,null,null,null,"What to submit","Ce que vous devez soumettre"]
[null,null,"Yes",{"$f":"D248","v":false},null,null,null,false]
[null,null,"Yes",{"$f":"D248","v":false},null,null,null,false,null,null,null,null,null,{"$f":"IF(Language=French_Select,AE250,AD250)","v":"Vous devez inclure les éléments suivants dans votre demande :"},null,null,null,null,null,null,null,null,null,null,null,null,null,null,null,"You must include the following in your request:","Vous devez inclure les éléments suivants dans votre demande :"]
["A",null,"Yes",{"$f":"AND(D248,AND(OR(Activity_is_Event,Hospitality,Conference),OR(Event_Delegation_Level>=4,Hospitality_Delegation_Level>=4,Conference_Delegation_Level>=4)))","v":false},null,null,null,false,null,null,null,null,"q ",{"$f":"IF(Language=French_Select,HYPERLINK(\"#MemoFR\",AE251),HYPERLINK(\"#MemoEN\",AD251))","v":"La note à l'intention de l'approbateur (cliquez ici pour la liste de vérification)"},null,null,null,null,null,null,null,null,null,null,null,null,null,null,null,"The Memorandum to the approver (click here for the checklist)","La note à l'intention de l'approbateur (cliquez ici pour la liste de vérification)"]
["A",null,"Yes",{"$f":"D248","v":false},null,null,null,false,null,null,null,null,"q ",{"$f":"IF(Language=French_Select,AE252,AD252)","v":"Le formulaire d'autorisation des dépenses de voyages, d'accueil, de conférences et d'Événements"},null,null,null,null,null,null,null,null,null,null,null,null,null,null,null,"The Travel, Hospitality, Conference and Event Expenditure Authorization Form","Le formulaire d'autorisation des dépenses de voyages, d'accueil, de conférences et d'Événements"]
["A",null,"Yes",{"$f":"AND(D248,Travel_Expenses=Yes_Select,NOT(Travel_Total_Cost=0),OR(Activity_is_Event,UseTool=Yes_Select))","v":false},null,null,null,false,null,null,null,null,"q ",{"$f":"IF(Language=French_Select,AE253,AD253)","v":"Le rapport d'estimation des coûts de voyage"},null,null,null,null,null,null,null,null,null,null,null,null,null,null,null,"The Estimated Travel Cost Report","Le rapport d'estimation des coûts de voyage"]
["A",null,"Yes",{"$f":"AND(D248,Hospitality,NOT(Hospitality_Total_Cost=0))","v":false},null,null,null,false,null,null,null,null,"q ",{"$f":"IF(Language=French_Select,AE254,AD254)","v":"Le rapport d'estimation des frais d'accueil"},null,null,null,null,null,null,null,null,null,null,null,null,null,null,null,"The Estimated Hospitality Cost Report","Le rapport d'estimation des frais d'accueil"]
["A",null,"Yes",{"$f":"AND(D248,Activity_is_Event)","v":false},null,null,null,false,null,null,null,null,"q ","L'ordre du jour de l'Événement (si disponible)",null,null,null,null,null,null,null,null,null,null,null,null,null,null,null,"The agenda for this Event (if available)","L'ordre du jour de l'Événement (si disponible)"]
["A",null,"Yes",{"$f":"AND(D248,Activity_is_Event)","v":false},null,null,null,false,null,null,null,null,"q ","La liste des participants à l'Événement (si disponible)",null,null,null,null,null,null,null,null,null,null,null,null,null,null,null,"The list of participants for this Event (if available)","La liste des participants à l'Événement (si disponible)"]
["A",null,"Yes",{"$f":"AND(D248,Activity_is_Event)","v":false},null,null,null,false,null,null,null,null,"q ","Tout autre document justificatif",null,null,null,null,null,null,null,null,null,null,null,null,null,null,null,"Any other supporting documents","Tout autre document justificatif"]
[null,null,"Yes",{"$f":"TRUE","v":true},null,null,null,true]

{"sheet":"Memo Labor","index":10,"n_rows":35,"n_cols":9,"rows_kept":35,"cut":false,"hidden":true,"merged":[[34,1,34,9],[0,1,0,9],[15,3,15,9],[20,1,20,9],[22,1,22,9],[24,1,24,9],[1,8,2,9],[7,8,8,9],[1,3,1,4],[26,1,26,9],[28,1,28,9],[30,1,30,9],[32,1,32,9],[8,3,8,4]]}
[null,"MEMORANDUM    NOTE DE SERVICE"]
[null,"To ",null,{"$f":"IF(ISERROR(VLOOKUP(Event_Delegation_Level,Delegation!A2:C14,2,FALSE)),0,UPPER(VLOOKUP(Event_Delegation_Level,Delegation!A2:C14,2,FALSE)))","v":"NO ADDITIONAL AUTHORIZATION REQUIRED"},null,null,"Classification",null,"UNCLASSIFIED"]
[null,"Pour ",null,null,null,null,"Cote sécuritaire"]
[]
[null,null,null,null,null,null,"Your File"]
[null,null,null,null,null,null,"Votre référence"]
[]
[null,null,null,null,null,null,"Our File",null,{"$f":"IF(WebCIMS_ID=0,\"WebCIMS\",WebCIMS_ID)","v":"WebCIMS"}]
[null,"From ",null,null,null,null,"Notre référence"]
[null,"Origine"]
[null,null,null,null,null,null,"Telephone Number"]
[null,null,null,null,null,null,"N° de téléphone"]
[]
[null,null,null,null,null,null,"Date"]
[]
[null,"Subject",null,{"$f":"IF(Activity_is_Event,\"EVENT PRE-APPROVAL REQUEST\", \"EXEMPTED EVENT PRE-APPROVAL REQUEST\")","v":"EXEMPTED EVENT PRE-APPROVAL REQUEST"}]
[null,"Objet"]
[]
[null,"ISSUE"]
[]
[null,{"$f":"\"               This is to seek your pre-approval for costs of \" & DOLLAR(Event_Total_Cost) &\", associated with the event \" & Activity_Title & \" in \" &Activity_Location& IF(UNKNOWN_DATE,\".\",IF(Activity_To_Date-Activity_From_Date=0,\" on \" &DAY(Activity_From_Date)&\"-\"&MONTH(Activity_From_Date)&\"-\"&YEAR(Activity_From_Date)& \".\",\" from \"&DAY(Activity_From_Date)&\"-\"&MONTH(Activity_From_Date)&\"-\"&YEAR(Activity_From_Date)&\" to \"&DAY(Activity_To_Date)&\"-\"&MONTH(Activity_To_Date)&\"-\"&YEAR(Activity_To_Date)&\".\"))","v":"               This is to seek your pre-approval for costs of $0.00, associated with the event 0 in 0 on 22-10-2021."}]
[]
[null,{"$f":"IF(TRUE,\"               \"&IF(ISERROR(VLOOKUP(Event_Delegation_Level,Delegation!A4:B14,2,FALSE)),0,VLOOKUP(Event_Delegation_Level,Delegation!A4:B14,2,FALSE))&\" approval is required in cases where \" & Memo_Text_En &\" I confirm that the proposed expenditures provide value for money and the most economical options have been selected.\",\"\")","v":{"$error":"#REF!"}}]
[]
[{"$f":"AND(Hospitality_Expenses=Yes_Select,NOT(Hospitality_Total_Cost=0))","v":false},{"$f":"IF(TRUE,\"Hospitality is included in this request:\n\n               All hospitality expenses associated with this event, estimated to be \"&DOLLAR(Hospitality_Total_Cost)&\", have been minimized to the extent possible. The hospitality is in accordance with Treasury Board and departmental policies.\",\"\")","v":"Hospitality is included in this request:\n\n               All hospitality expenses associated with this event, estimated to be $0.00, have been minimized to the extent possible. The hospitality is in accordance with Treasury Board and departmental policies."}]
[]
[null,"               * Note: Until event approval has been given by the appropriate delegated authority, no components of the events will be initiated or procured that would result in the establishment of a liability for the department (i.e. travel, hospitality, room or equipment rentals, etc.)"]
[]
[null,"               The event request conforms to all department and TB policies and complies with the amended Directive on Travel, Hospitality, Conference and Event Expenditures (THCEE), as per the attached THCEE Authorization Form. Please note that the detailed information can be found in the attached forms."]
[]
[null,"RECOMMENDATION:"]
[]
[null,{"$f":"\"               Your approval is requested for \" & DOLLAR(Event_Total_Cost) &\" related to this event. I recommend your approval.\"","v":"               Your approval is requested for $0.00 related to this event. I recommend your approval."}]
[]
[null,"               Should you agree with this proposal, please sign the attached form entitled “Travel, Hospitality, Conference and Event Authorization”."]

{"sheet":"Note Travail","index":11,"n_rows":35,"n_cols":9,"rows_kept":35,"cut":false,"hidden":true,"merged":[[34,1,34,9],[32,1,32,9],[26,1,26,9],[28,1,28,9],[30,1,30,9],[20,1,20,9],[22,1,22,9],[24,1,24,9],[0,1,0,9],[1,3,1,4],[1,8,2,9],[7,8,8,9],[8,3,8,4],[15,3,15,9]]}
[null,"MEMORANDUM    NOTE DE SERVICE"]
[null,"To ",null,{"$f":"IF(ISERROR(VLOOKUP(Event_Delegation_Level,Delegation!A2:C14,3,FALSE)),0,UPPER(VLOOKUP(Event_Delegation_Level,Delegation!A2:C14,3,FALSE)))","v":"AUCUNE AUTORISATION SUPPLÉMENTAIRE NÉCESSAIRE."},null,null,"Classification",null,"UNCLASSIFIED"]
[null,"Pour ",null,null,null,null,"Cote sécuritaire"]
[]
[null,null,null,null,null,null,"Your File"]
[null,null,null,null,null,null,"Votre référence"]
[]
[null,null,null,null,null,null,"Our File",null,{"$f":"IF(WebCIMS_ID=0,\"WebCIMS\",WebCIMS_ID)","v":"WebCIMS"}]
[null,"From ",null,null,null,null,"Notre référence"]
[null,"Origine"]
[null,null,null,null,null,null,"Telephone Number"]
[null,null,null,null,null,null,"N° de téléphone"]
[]
[null,null,null,null,null,null,"Date"]
[]
[null,"Subject",null,{"$f":"IF(Activity_is_Event,\"DEMANDE D’APPROBATION PRÉALABLE DES FRAIS D’ÉVÉNEMENT\", \"DEMANDE D’APPROBATION PRÉALABLE DES FRAIS D’ÉVÉNEMENT EXEMPTÉ\")","v":"DEMANDE D’APPROBATION PRÉALABLE DES FRAIS D’ÉVÉNEMENT EXEMPTÉ"}]
[null,"Objet"]
[]
[null,"ENJEU"]
[]
[null,{"$f":"\"               La présente vise à obtenir votre approbation préalable des frais d’événement de \" & DOLLAR(Event_Total_Cost) &\", qui seront dans le cadre de \" & Activity_Title_French & \" à \" &Activity_Location& IF(UNKNOWN_DATE,\".\",IF(Activity_To_Date-Activity_From_Date=0,\" le \" &DAY(Activity_From_Date)&\"-\"&MONTH(Activity_From_Date)&\"-\"&YEAR(Activity_From_Date) & \".\",\" du \"&DAY(Activity_From_Date)&\"-\"&MONTH(Activity_From_Date)&\"-\"&YEAR(Activity_From_Date)&\" au \"&DAY(Activity_To_Date)&\"-\"&MONTH(Activity_To_Date)&\"-\"&YEAR(Activity_To_Date)&\".\"))","v":"               La présente vise à obtenir votre approbation préalable des frais d’événement de $0.00, qui seront dans le cadre de 0 à 0 le 22-10-2021."}]
[]
[null,{"$f":"IF(TRUE,\"               L’approbation du \"&IF(ISERROR(VLOOKUP(Event_Delegation_Level,Delegation!A4:C14,3,FALSE)),0,VLOOKUP(Event_Delegation_Level,Delegation!A4:C14,3,FALSE))&\" est requise dans les circonstances où \" & Memo_Text_FR &\" Je confirme que les dépenses proposées contribuent à l’optimisation des ressources et que les solutions les plus économiques ont été choisies.\",\"\")","v":{"$error":"#REF!"}}]
[]
[{"$f":"AND(Hospitality_Expenses=Yes_Select,NOT(Hospitality_Total_Cost=0))","v":false},{"$f":"IF(TRUE,\"Des frais d’accueil sont inclus dans cette demande: \n\n               Tous les frais d'accueil liés à cet événement, estimée à  \"&DOLLAR(Hospitality_Total_Cost)&\", ont été minimisés dans la mesure du possible. Les frais d’accueil sont en accord avec le Conseil du Trésor et les politiques ministérielles.\",\"\")","v":"Des frais d’accueil sont inclus dans cette demande: \n\n               Tous les frais d'accueil liés à cet événement, estimée à  $0.00, ont été minimisés dans la mesure du possible. Les frais d’accueil sont en accord avec le Conseil du Trésor et les politiques ministérielles."}]
[]
[null,"               *Remarque: Tant que l'approbation n’a pas été donné par le pouvoir délégué approprié, aucun composant des événements sera initié ou acquis qui se traduirait par la mise en place d'un passif pour le Ministère (c. location de déplacement, de représentation, la pièce ou l'équipement, etc.)"]
[]
[null,"               La demande est conforme à toutes les politiques du Ministère et du Conseil du Trésor ainsi qu’aux modifications à la Directive sur les dépenses de voyages, d'accueil, de conférences et d'événements (DVACÉ), selon le formulaire d’autorisation DVACÉ ci-joint. Veuillez noter que vous trouverez les informations détaillées dans les formulaires attachés."]
[]
[null,"RECOMMANDATION :"]
[]
[null,{"$f":"\"               Votre approbation est demandée pour des frais de \" & DOLLAR(Event_Total_Cost) &\" relatifs à cet événement. Je recommande votre approbation.\"","v":"               Votre approbation est demandée pour des frais de $0.00 relatifs à cet événement. Je recommande votre approbation."}]
[]
[null,"               Si vous approuvez la présente proposition, veuillez signer le formulaire ci-joint intitulé «Autorisation de dépenses de voyages, d’accueil, de conférences et d’événements»."]

{"sheet":"Memo ESDC-SC","index":12,"n_rows":39,"n_cols":7,"rows_kept":39,"cut":false,"hidden":true,"merged":[[27,1,27,9],[29,1,29,9],[31,1,31,9],[35,1,35,4],[34,6,34,9],[34,1,34,4],[35,6,35,9],[38,1,38,4],[36,1,37,4],[3,1,3,9],[4,1,4,9],[6,1,6,9],[8,1,8,9],[9,1,9,9],[17,1,17,9],[19,1,19,9],[10,1,10,9],[12,1,12,9],[15,1,15,9],[13,1,13,9],[21,1,21,9],[23,1,23,9],[25,1,25,9]]}
[]
[]
[]
[null,{"$f":"IF(WebCIMS_ID=0,\"WebCIMS____________________\",WebCIMS_ID)","v":"WebCIMS____________________"}]
[null,"UNCLASSIFIED"]
[]
[null,{"$f":"\"MEMORANDUM TO THE \" &IF(ISERROR(VLOOKUP(Event_Delegation_Level,Delegation!A4:B14,2,FALSE)),0,UPPER(VLOOKUP(Event_Delegation_Level,Delegation!A4:B14,2,FALSE)))","v":"MEMORANDUM TO THE 0"}]
[]
[null,{"$f":"IF(Activity_is_Event,\"EVENT PRE-APPROVAL REQUEST FOR THE\", \"EXEMPTED EVENT PRE-APPROVAL REQUEST FOR THE\")","v":"EXEMPTED EVENT PRE-APPROVAL REQUEST FOR THE"}]
[null,{"$f":"IF(Activity_Title=0,\"\",UPPER(Activity_Title))","v":""}]
[null,{"$f":"IF(UNKNOWN_DATE,\"\",IF(Activity_To_Date-Activity_From_Date=0,DAY(Activity_From_Date)&\"-\"&MONTH(Activity_From_Date)&\"-\"&YEAR(Activity_From_Date),\"From \"&DAY(Activity_From_Date)&\"-\"&MONTH(Activity_From_Date)&\"-\"&YEAR(Activity_From_Date)&\" To \"&DAY(Activity_To_Date)&\"-\"&MONTH(Activity_To_Date)&\"-\"&YEAR(Activity_To_Date)))","v":"22-10-2021"}]
[]
[null,"(FOR SIGNATURE)"]
[null,"SUMMARY"]
[]
[null,{"$f":"\"•     This is to seek your pre-approval for costs of \" & DOLLAR(Event_Total_Cost) &\", associated with the event \" & Activity_Title & \" in \" &Activity_Location& IF(UNKNOWN_DATE,\".\",IF(Activity_To_Date-Activity_From_Date=0,\" on \" &DAY(Activity_From_Date)&\"-\"&MONTH(Activity_From_Date)&\"-\"&YEAR(Activity_From_Date)& \".\",\" from \"&DAY(Activity_From_Date)&\"-\"&MONTH(Activity_From_Date)&\"-\"&YEAR(Activity_From_Date)&\" to \"&DAY(Activity_To_Date)&\"-\"&MONTH(Activity_To_Date)&\"-\"&YEAR(Activity_To_Date)&\".\"))","v":"•     This is to seek your pre-approval for costs of $0.00, associated with the event 0 in 0 on 22-10-2021."}]
[]
[null,{"$f":"IF(TRUE,\"•     \"&IF(ISERROR(VLOOKUP(Event_Delegation_Level,Delegation!A4:B14,2,FALSE)),0,VLOOKUP(Event_Delegation_Level,Delegation!A4:B14,2,FALSE))&\" approval is required in cases where \" & Memo_Text_En &\" I confirm that the proposed expenditures provide value for money and the most economical options have been selected.\",\"\")","v":{"$error":"#REF!"}}]
[{"$f":"Activity_is_Event","v":false}]
[{"$f":"AND(Hospitality_Expenses=Yes_Select,NOT(Hospitality_Total_Cost=0))","v":false},{"$f":"IF(TRUE,\"Hospitality is included in this request:\n\n•     All hospitality expenses associated with this event, estimated to be \"&DOLLAR(Hospitality_Total_Cost)&\", have been minimized to the extent possible. The hospitality is in accordance with Treasury Board and departmental policies.\",\"\")","v":"Hospitality is included in this request:\n\n•     All hospitality expenses associated with this event, estimated to be $0.00, have been minimized to the extent possible. The hospitality is in accordance with Treasury Board and departmental policies."}]
[{"$f":"AND(Hospitality_Expenses=Yes_Select,NOT(Hospitality_Total_Cost=0))","v":false}]
[null,"* Note: Until event approval has been given by the appropriate delegated authority, no components of the events will be initiated or procured that would result in the establishment of a liability for the department (i.e. travel, hospitality, room or equipment rentals, etc.)"]
[]
[null,"The event request conforms to all department and TB policies and complies with the amended Directive on Travel, Hospitality, Conference and Event Expenditures (THCEE), as per the attached THCEE Authorization Form. Please note that the detailed information can be found in the attached forms."]
[]
[null,"RECOMMENDATION:"]
[]
[null,{"$f":"\"Your approval is requested for \" & DOLLAR(Event_Total_Cost) &\" related to this event. I recommend your approval.\"","v":"Your approval is requested for $0.00 related to this event. I recommend your approval."}]
[]
[null,"Should you agree with this proposal, please sign the attached form entitled “Travel, Hospitality, Conference and Event Authorization”."]
[]
[{"$f":"Event_Delegation_Level=5","v":false},{"$f":"IF(TRUE,\"☐ I would like an oral briefing\n☐ I would like ____________________ of my staff to be briefed.\n☐ No briefing required\n☐ This request is rejected\",\"\")","v":"☐ I would like an oral briefing\n☐ I would like ____________________ of my staff to be briefed.\n☐ No briefing required\n☐ This request is rejected"}]
[]
[]
[]
[null,"Signature",null,null,null,null,"Date"]
[]
[]
[null,"Name"]

{"sheet":"Note EDSC-SC","index":13,"n_rows":39,"n_cols":7,"rows_kept":39,"cut":false,"hidden":true,"merged":[[34,1,34,4],[34,6,34,9],[23,1,23,9],[25,1,25,9],[27,1,27,9],[29,1,29,9],[31,1,31,9],[38,1,38,4],[36,1,37,4],[21,1,21,9],[3,1,3,9],[4,1,4,9],[6,1,6,9],[8,1,8,9],[9,1,9,9],[10,1,10,9],[12,1,12,9],[13,1,13,9],[15,1,15,9],[17,1,17,9],[19,1,19,9],[35,1,35,4],[35,6,35,9]]}
[]
[]
[]
[null,{"$f":"IF(WebCIMS_ID=0,\"WebCIMS____________________\",WebCIMS_ID)","v":"WebCIMS____________________"}]
[null,"NON CLASSIFIÉ"]
[]
[null,{"$f":"\"NOTE À L’INTENTION DU \" &IF(ISERROR(VLOOKUP(Event_Delegation_Level,Delegation!A4:C14,3,FALSE)),0,UPPER(VLOOKUP(Event_Delegation_Level,Delegation!A4:C14,3,FALSE)))","v":"NOTE À L’INTENTION DU 0"}]
[]
[null,{"$f":"IF(Activity_is_Event,\"DEMANDE D’APPROBATION PRÉALABLE DES FRAIS D’ÉVÉNEMENT\", \"DEMANDE D’APPROBATION PRÉALABLE DES FRAIS D’ÉVÉNEMENT EXEMPTÉ\")","v":"DEMANDE D’APPROBATION PRÉALABLE DES FRAIS D’ÉVÉNEMENT EXEMPTÉ"}]
[null,{"$f":"IF(Activity_Title=0,\"\",UPPER(Activity_Title_French))","v":""}]
[null,{"$f":"IF(UNKNOWN_DATE,\"\",IF(Activity_To_Date-Activity_From_Date=0,DAY(Activity_From_Date)&\"-\"&MONTH(Activity_From_Date)&\"-\"&YEAR(Activity_From_Date),\"From \"&DAY(Activity_From_Date)&\"-\"&MONTH(Activity_From_Date)&\"-\"&YEAR(Activity_From_Date)&\" To \"&DAY(Activity_To_Date)&\"-\"&MONTH(Activity_To_Date)&\"-\"&YEAR(Activity_To_Date)))","v":"22-10-2021"}]
[]
[null,"(POUR APPROBATION)"]
[null,"SOMMAIRE"]
[]
[null,{"$f":"\"•     La présente vise à obtenir votre approbation préalable des frais d’événement de \" & DOLLAR(Event_Total_Cost) &\", qui seront encourus dans le cadre de \" & Activity_Title_French & \" à \" &Activity_Location& IF(UNKNOWN_DATE,\".\",IF(Activity_To_Date-Activity_From_Date=0,\" le \" &DAY(Activity_From_Date)&\"-\"&MONTH(Activity_From_Date)&\"-\"&YEAR(Activity_From_Date) & \".\",\" du \"&DAY(Activity_From_Date)&\"-\"&MONTH(Activity_From_Date)&\"-\"&YEAR(Activity_From_Date)&\" au \"&DAY(Activity_To_Date)&\"-\"&MONTH(Activity_To_Date)&\"-\"&YEAR(Activity_To_Date)&\".\"))","v":"•     La présente vise à obtenir votre approbation préalable des frais d’événement de $0.00, qui seront encourus dans le cadre de 0 à 0 le 22-10-2021."}]
[]
[null,{"$f":"IF(TRUE,\"•     L’approbation du \"&IF(ISERROR(VLOOKUP(Event_Delegation_Level,Delegation!A4:C14,3,FALSE)),0,VLOOKUP(Event_Delegation_Level,Delegation!A4:C14,3,FALSE))&\" est requise dans les circonstances où \" & Memo_Text_FR &\" Je confirme que les dépenses proposées contribuent à l’optimisation des ressources et que les solutions les plus économiques ont été choisies.\",\"\")","v":{"$error":"#REF!"}}]
[{"$f":"Activity_is_Event","v":false}]
[{"$f":"AND(Hospitality_Expenses=Yes_Select,NOT(Hospitality_Total_Cost=0))","v":false},{"$f":"IF(NOT(Hospitality_Total_Cost=0),\"Des frais d’accueil sont inclus dans cette demande: \n\n•     Tous les frais d'accueil liés à cet événement, estimée à  \"&TEXT(Hospitality_Total_Cost,\"#,###,###.00$\")&\", ont été minimisés dans la mesure du possible. Les frais d’accueil sont en accord avec le Conseil du Trésor et les politiques ministérielles.\",\"\")","v":""}]
[{"$f":"AND(Hospitality_Expenses=Yes_Select,NOT(Hospitality_Total_Cost=0))","v":false}]
[null,"*  Remarque: Tant que l'approbation n’a pas été donné par le pouvoir délégué approprié, aucun composant des événements sera initié ou acquis qui se traduirait par la mise en place d'un passif pour le Ministère (c. location de déplacement, de représentation, la pièce ou l'équipement, etc.)"]
[]
[null,"La demande est conforme à toutes les politiques du Ministère et du Conseil du Trésor ainsi qu’aux modifications à la Directive sur les dépenses de voyages, d'accueil, de conférences et d'événements (DVACÉ), selon le formulaire d’autorisation DVACÉ ci-joint. Veuillez noter que vous trouverez les informations détaillées dans les formulaires attachés."]
[]
[null,"RECOMMANDATION :"]
[]
[null,{"$f":"\"Votre approbation est demandée pour des frais de \" & TEXT(Hospitality_Total_Cost,\"#,###,###.00$\") &\" relatifs à cet événement. Je recommande votre approbation.\"","v":"Votre approbation est demandée pour des frais de .00$ relatifs à cet événement. Je recommande votre approbation."}]
[]
[null,"Si vous approuvez la présente proposition, veuillez signer le formulaire ci-joint intitulé «Autorisation de dépenses de voyages, d’accueil, de conférences et d’événements»."]
[]
[{"$f":"Event_Delegation_Level=5","v":false},{"$f":"IF(TRUE,\"☐ Je souhaite recevoir une séance d’information \n☐ Je souhaite que _____________ de mon cabinet reçoive une séance d’information.\n☐ Aucune séance d’information requise \n☐ Cette demande est rejetée\n\",\"\")","v":"☐ Je souhaite recevoir une séance d’information \n☐ Je souhaite que _____________ de mon cabinet reçoive une séance d’information.\n☐ Aucune séance d’information requise \n☐ Cette demande est rejetée\n"}]
[]
[]
[]
[null,"Signature",null,null,null,null,"Date"]
[]
[]
[null,"Nom"]

{"sheet":"Authorisation - Autorisation","index":14,"n_rows":221,"n_cols":25,"rows_kept":221,"cut":false,"hidden":true,"merged":[[146,18,146,19],[145,1,145,4],[145,5,145,6],[145,7,145,9],[145,10,145,12],[145,13,145,14],[146,1,146,4],[146,5,146,6],[146,7,146,9],[146,10,146,12],[146,13,146,14],[146,15,146,17],[93,17,94,19],[89,10,90,13],[81,2,81,9],[82,2,82,9],[83,2,83,9],[84,2,84,9],[85,2,85,9],[81,1,82,1],[81,10,82,13],[83,10,84,13],[85,17,86,19],[87,17,88,19],[85,10,86,13],[87,10,88,13],[93,1,94,1],[89,14,90,16],[86,2,86,9],[87,2,87,9],[88,2,88,9],[85,14,86,16],[87,14,88,16],[1,16,2,19],[4,16,5,19],[64,1,64,13],[64,14,64,19],[67,1,67,19],[68,1,68,19],[69,1,69,19],[70,1,70,19],[188,16,188,18],[157,12,157,19],[151,9,151,11],[152,9,152,11],[153,9,153,11],[154,9,154,11],[154,1,154,8],[153,1,153,8],[152,1,152,8],[151,1,151,8],[155,9,155,11],[156,9,156,11],[157,9,157,11],[157,1,157,8],[156,1,156,8],[155,1,155,8],[220,2,220,6],[220,8,220,10],[216,16,216,19],[220,13,220,15],[220,17,220,18],[191,10,191,14],[216,2,216,5],[216,13,216,15],[219,17,219,18],[219,8,219,10],[191,2,191,7],[211,2,211,6],[211,8,211,10],[211,13,211,15],[211,17,211,18],[207,12,208,19],[207,3,207,11],[208,1,208,11],[207,1,207,2],[209,1,209,11],[217,1,217,11],[216,6,216,11],[201,2,201,7],[199,1,199,19],[99,17,100,17],[99,18,100,19],[101,1,101,16],[101,17,102,17],[101,18,102,19],[104,1,106,19],[109,17,109,19],[109,1,109,12],[212,12,212,19],[167,2,167,7],[167,10,167,14],[168,2,168,7],[168,10,168,14],[186,2,186,7],[148,1,148,4],[148,5,148,6],[148,7,148,9],[148,10,148,12],[148,13,148,14],[154,12,154,19],[155,12,155,19],[156,12,156,19],[151,12,151,19],[152,12,152,19],[141,1,141,4],[141,5,141,6],[141,7,141,9],[141,10,141,12],[141,13,141,14],[141,15,141,17],[141,18,141,19],[142,1,142,4],[145,15,145,17],[145,18,145,19],[143,1,143,4],[143,5,143,6],[143,7,143,9],[144,13,144,14],[144,15,144,17],[144,18,144,19],[143,10,143,12],[143,13,143,14],[143,15,143,17],[143,18,143,19],[144,1,144,4],[144,5,144,6],[144,7,144,9],[144,10,144,12],[95,14,96,16],[89,2,89,9],[90,2,90,9],[91,2,91,9],[93,2,93,9],[93,10,94,13],[94,2,94,9],[95,1,96,1],[95,2,95,9],[96,2,96,9],[95,10,96,13],[134,1,134,4],[134,5,134,6],[134,7,134,9],[134,10,134,12],[134,13,134,14],[99,1,99,16],[126,15,126,17],[97,1,97,16],[98,1,98,16],[97,17,98,17],[128,5,128,6],[130,7,130,9],[130,10,130,12],[130,13,130,14],[128,7,128,9],[128,10,128,12],[125,7,125,9],[125,10,125,12],[125,13,125,14],[125,15,125,17],[128,13,128,14],[128,15,128,17],[133,1,133,4],[133,5,133,6],[142,5,142,6],[142,7,142,9],[142,10,142,12],[142,13,142,14],[142,15,142,17],[142,18,142,19],[140,1,140,4],[128,18,128,19],[129,5,129,6],[130,5,130,6],[131,5,131,6],[131,7,131,9],[130,15,130,17],[130,18,130,19],[129,7,129,9],[129,10,129,12],[129,13,129,14],[129,15,129,17],[129,18,129,19],[133,13,133,14],[133,15,133,17],[133,18,133,19],[132,10,132,12],[131,15,131,17],[127,5,127,6],[131,18,131,19],[140,5,140,6],[140,7,140,9],[140,10,140,12],[140,13,140,14],[140,15,140,17],[140,18,140,19],[134,15,134,17],[134,18,134,19],[131,13,131,14],[133,7,133,9],[133,10,133,12],[139,1,139,4],[139,5,139,6],[139,7,139,9],[139,10,139,12],[139,13,139,14],[139,15,139,17],[139,18,139,19],[135,1,135,19],[136,1,138,4],[136,5,138,6],[136,7,136,19],[137,7,138,9],[137,10,138,12],[137,13,138,14],[137,15,138,17],[137,18,138,19],[30,12,32,19],[41,12,42,16],[41,17,42,19],[27,1,27,19],[121,1,121,19],[122,1,124,4],[122,5,124,6],[122,7,122,19],[123,7,124,9],[123,10,124,12],[123,13,124,14],[123,15,124,17],[123,18,124,19],[65,1,65,19],[120,7,120,19],[89,17,90,19],[91,14,92,16],[91,17,92,19],[81,14,82,16],[81,17,82,19],[83,14,84,16],[83,17,84,19],[95,17,96,19],[93,14,94,16],[47,12,48,19],[49,12,50,19],[37,17,38,19],[39,17,40,19],[37,12,38,16],[39,12,40,16],[33,17,34,19],[35,17,36,19],[35,12,36,16],[7,1,7,19],[17,1,18,4],[17,6,18,11],[108,1,108,19],[83,1,84,1],[118,1,118,19],[91,1,92,1],[117,1,117,19],[85,1,86,1],[87,1,88,1],[89,1,90,1],[33,12,34,16],[92,2,92,9],[91,10,92,13],[76,1,76,19],[77,1,77,13],[78,1,78,19],[45,12,46,19],[17,12,18,15],[51,1,51,11],[52,1,52,11],[51,12,52,16],[29,1,29,19],[31,1,50,11],[53,4,53,7],[54,4,56,7],[210,8,210,10],[210,17,210,18],[182,16,182,18],[167,16,167,18],[185,1,185,19],[164,2,164,7],[165,2,165,7],[164,10,164,14],[165,10,165,14],[165,16,165,18],[166,16,166,18],[187,2,187,7],[187,10,187,14],[187,16,187,18],[168,16,168,18],[163,16,164,18],[125,1,125,4],[126,1,126,4],[127,1,127,4],[128,1,128,4],[129,1,129,4],[130,1,130,4],[97,18,98,19],[160,1,160,11],[100,1,100,16],[102,1,102,16],[161,1,161,11],[131,1,131,4],[132,1,132,4],[125,5,125,6],[126,5,126,6],[132,18,132,19],[159,1,159,19],[150,1,150,19],[132,13,132,14],[132,15,132,17],[131,10,131,12],[132,5,132,6],[132,7,132,9],[114,1,114,19],[115,1,115,19],[103,1,103,19],[160,12,160,19],[111,1,111,19],[112,1,112,19],[113,1,113,19],[4,15,5,15],[192,16,192,18],[169,16,169,18],[21,8,21,13],[21,15,21,18],[79,10,80,13],[79,14,80,16],[79,17,80,19],[79,1,80,9],[119,1,119,6],[120,1,120,6],[119,7,119,19],[59,1,59,11],[60,1,61,11],[59,12,59,16],[60,12,61,16],[59,17,59,19],[60,17,61,19],[57,12,58,16],[57,17,58,19],[53,8,53,11],[54,8,56,11],[53,12,56,16],[53,17,56,19],[17,16,18,19],[19,1,19,19],[20,1,20,19],[22,1,22,4],[22,13,22,16],[23,1,23,19],[8,1,8,19],[9,1,9,19],[11,1,11,19],[12,1,12,19],[13,1,13,19],[14,1,14,19],[15,1,15,19],[16,1,16,19],[10,1,10,19],[21,1,21,7],[22,17,22,19],[22,10,22,12],[22,5,22,9],[24,1,24,19],[25,1,25,19],[26,1,26,19],[63,1,63,19],[66,1,66,19],[71,1,71,9],[72,1,74,19],[109,13,109,16],[110,1,110,19],[53,1,53,3],[43,17,44,19],[30,1,30,11],[57,1,58,2],[57,3,58,4],[57,5,58,5],[57,6,58,8],[57,9,58,10],[57,11,58,11],[43,12,44,16],[28,1,28,19],[51,17,52,19],[54,1,54,3],[55,1,55,3],[56,1,56,3],[200,10,200,14],[171,1,177,1],[171,3,177,4],[171,6,177,6],[170,3,170,7],[170,8,170,19],[171,8,171,19],[172,8,172,19],[173,8,173,19],[174,8,174,19],[175,8,175,19],[176,8,176,19],[177,8,177,19],[184,12,184,19],[194,1,194,7],[194,8,194,11],[194,12,194,19],[178,1,178,19],[180,1,180,19],[181,1,181,19],[170,1,170,2],[184,8,184,11],[125,18,125,19],[127,7,127,9],[127,10,127,12],[127,13,127,14],[127,15,127,17],[127,18,127,19],[126,7,126,9],[126,10,126,12],[126,13,126,14],[126,18,126,19],[153,12,153,19],[148,15,148,17],[148,18,148,19],[162,1,162,19],[161,12,161,19],[147,1,147,4],[147,5,147,6],[147,7,147,9],[147,10,147,12],[147,13,147,14],[147,15,147,17],[147,18,147,19],[204,1,204,7],[204,8,204,11],[204,12,204,16],[204,17,204,19],[213,1,213,7],[213,8,213,11],[201,10,201,14],[202,16,202,18],[179,1,179,19],[195,1,195,19],[196,2,196,7],[196,10,196,14],[196,16,196,18],[197,2,197,7],[197,10,197,14],[197,16,197,18],[198,16,198,18],[189,1,189,19],[190,2,190,7],[186,10,186,14],[186,16,186,18],[190,10,190,14],[184,1,184,7],[200,2,200,7]]}
[]
[null,null,null,null,null,null,null,null,null,null,null,null,null,null,null,null,{"$f":"IF(WebCIMS_ID=0,\"   Numéro WebCIMS number: \",\"   Numéro WebCIMS number:\" & CHAR(10) &WebCIMS_ID)","v":"   Numéro WebCIMS number: "}]
[]
[]
[null,"TRAVEL, HOSPITALITY, CONFERENCE AND EVENT EXPENDITURE AUTHORISATION",null,null,null,null,null,null,null,null,null,null,null,null,null,{"$f":"System!AC1","v":"V 8-49"},{"$f":"\"Project Code / Code du projet:\"","v":"Project Code / Code du projet:"}]
[null,"AUTORISATION DE DÉPENSES DE VOYAGES, D’ACCUEIL, DE CONFÉRENCES ET  D’ÉVÉNEMENTS"]
[]
[null,"REASON FOR APPROVAL - RAISON POUR APPROBATION"]
[null,{"$f":"IF(Activity_is_Event,\"☒ \", \"☐ \")& \"Event - Événement\"","v":"☐ Event - Événement"}]
[null,{"$f":"IF(NOT(Activity_is_Event),\"☒ \", \"☐ \")& \"Operational or Training Activity – Activité opérationnelle ou de formation\"","v":"☒ Operational or Training Activity – Activité opérationnelle ou de formation"}]
[null,"Event – Événement"]
[null,{"$f":"IF(btnTypeEventOper=1,\"☒ \", \"☐ \")& \"Management & Staff Retreats / Journée de réflexion de la direction et du personnel\"","v":"☐ Management & Staff Retreats / Journée de réflexion de la direction et du personnel"}]
[null,{"$f":"IF(btnTypeEventOper=2,\"☒ \", \"☐ \")& \"Award and Recognition Ceremony / Cérémonie de remise de prix et de reconnaissance\"","v":"☐ Award and Recognition Ceremony / Cérémonie de remise de prix et de reconnaissance"}]
[null,{"$f":"IF(btnTypeEventOper=3,\"☒ \", \"☐ \")& \"Departmental or Governmental Celebration / Célébration ministérielle ou gouvernementale\"","v":"☐ Departmental or Governmental Celebration / Célébration ministérielle ou gouvernementale"}]
[null,{"$f":"IF(AND(Activity_is_Event,Conference),\"☒ \", \"☐ \")& \"Certain Conference Participation / Participation à certaines conférence\"","v":"☐ Certain Conference Participation / Participation à certaines conférence"}]
[null,{"$f":"IF(btnTypeEventOper=4,\"☒ \", \"☐ \")& CONCATENATE(\"All meetings or gatherings of public servants, regardless of the purpose, that are held outside the headquarters area (16km radius) of the majority of the departmental participants and for which the department has the discretion \",\"to select the venue and chooses to hold the activity in a non-government facility /\",\" Toutes les réunions ou rassemblements de fonctionnaires, peu importe l’objet, qui se tiennent à l’extérieur de la zone d’affectation (rayon de 16 km) de la \",\"majorité des participants ministériels et pour lesquelles le ministère a le pouvoir discrétionnaire de choisir l’endroit et choisit de tenir l’activité dans un établissement non gouvernemental\")","v":"☐ All meetings or gatherings of public servants, regardless of the purpose, that are held outside the headquarters area (16km radius) of the majority of the departmental participants and for which the department has the discretion to select the venue and chooses to hold the activity in a non-government facility / Toutes les réunions ou rassemblements de fonctionnaires, peu importe l’objet, qui se tiennent à l’extérieur de la zone d’affectation (rayon de 16 km) de la majorité des participants ministériels et pour lesquelles le ministère a le pouvoir discrétionnaire de choisir l’endroit et choisit de tenir l’activité dans un établissement non gouvernemental"}]
[null,{"$f":"IF(btnTypeEventOper=5,\"☒ \",\"☐ \")&\"Other non-operational activity / Autre activité non-opérationnelle\"","v":"☐ Other non-operational activity / Autre activité non-opérationnelle"}]
[null,{"$f":"IF(AND(Activity_is_Event,Event_Total_Cost<=15000),\"☒ \", \"☐ \")& \"Total $15,000 or less \nTotal 15 000$ ou moins\"","v":"☐ Total $15,000 or less \nTotal 15 000$ ou moins"},null,null,null,null,{"$f":"IF(AND(Activity_is_Event,Event_Total_Cost>15000,Event_Total_Cost<=25000),\"☒ \", \"☐ \")& \"Total over $15,000 to $25,000\nTotal excède 15 000$ et 25 000$*\"","v":"☐ Total over $15,000 to $25,000\nTotal excède 15 000$ et 25 000$*"},null,null,null,null,null,{"$f":"IF(AND(Activity_is_Event,Event_Total_Cost>25000,Event_Total_Cost<=50000),\"☒ \", \"☐ \")& \"Total over $25,000 to $50,000*\nTotal excède 25 000$ à 50 000$*\"","v":"☐ Total over $25,000 to $50,000*\nTotal excède 25 000$ à 50 000$*"},null,null,null,{"$f":"IF(AND(Activity_is_Event,Event_Total_Cost>50000),\"☒ \", \"☐ \")& \"Total over $50,000*\nTotal excède 50 000$*\"","v":"☐ Total over $50,000*\nTotal excède 50 000$*"}]
[]
[null,"* Please note that a memo is required for the approval of the Minister, Deputy Minister or Chief Operating Officer\n* Prendre note qu’un mémo est requis pour l’approbation du Ministre, Sous-Ministre ou Chef de l’exploitation"]
[null,"Hospitality - Accueil "]
[null,{"$f":"IF(AND(Hospitality,SUM(Meals_Exceeding_Standard)=0),\"☒ \", \"☐ \")& \"Below standard cost per person\nMoins que le coût standard par personne\"","v":"☐ Below standard cost per person\nMoins que le coût standard par personne"},null,null,null,null,null,null,{"$f":"IF(AND(Hospitality,SUM(Meals_Exceeding_Standard)>0,SUM(Meals_Exceeding_Maximum)=0), \"☒ \", \"☐ \")& \"Over standard cost per person\n Excède le coût standard par personne\"","v":"☐ Over standard cost per person\n Excède le coût standard par personne"},null,null,null,null,null,null,{"$f":"IF(AND(Hospitality,SUM(Meals_Exceeding_Maximum)>0),\"☒ \", \"☐ \")& \"Over maximum cost per person\n Excède le coût maximum par personne\"","v":"☐ Over maximum cost per person\n Excède le coût maximum par personne"}]
[null,{"$f":"IF(AND(Hospitality,Hospitality_Total_Cost>0,Hospitality_Total_Cost<=1000),\"☒ \", \"☐ \")& \"Total $1,000 or less\nTotal 1 000$ ou moins\"","v":"☐ Total $1,000 or less\nTotal 1 000$ ou moins"},null,null,null,{"$f":"IF(AND(Hospitality,Hospitality_Total_Cost>1000,Hospitality_Total_Cost<=2000),\"☒ \", \"☐ \")& \"Total over $1,000 to $2,000\n Total excède 1 000$ à 2 000$\"","v":"☐ Total over $1,000 to $2,000\n Total excède 1 000$ à 2 000$"},null,null,null,null,{"$f":"IF(AND(Hospitality,Hospitality_Total_Cost>2000,Hospitality_Total_Cost<=3000),\"☒ \", \"☐ \")& \"Total over $2,000 to $3,000\n Total excède 2 000$ à 3 000$\"","v":"☐ Total over $2,000 to $3,000\n Total excède 2 000$ à 3 000$"},null,null,{"$f":"IF(AND(Hospitality,Hospitality_Total_Cost>3000,Hospitality_Total_Cost<=10000),\"☒ \", \"☐ \")& \"Total over $3,000 to $10,000\n Total excède 3 000$ à 10 000$\"","v":"☐ Total over $3,000 to $10,000\n Total excède 3 000$ à 10 000$"},null,null,null,{"$f":"IF(AND(Hospitality,Hospitality_Total_Cost>10000),\"☒ \", \"☐ \")& \"Total over $10,000\n Total excède 10 000$\"","v":"☐ Total over $10,000\n Total excède 10 000$"}]
[null,"Travel - Voyage "]
[null,{"$f":"IF(AND(Travel_Expenses=Yes_Select,OR(Travel_Type=Travel_Domestic_Select,Travel_Type=Travel_Local_Select)),\"☒ \", \"☐ \")& \" Domestic or Local / Domestique ou local\"","v":"☐  Domestic or Local / Domestique ou local"}]
[null,{"$f":"IF(AND(Travel_Expenses=Yes_Select,Travel_Type=Travel_International_Select,Travel_On_Plan=Yes_Select),\"☒ \", \"☐ \")& \" International (Included in the International Travel Plan / Inclus dans le plan des voyages internationaux)\"","v":"☐  International (Included in the International Travel Plan / Inclus dans le plan des voyages internationaux)"}]
[null,{"$f":"IF(AND(Travel_Expenses=Yes_Select,Travel_Type=Travel_International_Select,NOT(Travel_On_Plan=Yes_Select)),\"☒ \", \"☐ \")& \" International (Ad hoc request / Demande Ad hoc)\"","v":"☐  International (Ad hoc request / Demande Ad hoc)"}]
[null,"DETAILS & COMMENTS – DÉTAILS ET COMMENTAIRES"]
[null,"Title of the activity (no acronyms) / Titre de l'activité (aucun acronyme) :"]
[null,{"$f":"IF(Activity_Title=0,\"\",Activity_Title)","v":""}]
[null,"Nature, Reason and Objective / Nature, raison et objectif :    ",null,null,null,null,null,null,null,null,null,null,"Costs (all must include taxes, gratuities and service charges) / \nCoûts (tous les coûts doivent inclure les taxes, pourboires et frais de service)"]
[null,{"$f":"IF(Purpose=0,\"\",Purpose)","v":""}]
[]
[null,null,null,null,null,null,null,null,null,null,null,null,"Hospitality - Accueil (Section A)",null,null,null,null,{"$f":"IF(Hospitality,Hospitality_Total_Cost,0)","v":0}]
[]
[null,null,null,null,null,null,null,null,null,null,null,null,"Conference - Conférence (Section B)",null,null,null,null,{"$f":"IF(Conference,Conference_Total_Cost,0)","v":0}]
[]
[null,null,null,null,null,null,null,null,null,null,null,null,"Training – Formation (Section B)",null,null,null,null,{"$f":"IF(Training,Conference_Total_Cost,0)","v":0}]
[]
[null,null,null,null,null,null,null,null,null,null,null,null,"Travel - Voyage (Section C)",null,null,null,null,{"$f":"IF(Travel_Expenses=Yes_Select,Travel_Total_Cost,0)","v":0}]
[]
[null,null,null,null,null,null,null,null,null,null,null,null,"Other - Autre (Section D)",null,null,null,null,{"$f":"Other_Total_Cost","v":0}]
[]
[null,null,null,null,null,null,null,null,null,null,null,null,"Total cost paid by ESDC\nCoût total payé par EDSC",null,null,null,null,{"$f":"SUM(R34:T43)","v":0}]
[]
[null,null,null,null,null,null,null,null,null,null,null,null,{"$f":"IF(Activity_Paid_By=One_RC_Select,\"☒ \", \"☐ \")& \"Paid by one Fund Centre (ESDC)\nPayé par un centre financier (EDSC)\"","v":"☐ Paid by one Fund Centre (ESDC)\nPayé par un centre financier (EDSC)"}]
[]
[null,null,null,null,null,null,null,null,null,null,null,null,{"$f":"IF(Activity_Paid_By=Multiple_RC_Select,\"☒ \", \"☐ \")& \"Paid by multiple Fund Centers (ESDC)\nPayé par plusieurs centres financiers (EDSC)\"","v":"☐ Paid by multiple Fund Centers (ESDC)\nPayé par plusieurs centres financiers (EDSC)"}]
[]
[null,null,null,null,null,null,null,null,null,null,null,null,{"$f":"IF(Is_Cost_For_OGD=Yes_Select,\"☒ Paid by other government department\nPayé par d'autres ministères du gouvernement\",\"☐ Paid by other government department\nPayé par d'autres ministères du gouvernement\")","v":"☐ Paid by other government department\nPayé par d'autres ministères du gouvernement"}]
[]
[null,"Location (City, Country) – Endroit (Ville, Pays) :",null,null,null,null,null,null,null,null,null,null,"Costs paid by other government departments / Coûts payés par d'autres ministères du gouvernement",null,null,null,null,{"$f":"Cost_For_OGD","v":0}]
[null,{"$f":"IF(Activity_Location=0,\"\",Activity_Location)","v":""}]
[null,"Activity date(s)",null,null,"From / du",null,null,null,"To / au",null,null,null,"Total estimated federal costs / Coût estimé total pour l'ensemble des ministères participants",null,null,null,null,{"$f":"R44+R52","v":0}]
[null,"(Year, month, day)",null,null,{"$f":"IF(OR(Activity_From_Date=0,UNKNOWN_DATE),\"\", YEAR(Activity_From_Date)&\"/\"&MONTH(Activity_From_Date)&\"/\"&DAY(Activity_From_Date))","v":"2021/10/22"},null,null,null,{"$f":"IF(OR(Activity_To_Date=0,UNKNOWN_DATE),\"\",YEAR(Activity_To_Date)&\"/\"&MONTH(Activity_To_Date)&\"/\"&DAY(Activity_To_Date))","v":"2021/10/22"}]
[null,"Date(s) de l'activité"]
[null,"(Année, mois, jour)"]
[null,"Public Servants\nFonctionnaires",null,{"$f":"PS_Participants","v":""},null,"+","Non-Public Servants\nNon-Fonctionnaires",null,null,{"$f":"Non_PS_Participants","v":""},null,"=","Total number of attendee(s)\nNombre total de participant(s)",null,null,null,null,{"$f":"D58+J58","v":{"$error":"#VALUE!"}}]
[]
[null,"Justification for the number of Public Servant participants / Justification pour le nombre de fonctionnaires participants:",null,null,null,null,null,null,null,null,null,null,"Average cost per traveller – Travel\nCoût moyen par voyageur - Voyage",null,null,null,null,{"$f":"IF(Number_of_Travellers=0,0,R40/Number_of_Travellers)","v":0}]
[null,{"$f":"IF(AND(PS_Participants>0,NOT(PS_Participants_Justification=0)),PS_Participants_Justification,\"\")","v":""},null,null,null,null,null,null,null,null,null,null,"Average cost per person – Event\nCoût moyen par personne - Événement",null,null,null,null,{"$f":"IF(R58=0,0,R44/R58)","v":{"$error":"#VALUE!"}}]
[]
[]
[null,"DETAILS & COMMENTS – DÉTAILS ET COMMENTAIRES"]
[null,"Is it in a government facility? / Est-ce dans une installation du gouvernement? ",null,null,null,null,null,null,null,null,null,null,null,null,{"$f":"IF(Government_Facility=Yes_Select,\"☒ Yes / oui       ☐ No / non\",IF(Government_Facility=No_Select,\"☐ Yes / oui       ☒ No / non\",\"☐ Yes / oui       ☐ No / non\"))","v":"☐ Yes / oui       ☐ No / non"}]
[null,"If no, choose all applicable / Si non, choisir tout ce qui s'applique"]
[null,{"$f":"IF(Facility_Reason1_Selected=Yes_Select,\"☒ \",\"☐ \") & \"The department has no discretion in selecting the venue; / Le ministère n’a aucun pouvoir discrétionnaire pour choisir le lieu;\"","v":"☐ The department has no discretion in selecting the venue; / Le ministère n’a aucun pouvoir discrétionnaire pour choisir le lieu;"}]
[null,{"$f":"IF(Facility_Reason2_Selected=Yes_Select,\"☒ \",\"☐ \") & \"The chosen facility can provide the services and infrastructure required for the activity which government facilities cannot; \"&\"/ L’installation choisie peut fournir les services et l’infrastructure nécessaires à la tenue de l'activité, alors que les installations du gouvernement ne le peuvent pas;\"","v":"☐ The chosen facility can provide the services and infrastructure required for the activity which government facilities cannot; / L’installation choisie peut fournir les services et l’infrastructure nécessaires à la tenue de l'activité, alors que les installations du gouvernement ne le peuvent pas;"}]
[null,{"$f":"IF(Facility_Reason3_Selected=Yes_Select,\"☒ \",\"☐ \") & \"Government facilities are not available in the geographic area where the activity is to be held; \"&\"/ Les installations du gouvernement n’existent pas dans la région géographique où aura lieu l'activité;\"","v":"☐ Government facilities are not available in the geographic area where the activity is to be held; / Les installations du gouvernement n’existent pas dans la région géographique où aura lieu l'activité;"}]
[null,{"$f":"IF(Facility_Reason4_Selected=Yes_Select,\"☒ \",\"☐ \") & \"Government facilities exist in the geographic area but are not available at the time of the activity and the activity timetable cannot be suitably altered; \"&\"or / Les installations du gouvernement existent dans la région géographique mais ne sont pas libres au moment où l'activité aura lieu et le calendrier de l'activité ne peut être convenablement modifié; ou\"","v":"☐ Government facilities exist in the geographic area but are not available at the time of the activity and the activity timetable cannot be suitably altered; or / Les installations du gouvernement existent dans la région géographique mais ne sont pas libres au moment où l'activité aura lieu et le calendrier de l'activité ne peut être convenablement modifié; ou"}]
[null,{"$f":"IF(Facility_Reason5_Selected=Yes_Select,\"☒ \",\"☐ \") & \"The choice of a non-government facility can be shown to be cost-effective and withstand public scrutiny. \"&\"/ Le choix d’une installation non gouvernementale peut se révéler économique et résister à un examen du public.\"","v":"☐ The choice of a non-government facility can be shown to be cost-effective and withstand public scrutiny. / Le choix d’une installation non gouvernementale peut se révéler économique et résister à un examen du public."}]
[null,"Other comments / Autres Commentaires  :"]
[null,{"$f":"IF(Comments_For_Approver=0,\" \",Comments_For_Approver)","v":" "}]
[]
[]
[]
[null,"A) HOSPITALITY (Supporting Documentation Required) – ACCUEIL (Documentation à l’appui requise)"]
[null,"Provide the purpose of the hospitality / Fournir le but de l'accueil :"]
[null,{"$f":"IF(OR(Hospitality_Justification=0,NOT(Hospitality)),\"\",Hospitality_Justification)","v":""}]
[null,"Types of hospitality (choose all applicable) / \nTypes d’accueil (choisir tout ce qui s’applique)",null,null,null,null,null,null,null,null,"Number of days hospitality offered per type / Nombre de jours d’accueil offert par type",null,null,null,"Average cost per day per type / Moyenne par jour par type",null,null,"Total estimated cost per type / Coût total estimé par type"]
[]
[null,{"$f":"IF(AND(Hospitality,U82>0),\"☒\",\"☐\")","v":"☐"},"Breakfast (Justification required)",null,null,null,null,null,null,null,{"$f":"COUNTIF(Hospitality_Breakfast_Tcost,\"<>0\")","v":0},null,null,null,{"$f":"IF(K82=0,0,R82/K82)","v":0},null,null,{"$f":"IF(Hospitality,U82,0)","v":0},null,null,{"$f":"SUM(Hospitality_Breakfast_Tcost)","v":0}]
[null,null,"Petit Déjeuner (Justification requise)"]
[null,{"$f":"IF(AND(Hospitality,U84>0),\"☒\",\"☐\")","v":"☐"},"Lunch",null,null,null,null,null,null,null,{"$f":"COUNTIF(Hospitality_Lunch_Tcost,\"<>0\")","v":0},null,null,null,{"$f":"IF(K84=0,0,R84/K84)","v":0},null,null,{"$f":"IF(Hospitality,U84,0)","v":0},null,null,{"$f":"SUM(Hospitality_Lunch_Tcost)","v":0}]
[null,null,"Déjeuner"]
[null,{"$f":"IF(AND(Hospitality,U86>0),\"☒\",\"☐\")","v":"☐"},"Dinner",null,null,null,null,null,null,null,{"$f":"COUNTIF(Hospitality_Dinner_Tcost,\"<>0\")","v":0},null,null,null,{"$f":"IF(K86=0,0,R86/K86)","v":0},null,null,{"$f":"IF(Hospitality,U86,0)","v":0},null,null,{"$f":"SUM(Hospitality_Dinner_Tcost)","v":0}]
[null,null,"Dîner"]
[null,{"$f":"IF(AND(Hospitality,U88>0),\"☒\",\"☐\")","v":"☐"},"Refreshments AM",null,null,null,null,null,null,null,{"$f":"COUNTIF(Hospitality_Morning_Break_Tcost,\"<>0\")","v":0},null,null,null,{"$f":"IF(K88=0,0,R88/K88)","v":0},null,null,{"$f":"IF(Hospitality,U88,0)","v":0},null,null,{"$f":"SUM(Hospitality_Morning_Break_Tcost)","v":0}]
[null,null,"Rafraîchissements en avant-midi"]
[null,{"$f":"IF(AND(Hospitality,U90>0),\"☒\",\"☐\")","v":"☐"},"Refreshments PM",null,null,null,null,null,null,null,{"$f":"COUNTIF(Hospitality_Afternoon_Break_Tcost,\"<>0\")","v":0},null,null,null,{"$f":"IF(K90=0,0,R90/K90)","v":0},null,null,{"$f":"IF(Hospitality,U90,0)","v":0},null,null,{"$f":"SUM(Hospitality_Afternoon_Break_Tcost)","v":0}]
[null,null,"Rafraîchissements en après-midi"]
[null,{"$f":"IF(AND(Hospitality,U92>0),\"☒\",\"☐\")","v":"☐"},"Reception",null,null,null,null,null,null,null,{"$f":"COUNTIF(Hospitality_Reception_Tcost,\"<>0\")","v":0},null,null,null,{"$f":"IF(K92=0,0,R92/K92)","v":0},null,null,{"$f":"IF(Hospitality,U92,0)","v":0},null,null,{"$f":"SUM(Hospitality_Reception_Tcost)","v":0}]
[null,null,"Réception"]
[null,{"$f":"IF(AND(Hospitality,U94>0),\"☒\",\"☐\")","v":"☐"},"Other form of regular hospitality (Justification required)",null,null,null,null,null,null,null,{"$f":"COUNTIF(Hospitality_Others_TotalCost,\"<>0\")","v":0},null,null,null,{"$f":"IF(K94=0,0,R94/K94)","v":0},null,null,{"$f":"IF(Hospitality,U94,0)","v":0},null,null,{"$f":"SUM(Hospitality_Others_TotalCost)","v":0}]
[null,null,"Autre forme d’accueil régulier (Justification requise)"]
[null,{"$f":"IF(AND(Hospitality,U96>0),\"☒\",\"☐\")","v":"☐"},"Exceptional form of hospitality (Justification required)",null,null,null,null,null,null,null,{"$f":"COUNTIF(Hospitality_Others_Exceptional_TotalCost,\"<>0\")","v":0},null,null,null,{"$f":"IF(K96=0,0,R96/K96)","v":0},null,null,{"$f":"IF(Hospitality,U96,0)","v":0},null,null,{"$f":"SUM(Hospitality_Others_Exceptional_TotalCost)","v":0}]
[null,null,"Forme exceptionnelle d’accueil (Justification requise)"]
[null,"Is the hospitality including any alcohol expenses? (Justification required)",null,null,null,null,null,null,null,null,null,null,null,null,null,null,null,{"$f":"IF(AND(Hospitality,Hospitality_Alcohol=No_Select),\"☒ \", \"☐ \")& \"No\n     Non\"","v":"☐ No\n     Non"},{"$f":"IF(AND(Hospitality,Hospitality_Alcohol=Yes_Select),\"☒ \", \"☐ \")& \"Yes\n     Oui\"","v":"☐ Yes\n     Oui"}]
[null,"Est-ce que l’accueil inclus des dépenses d’alcool? (Justification requise)"]
[null,"Is the hospitality provided to a spouse or to a person accompanying the participant? (Justification required)",null,null,null,null,null,null,null,null,null,null,null,null,null,null,null,{"$f":"IF(AND(Hospitality,Exc_Spouse_Hospitality=No_Select),\"☒ \", \"☐ \")& \"No\n     Non\"","v":"☐ No\n     Non"},{"$f":"IF(AND(Hospitality,Exc_Spouse_Hospitality=Yes_Select),\"☒ \", \"☐ \")& \"Yes\n     Oui\"","v":"☐ Yes\n     Oui"}]
[null,"Est-ce que l’accueil est offert à un époux/épouse ou à une personne accompagnant le participant? (Justification requise)"]
[null,"Is it extended at the residence of a federal employee? (Justification required)",null,null,null,null,null,null,null,null,null,null,null,null,null,null,null,{"$f":"IF(AND(Hospitality,Hospitality_In_Residence=No_Select),\"☒ \", \"☐ \")& \"No\n     Non\"","v":"☐ No\n     Non"},{"$f":"IF(AND(Hospitality,Hospitality_In_Residence=Yes_Select),\"☒ \", \"☐ \")& \"Yes\n     Oui\"","v":"☐ Yes\n     Oui"}]
[null,"Est-ce offert dans la résidence d’un employé fédéral? (Justification requise)"]
[null,"Justifications :"]
[null,{"$f":"IF(Hospitality,\nIF(AND(NOT(Hospitality_Alcohol=No_Select),NOT(Hospitality_Alcohol_Justification=0)),\"Alcohol/alcool: \"&Hospitality_Alcohol_Justification&CHAR(10),\"\") &\nIF(AND(Exc_Spouse_Hospitality=Yes_Select,NOT(Exc_Spouse_Hospitality_Justification=0)),\"Companion/accompagnant: \"&Exc_Spouse_Hospitality_Justification&CHAR(10),\"\") &\nIF(AND(Hospitality_In_Residence=Yes_Select,NOT(Hospitality_In_Residence_Justification=0)),\"Residence/résidence: \"& Hospitality_In_Residence_Justification&CHAR(10),\"\") &\nIF(AND(SUM(Hospitality_Breakfast_Tcost)>0,NOT(Hospitality_BreakFast_Justification=0)),\"Breakfast/Petit Déjeuner: \"&Hospitality_BreakFast_Justification&CHAR(10),\"\") &\nIF(AND(NOT(Hospitality_Other=0),NOT(Hospitality_Other_Justification=0)),\"Hospitality Other/autre accueil: \"& Hospitality_Other_Justification&CHAR(10),\"\") &\nIF(AND(Hospitality_Other_Exceptional>0,NOT(Other_Exceptional_Justification=0)),\"Hospitality Exceptional/exceptionnelle accueil: \"&Other_Exceptional_Justification,\"\"),\"\")","v":""}]
[]
[]
[]
[null,"B) CONFERENCE/TRAINING – CONFÉRENCE/FORMATION"]
[null,"Reason for attending a conference/Raison de participer à une conférence",null,null,null,null,null,null,null,null,null,null,null,"Costs / Coûts",null,null,null,{"$f":"Conference_Cost","v":0}]
[null,{"$f":"IF(btnConfParticipation=1,\"☒ \",\"☐ \") & \"Gain information on a product or a service / Obtenir des renseignements sur un produit ou un service\"","v":"☐ Gain information on a product or a service / Obtenir des renseignements sur un produit ou un service"}]
[null,{"$f":"IF(btnConfParticipation=2,\"☒ \",\"☐ \") & \"Promote a departmental program/service or engage with stakeholders / Promouvoir un programme/service ministériel ou mobiliser des intervenants\"","v":"☐ Promote a departmental program/service or engage with stakeholders / Promouvoir un programme/service ministériel ou mobiliser des intervenants"}]
[null,{"$f":"IF(AND(btnConfParticipation=3,OR(btnConfList=2,btnConfList=3)),\"☒ \",\"☐ \") & \"EVENT* in support of my learning or professional development / ÉVÉNEMENT* pour appuyer mon apprentissage et perfectionnement professionnel\"","v":"☐ EVENT* in support of my learning or professional development / ÉVÉNEMENT* pour appuyer mon apprentissage et perfectionnement professionnel"}]
[null,{"$f":"IF(Training,\"☒ \",\"☐ \") & \"TRAINING* in support of my learning or professional development / FORMATION* pour appuyer mon apprentissage et perfectionnement professionnel\"","v":"☐ TRAINING* in support of my learning or professional development / FORMATION* pour appuyer mon apprentissage et perfectionnement professionnel"}]
[null,{"$f":"IF(Conference_Sponsorship=Yes_Select,\"☒ \",\"☐ \") & \"Conference Sponsorship / Parrainer une conférence\"","v":"☐ Conference Sponsorship / Parrainer une conférence"}]
[null,"*As determined by the Departmental Conference vs Training List / Tel que déterminer sur la Liste ministérielle des conférences vs formation."]
[]
[null,"C) TRAVEL (Supporting Documentation Required) – VOYAGE (Documentation à l’appui requise)"]
[null,"Trip Authorization Elements / Éléments des autorisations de voyager"]
[null,"Category / \nCatégorie",null,null,null,null,null,{"$f":"IF(AND(Travel_Expenses=Yes_Select,NOT(Travel_Category=\"\")),\n       VLOOKUP(Travel_Category,'Travel - System'!T3:V7,2,FALSE)&CHAR(10)&CHAR(10)&VLOOKUP(Travel_Category,'Travel - System'!T3:V7,3,FALSE)\n                                          &IF(Travel_Category=5,CHAR(10)&CHAR(10)&Travel_CategoryOther,\"\"),\n       \"\")","v":""}]
[null,"Why virtual presence or other remote meeting solutions have not been used? / Pourquoi la présence virtuelle ou autres solutions de réunions à distance n’a pas été utilisée?",null,null,null,null,null,{"$f":"IF(AND(Travel_Expenses=Yes_Select,NOT(Virtual_Presence_Justification=\"\")),Virtual_Presence_Justification,\"\")","v":""}]
[null,"Public Servant / Fonctionnaire"]
[null,"Branch or Region / \nDirection générale ou Région",null,null,null,"Number of travellers / Nombre de voyageurs",null,"Costs / Coûts"]
[null,null,null,null,null,null,null,"Transportation / Transport",null,null,"Accomodations / \nHébergements",null,null,"Meals / \nRepas",null,"Incidentals & other / \nFrais accessoires et autres",null,null,"Total Costs / \nCoûts total"]
[]
[null,{"$f":"IF(Travel_Expenses=Yes_Select,IF(Travel_Branches_Count_PS>10,\"Multiple\",'Travel - System'!R2),\"\")","v":""},null,null,null,{"$f":"IF(Travel_Expenses=Yes_Select,U126,0)","v":0},null,{"$f":"IF(Travel_Expenses=Yes_Select,V126,0)","v":0},null,null,{"$f":"IF(Travel_Expenses=Yes_Select,W126,0)","v":0},null,null,{"$f":"IF(Travel_Expenses=Yes_Select,X126,0)","v":0},null,{"$f":"IF(Travel_Expenses=Yes_Select,Y126,0)","v":0},null,null,{"$f":"H126+K126+N126+P126","v":0},null,{"$f":"SUM(IF(EXACT('Travel - System'!$P$3,Traveller_Type),IF(Travel_Branches_Count_PS>10,1,IF(EXACT('Authorisation - Autorisation'!$B126,Traveller_Branch),1,0)),0))","v":0},{"$f":"SUM(IF(EXACT('Travel - System'!$P$3,Traveller_Type),IF(Travel_Branches_Count_PS>10,Travel_Transportation_Costs,IF(EXACT('Authorisation - Autorisation'!$B126,Traveller_Branch),Travel_Transportation_Costs,0)),0))","v":0},{"$f":"SUM(IF(EXACT('Travel - System'!$P$3,Traveller_Type),IF(Travel_Branches_Count_PS>10,Travel_Accomodations_Cost,IF(EXACT('Authorisation - Autorisation'!$B126,Traveller_Branch),Travel_Accomodations_Cost,0)),0))","v":0},{"$f":"SUM(IF(EXACT('Travel - System'!$P$3,Traveller_Type),IF(Travel_Branches_Count_PS>10,Travel_Meals_Cost,IF(EXACT('Authorisation - Autorisation'!$B126,Traveller_Branch),Travel_Meals_Cost,0)),0))","v":0},{"$f":"SUM(IF(EXACT('Travel - System'!$P$3,Traveller_Type),IF(Travel_Branches_Count_PS>10,Travel_Incidentals_Cost,IF(EXACT('Authorisation - Autorisation'!$B126,Traveller_Branch),Travel_Incidentals_Cost,0)),0))","v":0}]
[null,{"$f":"IF(OR(NOT(Travel_Expenses=Yes_Select),Travel_Branches_Count_PS>10),\"\",'Travel - System'!R3)","v":""},null,null,null,0,null,{"$f":"IF(Travel_Expenses=Yes_Select,V127,0)","v":0},null,null,0,null,null,0,null,0,null,null,{"$f":"H127+K127+N127+P127","v":0},null,{"$f":"SUM(IF(EXACT('Travel - System'!$P$3,Traveller_Type),IF(EXACT('Authorisation - Autorisation'!$B127,Traveller_Branch),1,0),0))","v":0},{"$f":"SUM(IF(EXACT('Travel - System'!$P$3,Traveller_Type),IF(EXACT('Authorisation - Autorisation'!$B127,Traveller_Branch),Travel_Transportation_Costs,0),0))","v":0},{"$f":"SUM(IF(EXACT('Travel - System'!$P$3,Traveller_Type),IF(EXACT('Authorisation - Autorisation'!$B127,Traveller_Branch),Travel_Accomodations_Cost,0),0))","v":0},{"$f":"SUM(IF(EXACT('Travel - System'!$P$3,Traveller_Type),IF(EXACT('Authorisation - Autorisation'!$B127,Traveller_Branch),Travel_Meals_Cost,0),0))","v":0},{"$f":"SUM(IF(EXACT('Travel - System'!$P$3,Traveller_Type),IF(EXACT('Authorisation - Autorisation'!$B127,Traveller_Branch),Travel_Incidentals_Cost,0),0))","v":0}]
[null,{"$f":"IF(OR(NOT(Travel_Expenses=Yes_Select),Travel_Branches_Count_PS>10),\"\",'Travel - System'!R4)","v":""},null,null,null,0,null,0,null,null,0,null,null,0,null,0,null,null,0,null,{"$f":"SUM(IF(EXACT('Travel - System'!$P$3,Traveller_Type),IF(EXACT('Authorisation - Autorisation'!$B128,Traveller_Branch),1,0),0))","v":0},{"$f":"SUM(IF(EXACT('Travel - System'!$P$3,Traveller_Type),IF(EXACT('Authorisation - Autorisation'!$B128,Traveller_Branch),Travel_Transportation_Costs,0),0))","v":0},{"$f":"SUM(IF(EXACT('Travel - System'!$P$3,Traveller_Type),IF(EXACT('Authorisation - Autorisation'!$B128,Traveller_Branch),Travel_Accomodations_Cost,0),0))","v":0},{"$f":"SUM(IF(EXACT('Travel - System'!$P$3,Traveller_Type),IF(EXACT('Authorisation - Autorisation'!$B128,Traveller_Branch),Travel_Meals_Cost,0),0))","v":0},{"$f":"SUM(IF(EXACT('Travel - System'!$P$3,Traveller_Type),IF(EXACT('Authorisation - Autorisation'!$B128,Traveller_Branch),Travel_Incidentals_Cost,0),0))","v":0}]
[null,{"$f":"IF(OR(NOT(Travel_Expenses=Yes_Select),Travel_Branches_Count_PS>10),\"\",'Travel - System'!R5)","v":""},null,null,null,0,null,0,null,null,0,null,null,0,null,0,null,null,0,null,{"$f":"SUM(IF(EXACT('Travel - System'!$P$3,Traveller_Type),IF(EXACT('Authorisation - Autorisation'!$B129,Traveller_Branch),1,0),0))","v":0},{"$f":"SUM(IF(EXACT('Travel - System'!$P$3,Traveller_Type),IF(EXACT('Authorisation - Autorisation'!$B129,Traveller_Branch),Travel_Transportation_Costs,0),0))","v":0},{"$f":"SUM(IF(EXACT('Travel - System'!$P$3,Traveller_Type),IF(EXACT('Authorisation - Autorisation'!$B129,Traveller_Branch),Travel_Accomodations_Cost,0),0))","v":0},{"$f":"SUM(IF(EXACT('Travel - System'!$P$3,Traveller_Type),IF(EXACT('Authorisation - Autorisation'!$B129,Traveller_Branch),Travel_Meals_Cost,0),0))","v":0},{"$f":"SUM(IF(EXACT('Travel - System'!$P$3,Traveller_Type),IF(EXACT('Authorisation - Autorisation'!$B129,Traveller_Branch),Travel_Incidentals_Cost,0),0))","v":0}]
[null,{"$f":"IF(OR(NOT(Travel_Expenses=Yes_Select),Travel_Branches_Count_PS>10),\"\",'Travel - System'!R6)","v":""},null,null,null,0,null,0,null,null,0,null,null,0,null,0,null,null,0,null,{"$f":"SUM(IF(EXACT('Travel - System'!$P$3,Traveller_Type),IF(EXACT('Authorisation - Autorisation'!$B130,Traveller_Branch),1,0),0))","v":0},{"$f":"SUM(IF(EXACT('Travel - System'!$P$3,Traveller_Type),IF(EXACT('Authorisation - Autorisation'!$B130,Traveller_Branch),Travel_Transportation_Costs,0),0))","v":0},{"$f":"SUM(IF(EXACT('Travel - System'!$P$3,Traveller_Type),IF(EXACT('Authorisation - Autorisation'!$B130,Traveller_Branch),Travel_Accomodations_Cost,0),0))","v":0},{"$f":"SUM(IF(EXACT('Travel - System'!$P$3,Traveller_Type),IF(EXACT('Authorisation - Autorisation'!$B130,Traveller_Branch),Travel_Meals_Cost,0),0))","v":0},{"$f":"SUM(IF(EXACT('Travel - System'!$P$3,Traveller_Type),IF(EXACT('Authorisation - Autorisation'!$B130,Traveller_Branch),Travel_Incidentals_Cost,0),0))","v":0}]
[null,{"$f":"IF(OR(NOT(Travel_Expenses=Yes_Select),Travel_Branches_Count_PS>10),\"\",'Travel - System'!R7)","v":""},null,null,null,0,null,0,null,null,0,null,null,0,null,0,null,null,0,null,{"$f":"SUM(IF(EXACT('Travel - System'!$P$3,Traveller_Type),IF(EXACT('Authorisation - Autorisation'!$B131,Traveller_Branch),1,0),0))","v":0},{"$f":"SUM(IF(EXACT('Travel - System'!$P$3,Traveller_Type),IF(EXACT('Authorisation - Autorisation'!$B131,Traveller_Branch),Travel_Transportation_Costs,0),0))","v":0},{"$f":"SUM(IF(EXACT('Travel - System'!$P$3,Traveller_Type),IF(EXACT('Authorisation - Autorisation'!$B131,Traveller_Branch),Travel_Accomodations_Cost,0),0))","v":0},{"$f":"SUM(IF(EXACT('Travel - System'!$P$3,Traveller_Type),IF(EXACT('Authorisation - Autorisation'!$B131,Traveller_Branch),Travel_Meals_Cost,0),0))","v":0},{"$f":"SUM(IF(EXACT('Travel - System'!$P$3,Traveller_Type),IF(EXACT('Authorisation - Autorisation'!$B131,Traveller_Branch),Travel_Incidentals_Cost,0),0))","v":0}]
[null,{"$f":"IF(OR(NOT(Travel_Expenses=Yes_Select),Travel_Branches_Count_PS>10),\"\",'Travel - System'!R8)","v":""},null,null,null,0,null,0,null,null,0,null,null,0,null,0,null,null,0,null,{"$f":"SUM(IF(EXACT('Travel - System'!$P$3,Traveller_Type),IF(EXACT('Authorisation - Autorisation'!$B132,Traveller_Branch),1,0),0))","v":0},{"$f":"SUM(IF(EXACT('Travel - System'!$P$3,Traveller_Type),IF(EXACT('Authorisation - Autorisation'!$B132,Traveller_Branch),Travel_Transportation_Costs,0),0))","v":0},{"$f":"SUM(IF(EXACT('Travel - System'!$P$3,Traveller_Type),IF(EXACT('Authorisation - Autorisation'!$B132,Traveller_Branch),Travel_Accomodations_Cost,0),0))","v":0},{"$f":"SUM(IF(EXACT('Travel - System'!$P$3,Traveller_Type),IF(EXACT('Authorisation - Autorisation'!$B132,Traveller_Branch),Travel_Meals_Cost,0),0))","v":0},{"$f":"SUM(IF(EXACT('Travel - System'!$P$3,Traveller_Type),IF(EXACT('Authorisation - Autorisation'!$B132,Traveller_Branch),Travel_Incidentals_Cost,0),0))","v":0}]
[null,{"$f":"IF(OR(NOT(Travel_Expenses=Yes_Select),Travel_Branches_Count_PS>10),\"\",'Travel - System'!R9)","v":""},null,null,null,0,null,{"$f":"IF(Travel_Expenses=Yes_Select,V133,0)","v":0},null,null,0,null,null,0,null,0,null,null,0,null,{"$f":"SUM(IF(EXACT('Travel - System'!$P$3,Traveller_Type),IF(EXACT('Authorisation - Autorisation'!$B133,Traveller_Branch),1,0),0))","v":0},{"$f":"SUM(IF(EXACT('Travel - System'!$P$3,Traveller_Type),IF(EXACT('Authorisation - Autorisation'!$B133,Traveller_Branch),Travel_Transportation_Costs,0),0))","v":0},{"$f":"SUM(IF(EXACT('Travel - System'!$P$3,Traveller_Type),IF(EXACT('Authorisation - Autorisation'!$B133,Traveller_Branch),Travel_Accomodations_Cost,0),0))","v":0},{"$f":"SUM(IF(EXACT('Travel - System'!$P$3,Traveller_Type),IF(EXACT('Authorisation - Autorisation'!$B133,Traveller_Branch),Travel_Meals_Cost,0),0))","v":0},{"$f":"SUM(IF(EXACT('Travel - System'!$P$3,Traveller_Type),IF(EXACT('Authorisation - Autorisation'!$B133,Traveller_Branch),Travel_Incidentals_Cost,0),0))","v":0}]
[null,{"$f":"IF(OR(NOT(Travel_Expenses=Yes_Select),Travel_Branches_Count_PS>10),\"\",'Travel - System'!R10)","v":""},null,null,null,{"$f":"IF(Travel_Expenses=Yes_Select,U134,0)","v":0},null,{"$f":"IF(Travel_Expenses=Yes_Select,V134,0)","v":0},null,null,{"$f":"IF(Travel_Expenses=Yes_Select,W134,0)","v":0},null,null,{"$f":"IF(Travel_Expenses=Yes_Select,X134,0)","v":0},null,{"$f":"IF(Travel_Expenses=Yes_Select,Y134,0)","v":0},null,null,{"$f":"H134+K134+N134+P134","v":0},null,{"$f":"SUM(IF(EXACT('Travel - System'!$P$3,Traveller_Type),IF(EXACT('Authorisation - Autorisation'!$B134,Traveller_Branch),1,0),0))","v":0},{"$f":"SUM(IF(EXACT('Travel - System'!$P$3,Traveller_Type),IF(EXACT('Authorisation - Autorisation'!$B134,Traveller_Branch),Travel_Transportation_Costs,0),0))","v":0},{"$f":"SUM(IF(EXACT('Travel - System'!$P$3,Traveller_Type),IF(EXACT('Authorisation - Autorisation'!$B134,Traveller_Branch),Travel_Accomodations_Cost,0),0))","v":0},{"$f":"SUM(IF(EXACT('Travel - System'!$P$3,Traveller_Type),IF(EXACT('Authorisation - Autorisation'!$B134,Traveller_Branch),Travel_Meals_Cost,0),0))","v":0},{"$f":"SUM(IF(EXACT('Travel - System'!$P$3,Traveller_Type),IF(EXACT('Authorisation - Autorisation'!$B134,Traveller_Branch),Travel_Incidentals_Cost,0),0))","v":0}]
[null,{"$f":"IF(OR(NOT(Travel_Expenses=Yes_Select),Travel_Branches_Count_PS>10),\"\",'Travel - System'!R11)","v":""},null,null,null,{"$f":"IF(Travel_Expenses=Yes_Select,U135,0)","v":0},null,{"$f":"IF(Travel_Expenses=Yes_Select,V135,0)","v":0},null,null,{"$f":"IF(Travel_Expenses=Yes_Select,W135,0)","v":0},null,null,{"$f":"IF(Travel_Expenses=Yes_Select,X135,0)","v":0},null,{"$f":"IF(Travel_Expenses=Yes_Select,Y135,0)","v":0},null,null,{"$f":"H135+K135+N135+P135","v":0},null,{"$f":"SUM(IF(EXACT('Travel - System'!$P$3,Traveller_Type),IF(EXACT('Authorisation - Autorisation'!$B135,Traveller_Branch),1,0),0))","v":0},{"$f":"SUM(IF(EXACT('Travel - System'!$P$3,Traveller_Type),IF(EXACT('Authorisation - Autorisation'!$B135,Traveller_Branch),Travel_Transportation_Costs,0),0))","v":0},{"$f":"SUM(IF(EXACT('Travel - System'!$P$3,Traveller_Type),IF(EXACT('Authorisation - Autorisation'!$B135,Traveller_Branch),Travel_Accomodations_Cost,0),0))","v":0},{"$f":"SUM(IF(EXACT('Travel - System'!$P$3,Traveller_Type),IF(EXACT('Authorisation - Autorisation'!$B135,Traveller_Branch),Travel_Meals_Cost,0),0))","v":0},{"$f":"SUM(IF(EXACT('Travel - System'!$P$3,Traveller_Type),IF(EXACT('Authorisation - Autorisation'!$B135,Traveller_Branch),Travel_Incidentals_Cost,0),0))","v":0}]
[null,"Non Public Servant / Non Fonctionnaire"]
[null,"Branch or Region / \nDirection générale ou Région",null,null,null,"Number of travellers / Nombre de voyageurs",null,"Costs / Coûts"]
[null,null,null,null,null,null,null,"Transportation / Transport",null,null,"Accomodations / \nHébergements",null,null,"Meals /\nRepas",null,"Incidentals & other / \nFrais accessoires et autres",null,null,"Total Costs / \nCoûts total"]
[]
[null,{"$f":"IF(Travel_Expenses=Yes_Select,IF(Travel_Branches_Count_nonPS>8,\"Multiple\",'Travel - System'!S2),0)","v":0},null,null,null,{"$f":"IF(Travel_Expenses=Yes_Select,U140,0)","v":0},null,{"$f":"IF(Travel_Expenses=Yes_Select,V140,0)","v":0},null,null,{"$f":"IF(Travel_Expenses=Yes_Select,W140,0)","v":0},null,null,{"$f":"IF(Travel_Expenses=Yes_Select,X140,0)","v":0},null,null,null,null,{"$f":"H140+K140+N140+P140","v":0},null,{"$f":"SUM(IF(EXACT('Travel - System'!$P$4,Traveller_Type),IF(Travel_Branches_Count_nonPS>8,1,IF(EXACT('Authorisation - Autorisation'!$B140,Traveller_Branch),1,0)),0))","v":0},{"$f":"SUM(IF(EXACT('Travel - System'!$P$4,Traveller_Type),IF(Travel_Branches_Count_nonPS>8,Travel_Transportation_Costs,IF(EXACT('Authorisation - Autorisation'!$B140,Traveller_Branch),Travel_Transportation_Costs,0)),0))","v":0},{"$f":"SUM(IF(EXACT('Travel - System'!$P$4,Traveller_Type),IF(Travel_Branches_Count_nonPS>8,Travel_Accomodations_Cost,IF(EXACT('Authorisation - Autorisation'!$B140,Traveller_Branch),Travel_Accomodations_Cost,0)),0))","v":0},{"$f":"SUM(IF(EXACT('Travel - System'!$P$4,Traveller_Type),IF(Travel_Branches_Count_nonPS>8,Travel_Meals_Cost,IF(EXACT('Authorisation - Autorisation'!$B140,Traveller_Branch),Travel_Meals_Cost,0)),0))","v":0},{"$f":"SUM(IF(EXACT('Travel - System'!$P$4,Traveller_Type),IF(Travel_Branches_Count_nonPS>8,Travel_Incidentals_Cost,IF(EXACT('Authorisation - Autorisation'!$B140,Traveller_Branch),Travel_Incidentals_Cost,0)),0))","v":0}]
[null,{"$f":"IF(OR(NOT(Travel_Expenses=Yes_Select),Travel_Branches_Count_nonPS>8),\"\",'Travel - System'!S3)","v":""},null,null,null,0,null,0,null,null,0,null,null,0,null,null,null,null,0,null,{"$f":"SUM(IF(EXACT('Travel - System'!$P$4,Traveller_Type),IF(EXACT('Authorisation - Autorisation'!$B141,Traveller_Branch),1,0),0))","v":0},{"$f":"SUM(IF(EXACT('Travel - System'!$P$4,Traveller_Type),IF(EXACT('Authorisation - Autorisation'!$B141,Traveller_Branch),Travel_Transportation_Costs,0),0))","v":0},{"$f":"SUM(IF(EXACT('Travel - System'!$P$4,Traveller_Type),IF(EXACT('Authorisation - Autorisation'!$B141,Traveller_Branch),Travel_Accomodations_Cost,0),0))","v":0},{"$f":"SUM(IF(EXACT('Travel - System'!$P$4,Traveller_Type),IF(EXACT('Authorisation - Autorisation'!$B141,Traveller_Branch),Travel_Meals_Cost,0),0))","v":0},{"$f":"SUM(IF(EXACT('Travel - System'!$P$4,Traveller_Type),IF(EXACT('Authorisation - Autorisation'!$B141,Traveller_Branch),Travel_Incidentals_Cost,0),0))","v":0}]
[null,{"$f":"IF(OR(NOT(Travel_Expenses=Yes_Select),Travel_Branches_Count_nonPS>8),\"\",'Travel - System'!S4)","v":""},null,null,null,0,null,0,null,null,0,null,null,0,null,null,null,null,0,null,{"$f":"SUM(IF(EXACT('Travel - System'!$P$4,Traveller_Type),IF(EXACT('Authorisation - Autorisation'!$B142,Traveller_Branch),1,0),0))","v":0},{"$f":"SUM(IF(EXACT('Travel - System'!$P$4,Traveller_Type),IF(EXACT('Authorisation - Autorisation'!$B142,Traveller_Branch),Travel_Transportation_Costs,0),0))","v":0},{"$f":"SUM(IF(EXACT('Travel - System'!$P$4,Traveller_Type),IF(EXACT('Authorisation - Autorisation'!$B142,Traveller_Branch),Travel_Accomodations_Cost,0),0))","v":0},{"$f":"SUM(IF(EXACT('Travel - System'!$P$4,Traveller_Type),IF(EXACT('Authorisation - Autorisation'!$B142,Traveller_Branch),Travel_Meals_Cost,0),0))","v":0},{"$f":"SUM(IF(EXACT('Travel - System'!$P$4,Traveller_Type),IF(EXACT('Authorisation - Autorisation'!$B142,Traveller_Branch),Travel_Incidentals_Cost,0),0))","v":0}]
[null,{"$f":"IF(OR(NOT(Travel_Expenses=Yes_Select),Travel_Branches_Count_nonPS>8),\"\",'Travel - System'!S5)","v":""},null,null,null,0,null,0,null,null,0,null,null,0,null,null,null,null,0,null,{"$f":"SUM(IF(EXACT('Travel - System'!$P$4,Traveller_Type),IF(EXACT('Authorisation - Autorisation'!$B143,Traveller_Branch),1,0),0))","v":0},{"$f":"SUM(IF(EXACT('Travel - System'!$P$4,Traveller_Type),IF(EXACT('Authorisation - Autorisation'!$B143,Traveller_Branch),Travel_Transportation_Costs,0),0))","v":0},{"$f":"SUM(IF(EXACT('Travel - System'!$P$4,Traveller_Type),IF(EXACT('Authorisation - Autorisation'!$B143,Traveller_Branch),Travel_Accomodations_Cost,0),0))","v":0},{"$f":"SUM(IF(EXACT('Travel - System'!$P$4,Traveller_Type),IF(EXACT('Authorisation - Autorisation'!$B143,Traveller_Branch),Travel_Meals_Cost,0),0))","v":0},{"$f":"SUM(IF(EXACT('Travel - System'!$P$4,Traveller_Type),IF(EXACT('Authorisation - Autorisation'!$B143,Traveller_Branch),Travel_Incidentals_Cost,0),0))","v":0}]
[null,{"$f":"IF(OR(NOT(Travel_Expenses=Yes_Select),Travel_Branches_Count_nonPS>8),\"\",'Travel - System'!S6)","v":""},null,null,null,0,null,0,null,null,0,null,null,0,null,null,null,null,0,null,{"$f":"SUM(IF(EXACT('Travel - System'!$P$4,Traveller_Type),IF(EXACT('Authorisation - Autorisation'!$B144,Traveller_Branch),1,0),0))","v":0},{"$f":"SUM(IF(EXACT('Travel - System'!$P$4,Traveller_Type),IF(EXACT('Authorisation - Autorisation'!$B144,Traveller_Branch),Travel_Transportation_Costs,0),0))","v":0},{"$f":"SUM(IF(EXACT('Travel - System'!$P$4,Traveller_Type),IF(EXACT('Authorisation - Autorisation'!$B144,Traveller_Branch),Travel_Accomodations_Cost,0),0))","v":0},{"$f":"SUM(IF(EXACT('Travel - System'!$P$4,Traveller_Type),IF(EXACT('Authorisation - Autorisation'!$B144,Traveller_Branch),Travel_Meals_Cost,0),0))","v":0},{"$f":"SUM(IF(EXACT('Travel - System'!$P$4,Traveller_Type),IF(EXACT('Authorisation - Autorisation'!$B144,Traveller_Branch),Travel_Incidentals_Cost,0),0))","v":0}]
[null,{"$f":"IF(OR(NOT(Travel_Expenses=Yes_Select),Travel_Branches_Count_nonPS>8),\"\",'Travel - System'!S7)","v":""},null,null,null,0,null,0,null,null,0,null,null,0,null,null,null,null,0,null,{"$f":"SUM(IF(EXACT('Travel - System'!$P$4,Traveller_Type),IF(EXACT('Authorisation - Autorisation'!$B145,Traveller_Branch),1,0),0))","v":0},{"$f":"SUM(IF(EXACT('Travel - System'!$P$4,Traveller_Type),IF(EXACT('Authorisation - Autorisation'!$B145,Traveller_Branch),Travel_Transportation_Costs,0),0))","v":0},{"$f":"SUM(IF(EXACT('Travel - System'!$P$4,Traveller_Type),IF(EXACT('Authorisation - Autorisation'!$B145,Traveller_Branch),Travel_Accomodations_Cost,0),0))","v":0},{"$f":"SUM(IF(EXACT('Travel - System'!$P$4,Traveller_Type),IF(EXACT('Authorisation - Autorisation'!$B145,Traveller_Branch),Travel_Meals_Cost,0),0))","v":0},{"$f":"SUM(IF(EXACT('Travel - System'!$P$4,Traveller_Type),IF(EXACT('Authorisation - Autorisation'!$B145,Traveller_Branch),Travel_Incidentals_Cost,0),0))","v":0}]
[null,{"$f":"IF(OR(NOT(Travel_Expenses=Yes_Select),Travel_Branches_Count_nonPS>8),\"\",'Travel - System'!S8)","v":""},null,null,null,0,null,0,null,null,0,null,null,0,null,null,null,null,0,null,{"$f":"SUM(IF(EXACT('Travel - System'!$P$4,Traveller_Type),IF(EXACT('Authorisation - Autorisation'!$B146,Traveller_Branch),1,0),0))","v":0},{"$f":"SUM(IF(EXACT('Travel - System'!$P$4,Traveller_Type),IF(EXACT('Authorisation - Autorisation'!$B146,Traveller_Branch),Travel_Transportation_Costs,0),0))","v":0},{"$f":"SUM(IF(EXACT('Travel - System'!$P$4,Traveller_Type),IF(EXACT('Authorisation - Autorisation'!$B146,Traveller_Branch),Travel_Accomodations_Cost,0),0))","v":0},{"$f":"SUM(IF(EXACT('Travel - System'!$P$4,Traveller_Type),IF(EXACT('Authorisation - Autorisation'!$B146,Traveller_Branch),Travel_Meals_Cost,0),0))","v":0},{"$f":"SUM(IF(EXACT('Travel - System'!$P$4,Traveller_Type),IF(EXACT('Authorisation - Autorisation'!$B146,Traveller_Branch),Travel_Incidentals_Cost,0),0))","v":0}]
[null,{"$f":"IF(OR(NOT(Travel_Expenses=Yes_Select),Travel_Branches_Count_nonPS>8),\"\",'Travel - System'!S9)","v":""},null,null,null,0,null,0,null,null,0,null,null,0,null,null,null,null,0,null,{"$f":"SUM(IF(EXACT('Travel - System'!$P$4,Traveller_Type),IF(EXACT('Authorisation - Autorisation'!$B147,Traveller_Branch),1,0),0))","v":0},{"$f":"SUM(IF(EXACT('Travel - System'!$P$4,Traveller_Type),IF(EXACT('Authorisation - Autorisation'!$B147,Traveller_Branch),Travel_Transportation_Costs,0),0))","v":0},{"$f":"SUM(IF(EXACT('Travel - System'!$P$4,Traveller_Type),IF(EXACT('Authorisation - Autorisation'!$B147,Traveller_Branch),Travel_Accomodations_Cost,0),0))","v":0},{"$f":"SUM(IF(EXACT('Travel - System'!$P$4,Traveller_Type),IF(EXACT('Authorisation - Autorisation'!$B147,Traveller_Branch),Travel_Meals_Cost,0),0))","v":0},{"$f":"SUM(IF(EXACT('Travel - System'!$P$4,Traveller_Type),IF(EXACT('Authorisation - Autorisation'!$B147,Traveller_Branch),Travel_Incidentals_Cost,0),0))","v":0}]
[null,{"$f":"IF(OR(NOT(Travel_Expenses=Yes_Select),Travel_Branches_Count_nonPS>8),\"\",'Travel - System'!S10)","v":""},null,null,null,{"$f":"IF(Travel_Expenses=Yes_Select,U148,0)","v":0},null,{"$f":"IF(Travel_Expenses=Yes_Select,V148,0)","v":0},null,null,{"$f":"IF(Travel_Expenses=Yes_Select,W148,0)","v":0},null,null,{"$f":"IF(Travel_Expenses=Yes_Select,X148,0)","v":0},null,null,null,null,{"$f":"H148+K148+N148+P148","v":0},null,{"$f":"SUM(IF(EXACT('Travel - System'!$P$4,Traveller_Type),IF(EXACT('Authorisation - Autorisation'!$B148,Traveller_Branch),1,0),0))","v":0},{"$f":"SUM(IF(EXACT('Travel - System'!$P$4,Traveller_Type),IF(EXACT('Authorisation - Autorisation'!$B148,Traveller_Branch),Travel_Transportation_Costs,0),0))","v":0},{"$f":"SUM(IF(EXACT('Travel - System'!$P$4,Traveller_Type),IF(EXACT('Authorisation - Autorisation'!$B148,Traveller_Branch),Travel_Accomodations_Cost,0),0))","v":0},{"$f":"SUM(IF(EXACT('Travel - System'!$P$4,Traveller_Type),IF(EXACT('Authorisation - Autorisation'!$B148,Traveller_Branch),Travel_Meals_Cost,0),0))","v":0},{"$f":"SUM(IF(EXACT('Travel - System'!$P$4,Traveller_Type),IF(EXACT('Authorisation - Autorisation'!$B148,Traveller_Branch),Travel_Incidentals_Cost,0),0))","v":0}]
[null,{"$f":"IF(OR(NOT(Travel_Expenses=Yes_Select),Travel_Branches_Count_nonPS>8),\"\",'Travel - System'!S11)","v":""},null,null,null,{"$f":"IF(Travel_Expenses=Yes_Select,U149,0)","v":0},null,{"$f":"IF(Travel_Expenses=Yes_Select,V149,0)","v":0},null,null,{"$f":"IF(Travel_Expenses=Yes_Select,W149,0)","v":0},null,null,{"$f":"IF(Travel_Expenses=Yes_Select,X149,0)","v":0},null,null,null,null,{"$f":"H149+K149+N149+P149","v":0},null,{"$f":"SUM(IF(EXACT('Travel - System'!$P$4,Traveller_Type),IF(EXACT('Authorisation - Autorisation'!$B149,Traveller_Branch),1,0),0))","v":0},{"$f":"SUM(IF(EXACT('Travel - System'!$P$4,Traveller_Type),IF(EXACT('Authorisation - Autorisation'!$B149,Traveller_Branch),Travel_Transportation_Costs,0),0))","v":0},{"$f":"SUM(IF(EXACT('Travel - System'!$P$4,Traveller_Type),IF(EXACT('Authorisation - Autorisation'!$B149,Traveller_Branch),Travel_Accomodations_Cost,0),0))","v":0},{"$f":"SUM(IF(EXACT('Travel - System'!$P$4,Traveller_Type),IF(EXACT('Authorisation - Autorisation'!$B149,Traveller_Branch),Travel_Meals_Cost,0),0))","v":0},{"$f":"SUM(IF(EXACT('Travel - System'!$P$4,Traveller_Type),IF(EXACT('Authorisation - Autorisation'!$B149,Traveller_Branch),Travel_Incidentals_Cost,0),0))","v":0}]
[]
[null,"D) OTHER COSTS (Supporting Documentation Required) – AUTRES COÛTS (Documentation à l’appui requise)"]
[null,"Select other costs / Sélectionner les autres coûts",null,null,null,null,null,null,null,"Costs / Coûts",null,null,"Justification and details / justification et détails"]
[null,{"$f":"IF(NOT(Other_Room_Cost=0),\"☒ \",\"☐ \") & \"Room rental / Location de salle\"","v":"☐ Room rental / Location de salle"},null,null,null,null,null,null,null,{"$f":"Other_Room_Cost","v":0},null,null,{"$f":"IF(Other_Room_Justification=0,\"\",Other_Room_Justification)","v":""}]
[null,{"$f":"IF(NOT(Other_Equipement_Cost=0),\"☒ \",\"☐ \") & \"Equipment rental / Location d'équipement\"","v":"☐ Equipment rental / Location d'équipement"},null,null,null,null,null,null,null,{"$f":"Other_Equipement_Cost","v":0},null,null,{"$f":"IF(Other_Equipment_Justification=0,\"\",Other_Equipment_Justification)","v":""}]
[null,{"$f":"IF(NOT(Other_Material_Cost=0),\"☒ \",\"☐ \") & \"Materials for participants / Matériel pour les participants\"","v":"☐ Materials for participants / Matériel pour les participants"},null,null,null,null,null,null,null,{"$f":"Other_Material_Cost","v":0},null,null,{"$f":"IF(Other_Material_Justification=0,\"\",Other_Material_Justification)","v":""}]
[null,{"$f":"IF(NOT(Other_Professional_Cost=0),\"☒ \",\"☐ \") & \"Professional fees / Services professionnels\"","v":"☐ Professional fees / Services professionnels"},null,null,null,null,null,null,null,{"$f":"Other_Professional_Cost","v":0},null,null,{"$f":"IF(Other_Professional_Justification=0,\"\",Other_Professional_Justification)","v":""}]
[null,{"$f":"IF(NOT(Other_Awards_Cost=0),\"☒ \",\"☐ \") & \"Recognition awards / Prix de reconnaissance\"","v":"☐ Recognition awards / Prix de reconnaissance"},null,null,null,null,null,null,null,{"$f":"Other_Awards_Cost","v":0},null,null,{"$f":"IF(Other_Awards_Justification=0,\"\",Other_Awards_Justification)","v":""}]
[null,{"$f":"IF(NOT(Other_Other_Cost=0),\"☒ \",\"☐ \") & \"Other / Autres\"","v":"☐ Other / Autres"},null,null,null,null,null,null,null,{"$f":"Other_Other_Cost","v":0},null,null,{"$f":"IF(Other_Other_Justification=0,\"\",Other_Other_Justification)","v":""}]
[]
[null,"SIGNATURES"]
[null,"THCEE File prepared by: (Name and phone number)\nDossier DVACÉ préparé par : (Nom et numéro de téléphone)",null,null,null,null,null,null,null,null,null,null,{"$f":"IF(Prepared_by=0,\"\",Prepared_by)","v":""}]
[null,"ESDC total estimated cost / Coût total estimé pour EDSC : ",null,null,null,null,null,null,null,null,null,null,{"$f":"R44","v":0}]
[null,"Requested By - Demandé par : (Key contact / Personne-ressource principale)"]
[null,null,null,null,null,null,null,null,null,null,null,null,null,null,null,null,{"$f":"IF(Requester_Branch=0,\"\",Requester_Branch)","v":""}]
[null,null,{"$f":"IF(Requester_Name=0,\"\",Requester_Name)","v":""},null,null,null,null,null,null,null,{"$f":"IF(Requester_Title=0,\"\",Requester_Title)","v":""}]
[null,null,"     Name / Nom",null,null,null,null,null,null,null,"     Title / Titre",null,null,null,null,null,"     Branch / Direction générale"]
[]
[null,null,null,null,null,null,null,null,null,null,null,null,null,null,null,null,{"$f":"IF(Requester_RC=0,\"\",Requester_RC)","v":""}]
[null,null,"     Signature",null,null,null,null,null,null,null,"     Date",null,null,null,null,null,"Fund Centre / Centre financier"]
[]
[null,"Event / \nÉvénement",null,"Operational Activity /\n Activité Opérationnelle",null,null,null,null,"Required level of approval / Niveau d’approbation requis :"]
[null,"EVENT - ÉVÉNEMENT",null,"HOSPITALITY / ACCUEIL",null,{"$f":"IF(AND(NOT(Activity_is_Event),Hospitality_Delegation_Level=1),\"☒\",\"☐\")","v":"☐"},"CONFERENCE / CONFÉRENCE",null,"Director / Directeur"]
[null,null,{"$f":"IF(AND(Activity_is_Event,OR(Event_Delegation_Level=2,Hospitality_Delegation_Level=2)),\"☒\",\"☐\")","v":"☐"},null,null,{"$f":"IF(AND(NOT(Activity_is_Event),Hospitality_Delegation_Level=2),\"☒\",\"☐\")","v":"☐"},null,null,"Director General / Directeur général"]
[null,null,{"$f":"IF(AND(Activity_is_Event,OR(Event_Delegation_Level=3,Hospitality_Delegation_Level=3)),\"☒\",\"☐\")","v":"☐"},null,null,{"$f":"IF(AND(NOT(Activity_is_Event),Hospitality_Delegation_Level=3),\"☒\",\"☐\")","v":"☐"},null,{"$f":"IF(AND(NOT(Activity_is_Event),Conference_Delegation_Level=3),\"☒\",\"☐\")","v":"☐"},"ADM or equivalent / SMA ou equivalent"]
[null,null,{"$f":"IF(AND(Activity_is_Event,OR(Event_Delegation_Level=4.1,Hospitality_Delegation_Level=4.1)),\"☒\",\"☐\")","v":"☐"},null,null,{"$f":"IF(AND(NOT(Activity_is_Event),Hospitality_Delegation_Level=4.1),\"☒\",\"☐\")","v":"☐"},null,{"$f":"IF(AND(NOT(Activity_is_Event),Conference_Delegation_Level=4.1),\"☒\",\"☐\")","v":"☐"},"Chief Financial Officer / Agent principal des finances"]
[null,null,{"$f":"IF(AND(Activity_is_Event,OR(Event_Delegation_Level=4,Hospitality_Delegation_Level=4)),\"☒\",\"☐\")","v":"☐"},null,null,{"$f":"IF(AND(NOT(Activity_is_Event),Hospitality_Delegation_Level=4),\"☒\",\"☐\")","v":"☐"},null,{"$f":"IF(AND(NOT(Activity_is_Event),Conference_Delegation_Level=4),\"☒\",\"☐\")","v":"☐"},"Deputy Minister or Chief Operating Officer / Sous-ministre ou Chef de l’exploitation"]
[null,null,{"$f":"IF(AND(Activity_is_Event,OR(Event_Delegation_Level=3.5,Hospitality_Delegation_Level=3.5)),\"☒\",\"☐\")","v":"☐"},null,null,null,null,null,"Senior ADM Strategic Policy and Research (for international) / SMA principal Politique stratégique et recherche (pour international)"]
[null,null,{"$f":"IF(AND(Activity_is_Event,OR(Event_Delegation_Level=5,Hospitality_Delegation_Level=5)),\"☒\",\"☐\")","v":"☐"},null,null,{"$f":"IF(AND(NOT(Activity_is_Event),Hospitality_Delegation_Level=5),\"☒\",\"☐\")","v":"☐"},null,{"$f":"IF(AND(NOT(Activity_is_Event),Conference_Delegation_Level=5),\"☒\",\"☐\")","v":"☐"},"Minister / Ministre"]
[null,"Attestation for recommender and approver / Attestation pour recommandation et approbation : \n\n"]
[null,"(Not applicable for After the fact acknowledgment – Sans objet pour reconnaissance après les faits)"]
[null,"I certify that travel, hospitality, conferences and event expenditures are managed with prudence and probity and represent the most economic and efficient use of funds given the nature of the activity in relation to the achievement of our department's objectives. I have reviewed the request and certify that the financial information presented is correct; the request conforms to ESDC’s delegation of authority instrument; and sufficient documentation has been provided to confirm compliance to both departmental and Treasury Board Secretariat policies, including the current Directive on Travel, Hospitality, Conference and Event Expenditures. I recommend the request for your approval.\n"]
[null,"Je certifie que les dépenses de voyages, d'accueil, de conférences et d'événements sont gérées avec prudence et probité, et elles représentent la façon la plus économique et la plus efficace d'utiliser les fonds publics, compte tenu de la nature de l'activité par rapport à la réalisation des objectifs de notre ministère. J’ai révisé la demande et j’atteste que les informations financières sont exactes; la présentation est conforme à la délégation de pouvoir de EDSC; et suffisamment de documentation a été fournie pour confirmer le respect des politiques du ministère et du Secrétariat du Conseil du Trésor, incluant la Directive sur les dépenses de voyages, d'accueil, de conférences et d'événements. Je recommande l’approbation de cette demande."]
[]
[null,"Recommendation / Recommandation",null,null,null,null,null,null,"Approval / Approbation ",null,null,null,"After the fact acknowledgment / Reconnaissance après les faits"]
[]
[null,"(Delegated manager when applicable / Gestionnaire délégué lorsque applicable)"]
[]
[null,null,"     Name / Nom",null,null,null,null,null,null,null,"     Title / Titre"]
[]
[]
[]
[null,null,"     Signature",null,null,null,null,null,null,null,"     Date"]
[]
[null,"Recommendation / Recommandation",null,null,null,null,null,null,"Approval / Approbation ",null,null,null,"After the fact acknowledgment / Reconnaissance après les faits"]
[]
[null,"(ADM or equivalent or Delegated manager when applicable / SMA ou équivalent ou gestionnaire délégué lorsque applicable)"]
[]
[null,null,"     Name / Nom",null,null,null,null,null,null,null,"     Title / Titre"]
[]
[]
[]
[null,null,"     Signature",null,null,null,null,null,null,null,"     Date"]
[]
[null,"Recommendation / Recommandation",null,null,null,null,null,null,"Approval / Approbation ",null,null,null,"Recommendation / Recommandation",null,null,null,null," Approval / Approbation "]
[]
[null,"After the fact acknowledgment / Reconnaissance après les faits",null,null,null,null,null,null,null,null,null,null,"After the fact acknowledgment / Reconnaissance après les faits"]
[]
[null,null,null,",Senior ADM Strategic and Service Policy Branch",null,null,null,null,null,null,null,null,"Karen Robertson, Chief financial Officer / Dirigeant principal des finances"]
[null,"(for ESDC international travel only) / SMA principal Politiques stratégiques"]
[null,"et de service (pour voyage international de EDSC seulement)"]
[]
[null,null,"     Signature",null,null,null,null,null,"     Date",null,null,null,null,"     Signature",null,null,null,"     Date"]
[null,"Recommendation / Recommandation",null,null,null,null,null,null,"Approval / Approbation ",null,null,null,"Approved By - Approuvé par :"]
[]
[null,"After the fact acknowledgment / Reconnaissance après les faits"]
[]
[null,null,null,null,null,null,", Deputy Minister or Chief ",null,null,null,null,null,null,null,null,null,", Minister - Ministre"]
[null,"Operating Officer / Sous-ministre ou Chef de l'exploitation"]
[]
[]
[null,null,"     Signature",null,null,null,null,null,"     Date",null,null,null,null,"     Signature",null,null,null,"     Date"]

{"sheet":"Travel Plan - Plan de voyage","index":15,"n_rows":30,"n_cols":27,"rows_kept":30,"cut":false,"hidden":true,"merged":[[23,0,23,1],[23,3,23,4],[23,6,23,8],[23,10,23,12],[23,14,23,17],[18,0,18,26],[20,0,20,4],[20,6,20,12],[20,14,20,23],[22,0,22,1],[22,3,22,4],[22,6,22,8],[22,10,22,12],[22,14,22,17],[22,20,22,23],[17,0,17,26],[10,1,11,1],[10,2,10,3],[10,4,10,5],[10,6,10,16],[10,17,10,20],[10,0,11,0],[10,25,11,25],[10,24,11,24],[8,4,8,26],[10,21,10,23],[10,26,11,26],[15,0,15,26],[16,0,16,26],[23,20,23,23],[0,2,0,3],[0,4,0,26],[1,0,2,1],[1,4,1,26],[2,4,2,26],[3,4,3,26],[4,0,4,3],[4,4,4,26],[5,0,5,3],[5,4,5,26],[6,0,6,3],[6,4,6,26],[7,0,7,3],[7,4,7,26],[8,0,8,3]]}
[null,null,"Activity Title\nTitre de l'activité",null,{"$f":"IF(Activity_Title=0,\"\",Activity_Title)","v":""}]
["Travel Plan\nPlan des voyages",null,null,"Branch / Direction générale : "]
[null,null,null,"Categorie / Catégorie :"]
[null,null,null,"Travel Objective / Objectif des voyages :"]
["Rationale for transportation / Raison pour le transport :"]
["Rationale for accomodations / Raison pour le logement :"]
["Rationale for Meals / Raison pour les repas :"]
["Rationale for Incidentals and other costs / Raison pour les faux frais ou autres coûts :"]
["Rationale why virtual presence or other remote meeting solutions were not applied / Raison pour laquelle la présence virtuelle ou une autre solution de réunion à distance n'a pu être appliquée :"]
[]
["Travellers Name / Nom des voyageurs","Public Servant or Non Public Servant / Fonctionnaire ou non-Fonctionnaire","Travel Dates / Dates du voyage",null,"(City, Country / Ville, Pays)",null,"Mode of Transportation / Mode de transport",null,null,null,null,null,null,null,null,null,null,"Accomodations / Logement",null,null,null,"Meals / Repas",null,null,"Incidentals / Faux frais\n**","Other costs / Autres coûts\n*","Total Travel Costs / Coût total du voyage"]
[null,null,"From / Du\ndd/mm/yyyy\njj-mm-aaaa","To / Au\ndd/mm/yyyy\njj-mm-aaaa","Origin / Origine ","Destination","Air / Avion","Rail / Train","Bus / Autobus","Ferry / Traversier","Taxis / Taxi","Personal Vehicle / Véhicule privé","Rental vehicle / Véhicule loué","Govt vehicle / Véhicule gouvernemantal","Public transit / Transport en commun","Parking /  Stationnement","Other mode / Autre mode","Commercial / Commercial","Unlisted commercial / Non listé commercial","Private / Privé","Other / Autre","Breakfast / Déjeuner","Lunch / Dîner","Dinner / Souper"]
[null,null,"","",null,null,0,0,0,0,0,0,0,0,0,0,0,0,0,0,0,0,0,0,0,0,{"$f":"SUM(G13:Z13)","v":0}]
["Total",null,null,null,null,null,{"$f":"SUM(G13:G13)","v":0},0,0,0,0,0,0,0,0,0,0,0,0,0,0,0,0,0,0,0,0]
[]
["* Provide a description in the appropriate rationale above. / Fournir une description dans la raison approprié ci-dessus.   "]
["** For Public Servant only / Pour fonctionnaires seulement"]
["I certify that travel, hospitality, conferences and event expenditures are managed with prudence and probity and represent the most economic and efficient use of funds given the nature of the activity in relation to the achievement of our department's objectives."]
["Je certifie que les dépenses de voyages, d'accueil, de conférences et d'événements sont gérées avec prudence et probité, et elles représentent la façon la plus économique et la plus efficace d'utiliser les fonds publics, compte tenu de la nature de l'activité par rapport à la réalisation des objectifs de notre ministère."]
[]
[" Recommender / Recommandation : (If needed / si nécessaire)",null,null,null,null,null," Recommender / Recommandation : (If needed / si nécessaire)",null,null,null,null,null,null,null," Approver / Approbation :"]
[]
[]
["Recommended by / Recommandé par",null,null,"Position Title / Titre du poste",null,null,"Recommended by / Recommandé par",null,null,null,"Position Title / Titre du poste",null,null,null,"Approved by / Approuvé par",null,null,null,null,null,"Position Title / Titre du poste"]
[]
[]
[" Signature",null,null,"Date",null,null," Signature",null,null,null,"Date",null,null,null," Signature",null,null,null,null,null,"Date"]
[]
[]
["Grand Total",null,null,null,null,null,0,0,0,0,0,0,0,0,0,0,0,0,0,0,0,0,0,0,0,0,0]

{"sheet":"Hospitality - Accueil","index":16,"n_rows":94,"n_cols":18,"rows_kept":94,"cut":false,"hidden":true,"merged":[[69,11,69,12],[64,11,64,12],[66,11,66,12],[65,11,65,12],[67,11,67,12],[68,11,68,12],[63,11,63,12],[52,11,52,12],[53,11,53,12],[54,11,54,12],[55,11,55,12],[56,11,56,12],[57,11,57,12],[58,11,58,12],[59,11,59,12],[60,11,60,12],[62,11,62,12],[61,11,61,12],[51,11,51,12],[39,11,39,12],[40,11,40,12],[41,11,41,12],[42,11,42,12],[43,11,43,12],[47,11,47,12],[48,11,48,12],[49,11,49,12],[9,11,9,12],[7,11,7,12],[5,11,5,12],[38,11,38,12],[30,11,30,12],[29,11,29,12],[28,11,28,12],[26,11,26,12],[23,11,23,12],[34,11,34,12],[19,11,19,12],[17,11,17,12],[15,11,15,12],[20,11,20,12],[6,11,6,12],[8,11,8,12],[10,11,10,12],[12,11,12,12],[13,11,13,12],[11,11,11,12],[87,8,87,10],[44,11,44,12],[45,11,45,12],[46,11,46,12],[70,11,70,12],[71,11,71,12],[72,11,72,12],[73,1,73,12],[24,11,24,12],[14,11,14,12],[16,11,16,12],[18,11,18,12],[89,8,89,10],[91,8,91,10],[86,8,86,10],[22,11,22,12],[21,11,21,12],[35,11,35,12],[37,11,37,12],[36,11,36,12],[25,11,25,12],[27,1,27,8],[27,10,27,18],[50,1,50,8],[50,10,50,18],[31,11,31,12],[33,11,33,12],[32,11,32,12],[94,8,94,10],[75,8,75,10],[76,8,76,10],[78,8,78,10],[80,8,80,10],[82,8,82,10],[84,8,84,10],[77,8,77,10],[79,8,79,10],[81,8,81,10],[88,8,88,10],[90,8,90,10],[92,8,92,10],[93,8,93,10],[83,8,83,10],[85,8,85,10],[0,1,0,18],[2,1,2,2],[2,3,2,18],[4,1,4,8],[4,10,4,18],[3,11,3,12]]}
[null,"SUMMARY OF HOSPITALITY EXPENDITURES / SOMMAIRE DES DÉPENSES D'ACCUEIL"]
[]
[null,"Title of the activity:\nTitre de l'activité :",null,{"$f":"IF(Activity_Title=0,\"\",Activity_Title)","v":""}]
[]
[null,"Day 1 / Jour 1",null,null,null,null,null,null,null,null,"Day 2 / Jour 2"]
[]
[null,null,{"$f":"\"Date:\"&IF('Hospitality - DATA'!A3=\"\",\"\",'Hospitality - DATA'!A3)","v":"Date:"},"Public Servants / Fonctionnaires","Non-Public Servants / Non-fonctionnaires","Total Participants / Nombre total de participants","Average Cost per person / Coût moyen par personne","Hospitality cost (including taxes & service) / Coût des frais d'accueil (incluant les taxes et le service)",null,null,null,{"$f":"\"Date:\"&IF('Hospitality - DATA'!A4=\"\",\"\",'Hospitality - DATA'!A4)","v":"Date:"},null,"Public Servants / Fonctionnaires","Non-Public Servants / Non-fonctionnaires","Total Participants / Nombre total de participants","Average Cost per person / Coût moyen par personne","Hospitality cost (including taxes & service) / Coût des frais d'accueil (incluant les taxes et le service)"]
[]
[null,null,"Breakfast\nPetit Déjeuner",{"$f":"'Hospitality - DATA'!$C$3","v":0},{"$f":"'Hospitality - DATA'!$D$3","v":0},{"$f":"D9+E9","v":0},{"$f":"IFERROR(H9/F9,0)","v":0},{"$f":"((('Hospitality - DATA'!$B$3*('Hospitality - DATA'!$C$3+'Hospitality - DATA'!$D$3))+'Hospitality - DATA'!$E$3)*'Hospitality - DATA'!$AJ$3)+(('Hospitality - DATA'!$B$3*('Hospitality - DATA'!$C$3+'Hospitality - DATA'!$D$3))+'Hospitality - DATA'!$E$3)","v":0},null,null,null,"Breakfast\nPetit Déjeuner",null,{"$f":"'Hospitality - DATA'!$C$4","v":0},{"$f":"'Hospitality - DATA'!$D$4","v":0},{"$f":"N9+O9","v":0},{"$f":"IFERROR(R9/P9,0)","v":0},{"$f":"((('Hospitality - DATA'!$B$4*('Hospitality - DATA'!$C$4+'Hospitality - DATA'!$D$4))+'Hospitality - DATA'!$E$4)*'Hospitality - DATA'!$AJ$4)+(('Hospitality - DATA'!$B$4*('Hospitality - DATA'!$C$4+'Hospitality - DATA'!$D$4))+'Hospitality - DATA'!$E$4)","v":0}]
[]
[null,null,"Refreshments AM\nRafraîchissements en avant-midi",{"$f":"'Hospitality - DATA'!$G$3","v":0},{"$f":"'Hospitality - DATA'!$H$3","v":0},{"$f":"D11+E11","v":0},{"$f":"IFERROR(H11/F11,0)","v":0},{"$f":"((('Hospitality - DATA'!$F$3*('Hospitality - DATA'!$G$3+'Hospitality - DATA'!$H$3))+'Hospitality - DATA'!$I$3)*'Hospitality - DATA'!$AJ$3)+(('Hospitality - DATA'!$F$3*('Hospitality - DATA'!$G$3+'Hospitality - DATA'!$H$3))+'Hospitality - DATA'!$I$3)","v":0},null,null,null,"Refreshments AM\nRafraîchissements en avant-midi",null,{"$f":"'Hospitality - DATA'!$G$4","v":0},{"$f":"'Hospitality - DATA'!$H$4","v":0},{"$f":"N11+O11","v":0},{"$f":"IFERROR(R11/P11,0)","v":0},{"$f":"((('Hospitality - DATA'!$F$4*('Hospitality - DATA'!$G$4+'Hospitality - DATA'!$H$4))+'Hospitality - DATA'!$I$4)*'Hospitality - DATA'!$AJ$4)+(('Hospitality - DATA'!$F$4*('Hospitality - DATA'!$G$4+'Hospitality - DATA'!$H$4))+'Hospitality - DATA'!$I$4)","v":0}]
[]
[null,null,"Lunch\nDéjeuner",{"$f":"'Hospitality - DATA'!$K$3","v":0},{"$f":"'Hospitality - DATA'!$L$3","v":0},0,{"$f":"IFERROR(H13/F13,0)","v":0},{"$f":"((('Hospitality - DATA'!$J$3*('Hospitality - DATA'!$K$3+'Hospitality - DATA'!$L$3))+'Hospitality - DATA'!$M$3)*'Hospitality - DATA'!$AJ$3)+(('Hospitality - DATA'!$J$3*('Hospitality - DATA'!$K$3+'Hospitality - DATA'!$L$3))+'Hospitality - DATA'!$M$3)","v":0},null,null,null,"Lunch\nDéjeuner",null,{"$f":"'Hospitality - DATA'!$K$4","v":0},{"$f":"'Hospitality - DATA'!$L$4","v":0},{"$f":"N13+O13","v":0},{"$f":"IFERROR(R13/P13,0)","v":0},{"$f":"((('Hospitality - DATA'!$J$4*('Hospitality - DATA'!$K$4+'Hospitality - DATA'!$L$4))+'Hospitality - DATA'!$M$4)*'Hospitality - DATA'!$AJ$4)+(('Hospitality - DATA'!$J$4*('Hospitality - DATA'!$K$4+'Hospitality - DATA'!$L$4))+'Hospitality - DATA'!$M$4)","v":0}]
[]
[null,null,"Refreshments PM\nRafraîchissements en après-midi",{"$f":"'Hospitality - DATA'!$O$3","v":0},{"$f":"'Hospitality - DATA'!$P$3","v":0},0,{"$f":"IFERROR(H15/F15,0)","v":0},{"$f":"((('Hospitality - DATA'!$N$3*('Hospitality - DATA'!$O$3+'Hospitality - DATA'!$P$3))+'Hospitality - DATA'!$Q$3)*'Hospitality - DATA'!$AJ$3)+(('Hospitality - DATA'!$N$3*('Hospitality - DATA'!$O$3+'Hospitality - DATA'!$P$3))+'Hospitality - DATA'!$Q$3)","v":0},null,null,null,"Refreshments PM\nRafraîchissements en après-midi",null,{"$f":"'Hospitality - DATA'!$O$4","v":0},{"$f":"'Hospitality - DATA'!$P$4","v":0},{"$f":"N15+O15","v":0},{"$f":"IFERROR(R15/P15,0)","v":0},{"$f":"((('Hospitality - DATA'!$N$4*('Hospitality - DATA'!$O$4+'Hospitality - DATA'!$P$4))+'Hospitality - DATA'!$Q$4)*'Hospitality - DATA'!$AJ$4)+(('Hospitality - DATA'!$N$4*('Hospitality - DATA'!$O$4+'Hospitality - DATA'!$P$4))+'Hospitality - DATA'!$Q$4)","v":0}]
[]
[null,null,"Dinner\nDîner",{"$f":"'Hospitality - DATA'!$S$3","v":0},{"$f":"'Hospitality - DATA'!$T$3","v":0},0,{"$f":"IFERROR(H17/F17,0)","v":0},{"$f":"((('Hospitality - DATA'!$R$3*('Hospitality - DATA'!$S$3+'Hospitality - DATA'!$T$3))+'Hospitality - DATA'!$U$3)*'Hospitality - DATA'!$AJ$3)+(('Hospitality - DATA'!$R$3*('Hospitality - DATA'!$S$3+'Hospitality - DATA'!$T$3))+'Hospitality - DATA'!$U$3)","v":0},null,null,null,"Dinner\nDîner",null,{"$f":"'Hospitality - DATA'!$S$4","v":0},{"$f":"'Hospitality - DATA'!$T$4","v":0},{"$f":"N17+O17","v":0},{"$f":"IFERROR(R17/P17,0)","v":0},{"$f":"((('Hospitality - DATA'!$R$4*('Hospitality - DATA'!$S$4+'Hospitality - DATA'!$T$4))+'Hospitality - DATA'!$U$4)*'Hospitality - DATA'!$AJ$4)+(('Hospitality - DATA'!$R$4*('Hospitality - DATA'!$S$4+'Hospitality - DATA'!$T$4))+'Hospitality - DATA'!$U$4)","v":0}]
[]
[null,null,"Reception\nRéception",{"$f":"'Hospitality - DATA'!$W$3","v":0},{"$f":"'Hospitality - DATA'!$X$3","v":0},0,{"$f":"IFERROR(H19/F19,0)","v":0},{"$f":"((('Hospitality - DATA'!$V$3*('Hospitality - DATA'!$W$3+'Hospitality - DATA'!$X$3))+'Hospitality - DATA'!$Y$3)*'Hospitality - DATA'!$AJ$3)+(('Hospitality - DATA'!$V$3*('Hospitality - DATA'!$W$3+'Hospitality - DATA'!$X$3))+'Hospitality - DATA'!$Y$3)","v":0},null,null,null,"Reception\nRéception",null,{"$f":"'Hospitality - DATA'!$W$4","v":0},{"$f":"'Hospitality - DATA'!$X$4","v":0},{"$f":"N19+O19","v":0},{"$f":"IFERROR(R19/P19,0)","v":0},{"$f":"((('Hospitality - DATA'!$V$4*('Hospitality - DATA'!$W$4+'Hospitality - DATA'!$X$4))+'Hospitality - DATA'!$Y$4)*'Hospitality - DATA'!$AJ$4)+(('Hospitality - DATA'!$V$4*('Hospitality - DATA'!$W$4+'Hospitality - DATA'!$X$4))+'Hospitality - DATA'!$Y$4)","v":0}]
[]
[null,null,"Other form of regular hospitality\nAutre forme d’accueil régulier",{"$f":"'Hospitality - DATA'!$AD$3","v":0},{"$f":"'Hospitality - DATA'!$AE$3","v":0},{"$f":"D21+E21","v":0},"N/A - S/O",{"$f":"'Hospitality - DATA'!$AF$3","v":0},null,null,null,"Other form of regular hospitality\nAutre forme d’accueil régulier",null,{"$f":"'Hospitality - DATA'!$AD$4","v":0},{"$f":"'Hospitality - DATA'!$AE$4","v":0},{"$f":"N21+O21","v":0},"N/A - S/O",{"$f":"'Hospitality - DATA'!$AF$4","v":0}]
[]
[null,null,"Exceptional form of hospitality\nForme exceptionnelle d’accueil ",{"$f":"'Hospitality - DATA'!$AG$3","v":0},{"$f":"'Hospitality - DATA'!$AH$3","v":0},0,"N/A - S/O",{"$f":"'Hospitality - DATA'!$AI$3","v":0},null,null,null,"Exceptional form of hospitality\nForme exceptionnelle d’accueil ",null,{"$f":"'Hospitality - DATA'!$AG$4","v":0},{"$f":"'Hospitality - DATA'!$AH$4","v":0},{"$f":"N23+O23","v":0},"N/A - S/O",{"$f":"'Hospitality - DATA'!$AI$4","v":0}]
[]
[null,null,"Totals / Totaux",null,null,null,{"$f":"SUM(G9,G11,G13,G15,G17,G19)","v":0},{"$f":"SUM(H9,H11,H13,H15,H17,H19,H21,H23)","v":0},null,null,null,"Totals / Totaux",null,null,null,null,{"$f":"SUM(Q9,Q11,Q13,Q15,Q17,Q19)","v":0},{"$f":"SUM(R9,R11,R13,R15,R17,R19,R21,R23)","v":0}]
[]
[]
[null,"Day 3 / Jour 3",null,null,null,null,null,null,null,null,"Day 4 / Jour 4"]
[]
[null,null,{"$f":"\"Date:\"&IF('Hospitality - DATA'!A5=\"\",\"\",'Hospitality - DATA'!A5)","v":"Date:"},"Public Servants / Fonctionnaires","Non-Public Servants / Non-fonctionnaires","Total Participants / Nombre total de participants","Average Cost per person / Coût moyen par personne","Hospitality cost (including taxes & service) / Coût des frais d'accueil (incluant les taxes et le service)",null,null,null,{"$f":"\"Date:\"&IF('Hospitality - DATA'!A6=\"\",\"\",'Hospitality - DATA'!A6)","v":"Date:"},null,"Public Servants / Fonctionnaires","Non-Public Servants / Non-fonctionnaires","Total Participants / Nombre total de participants","Average Cost per person / Coût moyen par personne","Hospitality cost (including taxes & service) / Coût des frais d'accueil (incluant les taxes et le service)"]
[]
[null,null,"Breakfast\nPetit Déjeuner",{"$f":"'Hospitality - DATA'!$C$5","v":0},{"$f":"'Hospitality - DATA'!$D$5","v":0},{"$f":"D32+E32","v":0},{"$f":"IFERROR(H32/F32,0)","v":0},{"$f":"((('Hospitality - DATA'!$B$5*('Hospitality - DATA'!$C$5+'Hospitality - DATA'!$D$5))+'Hospitality - DATA'!$E$5)*'Hospitality - DATA'!$AJ$5)+(('Hospitality - DATA'!$B$5*('Hospitality - DATA'!$C$5+'Hospitality - DATA'!$D$5))+'Hospitality - DATA'!$E$5)","v":0},null,null,null,"Breakfast\nPetit Déjeuner",null,{"$f":"'Hospitality - DATA'!$C$6","v":0},{"$f":"'Hospitality - DATA'!$D$6","v":0},{"$f":"N32+O32","v":0},{"$f":"IFERROR(R32/P32,0)","v":0},{"$f":"((('Hospitality - DATA'!$B$6*('Hospitality - DATA'!$C$6+'Hospitality - DATA'!$D$6))+'Hospitality - DATA'!$E$6)*'Hospitality - DATA'!$AJ$6)+(('Hospitality - DATA'!$B$6*('Hospitality - DATA'!$C$6+'Hospitality - DATA'!$D$6))+'Hospitality - DATA'!$E$6)","v":0}]
[]
[null,null,"Refreshments AM\nRafraîchissements en avant-midi",{"$f":"'Hospitality - DATA'!$G$5","v":0},{"$f":"'Hospitality - DATA'!$H$5","v":0},{"$f":"D34+E34","v":0},{"$f":"IFERROR(H34/F34,0)","v":0},{"$f":"((('Hospitality - DATA'!$F$5*('Hospitality - DATA'!$G$5+'Hospitality - DATA'!$H$5))+'Hospitality - DATA'!$I$5)*'Hospitality - DATA'!$AJ$5)+(('Hospitality - DATA'!$F$5*('Hospitality - DATA'!$G$5+'Hospitality - DATA'!$H$5))+'Hospitality - DATA'!$I$5)","v":0},null,null,null,"Refreshments AM\nRafraîchissements en avant-midi",null,{"$f":"'Hospitality - DATA'!$G$6","v":0},{"$f":"'Hospitality - DATA'!$H$6","v":0},{"$f":"N34+O34","v":0},{"$f":"IFERROR(R34/P34,0)","v":0},{"$f":"((('Hospitality - DATA'!$F$6*('Hospitality - DATA'!$G$6+'Hospitality - DATA'!$H$6))+'Hospitality - DATA'!$I$6)*'Hospitality - DATA'!$AJ$6)+(('Hospitality - DATA'!$F$6*('Hospitality - DATA'!$G$6+'Hospitality - DATA'!$H$6))+'Hospitality - DATA'!$I$6)","v":0}]
[]
[null,null,"Lunch\nDéjeuner",{"$f":"'Hospitality - DATA'!$K$5","v":0},{"$f":"'Hospitality - DATA'!$L$5","v":0},{"$f":"D36+E36","v":0},{"$f":"IFERROR(H36/F36,0)","v":0},{"$f":"((('Hospitality - DATA'!$J$5*('Hospitality - DATA'!$K$5+'Hospitality - DATA'!$L$5))+'Hospitality - DATA'!$M$5)*'Hospitality - DATA'!$AJ$5)+(('Hospitality - DATA'!$J$5*('Hospitality - DATA'!$K$5+'Hospitality - DATA'!$L$5))+'Hospitality - DATA'!$M$5)","v":0},null,null,null,"Lunch\nDéjeuner",null,{"$f":"'Hospitality - DATA'!$K$6","v":0},{"$f":"'Hospitality - DATA'!$L$6","v":0},{"$f":"N36+O36","v":0},{"$f":"IFERROR(R36/P36,0)","v":0},{"$f":"((('Hospitality - DATA'!$J$6*('Hospitality - DATA'!$K$6+'Hospitality - DATA'!$L$6))+'Hospitality - DATA'!$M$6)*'Hospitality - DATA'!$AJ$6)+(('Hospitality - DATA'!$J$6*('Hospitality - DATA'!$K$6+'Hospitality - DATA'!$L$6))+'Hospitality - DATA'!$M$6)","v":0}]
[]
[null,null,"Refreshments PM\nRafraîchissements en après-midi",{"$f":"'Hospitality - DATA'!$O$5","v":0},{"$f":"'Hospitality - DATA'!$P$5","v":0},{"$f":"D38+E38","v":0},{"$f":"IFERROR(H38/F38,0)","v":0},{"$f":"((('Hospitality - DATA'!$N$5*('Hospitality - DATA'!$O$5+'Hospitality - DATA'!$P$5))+'Hospitality - DATA'!$Q$5)*'Hospitality - DATA'!$AJ$5)+(('Hospitality - DATA'!$N$5*('Hospitality - DATA'!$O$5+'Hospitality - DATA'!$P$5))+'Hospitality - DATA'!$Q$5)","v":0},null,null,null,"Refreshments PM\nRafraîchissements en après-midi",null,{"$f":"'Hospitality - DATA'!$O$6","v":0},{"$f":"'Hospitality - DATA'!$P$6","v":0},{"$f":"N38+O38","v":0},{"$f":"IFERROR(R38/P38,0)","v":0},{"$f":"((('Hospitality - DATA'!$N$6*('Hospitality - DATA'!$O$6+'Hospitality - DATA'!$P$6))+'Hospitality - DATA'!$Q$6)*'Hospitality - DATA'!$AJ$6)+(('Hospitality - DATA'!$N$6*('Hospitality - DATA'!$O$6+'Hospitality - DATA'!$P$6))+'Hospitality - DATA'!$Q$6)","v":0}]
[]
[null,null,"Dinner\nDîner",{"$f":"'Hospitality - DATA'!$S$5","v":0},{"$f":"'Hospitality - DATA'!$T$5","v":0},{"$f":"D40+E40","v":0},{"$f":"IFERROR(H40/F40,0)","v":0},{"$f":"((('Hospitality - DATA'!$R$5*('Hospitality - DATA'!$S$5+'Hospitality - DATA'!$T$5))+'Hospitality - DATA'!$U$5)*'Hospitality - DATA'!$AJ$5)+(('Hospitality - DATA'!$R$5*('Hospitality - DATA'!$S$5+'Hospitality - DATA'!$T$5))+'Hospitality - DATA'!$U$5)","v":0},null,null,null,"Dinner\nDîner",null,{"$f":"'Hospitality - DATA'!$S$6","v":0},{"$f":"'Hospitality - DATA'!$T$6","v":0},{"$f":"N40+O40","v":0},{"$f":"IFERROR(R40/P40,0)","v":0},{"$f":"((('Hospitality - DATA'!$R$6*('Hospitality - DATA'!$S$6+'Hospitality - DATA'!$T$6))+'Hospitality - DATA'!$U$6)*'Hospitality - DATA'!$AJ$6)+(('Hospitality - DATA'!$R$6*('Hospitality - DATA'!$S$6+'Hospitality - DATA'!$T$6))+'Hospitality - DATA'!$U$6)","v":0}]
[]
[null,null,"Reception\nRéception",{"$f":"'Hospitality - DATA'!$W$5","v":0},{"$f":"'Hospitality - DATA'!$X$5","v":0},{"$f":"D42+E42","v":0},{"$f":"IFERROR(H42/F42,0)","v":0},{"$f":"((('Hospitality - DATA'!$V$5*('Hospitality - DATA'!$W$5+'Hospitality - DATA'!$X$5))+'Hospitality - DATA'!$Y$5)*'Hospitality - DATA'!$AJ$5)+(('Hospitality - DATA'!$V$5*('Hospitality - DATA'!$W$5+'Hospitality - DATA'!$X$5))+'Hospitality - DATA'!$Y$5)","v":0},null,null,null,"Reception\nRéception",null,{"$f":"'Hospitality - DATA'!$W$6","v":0},{"$f":"'Hospitality - DATA'!$X$6","v":0},{"$f":"N42+O42","v":0},{"$f":"IFERROR(R42/P42,0)","v":0},{"$f":"((('Hospitality - DATA'!$V$6*('Hospitality - DATA'!$W$6+'Hospitality - DATA'!$X$6))+'Hospitality - DATA'!$Y$6)*'Hospitality - DATA'!$AJ$6)+(('Hospitality - DATA'!$V$6*('Hospitality - DATA'!$W$6+'Hospitality - DATA'!$X$6))+'Hospitality - DATA'!$Y$6)","v":0}]
[]
[null,null,"Other form of regular hospitality\nAutre forme d’accueil régulier",{"$f":"'Hospitality - DATA'!$AD$5","v":0},{"$f":"'Hospitality - DATA'!$AE$5","v":0},{"$f":"D44+E44","v":0},"N/A - S/O",{"$f":"'Hospitality - DATA'!$AF$5","v":0},null,null,null,"Other form of regular hospitality\nAutre forme d’accueil régulier",null,{"$f":"'Hospitality - DATA'!$AD$6","v":0},{"$f":"'Hospitality - DATA'!$AE$6","v":0},{"$f":"N44+O44","v":0},"N/A - S/O",{"$f":"'Hospitality - DATA'!$AF$6","v":0}]
[]
[null,null,"Exceptional form of hospitality\nForme exceptionnelle d’accueil ",{"$f":"'Hospitality - DATA'!$AG$5","v":0},{"$f":"'Hospitality - DATA'!$AH$5","v":0},{"$f":"D46+E46","v":0},"N/A - S/O",{"$f":"'Hospitality - DATA'!$AI$5","v":0},null,null,null,"Exceptional form of hospitality\nForme exceptionnelle d’accueil ",null,{"$f":"'Hospitality - DATA'!$AG$6","v":0},{"$f":"'Hospitality - DATA'!$AH$6","v":0},{"$f":"N46+O46","v":0},"N/A - S/O",{"$f":"'Hospitality - DATA'!$AI$6","v":0}]
[]
[null,null,"Totals / Totaux",null,null,null,{"$f":"SUM(G32,G34,G36,G38,G40,G42)","v":0},{"$f":"SUM(H32,H34,H36,H38,H40,H42,H44,H46)","v":0},null,null,null,"Totals / Totaux",null,null,null,null,{"$f":"SUM(Q32,Q34,Q36,Q38,Q40,Q42)","v":0},{"$f":"SUM(R32,R34,R36,R38,R40,R42,R44,R46)","v":0}]
[]
[]
[null,"Day 5 / Jour 5",null,null,null,null,null,null,null,null,"Day 6 / Jour 6"]
[]
[null,null,{"$f":"\"Date:\"&IF('Hospitality - DATA'!A7=\"\",\"\",'Hospitality - DATA'!A7)","v":"Date:"},"Public Servants / Fonctionnaires","Non-Public Servants / Non-fonctionnaires","Total Participants / Nombre total de participants","Average Cost per person / Coût moyen par personne","Hospitality cost (including taxes & service) / Coût des frais d'accueil (incluant les taxes et le service)",null,null,null,{"$f":"\"Date:\"&IF('Hospitality - DATA'!A8=\"\",\"\",'Hospitality - DATA'!A8)","v":"Date:"},null,"Public Servants / Fonctionnaires","Non-Public Servants / Non-fonctionnaires","Total Participants / Nombre total de participants","Average Cost per person / Coût moyen par personne","Hospitality cost (including taxes & service) / Coût des frais d'accueil (incluant les taxes et le service)"]
[]
[null,null,"Breakfast\nPetit Déjeuner",{"$f":"'Hospitality - DATA'!$C$7","v":0},{"$f":"'Hospitality - DATA'!$D$7","v":0},{"$f":"D55+E55","v":0},{"$f":"IFERROR(H55/F55,0)","v":0},{"$f":"((('Hospitality - DATA'!$B$7*('Hospitality - DATA'!$C$7+'Hospitality - DATA'!$D$7))+'Hospitality - DATA'!$E$7)*'Hospitality - DATA'!$AJ$7)+(('Hospitality - DATA'!$B$7*('Hospitality - DATA'!$C$7+'Hospitality - DATA'!$D$7))+'Hospitality - DATA'!$E$7)","v":0},null,null,null,"Breakfast\nPetit Déjeuner",null,{"$f":"'Hospitality - DATA'!$C$8","v":0},{"$f":"'Hospitality - DATA'!$D$8","v":0},{"$f":"N55+O55","v":0},{"$f":"IFERROR(R55/P55,0)","v":0},{"$f":"((('Hospitality - DATA'!$B$8*('Hospitality - DATA'!$C$8+'Hospitality - DATA'!$D$8))+'Hospitality - DATA'!$E$8)*'Hospitality - DATA'!$AJ$8)+(('Hospitality - DATA'!$B$8*('Hospitality - DATA'!$C$8+'Hospitality - DATA'!$D$8))+'Hospitality - DATA'!$E$8)","v":0}]
[]
[null,null,"Refreshments AM\nRafraîchissements en avant-midi",{"$f":"'Hospitality - DATA'!$G$7","v":0},{"$f":"'Hospitality - DATA'!$H$7","v":0},{"$f":"D57+E57","v":0},{"$f":"IFERROR(H57/F57,0)","v":0},{"$f":"((('Hospitality - DATA'!$F$7*('Hospitality - DATA'!$G$7+'Hospitality - DATA'!$H$7))+'Hospitality - DATA'!$I$7)*'Hospitality - DATA'!$AJ$7)+(('Hospitality - DATA'!$F$7*('Hospitality - DATA'!$G$7+'Hospitality - DATA'!$H$7))+'Hospitality - DATA'!$I$7)","v":0},null,null,null,"Refreshments AM\nRafraîchissements en avant-midi",null,{"$f":"'Hospitality - DATA'!$G$8","v":0},{"$f":"'Hospitality - DATA'!$H$8","v":0},{"$f":"N57+O57","v":0},{"$f":"IFERROR(R57/P57,0)","v":0},{"$f":"((('Hospitality - DATA'!$F$8*('Hospitality - DATA'!$G$8+'Hospitality - DATA'!$H$8))+'Hospitality - DATA'!$I$8)*'Hospitality - DATA'!$AJ$8)+(('Hospitality - DATA'!$F$8*('Hospitality - DATA'!$G$8+'Hospitality - DATA'!$H$8))+'Hospitality - DATA'!$I$8)","v":0}]
[]
[null,null,"Lunch\nDéjeuner",{"$f":"'Hospitality - DATA'!$K$7","v":0},{"$f":"'Hospitality - DATA'!$L$7","v":0},{"$f":"D59+E59","v":0},{"$f":"IFERROR(H59/F59,0)","v":0},{"$f":"((('Hospitality - DATA'!$J$7*('Hospitality - DATA'!$K$7+'Hospitality - DATA'!$L$7))+'Hospitality - DATA'!$M$7)*'Hospitality - DATA'!$AJ$7)+(('Hospitality - DATA'!$J$7*('Hospitality - DATA'!$K$7+'Hospitality - DATA'!$L$7))+'Hospitality - DATA'!$M$7)","v":0},null,null,null,"Lunch\nDéjeuner",null,{"$f":"'Hospitality - DATA'!$K$8","v":0},{"$f":"'Hospitality - DATA'!$L$8","v":0},{"$f":"N59+O59","v":0},{"$f":"IFERROR(R59/P59,0)","v":0},{"$f":"((('Hospitality - DATA'!$J$8*('Hospitality - DATA'!$K$8+'Hospitality - DATA'!$L$8))+'Hospitality - DATA'!$M$8)*'Hospitality - DATA'!$AJ$8)+(('Hospitality - DATA'!$J$8*('Hospitality - DATA'!$K$8+'Hospitality - DATA'!$L$8))+'Hospitality - DATA'!$M$8)","v":0}]
[]
[null,null,"Refreshments PM\nRafraîchissements en après-midi",{"$f":"'Hospitality - DATA'!$O$7","v":0},{"$f":"'Hospitality - DATA'!$P$7","v":0},{"$f":"D61+E61","v":0},{"$f":"IFERROR(H61/F61,0)","v":0},{"$f":"((('Hospitality - DATA'!$N$7*('Hospitality - DATA'!$O$7+'Hospitality - DATA'!$P$7))+'Hospitality - DATA'!$Q$7)*'Hospitality - DATA'!$AJ$7)+(('Hospitality - DATA'!$N$7*('Hospitality - DATA'!$O$7+'Hospitality - DATA'!$P$7))+'Hospitality - DATA'!$Q$7)","v":0},null,null,null,"Refreshments PM\nRafraîchissements en après-midi",null,{"$f":"'Hospitality - DATA'!$O$8","v":0},{"$f":"'Hospitality - DATA'!$P$8","v":0},{"$f":"N61+O61","v":0},{"$f":"IFERROR(R61/P61,0)","v":0},{"$f":"((('Hospitality - DATA'!$N$8*('Hospitality - DATA'!$O$8+'Hospitality - DATA'!$P$8))+'Hospitality - DATA'!$Q$8)*'Hospitality - DATA'!$AJ$8)+(('Hospitality - DATA'!$N$8*('Hospitality - DATA'!$O$8+'Hospitality - DATA'!$P$8))+'Hospitality - DATA'!$Q$8)","v":0}]
[]
[null,null,"Dinner\nDîner",{"$f":"'Hospitality - DATA'!$S$7","v":0},{"$f":"'Hospitality - DATA'!$T$7","v":0},{"$f":"D63+E63","v":0},{"$f":"IFERROR(H63/F63,0)","v":0},{"$f":"((('Hospitality - DATA'!$R$7*('Hospitality - DATA'!$S$7+'Hospitality - DATA'!$T$7))+'Hospitality - DATA'!$U$7)*'Hospitality - DATA'!$AJ$7)+(('Hospitality - DATA'!$R$7*('Hospitality - DATA'!$S$7+'Hospitality - DATA'!$T$7))+'Hospitality - DATA'!$U$7)","v":0},null,null,null,"Dinner\nDîner",null,{"$f":"'Hospitality - DATA'!$S$8","v":0},{"$f":"'Hospitality - DATA'!$T$8","v":0},{"$f":"N63+O63","v":0},{"$f":"IFERROR(R63/P63,0)","v":0},{"$f":"((('Hospitality - DATA'!$R$8*('Hospitality - DATA'!$S$8+'Hospitality - DATA'!$T$8))+'Hospitality - DATA'!$U$8)*'Hospitality - DATA'!$AJ$8)+(('Hospitality - DATA'!$R$8*('Hospitality - DATA'!$S$8+'Hospitality - DATA'!$T$8))+'Hospitality - DATA'!$U$8)","v":0}]
[]
[null,null,"Reception\nRéception",{"$f":"'Hospitality - DATA'!$W$7","v":0},{"$f":"'Hospitality - DATA'!$X$7","v":0},{"$f":"D65+E65","v":0},{"$f":"IFERROR(H65/F65,0)","v":0},{"$f":"((('Hospitality - DATA'!$V$7*('Hospitality - DATA'!$W$7+'Hospitality - DATA'!$X$7))+'Hospitality - DATA'!$Y$7)*'Hospitality - DATA'!$AJ$7)+(('Hospitality - DATA'!$V$7*('Hospitality - DATA'!$W$7+'Hospitality - DATA'!$X$7))+'Hospitality - DATA'!$Y$7)","v":0},null,null,null,"Reception\nRéception",null,{"$f":"'Hospitality - DATA'!$W$8","v":0},{"$f":"'Hospitality - DATA'!$X$8","v":0},{"$f":"N65+O65","v":0},{"$f":"IFERROR(R65/P65,0)","v":0},{"$f":"((('Hospitality - DATA'!$V$8*('Hospitality - DATA'!$W$8+'Hospitality - DATA'!$X$8))+'Hospitality - DATA'!$Y$8)*'Hospitality - DATA'!$AJ$8)+(('Hospitality - DATA'!$V$8*('Hospitality - DATA'!$W$8+'Hospitality - DATA'!$X$8))+'Hospitality - DATA'!$Y$8)","v":0}]
[]
[null,null,"Other form of regular hospitality\nAutre forme d’accueil régulier",{"$f":"'Hospitality - DATA'!$AD$7","v":0},{"$f":"'Hospitality - DATA'!$AE$7","v":0},{"$f":"D67+E67","v":0},"N/A - S/O",{"$f":"'Hospitality - DATA'!$AF$7","v":0},null,null,null,"Other form of regular hospitality\nAutre forme d’accueil régulier",null,{"$f":"'Hospitality - DATA'!$AD$8","v":0},{"$f":"'Hospitality - DATA'!$AE$8","v":0},{"$f":"N67+O67","v":0},"N/A - S/O",{"$f":"'Hospitality - DATA'!$AF$8","v":0}]
[]
[null,null,"Exceptional form of hospitality\nForme exceptionnelle d’accueil ",{"$f":"'Hospitality - DATA'!$AG$7","v":0},{"$f":"'Hospitality - DATA'!$AH$7","v":0},{"$f":"D69+E69","v":0},"N/A - S/O",{"$f":"'Hospitality - DATA'!$AI$7","v":0},null,null,null,"Exceptional form of hospitality\nForme exceptionnelle d’accueil ",null,{"$f":"'Hospitality - DATA'!$AG$8","v":0},{"$f":"'Hospitality - DATA'!$AH$8","v":0},{"$f":"N69+O69","v":0},"N/A - S/O",{"$f":"'Hospitality - DATA'!$AI$8","v":0}]
[]
[null,null,"Totals / Totaux",null,null,null,{"$f":"SUM(G55,G57,G59,G61,G63,G65,G69)","v":0},{"$f":"SUM(H55,H57,H59,H61,H63,H65,H67,H69)","v":0},null,null,null,"Totals / Totaux",null,null,null,null,{"$f":"SUM(Q55,Q57,Q59,Q61,Q63,Q65,Q69)","v":0},{"$f":"SUM(R55,R57,R59,R61,R63,R65,R67,R69)","v":0}]
[]
[]
[null,"SUMMARY / SOMMAIRE"]
[]
[null,null,null,"Day 1 / Jour 1","Day 2 / Jour 2","Day 3 / Jour 3","Day 4 / Jour 4","Day 5 / Jour 5","Day 6 / Jour 6",null,null,"Total Hospitality cost / \nCoût total des frais d'accueil    "]
[]
[null,null,"Breakfast\nPetit Déjeuner",{"$f":"H9","v":0},{"$f":"R9","v":0},{"$f":"H32","v":0},{"$f":"R32","v":0},{"$f":"H55","v":0},{"$f":"R55","v":0},null,null,{"$f":"SUM(D78:I78)","v":0}]
[]
[null,null,"Refreshments AM\nRafraîchissements en avant-midi",{"$f":"H11","v":0},{"$f":"R11","v":0},{"$f":"H34","v":0},{"$f":"R34","v":0},{"$f":"H57","v":0},{"$f":"R57","v":0},null,null,{"$f":"SUM(D80:I80)","v":0}]
[]
[null,null,"Lunch\nDéjeuner",{"$f":"H13","v":0},{"$f":"R13","v":0},{"$f":"H36","v":0},{"$f":"R36","v":0},{"$f":"H59","v":0},{"$f":"R59","v":0},null,null,{"$f":"SUM(D82:I82)","v":0}]
[]
[null,null,"Refreshments PM\nRafraîchissements en après-midi",{"$f":"H15","v":0},{"$f":"R15","v":0},{"$f":"H38","v":0},{"$f":"R38","v":0},{"$f":"H61","v":0},{"$f":"R61","v":0},null,null,{"$f":"SUM(D84:I84)","v":0}]
[]
[null,null,"Dinner\nDîner",{"$f":"H17","v":0},{"$f":"R17","v":0},{"$f":"H40","v":0},{"$f":"R40","v":0},{"$f":"H63","v":0},{"$f":"R63","v":0},null,null,{"$f":"SUM(D86:I86)","v":0}]
[]
[null,null,"Reception\nRéception",{"$f":"H19","v":0},{"$f":"R19","v":0},{"$f":"H42","v":0},{"$f":"R42","v":0},{"$f":"H65","v":0},{"$f":"R65","v":0},null,null,{"$f":"SUM(D88:I88)","v":0}]
[]
[null,null,"Other form of regular hospitality\nAutre forme d’accueil régulier",{"$f":"H21","v":0},{"$f":"R21","v":0},{"$f":"H44","v":0},{"$f":"R44","v":0},{"$f":"H67","v":0},{"$f":"R67","v":0},null,null,{"$f":"SUM(D90:I90)","v":0}]
[]
[null,null,"Exceptional form of hospitality\nForme exceptionnelle d’accueil ",{"$f":"H23","v":0},{"$f":"R23","v":0},{"$f":"H46","v":0},{"$f":"R46","v":0},{"$f":"H69","v":0},{"$f":"R69","v":0},null,null,{"$f":"SUM(D92:I92)","v":0}]
[]
[null,null,"Totals / Totaux",{"$f":"SUM(D78:D92)","v":0},{"$f":"SUM(E78:E92)","v":0},{"$f":"SUM(F78:F92)","v":0},{"$f":"SUM(G78:G92)","v":0},{"$f":"SUM(H78:H92)","v":0},{"$f":"SUM(J78:J92)","v":0},null,null,{"$f":"SUM(L78:L92)","v":0}]

{"sheet":"Hospitality - Accueil old","index":17,"n_rows":68,"n_cols":18,"rows_kept":68,"cut":false,"hidden":true,"merged":[[26,1,26,3],[26,11,26,13],[0,0,0,18],[2,2,2,18],[3,2,3,5],[4,1,4,3],[4,11,4,13],[1,1,1,4],[58,11,58,12],[48,1,48,3],[48,11,48,16],[48,17,49,17],[49,11,49,12],[51,11,51,12],[52,11,52,12],[53,11,53,12],[54,11,54,12],[55,11,55,12],[56,11,56,12],[57,11,57,12],[65,11,65,12],[66,11,66,12],[67,11,67,12],[68,11,68,12],[59,11,59,12],[60,11,60,12],[61,11,61,12],[62,11,62,12],[64,11,64,12],[63,11,63,12]]}
["SUMMARY OF HOSPITALITY EXPENDITURES / RÉSUMÉ - FRAIS D'ACCUEIL"]
["This form is to be printed and included in the file that requires DM or Minister Approval.","Ce formulaire doit être imprimé et annexé à chaque dossier qui doit être approuvé par le SM ou le Ministre."]
["Event tittle: \nTitre de l'évenement:",null,{"$f":"IF(AND(Activity_Title<>0,Activity_Title_French<>0),Activity_Title&\" / \"&Activity_Title_French,IF(Activity_Title_French=0,IF(Activity_Title=0,\"\",Activity_Title),Activity_Title_French))","v":""}]
[]
["Date:",{"$f":"IF('Hospitality - DATA'!A3=\"\",\"\",'Hospitality - DATA'!A3)","v":""},null,null,null,null,null,null,null,null,"Date:",{"$f":"IF('Hospitality - DATA'!A4=\"\",\"\",'Hospitality - DATA'!A4)","v":""}]
[null,null,null,"Public Servants / Fonctionnaires       ","Non-Public Servants / Autres            ","Total Participants / Nombre total de participants   ","Average Hospitality cost Per Capita / Coût moyen des frais d'accueil par personne","Hospitality cost / Coût des frais  d'accueil                      ",null,null,null,null,null,"Public Servants / Fonctionnaires       ","Non-Public Servants / Autres            ","Total Participants / Nombre total de participants   ","Average Hospitality cost Per Capita / Coût moyen des frais d'accueil par personne","Hospitality cost / Coût des frais  d'accueil                      "]
[]
["Breakfast / Déjeuner",null,null,{"$f":"'Hospitality - DATA'!$C$3","v":0},{"$f":"'Hospitality - DATA'!$D$3","v":0},{"$f":"D8+E8","v":0},{"$f":"IFERROR(H8/F8,0)","v":0},{"$f":"((('Hospitality - DATA'!$B$3*('Hospitality - DATA'!$C$3+'Hospitality - DATA'!$D$3))+'Hospitality - DATA'!$E$3)*'Hospitality - DATA'!$AJ$3)+(('Hospitality - DATA'!$B$3*('Hospitality - DATA'!$C$3+'Hospitality - DATA'!$D$3))+'Hospitality - DATA'!$E$3)","v":0},null,null,"Breakfast / Déjeuner",null,null,{"$f":"'Hospitality - DATA'!$C$4","v":0},{"$f":"'Hospitality - DATA'!$D$4","v":0},{"$f":"N8+O8","v":0},{"$f":"IFERROR(R8/P8,0)","v":0},{"$f":"((('Hospitality - DATA'!$B$4*('Hospitality - DATA'!$C$4+'Hospitality - DATA'!$D$4))+'Hospitality - DATA'!$E$4)*'Hospitality - DATA'!$AJ$4)+(('Hospitality - DATA'!$B$4*('Hospitality - DATA'!$C$4+'Hospitality - DATA'!$D$4))+'Hospitality - DATA'!$E$4)","v":0}]
[]
["Break / Pause",null,null,{"$f":"'Hospitality - DATA'!$G$3","v":0},{"$f":"'Hospitality - DATA'!$H$3","v":0},{"$f":"D10+E10","v":0},{"$f":"IFERROR(H10/F10,0)","v":0},{"$f":"((('Hospitality - DATA'!$F$3*('Hospitality - DATA'!$G$3+'Hospitality - DATA'!$H$3))+'Hospitality - DATA'!$I$3)*'Hospitality - DATA'!$AJ$3)+(('Hospitality - DATA'!$F$3*('Hospitality - DATA'!$G$3+'Hospitality - DATA'!$H$3))+'Hospitality - DATA'!$I$3)","v":0},null,null,"Break / Pause",null,null,{"$f":"'Hospitality - DATA'!$G$4","v":0},{"$f":"'Hospitality - DATA'!$H$4","v":0},{"$f":"N10+O10","v":0},{"$f":"IFERROR(R10/P10,0)","v":0},{"$f":"((('Hospitality - DATA'!$F$4*('Hospitality - DATA'!$G$4+'Hospitality - DATA'!$H$4))+'Hospitality - DATA'!$I$4)*'Hospitality - DATA'!$AJ$4)+(('Hospitality - DATA'!$F$4*('Hospitality - DATA'!$G$4+'Hospitality - DATA'!$H$4))+'Hospitality - DATA'!$I$4)","v":0}]
[]
["Lunch / Dîner",null,null,{"$f":"'Hospitality - DATA'!$K$3","v":0},{"$f":"'Hospitality - DATA'!$L$3","v":0},0,{"$f":"IFERROR(H12/F12,0)","v":0},{"$f":"((('Hospitality - DATA'!$J$3*('Hospitality - DATA'!$K$3+'Hospitality - DATA'!$L$3))+'Hospitality - DATA'!$M$3)*'Hospitality - DATA'!$AJ$3)+(('Hospitality - DATA'!$J$3*('Hospitality - DATA'!$K$3+'Hospitality - DATA'!$L$3))+'Hospitality - DATA'!$M$3)","v":0},null,null,"Lunch / Dîner",null,null,{"$f":"'Hospitality - DATA'!$K$4","v":0},{"$f":"'Hospitality - DATA'!$L$4","v":0},{"$f":"N12+O12","v":0},{"$f":"IFERROR(R12/P12,0)","v":0},{"$f":"((('Hospitality - DATA'!$J$4*('Hospitality - DATA'!$K$4+'Hospitality - DATA'!$L$4))+'Hospitality - DATA'!$M$4)*'Hospitality - DATA'!$AJ$4)+(('Hospitality - DATA'!$J$4*('Hospitality - DATA'!$K$4+'Hospitality - DATA'!$L$4))+'Hospitality - DATA'!$M$4)","v":0}]
[]
["Break / Pause",null,null,{"$f":"'Hospitality - DATA'!$O$3","v":0},{"$f":"'Hospitality - DATA'!$P$3","v":0},0,{"$f":"IFERROR(H14/F14,0)","v":0},{"$f":"((('Hospitality - DATA'!$N$3*('Hospitality - DATA'!$O$3+'Hospitality - DATA'!$P$3))+'Hospitality - DATA'!$Q$3)*'Hospitality - DATA'!$AJ$3)+(('Hospitality - DATA'!$N$3*('Hospitality - DATA'!$O$3+'Hospitality - DATA'!$P$3))+'Hospitality - DATA'!$Q$3)","v":0},null,null,"Break / Pause",null,null,{"$f":"'Hospitality - DATA'!$O$4","v":0},{"$f":"'Hospitality - DATA'!$P$4","v":0},{"$f":"N14+O14","v":0},{"$f":"IFERROR(R14/P14,0)","v":0},{"$f":"((('Hospitality - DATA'!$N$4*('Hospitality - DATA'!$O$4+'Hospitality - DATA'!$P$4))+'Hospitality - DATA'!$Q$4)*'Hospitality - DATA'!$AJ$4)+(('Hospitality - DATA'!$N$4*('Hospitality - DATA'!$O$4+'Hospitality - DATA'!$P$4))+'Hospitality - DATA'!$Q$4)","v":0}]
[]
["Dinner / Souper",null,null,{"$f":"'Hospitality - DATA'!$S$3","v":0},{"$f":"'Hospitality - DATA'!$T$3","v":0},0,{"$f":"IFERROR(H16/F16,0)","v":0},{"$f":"((('Hospitality - DATA'!$R$3*('Hospitality - DATA'!$S$3+'Hospitality - DATA'!$T$3))+'Hospitality - DATA'!$U$3)*'Hospitality - DATA'!$AJ$3)+(('Hospitality - DATA'!$R$3*('Hospitality - DATA'!$S$3+'Hospitality - DATA'!$T$3))+'Hospitality - DATA'!$U$3)","v":0},null,null,"Dinner / Souper",null,null,{"$f":"'Hospitality - DATA'!$S$4","v":0},{"$f":"'Hospitality - DATA'!$T$4","v":0},{"$f":"N16+O16","v":0},{"$f":"IFERROR(R16/P16,0)","v":0},{"$f":"((('Hospitality - DATA'!$R$4*('Hospitality - DATA'!$S$4+'Hospitality - DATA'!$T$4))+'Hospitality - DATA'!$U$4)*'Hospitality - DATA'!$AJ$4)+(('Hospitality - DATA'!$R$4*('Hospitality - DATA'!$S$4+'Hospitality - DATA'!$T$4))+'Hospitality - DATA'!$U$4)","v":0}]
[]
["Reception / Réception",null,null,{"$f":"'Hospitality - DATA'!$W$3","v":0},{"$f":"'Hospitality - DATA'!$X$3","v":0},0,{"$f":"IFERROR(H18/F18,0)","v":0},{"$f":"((('Hospitality - DATA'!$V$3*('Hospitality - DATA'!$W$3+'Hospitality - DATA'!$X$3))+'Hospitality - DATA'!$Y$3)*'Hospitality - DATA'!$AJ$3)+(('Hospitality - DATA'!$V$3*('Hospitality - DATA'!$W$3+'Hospitality - DATA'!$X$3))+'Hospitality - DATA'!$Y$3)","v":0},null,null,"Reception / Réception",null,null,{"$f":"'Hospitality - DATA'!$W$4","v":0},{"$f":"'Hospitality - DATA'!$X$4","v":0},{"$f":"N18+O18","v":0},{"$f":"IFERROR(R18/P18,0)","v":0},{"$f":"((('Hospitality - DATA'!$V$4*('Hospitality - DATA'!$W$4+'Hospitality - DATA'!$X$4))+'Hospitality - DATA'!$Y$4)*'Hospitality - DATA'!$AJ$4)+(('Hospitality - DATA'!$V$4*('Hospitality - DATA'!$W$4+'Hospitality - DATA'!$X$4))+'Hospitality - DATA'!$Y$4)","v":0}]
[]
["Other forms of hospitality /\nAutres formes d'accueil",null,null,{"$f":"'Hospitality - DATA'!$AD$3","v":0},{"$f":"'Hospitality - DATA'!$AE$3","v":0},{"$f":"D20+E20","v":0},"N/A - S/O",{"$f":"'Hospitality - DATA'!$AF$3","v":0},null,null,"Other forms of hospitality /\nAutres formes d'accueil",null,null,{"$f":"'Hospitality - DATA'!$AD$4","v":0},{"$f":"'Hospitality - DATA'!$AE$4","v":0},{"$f":"N20+O20","v":0},"N/A - S/O",{"$f":"'Hospitality - DATA'!$AF$4","v":0}]
[]
["Exceptional forms of hospitality /\nFormes exceptionnelles d'accueil",null,null,{"$f":"'Hospitality - DATA'!$AG$3","v":0},{"$f":"'Hospitality - DATA'!$AH$3","v":0},0,"N/A - S/O",{"$f":"'Hospitality - DATA'!$AI$3","v":0},null,null,"Exceptional forms of hospitality /\nFormes exceptionnelles d'accueil",null,null,{"$f":"'Hospitality - DATA'!$AG$4","v":0},{"$f":"'Hospitality - DATA'!$AH$4","v":0},{"$f":"N22+O22","v":0},"N/A - S/O",{"$f":"'Hospitality - DATA'!$AI$4","v":0}]
[]
["Totals / Totaux",null,null,null,null,null,{"$f":"SUM(G8,G10,G12,G14,G16,G18)","v":0},{"$f":"SUM(H8,H10,H12,H14,H16,H18,H20,H22)","v":0},null,null,"Totals / Totaux",null,null,null,null,null,{"$f":"SUM(Q8,Q10,Q12,Q14,Q16,Q18)","v":0},{"$f":"SUM(R8,R10,R12,R14,R16,R18,R20,R22)","v":0}]
[]
[]
["Date:",{"$f":"IF('Hospitality - DATA'!A5=\"\",\"\",'Hospitality - DATA'!A5)","v":""},null,null,null,null,null,null,null,null,"Date:",{"$f":"IF('Hospitality - DATA'!A6=\"\",\"\",'Hospitality - DATA'!A6)","v":""}]
[null,null,null,"Public Servants / Fonctionnaires       ","Non-Public Servants / Autres            ","Total Participants / Nombre total de participants   ","Average Hospitality cost Per Capita / Coût moyen des frais d'accueil par personne","Hospitality cost / Coût des frais  d'accueil                      ",null,null,null,null,null,"Public Servants / Fonctionnaires       ","Non-Public Servants / Autres            ","Total Participants / Nombre total de participants   ","Average Hospitality cost Per Capita / Coût moyen des frais d'accueil par personne","Hospitality cost / Coût des frais  d'accueil                      "]
[]
["Breakfast / Déjeuner",null,null,{"$f":"'Hospitality - DATA'!$C$5","v":0},{"$f":"'Hospitality - DATA'!$D$5","v":0},{"$f":"D30+E30","v":0},{"$f":"IFERROR(H30/F30,0)","v":0},{"$f":"((('Hospitality - DATA'!$B$5*('Hospitality - DATA'!$C$5+'Hospitality - DATA'!$D$5))+'Hospitality - DATA'!$E$5)*'Hospitality - DATA'!$AJ$5)+(('Hospitality - DATA'!$B$5*('Hospitality - DATA'!$C$5+'Hospitality - DATA'!$D$5))+'Hospitality - DATA'!$E$5)","v":0},null,null,"Breakfast / Déjeuner",null,null,{"$f":"'Hospitality - DATA'!$C$6","v":0},{"$f":"'Hospitality - DATA'!$D$6","v":0},{"$f":"N30+O30","v":0},{"$f":"IFERROR(R30/P30,0)","v":0},{"$f":"((('Hospitality - DATA'!$B$6*('Hospitality - DATA'!$C$6+'Hospitality - DATA'!$D$6))+'Hospitality - DATA'!$E$6)*'Hospitality - DATA'!$AJ$6)+(('Hospitality - DATA'!$B$6*('Hospitality - DATA'!$C$6+'Hospitality - DATA'!$D$6))+'Hospitality - DATA'!$E$6)","v":0}]
[]
["Break / Pause",null,null,{"$f":"'Hospitality - DATA'!$G$5","v":0},{"$f":"'Hospitality - DATA'!$H$5","v":0},{"$f":"D32+E32","v":0},{"$f":"IFERROR(H32/F32,0)","v":0},{"$f":"((('Hospitality - DATA'!$F$5*('Hospitality - DATA'!$G$5+'Hospitality - DATA'!$H$5))+'Hospitality - DATA'!$I$5)*'Hospitality - DATA'!$AJ$5)+(('Hospitality - DATA'!$F$5*('Hospitality - DATA'!$G$5+'Hospitality - DATA'!$H$5))+'Hospitality - DATA'!$I$5)","v":0},null,null,"Break / Pause",null,null,{"$f":"'Hospitality - DATA'!$G$6","v":0},{"$f":"'Hospitality - DATA'!$H$6","v":0},{"$f":"N32+O32","v":0},{"$f":"IFERROR(R32/P32,0)","v":0},{"$f":"((('Hospitality - DATA'!$F$6*('Hospitality - DATA'!$G$6+'Hospitality - DATA'!$H$6))+'Hospitality - DATA'!$I$6)*'Hospitality - DATA'!$AJ$6)+(('Hospitality - DATA'!$F$6*('Hospitality - DATA'!$G$6+'Hospitality - DATA'!$H$6))+'Hospitality - DATA'!$I$6)","v":0}]
[]
["Lunch / Dîner",null,null,{"$f":"'Hospitality - DATA'!$K$5","v":0},{"$f":"'Hospitality - DATA'!$L$5","v":0},{"$f":"D34+E34","v":0},{"$f":"IFERROR(H34/F34,0)","v":0},{"$f":"((('Hospitality - DATA'!$J$5*('Hospitality - DATA'!$K$5+'Hospitality - DATA'!$L$5))+'Hospitality - DATA'!$M$5)*'Hospitality - DATA'!$AJ$5)+(('Hospitality - DATA'!$J$5*('Hospitality - DATA'!$K$5+'Hospitality - DATA'!$L$5))+'Hospitality - DATA'!$M$5)","v":0},null,null,"Lunch / Dîner",null,null,{"$f":"'Hospitality - DATA'!$K$6","v":0},{"$f":"'Hospitality - DATA'!$L$6","v":0},{"$f":"N34+O34","v":0},{"$f":"IFERROR(R34/P34,0)","v":0},{"$f":"((('Hospitality - DATA'!$J$6*('Hospitality - DATA'!$K$6+'Hospitality - DATA'!$L$6))+'Hospitality - DATA'!$M$6)*'Hospitality - DATA'!$AJ$6)+(('Hospitality - DATA'!$J$6*('Hospitality - DATA'!$K$6+'Hospitality - DATA'!$L$6))+'Hospitality - DATA'!$M$6)","v":0}]
[]
["Break / Pause",null,null,{"$f":"'Hospitality - DATA'!$O$5","v":0},{"$f":"'Hospitality - DATA'!$P$5","v":0},{"$f":"D36+E36","v":0},{"$f":"IFERROR(H36/F36,0)","v":0},{"$f":"((('Hospitality - DATA'!$N$5*('Hospitality - DATA'!$O$5+'Hospitality - DATA'!$P$5))+'Hospitality - DATA'!$Q$5)*'Hospitality - DATA'!$AJ$5)+(('Hospitality - DATA'!$N$5*('Hospitality - DATA'!$O$5+'Hospitality - DATA'!$P$5))+'Hospitality - DATA'!$Q$5)","v":0},null,null,"Break / Pause",null,null,{"$f":"'Hospitality - DATA'!$O$6","v":0},{"$f":"'Hospitality - DATA'!$P$6","v":0},{"$f":"N36+O36","v":0},{"$f":"IFERROR(R36/P36,0)","v":0},{"$f":"((('Hospitality - DATA'!$N$6*('Hospitality - DATA'!$O$6+'Hospitality - DATA'!$P$6))+'Hospitality - DATA'!$Q$6)*'Hospitality - DATA'!$AJ$6)+(('Hospitality - DATA'!$N$6*('Hospitality - DATA'!$O$6+'Hospitality - DATA'!$P$6))+'Hospitality - DATA'!$Q$6)","v":0}]
[]
["Dinner / Souper",null,null,{"$f":"'Hospitality - DATA'!$S$5","v":0},{"$f":"'Hospitality - DATA'!$T$5","v":0},{"$f":"D38+E38","v":0},{"$f":"IFERROR(H38/F38,0)","v":0},{"$f":"((('Hospitality - DATA'!$R$5*('Hospitality - DATA'!$S$5+'Hospitality - DATA'!$T$5))+'Hospitality - DATA'!$U$5)*'Hospitality - DATA'!$AJ$5)+(('Hospitality - DATA'!$R$5*('Hospitality - DATA'!$S$5+'Hospitality - DATA'!$T$5))+'Hospitality - DATA'!$U$5)","v":0},null,null,"Dinner / Souper",null,null,{"$f":"'Hospitality - DATA'!$S$6","v":0},{"$f":"'Hospitality - DATA'!$T$6","v":0},{"$f":"N38+O38","v":0},{"$f":"IFERROR(R38/P38,0)","v":0},{"$f":"((('Hospitality - DATA'!$R$6*('Hospitality - DATA'!$S$6+'Hospitality - DATA'!$T$6))+'Hospitality - DATA'!$U$6)*'Hospitality - DATA'!$AJ$6)+(('Hospitality - DATA'!$R$6*('Hospitality - DATA'!$S$6+'Hospitality - DATA'!$T$6))+'Hospitality - DATA'!$U$6)","v":0}]
[]
["Reception / Réception",null,null,{"$f":"'Hospitality - DATA'!$W$5","v":0},{"$f":"'Hospitality - DATA'!$X$5","v":0},{"$f":"D40+E40","v":0},{"$f":"IFERROR(H40/F40,0)","v":0},{"$f":"((('Hospitality - DATA'!$V$5*('Hospitality - DATA'!$W$5+'Hospitality - DATA'!$X$5))+'Hospitality - DATA'!$Y$5)*'Hospitality - DATA'!$AJ$5)+(('Hospitality - DATA'!$V$5*('Hospitality - DATA'!$W$5+'Hospitality - DATA'!$X$5))+'Hospitality - DATA'!$Y$5)","v":0},null,null,"Reception / Réception",null,null,{"$f":"'Hospitality - DATA'!$W$6","v":0},{"$f":"'Hospitality - DATA'!$X$6","v":0},{"$f":"N40+O40","v":0},{"$f":"IFERROR(R40/P40,0)","v":0},{"$f":"((('Hospitality - DATA'!$V$6*('Hospitality - DATA'!$W$6+'Hospitality - DATA'!$X$6))+'Hospitality - DATA'!$Y$6)*'Hospitality - DATA'!$AJ$6)+(('Hospitality - DATA'!$V$6*('Hospitality - DATA'!$W$6+'Hospitality - DATA'!$X$6))+'Hospitality - DATA'!$Y$6)","v":0}]
[]
["Other forms of hospitality /\nAutres formes d'accueil",null,null,{"$f":"'Hospitality - DATA'!$AD$5","v":0},{"$f":"'Hospitality - DATA'!$AE$5","v":0},{"$f":"D42+E42","v":0},"N/A - S/O",{"$f":"'Hospitality - DATA'!$AF$5","v":0},null,null,"Other forms of hospitality /\nAutres formes d'accueil",null,null,{"$f":"'Hospitality - DATA'!$AD$6","v":0},{"$f":"'Hospitality - DATA'!$AE$6","v":0},{"$f":"N42+O42","v":0},"N/A - S/O",{"$f":"'Hospitality - DATA'!$AF$6","v":0}]
[]
["Exceptional forms of hospitality /\nFormes exceptionnelles d'accueil",null,null,{"$f":"'Hospitality - DATA'!$AG$5","v":0},{"$f":"'Hospitality - DATA'!$AH$5","v":0},{"$f":"D44+E44","v":0},"N/A - S/O",{"$f":"'Hospitality - DATA'!$AI$5","v":0},null,null,"Exceptional forms of hospitality /\nFormes exceptionnelles d'accueil",null,null,{"$f":"'Hospitality - DATA'!$AG$6","v":0},{"$f":"'Hospitality - DATA'!$AH$6","v":0},{"$f":"N44+O44","v":0},"N/A - S/O",{"$f":"'Hospitality - DATA'!$AI$6","v":0}]
[]
["Totals / Totaux",null,null,null,null,null,{"$f":"SUM(G30,G32,G34,G36,G38,G40)","v":0},{"$f":"SUM(H30,H32,H34,H36,H38,H40,H42,H44)","v":0},null,null,"Totals / Totaux",null,null,null,null,null,{"$f":"SUM(Q30,Q32,Q34,Q36,Q38,Q40)","v":0},{"$f":"SUM(R30,R32,R34,R36,R38,R40,R42,R44)","v":0}]
[]
[]
["Date:",{"$f":"IF('Hospitality - DATA'!A7=\"\",\"\",'Hospitality - DATA'!A7)","v":""},null,null,null,null,null,null,null,null,null,null,null,null,null,null,null,"Total Hospitality cost    / Coût total des frais d'accueil                  "]
[null,null,null,"Public Servants / Fonctionnaires       ","Non-Public Servants / Autres            ","Total Participants / Nombre total de participants   ","Average Hospitality cost Per Capita / Coût moyen des frais d'accueil par personne","Hospitality cost / Coût des frais  d'accueil                      ",null,null,null,"Day 1 / \nJour 1",null,"Day 2 / \nJour2","Day 3 / \nJour3","Day 4 / \nJour4","Day 5 / \nJour 5"]
[]
["Breakfast / Déjeuner",null,null,{"$f":"'Hospitality - DATA'!$C$7","v":0},{"$f":"'Hospitality - DATA'!$D$7","v":0},{"$f":"D52+E52","v":0},{"$f":"IFERROR(H52/F52,0)","v":0},{"$f":"((('Hospitality - DATA'!$B$7*('Hospitality - DATA'!$C$7+'Hospitality - DATA'!$D$7))+'Hospitality - DATA'!$E$7)*'Hospitality - DATA'!$AJ$7)+(('Hospitality - DATA'!$B$7*('Hospitality - DATA'!$C$7+'Hospitality - DATA'!$D$7))+'Hospitality - DATA'!$E$7)","v":0},null,null,"Breakfast / Déjeuner",{"$f":"H8","v":0},null,{"$f":"R8","v":0},{"$f":"H30","v":0},{"$f":"R30","v":0},{"$f":"H52","v":0},{"$f":"SUM(L52:Q52)","v":0}]
[]
["Break / Pause",null,null,{"$f":"'Hospitality - DATA'!$G$7","v":0},{"$f":"'Hospitality - DATA'!$H$7","v":0},{"$f":"D54+E54","v":0},{"$f":"IFERROR(H54/F54,0)","v":0},{"$f":"((('Hospitality - DATA'!$F$7*('Hospitality - DATA'!$G$7+'Hospitality - DATA'!$H$7))+'Hospitality - DATA'!$I$7)*'Hospitality - DATA'!$AJ$7)+(('Hospitality - DATA'!$F$7*('Hospitality - DATA'!$G$7+'Hospitality - DATA'!$H$7))+'Hospitality - DATA'!$I$7)","v":0},null,null,"Break / Pause",{"$f":"H10","v":0},null,{"$f":"R10","v":0},{"$f":"H32","v":0},{"$f":"R32","v":0},{"$f":"H54","v":0},{"$f":"SUM(L54:Q54)","v":0}]
[]
["Lunch / Dîner",null,null,{"$f":"'Hospitality - DATA'!$K$7","v":0},{"$f":"'Hospitality - DATA'!$L$7","v":0},{"$f":"D56+E56","v":0},{"$f":"IFERROR(H56/F56,0)","v":0},{"$f":"((('Hospitality - DATA'!$J$7*('Hospitality - DATA'!$K$7+'Hospitality - DATA'!$L$7))+'Hospitality - DATA'!$M$7)*'Hospitality - DATA'!$AJ$7)+(('Hospitality - DATA'!$J$7*('Hospitality - DATA'!$K$7+'Hospitality - DATA'!$L$7))+'Hospitality - DATA'!$M$7)","v":0},null,null,"Lunch / Dîner",{"$f":"H12","v":0},null,{"$f":"R12","v":0},{"$f":"H34","v":0},{"$f":"R34","v":0},{"$f":"H56","v":0},{"$f":"SUM(L56:Q56)","v":0}]
[]
["Break / Pause",null,null,{"$f":"'Hospitality - DATA'!$O$7","v":0},{"$f":"'Hospitality - DATA'!$P$7","v":0},{"$f":"D58+E58","v":0},{"$f":"IFERROR(H58/F58,0)","v":0},{"$f":"((('Hospitality - DATA'!$N$7*('Hospitality - DATA'!$O$7+'Hospitality - DATA'!$P$7))+'Hospitality - DATA'!$Q$7)*'Hospitality - DATA'!$AJ$7)+(('Hospitality - DATA'!$N$7*('Hospitality - DATA'!$O$7+'Hospitality - DATA'!$P$7))+'Hospitality - DATA'!$Q$7)","v":0},null,null,"Break / Pause",{"$f":"H14","v":0},null,{"$f":"R14","v":0},{"$f":"H36","v":0},{"$f":"R36","v":0},{"$f":"H58","v":0},{"$f":"SUM(L58:Q58)","v":0}]
[]
["Dinner / Souper",null,null,{"$f":"'Hospitality - DATA'!$S$7","v":0},{"$f":"'Hospitality - DATA'!$T$7","v":0},{"$f":"D60+E60","v":0},{"$f":"IFERROR(H60/F60,0)","v":0},{"$f":"((('Hospitality - DATA'!$R$7*('Hospitality - DATA'!$S$7+'Hospitality - DATA'!$T$7))+'Hospitality - DATA'!$U$7)*'Hospitality - DATA'!$AJ$7)+(('Hospitality - DATA'!$R$7*('Hospitality - DATA'!$S$7+'Hospitality - DATA'!$T$7))+'Hospitality - DATA'!$U$7)","v":0},null,null,"Dinner / Souper",{"$f":"H16","v":0},null,{"$f":"R16","v":0},{"$f":"H38","v":0},{"$f":"R38","v":0},{"$f":"H60","v":0},{"$f":"SUM(L60:Q60)","v":0}]
[]
["Reception / Réception",null,null,{"$f":"'Hospitality - DATA'!$W$7","v":0},{"$f":"'Hospitality - DATA'!$X$7","v":0},{"$f":"D62+E62","v":0},{"$f":"IFERROR(H62/F62,0)","v":0},{"$f":"((('Hospitality - DATA'!$V$7*('Hospitality - DATA'!$W$7+'Hospitality - DATA'!$X$7))+'Hospitality - DATA'!$Y$7)*'Hospitality - DATA'!$AJ$7)+(('Hospitality - DATA'!$V$7*('Hospitality - DATA'!$W$7+'Hospitality - DATA'!$X$7))+'Hospitality - DATA'!$Y$7)","v":0},null,null,"Reception / Réception",{"$f":"H18","v":0},null,{"$f":"R18","v":0},{"$f":"H40","v":0},{"$f":"R40","v":0},{"$f":"H62","v":0},{"$f":"SUM(L62:Q62)","v":0}]
[]
["Other forms of hospitality /\nAutres formes d'accueil",null,null,{"$f":"'Hospitality - DATA'!$AD$7","v":0},{"$f":"'Hospitality - DATA'!$AE$7","v":0},{"$f":"D64+E64","v":0},"N/A - S/O",{"$f":"'Hospitality - DATA'!$AF$7","v":0},null,null,"Other forms of hospitality /\nAutres formes d'accueil",{"$f":"H20","v":0},null,{"$f":"R20","v":0},{"$f":"H42","v":0},{"$f":"R42","v":0},{"$f":"H64","v":0},{"$f":"SUM(L64:Q64)","v":0}]
[]
["Exceptional forms of hospitality /\nFormes exceptionnelles d'accueil",null,null,{"$f":"'Hospitality - DATA'!$AG$7","v":0},{"$f":"'Hospitality - DATA'!$AH$7","v":0},{"$f":"D66+E66","v":0},"N/A - S/O",{"$f":"'Hospitality - DATA'!$AI$7","v":0},null,null,"Exceptional forms of hospitality /\nFormes exceptionnelles d'accueil",{"$f":"H22","v":0},null,{"$f":"R22","v":0},{"$f":"H44","v":0},{"$f":"R44","v":0},{"$f":"H66","v":0},{"$f":"SUM(L66:Q66)","v":0}]
[]
["Totals / Totaux",null,null,null,null,null,{"$f":"SUM(G52,G54,G56,G58,G60,G62,G66)","v":0},{"$f":"SUM(H52,H54,H56,H58,H60,H62,H64,H66)","v":0},null,null,"Totals / Totaux",{"$f":"SUM(L52,L54,L56,L58,L60,L62,L64,L66)","v":0},null,{"$f":"SUM(N52,N54,N56,N58,N60,N62,N64,N66)","v":0},{"$f":"SUM(O52,O54,O56,O58,O60,O62,O64,O66)","v":0},{"$f":"SUM(P52,P54,P56,P58,P60,P62,P64,P66)","v":0},{"$f":"SUM(Q52,Q54,Q56,Q58,Q60,Q62,Q64,Q66)","v":0},{"$f":"SUM(R52,R54,R56,R58,R60,R62,R64,R66)","v":0}]

{"sheet":"Memo CheckList (EN)","index":18,"n_rows":29,"n_cols":3,"rows_kept":29,"cut":false,"hidden":true,"merged":[[0,0,0,1],[22,0,22,1],[26,0,26,1]]}
["Required information to include in the memo for THCEE approval",null,"Version française"]
[]
["☐","Memo addressed to the right authority and explain in the summary why this approval authority is required (ex: hospitality exceeds the standard cost per person, ADM is a participant in the hospitality, etc.)."]
["☐","Type of request (Event Approval, Hospitality Approval, Amendment, After The Fact Acknowledgement) - included in title of the memo as well as the summary."]
["☐","For an after the fact request: make sure to use the word acknowledgement rather than approval throughout the memo."]
["☐","For an amendment request: provide an explanation as to why actual costs will exceed the requested amount by more than 25% if applicable."]
["☐","For Multi-Branch Event request: Provide a confirmation that each ADM has reviewed and signed their respective THCEE Authorization Form."]
["☐","Example of the first line in the Summary: The purpose of this memorandum is to seek (type of request- second bullet above) of $(amount) related to (activity name) to be held in (location - city, prov) from (dates)."]
["☐","Name, date and location of the activity."]
["☐","Description, nature and purpose of the activity. If the memo is addressed to the DM/COO, provide a link to the strategic priorities. "]
["☐","Who will attend the activity (EXs, managers, employees, regions, etc.) and justify the number of participants."]
["☐","Total cost for the Event or, if hospitality request, the total cost of the hospitality."]
["☐","When a government facility is not chosen provide details and conditions for the choice of the location and assurance that best efforts were made to locate a government facility. "]
["☐","Frequency of the activity and justify why regular (quartely, etc.) meetings are required. "]
["☐","Identification of the measures taken to ensure estimated costs represent best value for money and the most economical options have been chosen."]
["☐","Provide  justification for offering hospitality as well as a brief description of the hospitality being offered. Provide a more in-depth justification for out of the ordinary forms of hospitality (ex: breakfast, small tokens of appreciation, alcohol, etc.)."]
["☐","Average cost per person and justification for exceeding standard/maximum per person if applicable."]
["☐","Clarification as to why another government department, Province, or Territory is participating in an ESDC hosted Event but not covering their own costs (where applicable)."]
["☐","Provide details of other internal meetings planned around the Event in order to minimize travel costs."]
["☐","The information in the memo is consistent with the information on the THCEE Authorization Form (ex: # of participants, dates, amounts, etc)."]
["☐","Provide a rationale if professional services are required (speaker, technical equipment, etc.)"]
[]
["Additional notes to include in the memo:\n(DO NOT INCLUDE in an after the fact request)"]
["☐","The Event request conforms to all department and TB policies and complies with the amended Directive on Travel, Hospitality, Conference and Event Expenditures, as per the attached THCEE Authorization Form."]
["☐","*Note: Until Event approval has been given by the appropriate delegated authority, no components of the Event will be initiated or procured that would result in the establishment of a liability for the department (i.e. travel, hospitality, room or equipment rentals, etc.)."]
[]
["If this is a recurring Event:"]
["☐","Provide the following details of the previous Event: title, WebCIMS#, date, Internal Order, requested amount and actual costs."]
["☐","Confirmation of cost reduction from previous year, including amount by which costs have decreased and how the reduction was achieved; for instances where there is an increase from the previous year, a full explanation must be provided. I.e. Comparison between the amount being requested currently and the actual cost of the previous Event."]

{"sheet":"Memo CheckList (FR)","index":19,"n_rows":29,"n_cols":3,"rows_kept":29,"cut":false,"hidden":true,"merged":[[0,0,0,1],[22,0,22,1],[26,0,26,1]]}
["Renseignements devant être fournis dans la note de service\npour l'approbation des DVACÉ",null,"English version"]
[]
["☐","Note de service adressée à l'autorité compétente; expliquer dans le résumé pourquoi l’autorisation est requise (p. ex., les coûts de l’accueil dépassent le coût standard par personne, le SMA participe à l’activité d’accueil, etc.)."]
["☐","Type de demande (approbation d’Événements, approbation de l’accueil, modification, reconnaissance après les faits) – inclus dans le titre de la note de service et dans le résumé."]
["☐","Pour une demande de reconnaissance après les faits : ne pas oublier d’utiliser le mot « reconnaissance » plutôt que le terme « approbation » tout au long de la note de service. "]
["☐","Pour une demande de modification : expliquer pourquoi les coûts réels ont dépassés le montant demandé de plus de 25 % (le cas échéant)."]
["☐","Pour une demande d'Événement à multiples directions générales : Fournir une confirmation que chaque SMA a revu et signé leur formulaire d’autorisation des DVACÉ respectif. "]
["☐","Exemple de la première ligne du résumé : La présente note de service vise à demander (type de demande – deuxième point ci-dessus) de $ (montant) lié au (nom de l’activité) qui doit se tenir à (endroit - ville, prov.) à partir de (dates)."]
["☐","Nom, date et lieu de l’activité."]
["☐","Description, nature et but de l’activité. Si la note de service est adressée à la SM/CE, fournir le lien aux priorités stratégiques."]
["☐","Qui sont les participants à l’activité (Exs, gestionnaires, employés, régions, etc.) et fournir une justification pour le nombre de participants."]
["☐","Coût total de l’Événement ou, s’il s’agit d’une demande d’accueil, le coût total de l’accueil."]
["☐","Lorsqu’une installation gouvernementale n’est pas retenue, fournir les détails et les conditions pour le choix de l’emplacement et l’assurance que des efforts ont été déployés pour trouver une installation gouvernementale. "]
["☐","Fréquence de l’activité et expliquer pouquoi les réunions régulières (trimestrielles, etc.) sont nécessaires. "]
["☐","L’identification des mesures prises pour s’assurer que les coûts estimés représentent le meilleur rapport qualité-prix et que les options les plus économiques ont été choisies."]
["☐","Fournir une justification pour offrir l’activité d’accueil ainsi qu’une brève description de l’accueil offert. Fournir une justification plus approfondie des activités d’accueil qui sortent de l'ordinaire (p. ex. petit déjeuner, petites marques d'appréciation, boissons alcoolisées, etc.)."]
["☐","Coût moyen par personne et justification du dépassement du coût standard/maximal par personne (le cas échéant)."]
["☐","Précisions quant à la raison pour laquelle un autre ministère, ou un gouvernement provincial ou territorial participe à un Événement organisé par EDSC, mais ne couvre pas ses propres frais (le cas échéant)."]
["☐","Fournir des détails sur d’autres réunions internes prévues autour de l’Événement afin de réduire au minimum les frais de voyages."]
["☐","L’information contenue dans la note de service est conforme à l’information contenue dans le formulaire d'autorisation DVACÉ (p. ex., nombre de participants, dates, montants)."]
["☐","Fournir une justification si des services professionnels sont nécessaires (conférencier, équipement techniques, etc.) "]
[]
["Remarques supplémentaires à inclure dans la note de service :\n (NE PAS INCLURE dans les demandes de reconnaissance après les faits)"]
["☐","La demande est conforme à toutes les politiques du Ministère et du Conseil du Trésor ainsi qu'aux modifications à la Directive sur les dépenses de voyages, d’accueil, de conférences et d’Événements, conformément au formulaire d’autorisation DVACÉ ci-joint."]
["☐","*Remarque : Tant que l'approbation n'a pas été donné par le pouvoir délégué approprié, aucune composante de l’Événement sera initié ou acquis qui se traduirait par la mise en place d'un passif pour le Ministère (p. ex., les voyages, l’accueil, la location de salles ou de matériel) ne peut être entreprise ou acquise."]
[]
["S’il s’agit d’un Événement récurrent :"]
["☐","Fournir les détails suivants de l’Événement précédent : titre, numéro WebCIMS, date, commande interne, montant demandé et coûts réels."]
["☐","Confirmation de la réduction des coûts par rapport à l’année précédente, incluant le montant de la diminution des coûts et la manière dont la réduction a été obtenue; dans les cas où il y a une augmentation par rapport à l’année précédente, une explication complète doit être fournie (comparaison entre le montant demandé maintenant et le coût réel de l’Événement précédent."]

{"sheet":"Memo - System","index":20,"n_rows":416,"n_cols":22,"rows_kept":416,"cut":false,"hidden":true,"merged":[[0,0,0,1],[0,14,0,15],[0,16,0,17],[0,18,0,19],[0,20,0,21],[0,2,0,3],[0,4,0,5],[0,6,0,7],[0,8,0,9],[0,10,0,11],[0,12,0,13]]}
["Authorization Form",null,"Memo - Events - Minister - ESDC - English",null,"Memo - Events - Minister - ESDC - French",null,"Memo - Events - Minister - Labour - English",null,"Memo - Events - Minister - Labour - French",null,"Memo - Events - COO - SC - English",null,"Memo - Events - COO - SC - French",null,"Memo - Events - DM - EDSC - English",null,"Memo - Events - DM - EDSC - French",null,"Memo - Events - DM - Labor - English",null,"Memo - Events - DM - Labor - French"]
["Generate Template",true,"Generate Template",{"$f":"AND(Questionnaire!D248,OR(Approving_Entity=ESDC_Select,Approving_Entity=ServCan_Select),Event_Delegation_Level=5)","v":false},"Generate Template",{"$f":"AND(Questionnaire!D248,OR(Approving_Entity=ESDC_Select,Approving_Entity=ServCan_Select),Event_Delegation_Level=5)","v":false},"Generate Template",{"$f":"AND(Questionnaire!D248,OR(Approving_Entity=Labour_Select),Event_Delegation_Level=5)","v":false},"Generate Template",{"$f":"AND(Questionnaire!D248,OR(Approving_Entity=Labour_Select),Event_Delegation_Level=5)","v":false},"Generate Template",{"$f":"AND(Questionnaire!D248,Approving_Entity=ServCan_Select,Event_Delegation_Level>3.5,Event_Delegation_Level<4.5)","v":false},"Generate Template",{"$f":"AND(Questionnaire!D248,Approving_Entity=ServCan_Select,Event_Delegation_Level>3.5,Event_Delegation_Level<4.5)","v":false},"Generate Template",{"$f":"AND(Questionnaire!D248,Approving_Entity=ESDC_Select,Event_Delegation_Level>3.5,Event_Delegation_Level<4.5)","v":false},"Generate Template",{"$f":"AND(Questionnaire!D248,Approving_Entity=ESDC_Select,Event_Delegation_Level>3.5,Event_Delegation_Level<4.5)","v":false},"Generate Template",{"$f":"AND(Questionnaire!D248,Approving_Entity=Labour_Select,Event_Delegation_Level>3.5,Event_Delegation_Level<4.5)","v":false},"Generate Template",{"$f":"AND(Questionnaire!D248,Approving_Entity=Labour_Select,Event_Delegation_Level>3.5,Event_Delegation_Level<4.5)","v":false}]
["Template Location",{"$f":"A416","v":"http://dialogue/grp/AO-Transformation-OC/THCEE/"},"Template Location",{"$f":"C33","v":"http://dialogue/grp/AO-Transformation-OC/THCEE/"},"Template Location",{"$f":"$D$3","v":"http://dialogue/grp/AO-Transformation-OC/THCEE/"},"Template Location",{"$f":"$D$3","v":"http://dialogue/grp/AO-Transformation-OC/THCEE/"},"Template Location",{"$f":"$D$3","v":"http://dialogue/grp/AO-Transformation-OC/THCEE/"},"Template Location",{"$f":"$D$3","v":"http://dialogue/grp/AO-Transformation-OC/THCEE/"},"Template Location",{"$f":"$D$3","v":"http://dialogue/grp/AO-Transformation-OC/THCEE/"},"Template Location",{"$f":"$D$3","v":"http://dialogue/grp/AO-Transformation-OC/THCEE/"},"Template Location",{"$f":"$D$3","v":"http://dialogue/grp/AO-Transformation-OC/THCEE/"},"Template Location",{"$f":"$D$3","v":"http://dialogue/grp/AO-Transformation-OC/THCEE/"},"Template Location",{"$f":"$D$3","v":"http://dialogue/grp/AO-Transformation-OC/THCEE/"}]
["Template Name","Autorisation_Authorization_Oct_2017.docx","Template Name","Event_memo_Minister_ESDC_V2.dotx","Template Name","Evenement_note_Ministre_EDSC_V2.dotx","Template Name","Event_memo_Minister_Labour.dotx","Template Name","Evenement_note_Ministre_Travail.dotx","Template Name","Event_memo_COO_SC.dotx","Template Name","Evenement_note_chef_operations_SC.dotx","Template Name","Event_memo_DM_ESDC_V2.dotx","Template Name","Evenement_note_SM_EDSC_V2.dotx","Template Name","Event_memo_DM_Labour_V2.dotx","Template Name","Evenement_note_SM_Travail_V2.dotx"]
["webCIMSID",{"$f":"IF(WebCIMS_ID=0,\" \",WebCIMS_ID)","v":" "},"webCIMSID",{"$f":"IF(WebCIMS_ID=0,\" \",WebCIMS_ID)","v":" "},"webCIMSID",{"$f":"IF(WebCIMS_ID=0,\" \",WebCIMS_ID)","v":" "},"webCIMSID",{"$f":"IF(WebCIMS_ID=0,\" \",WebCIMS_ID)","v":" "},"webCIMSID",{"$f":"IF(WebCIMS_ID=0,\" \",WebCIMS_ID)","v":" "},"webCIMSID",{"$f":"IF(WebCIMS_ID=0,\" \",WebCIMS_ID)","v":" "},"webCIMSID",{"$f":"IF(WebCIMS_ID=0,\" \",WebCIMS_ID)","v":" "},"webCIMSID",{"$f":"IF(WebCIMS_ID=0,\" \",WebCIMS_ID)","v":" "},"webCIMSID",{"$f":"IF(WebCIMS_ID=0,\" \",WebCIMS_ID)","v":" "},"webCIMSID",{"$f":"IF(WebCIMS_ID=0,\" \",WebCIMS_ID)","v":" "},"webCIMSID",{"$f":"IF(WebCIMS_ID=0,\" \",WebCIMS_ID)","v":" "}]
["internalIO",null,"activityTitle",{"$f":"IF(Activity_Title=0,\" \",UPPER(Activity_Title))","v":" "},"activityTitle",{"$f":"IF(Activity_Title_French=0,D6,UPPER(Activity_Title_French))","v":" "},"activityTitle",{"$f":"IF(Activity_Title=0,\" \",UPPER(Activity_Title))","v":" "},"activityTitle",{"$f":"IF(Activity_Title_French=0,H6,UPPER(Activity_Title_French))","v":" "},"activityTitle",{"$f":"IF(Activity_Title=0,\" \",UPPER(Activity_Title))","v":" "},"activityTitle",{"$f":"IF(Activity_Title_French=0,L6,UPPER(Activity_Title_French))","v":" "},"activityTitle",{"$f":"IF(Activity_Title=0,\" \",UPPER(Activity_Title))","v":" "},"activityTitle",{"$f":"IF(Activity_Title_French=0,P6,UPPER(Activity_Title_French))","v":" "},"activityTitle",{"$f":"IF(Activity_Title=0,\" \",UPPER(Activity_Title))","v":" "},"activityTitle",{"$f":"IF(Activity_Title_French=0,T6,UPPER(Activity_Title_French))","v":" "}]
["event",{"$f":"IF(Activity_is_Event,\"bntChecked\",\"btnUnchecked\")","v":"btnUnchecked"},"activityDate",{"$f":"IF(UNKNOWN_DATE,\" \",IF(Activity_To_Date-Activity_From_Date=0,DAY(Activity_From_Date)&\"-\"&MONTH(Activity_From_Date)&\"-\"&YEAR(Activity_From_Date),\"From \"&DAY(Activity_From_Date)&\"-\"&MONTH(Activity_From_Date)&\"-\"&YEAR(Activity_From_Date)&\" to \"&DAY(Activity_To_Date)&\"-\"&MONTH(Activity_To_Date)&\"-\"&YEAR(Activity_To_Date)))","v":"22-10-2021"},"activityDate",{"$f":"IF(UNKNOWN_DATE,\" \",IF(Activity_To_Date-Activity_From_Date=0,DAY(Activity_From_Date)&\"-\"&MONTH(Activity_From_Date)&\"-\"&YEAR(Activity_From_Date),\"du \"&DAY(Activity_From_Date)&\"-\"&MONTH(Activity_From_Date)&\"-\"&YEAR(Activity_From_Date)&\" au \"&DAY(Activity_To_Date)&\"-\"&MONTH(Activity_To_Date)&\"-\"&YEAR(Activity_To_Date)))","v":"22-10-2021"},"activityDate",{"$f":"IF(UNKNOWN_DATE,\" \",IF(Activity_To_Date-Activity_From_Date=0,DAY(Activity_From_Date)&\"-\"&MONTH(Activity_From_Date)&\"-\"&YEAR(Activity_From_Date),\"From \"&DAY(Activity_From_Date)&\"-\"&MONTH(Activity_From_Date)&\"-\"&YEAR(Activity_From_Date)&\" to \"&DAY(Activity_To_Date)&\"-\"&MONTH(Activity_To_Date)&\"-\"&YEAR(Activity_To_Date)))","v":"22-10-2021"},"activityDate",{"$f":"IF(UNKNOWN_DATE,\" \",IF(Activity_To_Date-Activity_From_Date=0,DAY(Activity_From_Date)&\"-\"&MONTH(Activity_From_Date)&\"-\"&YEAR(Activity_From_Date),\"du \"&DAY(Activity_From_Date)&\"-\"&MONTH(Activity_From_Date)&\"-\"&YEAR(Activity_From_Date)&\" au \"&DAY(Activity_To_Date)&\"-\"&MONTH(Activity_To_Date)&\"-\"&YEAR(Activity_To_Date)))","v":"22-10-2021"},"activityDate",{"$f":"IF(UNKNOWN_DATE,\" \",IF(Activity_To_Date-Activity_From_Date=0,DAY(Activity_From_Date)&\"-\"&MONTH(Activity_From_Date)&\"-\"&YEAR(Activity_From_Date),\"From \"&DAY(Activity_From_Date)&\"-\"&MONTH(Activity_From_Date)&\"-\"&YEAR(Activity_From_Date)&\" to \"&DAY(Activity_To_Date)&\"-\"&MONTH(Activity_To_Date)&\"-\"&YEAR(Activity_To_Date)))","v":"22-10-2021"},"activityDate",{"$f":"IF(UNKNOWN_DATE,\" \",IF(Activity_To_Date-Activity_From_Date=0,DAY(Activity_From_Date)&\"-\"&MONTH(Activity_From_Date)&\"-\"&YEAR(Activity_From_Date),\"du \"&DAY(Activity_From_Date)&\"-\"&MONTH(Activity_From_Date)&\"-\"&YEAR(Activity_From_Date)&\" au \"&DAY(Activity_To_Date)&\"-\"&MONTH(Activity_To_Date)&\"-\"&YEAR(Activity_To_Date)))","v":"22-10-2021"},"activityDate",{"$f":"IF(UNKNOWN_DATE,\" \",IF(Activity_To_Date-Activity_From_Date=0,DAY(Activity_From_Date)&\"-\"&MONTH(Activity_From_Date)&\"-\"&YEAR(Activity_From_Date),\"From \"&DAY(Activity_From_Date)&\"-\"&MONTH(Activity_From_Date)&\"-\"&YEAR(Activity_From_Date)&\" to \"&DAY(Activity_To_Date)&\"-\"&MONTH(Activity_To_Date)&\"-\"&YEAR(Activity_To_Date)))","v":"22-10-2021"},"activityDate",{"$f":"IF(UNKNOWN_DATE,\" \",IF(Activity_To_Date-Activity_From_Date=0,DAY(Activity_From_Date)&\"-\"&MONTH(Activity_From_Date)&\"-\"&YEAR(Activity_From_Date),\"du \"&DAY(Activity_From_Date)&\"-\"&MONTH(Activity_From_Date)&\"-\"&YEAR(Activity_From_Date)&\" au \"&DAY(Activity_To_Date)&\"-\"&MONTH(Activity_To_Date)&\"-\"&YEAR(Activity_To_Date)))","v":"22-10-2021"},"activityDate",{"$f":"IF(UNKNOWN_DATE,\" \",IF(Activity_To_Date-Activity_From_Date=0,DAY(Activity_From_Date)&\"-\"&MONTH(Activity_From_Date)&\"-\"&YEAR(Activity_From_Date),\"From \"&DAY(Activity_From_Date)&\"-\"&MONTH(Activity_From_Date)&\"-\"&YEAR(Activity_From_Date)&\" to \"&DAY(Activity_To_Date)&\"-\"&MONTH(Activity_To_Date)&\"-\"&YEAR(Activity_To_Date)))","v":"22-10-2021"},"activityDate",{"$f":"IF(UNKNOWN_DATE,\" \",IF(Activity_To_Date-Activity_From_Date=0,DAY(Activity_From_Date)&\"-\"&MONTH(Activity_From_Date)&\"-\"&YEAR(Activity_From_Date),\"du \"&DAY(Activity_From_Date)&\"-\"&MONTH(Activity_From_Date)&\"-\"&YEAR(Activity_From_Date)&\" au \"&DAY(Activity_To_Date)&\"-\"&MONTH(Activity_To_Date)&\"-\"&YEAR(Activity_To_Date)))","v":"22-10-2021"}]
["operational",{"$f":"IF(Activity_is_Event,\"btnUnchecked\",\"btnChecked\")","v":"btnChecked"},"eventTotalCost",{"$f":"E28","v":"$0.00"},"eventTotalCost",{"$f":"E29","v":"0,00 $"},"eventTotalCost",{"$f":"D8","v":"$0.00"},"eventTotalCost",{"$f":"F8","v":"0,00 $"},"eventTotalCost",{"$f":"H8","v":"$0.00"},"eventTotalCost",{"$f":"J8","v":"0,00 $"},"eventTotalCost",{"$f":"L8","v":"$0.00"},"eventTotalCost",{"$f":"N8","v":"0,00 $"},"eventTotalCost",{"$f":"P8","v":"$0.00"},"eventTotalCost",{"$f":"R8","v":"0,00 $"}]
["retreat",{"$f":"IF(btnTypeEventOper=1,\"bntChecked\",\"btnUnchecked\")","v":"btnUnchecked"},"activityTitle2",{"$f":"Activity_Title","v":0},"activityTitle2",{"$f":"Activity_Title_French","v":0},"activityTitle2",{"$f":"Activity_Title","v":0},"activityTitle2",{"$f":"Activity_Title_French","v":0},"activityTitle2",{"$f":"Activity_Title","v":0},"activityTitle2",{"$f":"Activity_Title_French","v":0},"activityTitle2",{"$f":"Activity_Title","v":0},"activityTitle2",{"$f":"Activity_Title_French","v":0},"activityTitle2",{"$f":"Activity_Title","v":0},"activityTitle2",{"$f":"Activity_Title_French","v":0}]
["award",{"$f":"IF(btnTypeEventOper=2,\"bntChecked\",\"btnUnchecked\")","v":"btnUnchecked"},"activityLocation",{"$f":"Activity_Location","v":0},"activityLocation",{"$f":"Activity_Location","v":0},"activityLocation",{"$f":"Activity_Location","v":0},"activityLocation",{"$f":"Activity_Location","v":0},"activityLocation",{"$f":"Activity_Location","v":0},"activityLocation",{"$f":"Activity_Location","v":0},"activityLocation",{"$f":"Activity_Location","v":0},"activityLocation",{"$f":"Activity_Location","v":0},"activityLocation",{"$f":"Activity_Location","v":0},"activityLocation",{"$f":"Activity_Location","v":0}]
["ceremony",{"$f":"IF(btnTypeEventOper=3,\"bntChecked\",\"btnUnchecked\")","v":"btnUnchecked"},"dateLiaison",{"$f":"\"Delete\"","v":"Delete"},"dateLiaison",{"$f":"\"Delete\"","v":"Delete"},"dateLiaison",{"$f":"\"Delete\"","v":"Delete"},"dateLiaison",{"$f":"\"Delete\"","v":"Delete"},"dateLiaison",{"$f":"\"Delete\"","v":"Delete"},"dateLiaison",{"$f":"\"Delete\"","v":"Delete"},"dateLiaison",{"$f":"\"Delete\"","v":"Delete"},"dateLiaison",{"$f":"\"Delete\"","v":"Delete"},"dateLiaison",{"$f":"\"Delete\"","v":"Delete"},"dateLiaison",{"$f":"\"Delete\"","v":"Delete"}]
["conference",{"$f":"IF(btnTypeEventOper=4,\"bntChecked\",\"btnUnchecked\")","v":"btnUnchecked"},"activityDate2",{"$f":"IF(UNKNOWN_DATE,\".\",IF(Activity_To_Date-Activity_From_Date=0,\" on \" &DAY(Activity_From_Date)&\"-\"&MONTH(Activity_From_Date)&\"-\"&YEAR(Activity_From_Date)& \".\",\" from \"&DAY(Activity_From_Date)&\"-\"&MONTH(Activity_From_Date)&\"-\"&YEAR(Activity_From_Date)&\" to \"&DAY(Activity_To_Date)&\"-\"&MONTH(Activity_To_Date)&\"-\"&YEAR(Activity_To_Date)&\".\"))","v":" on 22-10-2021."},"activityDate2",{"$f":"IF(UNKNOWN_DATE,\".\",IF(Activity_To_Date-Activity_From_Date=0,\" le \" &DAY(Activity_From_Date)&\"-\"&MONTH(Activity_From_Date)&\"-\"&YEAR(Activity_From_Date)& \".\",\" du \"&DAY(Activity_From_Date)&\"-\"&MONTH(Activity_From_Date)&\"-\"&YEAR(Activity_From_Date)&\" au \"&DAY(Activity_To_Date)&\"-\"&MONTH(Activity_To_Date)&\"-\"&YEAR(Activity_To_Date)&\".\"))","v":" le 22-10-2021."},"activityDate2",{"$f":"IF(UNKNOWN_DATE,\".\",IF(Activity_To_Date-Activity_From_Date=0,\" on \" &DAY(Activity_From_Date)&\"-\"&MONTH(Activity_From_Date)&\"-\"&YEAR(Activity_From_Date)& \".\",\" from \"&DAY(Activity_From_Date)&\"-\"&MONTH(Activity_From_Date)&\"-\"&YEAR(Activity_From_Date)&\" to \"&DAY(Activity_To_Date)&\"-\"&MONTH(Activity_To_Date)&\"-\"&YEAR(Activity_To_Date)&\".\"))","v":" on 22-10-2021."},"activityDate2",{"$f":"IF(UNKNOWN_DATE,\".\",IF(Activity_To_Date-Activity_From_Date=0,\" le \" &DAY(Activity_From_Date)&\"-\"&MONTH(Activity_From_Date)&\"-\"&YEAR(Activity_From_Date)& \".\",\" du \"&DAY(Activity_From_Date)&\"-\"&MONTH(Activity_From_Date)&\"-\"&YEAR(Activity_From_Date)&\" au \"&DAY(Activity_To_Date)&\"-\"&MONTH(Activity_To_Date)&\"-\"&YEAR(Activity_To_Date)&\".\"))","v":" le 22-10-2021."},"activityDate2",{"$f":"IF(UNKNOWN_DATE,\".\",IF(Activity_To_Date-Activity_From_Date=0,\" on \" &DAY(Activity_From_Date)&\"-\"&MONTH(Activity_From_Date)&\"-\"&YEAR(Activity_From_Date)& \".\",\" from \"&DAY(Activity_From_Date)&\"-\"&MONTH(Activity_From_Date)&\"-\"&YEAR(Activity_From_Date)&\" to \"&DAY(Activity_To_Date)&\"-\"&MONTH(Activity_To_Date)&\"-\"&YEAR(Activity_To_Date)&\".\"))","v":" on 22-10-2021."},"activityDate2",{"$f":"IF(UNKNOWN_DATE,\".\",IF(Activity_To_Date-Activity_From_Date=0,\" le \" &DAY(Activity_From_Date)&\"-\"&MONTH(Activity_From_Date)&\"-\"&YEAR(Activity_From_Date)& \".\",\" du \"&DAY(Activity_From_Date)&\"-\"&MONTH(Activity_From_Date)&\"-\"&YEAR(Activity_From_Date)&\" au \"&DAY(Activity_To_Date)&\"-\"&MONTH(Activity_To_Date)&\"-\"&YEAR(Activity_To_Date)&\".\"))","v":" le 22-10-2021."},"activityDate2",{"$f":"IF(UNKNOWN_DATE,\".\",IF(Activity_To_Date-Activity_From_Date=0,\" on \" &DAY(Activity_From_Date)&\"-\"&MONTH(Activity_From_Date)&\"-\"&YEAR(Activity_From_Date)& \".\",\" from \"&DAY(Activity_From_Date)&\"-\"&MONTH(Activity_From_Date)&\"-\"&YEAR(Activity_From_Date)&\" to \"&DAY(Activity_To_Date)&\"-\"&MONTH(Activity_To_Date)&\"-\"&YEAR(Activity_To_Date)&\".\"))","v":" on 22-10-2021."},"activityDate2",{"$f":"IF(UNKNOWN_DATE,\".\",IF(Activity_To_Date-Activity_From_Date=0,\" le \" &DAY(Activity_From_Date)&\"-\"&MONTH(Activity_From_Date)&\"-\"&YEAR(Activity_From_Date)& \".\",\" du \"&DAY(Activity_From_Date)&\"-\"&MONTH(Activity_From_Date)&\"-\"&YEAR(Activity_From_Date)&\" au \"&DAY(Activity_To_Date)&\"-\"&MONTH(Activity_To_Date)&\"-\"&YEAR(Activity_To_Date)&\".\"))","v":" le 22-10-2021."},"activityDate2",{"$f":"IF(UNKNOWN_DATE,\".\",IF(Activity_To_Date-Activity_From_Date=0,\" on \" &DAY(Activity_From_Date)&\"-\"&MONTH(Activity_From_Date)&\"-\"&YEAR(Activity_From_Date)& \".\",\" from \"&DAY(Activity_From_Date)&\"-\"&MONTH(Activity_From_Date)&\"-\"&YEAR(Activity_From_Date)&\" to \"&DAY(Activity_To_Date)&\"-\"&MONTH(Activity_To_Date)&\"-\"&YEAR(Activity_To_Date)&\".\"))","v":" on 22-10-2021."},"activityDate2",{"$f":"IF(UNKNOWN_DATE,\".\",IF(Activity_To_Date-Activity_From_Date=0,\" le \" &DAY(Activity_From_Date)&\"-\"&MONTH(Activity_From_Date)&\"-\"&YEAR(Activity_From_Date)& \".\",\" du \"&DAY(Activity_From_Date)&\"-\"&MONTH(Activity_From_Date)&\"-\"&YEAR(Activity_From_Date)&\" au \"&DAY(Activity_To_Date)&\"-\"&MONTH(Activity_To_Date)&\"-\"&YEAR(Activity_To_Date)&\".\"))","v":" le 22-10-2021."}]
["outHead",{"$f":"IF(btnTypeEventOper=5,\"bntChecked\",\"btnUnchecked\")","v":"btnUnchecked"},"summaryApprovalJusticication",{"$f":"IF(TRUE,IF(ISERROR(VLOOKUP(Event_Delegation_Level,Delegation!A4:B14,2,FALSE)),0,VLOOKUP(Event_Delegation_Level,Delegation!A4:B14,2,FALSE))&\" approval is required in cases where \" & Memo_Text_En &\" I confirm that the proposed expenditures provide value for money and the most economical options have been selected.\",\"\")","v":{"$error":"#REF!"}},"summaryApprovalJusticication",{"$f":"IF(TRUE,\"L’approbation du \"&IF(ISERROR(VLOOKUP(Event_Delegation_Level,Delegation!A4:C14,3,FALSE)),0,VLOOKUP(Event_Delegation_Level,Delegation!A4:C14,3,FALSE))&\" est requise dans les circonstances où \" & Memo_Text_FR &\" Je confirme que les dépenses proposées contribuent à l’optimisation des ressources et que les solutions les plus économiques ont été choisies.\",\"\")","v":{"$error":"#REF!"}},"summaryApprovalJusticication",{"$f":"IF(TRUE,IF(ISERROR(VLOOKUP(Event_Delegation_Level,Delegation!A4:B14,2,FALSE)),0,VLOOKUP(Event_Delegation_Level,Delegation!A4:B14,2,FALSE))&\" approval is required in cases where \" & Memo_Text_En &\" I confirm that the proposed expenditures provide value for money and the most economical options have been selected.\",\"\")","v":{"$error":"#REF!"}},"summaryApprovalJusticication",{"$f":"IF(TRUE,\"L’approbation du \"&IF(ISERROR(VLOOKUP(Event_Delegation_Level,Delegation!A4:C14,3,FALSE)),0,VLOOKUP(Event_Delegation_Level,Delegation!A4:C14,3,FALSE))&\" est requise dans les circonstances où \" & Memo_Text_FR &\" Je confirme que les dépenses proposées contribuent à l’optimisation des ressources et que les solutions les plus économiques ont été choisies.\",\"\")","v":{"$error":"#REF!"}},"summaryApprovalJusticication",{"$f":"IF(TRUE,IF(ISERROR(VLOOKUP(Event_Delegation_Level,Delegation!A4:B14,2,FALSE)),0,VLOOKUP(Event_Delegation_Level,Delegation!A4:B14,2,FALSE))&\" approval is required in cases where \" & Memo_Text_En &\" I confirm that the proposed expenditures provide value for money and the most economical options have been selected.\",\"\")","v":{"$error":"#REF!"}},"summaryApprovalJusticication",{"$f":"IF(TRUE,\"L’approbation du \"&IF(ISERROR(VLOOKUP(Event_Delegation_Level,Delegation!A4:C14,3,FALSE)),0,VLOOKUP(Event_Delegation_Level,Delegation!A4:C14,3,FALSE))&\" est requise dans les circonstances où \" & Memo_Text_FR &\" Je confirme que les dépenses proposées contribuent à l’optimisation des ressources et que les solutions les plus économiques ont été choisies.\",\"\")","v":{"$error":"#REF!"}},"summaryApprovalJusticication",{"$f":"IF(TRUE,IF(ISERROR(VLOOKUP(Event_Delegation_Level,Delegation!A4:B14,2,FALSE)),0,VLOOKUP(Event_Delegation_Level,Delegation!A4:B14,2,FALSE))&\" approval is required in cases where \" & Memo_Text_En &\" I confirm that the proposed expenditures provide value for money and the most economical options have been selected.\",\"\")","v":{"$error":"#REF!"}},"summaryApprovalJusticication",{"$f":"IF(TRUE,\"L’approbation du \"&IF(ISERROR(VLOOKUP(Event_Delegation_Level,Delegation!A4:C14,3,FALSE)),0,VLOOKUP(Event_Delegation_Level,Delegation!A4:C14,3,FALSE))&\" est requise dans les circonstances où \" & Memo_Text_FR &\" Je confirme que les dépenses proposées contribuent à l’optimisation des ressources et que les solutions les plus économiques ont été choisies.\",\"\")","v":{"$error":"#REF!"}},"summaryApprovalJusticication",{"$f":"IF(TRUE,IF(ISERROR(VLOOKUP(Event_Delegation_Level,Delegation!A4:B14,2,FALSE)),0,VLOOKUP(Event_Delegation_Level,Delegation!A4:B14,2,FALSE))&\" approval is required in cases where \" & Memo_Text_En &\" I confirm that the proposed expenditures provide value for money and the most economical options have been selected.\",\"\")","v":{"$error":"#REF!"}},"summaryApprovalJusticication",{"$f":"IF(TRUE,\"L’approbation du \"&IF(ISERROR(VLOOKUP(Event_Delegation_Level,Delegation!A4:C14,3,FALSE)),0,VLOOKUP(Event_Delegation_Level,Delegation!A4:C14,3,FALSE))&\" est requise dans les circonstances où \" & Memo_Text_FR &\" Je confirme que les dépenses proposées contribuent à l’optimisation des ressources et que les solutions les plus économiques ont été choisies.\",\"\")","v":{"$error":"#REF!"}}]
["nonOperational",{"$f":"IF(btnTypeEventOper=6,\"bntChecked\",\"btnUnchecked\")","v":"btnUnchecked"},"hospLabelToDelete",{"$f":"\"Delete\"","v":"Delete"},"hospLabelToDelete",{"$f":"\"Delete\"","v":"Delete"},"hospLabelToDelete",{"$f":"\"Delete\"","v":"Delete"},"hospLabelToDelete",{"$f":"\"Delete\"","v":"Delete"},"hospLabelToDelete",{"$f":"\"Delete\"","v":"Delete"},"hospLabelToDelete",{"$f":"\"Delete\"","v":"Delete"},"hospLabelToDelete",{"$f":"\"Delete\"","v":"Delete"},"hospLabelToDelete",{"$f":"\"Delete\"","v":"Delete"},"hospLabelToDelete",{"$f":"\"Delete\"","v":"Delete"},"hospLabelToDelete",{"$f":"\"Delete\"","v":"Delete"}]
["lessor15k",{"$f":"IF(AND(Activity_is_Event,Event_Total_Cost<=15000),\"bntChecked\",\"btnUnchecked\")","v":"btnUnchecked"},"hospitalityAmount",{"$f":"G28","v":"$0.00"},"hospitalityAmount",{"$f":"G29","v":"0,00 $"},"hospitalityAmount",{"$f":"D15","v":"$0.00"},"hospitalityAmount",{"$f":"F15","v":"0,00 $"},"hospitalityAmount",{"$f":"H15","v":"$0.00"},"hospitalityAmount",{"$f":"J15","v":"0,00 $"},"hospitalityAmount",{"$f":"L15","v":"$0.00"},"hospitalityAmount",{"$f":"N15","v":"0,00 $"},"hospitalityAmount",{"$f":"P15","v":"$0.00"},"hospitalityAmount",{"$f":"R15","v":"0,00 $"}]
["between15and25K",{"$f":"IF(AND(Activity_is_Event,Event_Total_Cost>15000,Event_Total_Cost<=25000),\"bntChecked\",\"btnUnchecked\")","v":"btnUnchecked"},"hospitalityBlock",{"$f":"IF(AND(Hospitality_Expenses=Yes_Select,Hospitality_Total_Cost>0.01),\"\",\"Delete\")","v":"Delete"},"hospitalityBlock",{"$f":"IF(AND(Hospitality_Expenses=Yes_Select,Hospitality_Total_Cost>0.01),\"\",\"Delete\")","v":"Delete"},"hospitalityBlock",{"$f":"IF(AND(Hospitality_Expenses=Yes_Select,Hospitality_Total_Cost>0.01),\"\",\"Delete\")","v":"Delete"},"hospitalityBlock",{"$f":"IF(AND(Hospitality_Expenses=Yes_Select,Hospitality_Total_Cost>0.01),\"\",\"Delete\")","v":"Delete"},"hospitalityBlock",{"$f":"IF(AND(Hospitality_Expenses=Yes_Select,Hospitality_Total_Cost>0.01),\"\",\"Delete\")","v":"Delete"},"hospitalityBlock",{"$f":"IF(AND(Hospitality_Expenses=Yes_Select,Hospitality_Total_Cost>0.01),\"\",\"Delete\")","v":"Delete"},"hospitalityBlock",{"$f":"IF(AND(Hospitality_Expenses=Yes_Select,Hospitality_Total_Cost>0.01),\"\",\"Delete\")","v":"Delete"},"hospitalityBlock",{"$f":"IF(AND(Hospitality_Expenses=Yes_Select,Hospitality_Total_Cost>0.01),\"\",\"Delete\")","v":"Delete"},"hospitalityBlock",{"$f":"IF(AND(Hospitality_Expenses=Yes_Select,Hospitality_Total_Cost>0.01),\"\",\"Delete\")","v":"Delete"},"hospitalityBlock",{"$f":"IF(AND(Hospitality_Expenses=Yes_Select,Hospitality_Total_Cost>0.01),\"\",\"Delete\")","v":"Delete"}]
["between25and50K",{"$f":"IF(AND(Activity_is_Event,Event_Total_Cost>25000,Event_Total_Cost<=50000),\"bntChecked\",\"btnUnchecked\")","v":"btnUnchecked"},"totalAmount",{"$f":"D8","v":"$0.00"},"totalAmount",{"$f":"F8","v":"0,00 $"},"totalAmount",{"$f":"H8","v":"$0.00"},"totalAmount",{"$f":"F17","v":"0,00 $"},"totalAmount",{"$f":"L8","v":"$0.00"},"totalAmount",{"$f":"J17","v":"0,00 $"},"totalAmount",{"$f":"P8","v":"$0.00"},"totalAmount",{"$f":"N17","v":"0,00 $"},"totalAmount",{"$f":"T8","v":"$0.00"},"totalAmount",{"$f":"R17","v":"0,00 $"}]
["over50K",{"$f":"IF(AND(Activity_is_Event,Event_Total_Cost>50000),\"bntChecked\",\"btnUnchecked\")","v":"btnUnchecked"}]
["belowStandard",{"$f":"IF(AND(Hospitality_Expenses=Yes_Select,SUM(Meals_Exceeding_Standard)=0),\"bntChecked\",\"btnUnchecked\")","v":"btnUnchecked"}]
["overStandard",{"$f":"IF(AND(Hospitality_Expenses=Yes_Select,SUM(Meals_Exceeding_Standard)>0,SUM(Meals_Exceeding_Maximum)=0), \"Checked\",\"Unchecked\")","v":"Unchecked"}]
["overMaximum",{"$f":"IF(AND(Hospitality_Expenses=Yes_Select,SUM(Meals_Exceeding_Maximum)>0),\"bntChecked\",\"btnUnchecked\")","v":"btnUnchecked"},null,null,"eventTotalCost",null,"hospitalityAmount"]
["hospLess2k",{"$f":"IF(AND(Hospitality_Expenses=Yes_Select,Hospitality_Total_Cost>0,Hospitality_Total_Cost<=2000),\"bntChecked\",\"btnUnchecked\")","v":"btnUnchecked"},"Value",null,{"$f":"Event_Total_Cost","v":0},null,{"$f":"Hospitality_Total_Cost","v":0}]
["hosp2to3K",{"$f":"IF(AND(Hospitality_Expenses=Yes_Select,Hospitality_Total_Cost>2000,Hospitality_Total_Cost<=3000),\"bntChecked\",\"btnUnchecked\")","v":"btnUnchecked"},"Thousands",null,{"$f":"TRUNC(E22/1000)","v":0},null,{"$f":"TRUNC(G22/1000)","v":0}]
["hosp3to10K",{"$f":"IF(AND(Hospitality_Expenses=Yes_Select,Hospitality_Total_Cost>3000,Hospitality_Total_Cost<=10000),\"bntChecked\",\"btnUnchecked\")","v":"btnUnchecked"},"Hundreds + 1000",null,{"$f":"TRUNC(E22)","v":0},null,{"$f":"TRUNC(G22)","v":0}]
["hospOver10k",{"$f":"IF(AND(Hospitality_Expenses=Yes_Select,Hospitality_Total_Cost>10000),\"bntChecked\",\"btnUnchecked\")","v":"btnUnchecked"},"Hundreds Final",null,{"$f":"RIGHT(E24,3)","v":"0"},null,{"$f":"RIGHT(G24,3)","v":"0"}]
["travelDomestic",{"$f":"IF(AND(Travel_Expenses=Yes_Select,Travel_Type=Travel_Domestic_Select),\"bntChecked\",\"btnUnchecked\")","v":"btnUnchecked"},"Decimals Raw",null,{"$f":"ROUND(E22-TRUNC(E22),2)","v":0},null,{"$f":"ROUND(G22-TRUNC(G22),2)","v":0}]
["travelIntPlan",{"$f":"IF(AND(Travel_Expenses=Yes_Select,Travel_Type=Travel_International_Select,Travel_On_Plan=Yes_Select),\"bntChecked\",\"btnUnchecked\")","v":"btnUnchecked"},"Decimals Final",null,{"$f":"IF(E26<0.001,\"00\",IF(LEN(E26)=3,RIGHT(E26,1)&\"0\",RIGHT(E26,2)))","v":"00"},null,{"$f":"IF(G26<0.001,\"00\",IF(LEN(G26)=3,RIGHT(G26,1)&\"0\",RIGHT(G26,2)))","v":"00"}]
["travelIntAdHoc",{"$f":"IF(AND(Travel_Expenses=Yes_Select,Travel_Type=Travel_International_Select,NOT(Travel_On_Plan=Yes_Select)),\"bntChecked\",\"btnUnchecked\")","v":"btnUnchecked"},"English Memo",null,{"$f":"\"$\"&IF(E23>0,E23&\",\",\"\")&IF(E25>0,E25,\"0\")&\".\"&E27","v":"$0.00"},null,{"$f":"\"$\"&IF(G23>0,G23&\",\",\"\")&IF(G25>0,G25,\"0\")&\".\"&G27","v":"$0.00"}]
["activityTitle",{"$f":"IF(Activity_Title=0,\"\",Activity_Title &IF(Activity_Title_French=0,\"\",\" / \" &Activity_Title_French))","v":""},"French Memo",null,{"$f":"IF(E23>0,E23&CHAR(160),\"\")&IF(E25>0,E25,\"0\")&\",\"&E27&CHAR(160)&\"$\"","v":"0,00 $"},null,{"$f":"IF(G23>0,G23&CHAR(160),\"\")&IF(G25>0,G25,\"0\")&\",\"&G27&CHAR(160)&\"$\"","v":"0,00 $"}]
["nature",{"$f":"IF(Purpose=0,\" \",Purpose)","v":" "}]
["hospitalityAmount",{"$f":"IF(Hospitality_Expenses=Yes_Select,Hospitality_Total_Cost,0)","v":0}]
["conferenceAmount",{"$f":"IF(AND(Conference_Fees=Yes_Select,Conference),Conference_Total_Cost,0)","v":0},"Location of Word Templates"]
["trainingAmount",{"$f":"IF(AND(Conference_Fees=Yes_Select,Training),Conference_Total_Cost,0)","v":0},"http://dialogue/grp/AO-Transformation-OC/THCEE/"]
["travelAmount",{"$f":"IF(Travel_Expenses=Yes_Select,Travel_Total_Cost,0)","v":0}]
["otherAmount",{"$f":"Other_Total_Cost","v":0}]
["totalAmount",{"$f":"SUM(B31:B35)","v":0}]
["oneFC",{"$f":"IF(Activity_Paid_By=One_RC_Select,\"bntChecked\",\"btnUnchecked\")","v":"btnUnchecked"}]
["multipleFC",{"$f":"IF(Activity_Paid_By=Multiple_RC_Select,\"bntChecked\",\"btnUnchecked\")","v":"btnUnchecked"}]
["paidByOther",{"$f":"IF(Is_Cost_For_OGD=Yes_Select,\"bntChecked\",\"btnUnchecked\")","v":"btnUnchecked"}]
["location",{"$f":"IF(Activity_Location=0,\"\",Activity_Location)","v":""}]
["from",{"$f":"IF(OR(Activity_From_Date=0,UNKNOWN_DATE),\"\", YEAR(Activity_From_Date)&\"/\"&MONTH(Activity_From_Date)&\"/\"&DAY(Activity_From_Date))","v":"2021/10/22"}]
["au",{"$f":"IF(OR(Activity_To_Date=0,UNKNOWN_DATE),\"\",YEAR(Activity_To_Date)&\"/\"&MONTH(Activity_To_Date)&\"/\"&DAY(Activity_To_Date))","v":"2021/10/22"}]
["publicServant",{"$f":"PS_Participants","v":""}]
["nonPS",{"$f":"Non_PS_Participants","v":""}]
["justificationPS",{"$f":"IF(AND(PS_Participants>0,NOT(PS_Participants_Justification=0)),PS_Participants_Justification,\"\")","v":""}]
["costOGD",{"$f":"Cost_For_OGD","v":0}]
["totalCostGC",{"$f":"B36+B46","v":0}]
["totalAtendees",{"$f":"B43+B44","v":{"$error":"#VALUE!"}}]
["avrgCostTrav",{"$f":"IF(Number_of_Travellers=0,0,B34/Number_of_Travellers)","v":0}]
["avrgCostPerson",{"$f":"IF(B48=0,0,B36/B48)","v":{"$error":"#VALUE!"}}]
["govFacilityYes",{"$f":"IF(Government_Facility=Yes_Select,\"bntChecked\",\"btnUnchecked\")","v":"btnUnchecked"}]
["govFacilityNo",{"$f":"IF(Government_Facility=Yes_Select,\"btnUnchecked\",\"btnChecked\")","v":"btnChecked"}]
["noDiscretion",{"$f":"IF(Facility_Reason1_Selected=Yes_Select,\"bntChecked\",\"btnUnchecked\")","v":"btnUnchecked"}]
["needInfrastructure",{"$f":"IF(Facility_Reason2_Selected=Yes_Select,\"bntChecked\",\"btnUnchecked\")","v":"btnUnchecked"}]
["notInGeoArea",{"$f":"IF(Facility_Reason3_Selected=Yes_Select,\"bntChecked\",\"btnUnchecked\")","v":"btnUnchecked"}]
["notAvailable",{"$f":"IF(Facility_Reason4_Selected=Yes_Select,\"bntChecked\",\"btnUnchecked\")","v":"btnUnchecked"}]
["notCostEffective",{"$f":"IF(Facility_Reason5_Selected=Yes_Select,\"bntChecked\",\"btnUnchecked\")","v":"btnUnchecked"}]
["facilityOtherComments",{"$f":"IF(Comments_For_Approver=0,\" \",Comments_For_Approver)","v":" "}]
["purposeHospitality",{"$f":"IF(OR(Hospitality_Justification=0,Hospitality_Expenses=No_Select),\"\",Hospitality_Justification)","v":""}]
["breakfastCheck",{"$f":"IF(AND(Hospitality_Expenses=Yes_Select,SUM(Hospitality_Breakfast_Tcost)>0),\"bntChecked\",\"btnUnchecked\")","v":"btnUnchecked"}]
["breakfastDays",{"$f":"COUNTIF(Hospitality_Breakfast_Tcost,\"<>0\")","v":0}]
["breakfastAverage",{"$f":"IF(B61=0,0,B63/B61)","v":0}]
["breakfastTC",{"$f":"IF(Hospitality_Expenses=Yes_Select,SUM(Hospitality_Breakfast_Tcost),0)","v":0}]
["lunchCheck",{"$f":"IF(AND(Hospitality_Expenses=Yes_Select,SUM(Hospitality_Lunch_Tcost)>0),\"bntChecked\",\"btnUnchecked\")","v":"btnUnchecked"}]
["lunchDays",{"$f":"COUNTIF(Hospitality_Lunch_Tcost,\"<>0\")","v":0}]
["lunchAverage",{"$f":"IF(B65=0,0,B67/B65)","v":0}]
["lunchTC",{"$f":"IF(Hospitality_Expenses=Yes_Select,SUM(Hospitality_Lunch_Tcost),0)","v":0}]
["dinnerCheck",{"$f":"IF(AND(Hospitality_Expenses=Yes_Select,SUM(Hospitality_Dinner_Tcost)>0),\"bntChecked\",\"btnUnchecked\")","v":"btnUnchecked"}]
["dinnerDays",{"$f":"COUNTIF(Hospitality_Dinner_Tcost,\"<>0\")","v":0}]
["dinnerAverage",{"$f":"IF(B69=0,0,B71/B69)","v":0}]
["dinnerTC",{"$f":"IF(Hospitality_Expenses=Yes_Select,SUM(Hospitality_Dinner_Tcost),0)","v":0}]
["refreshAMCheck",{"$f":"IF(AND(Hospitality_Expenses=Yes_Select,SUM(Hospitality_Morning_Break_Tcost)>0),\"bntChecked\",\"btnUnchecked\")","v":"btnUnchecked"}]
["refreshAMDays",{"$f":"COUNTIF(Hospitality_Morning_Break_Tcost,\"<>0\")","v":0}]
["refreshAMAverage",{"$f":"IF(B73=0,0,B75/B73)","v":0}]
["refreshAMTC",{"$f":"IF(Hospitality_Expenses=Yes_Select,SUM(Hospitality_Morning_Break_Tcost),0)","v":0}]
["refreshPMCheck",{"$f":"IF(AND(Hospitality_Expenses=Yes_Select,SUM(Hospitality_Afternoon_Break_Tcost)>0),\"bntChecked\",\"btnUnchecked\")","v":"btnUnchecked"}]
["refreshPMDays",{"$f":"COUNTIF(Hospitality_Afternoon_Break_Tcost,\"<>0\")","v":0}]
["refreshPMAverage",{"$f":"IF(B77=0,0,B79/B77)","v":0}]
["refreshPMTC",{"$f":"IF(Hospitality_Expenses=Yes_Select,SUM(Hospitality_Afternoon_Break_Tcost),0)","v":0}]
["receptionCheck",{"$f":"IF(AND(Hospitality_Expenses=Yes_Select,SUM(Hospitality_Reception_Tcost)>0),\"bntChecked\",\"btnUnchecked\")","v":"btnUnchecked"}]
["receptionDays",{"$f":"COUNTIF(Hospitality_Reception_Tcost,\"<>0\")","v":0}]
["receptionAverage",{"$f":"IF(B81=0,0,B83/B81)","v":0}]
["receptionTC",{"$f":"IF(Hospitality_Expenses=Yes_Select,SUM(Hospitality_Reception_Tcost),0)","v":0}]
["otherFormCheck",{"$f":"IF(AND(Hospitality_Expenses=Yes_Select,SUM(Hospitality_Others_TotalCost)>0),\"bntChecked\",\"btnUnchecked\")","v":"btnUnchecked"}]
["otherFormDays",{"$f":"COUNTIF(Hospitality_Others_TotalCost,\"<>0\")","v":0}]
["otherFormAverage",{"$f":"IF(B85=0,0,B87/B85)","v":0}]
["otherFormTC",{"$f":"IF(Hospitality_Expenses=Yes_Select,SUM(Hospitality_Others_TotalCost),0)","v":0}]
["exceptionalCheck",{"$f":"IF(AND(Hospitality_Expenses=Yes_Select,T114>0),\"bntChecked\",\"btnUnchecked\")","v":"btnUnchecked"}]
["exceptionalDays",{"$f":"COUNTIF(Hospitality_Others_Exceptional_TotalCost,\"<>0\")","v":0}]
["exceptionalAverage",{"$f":"IF(B89=0,0,B91/B89)","v":0}]
["exceptionalTC",{"$f":"IF(Hospitality_Expenses=Yes_Select,SUM(Hospitality_Others_Exceptional_TotalCost),0)","v":0}]
["alcoholNo",{"$f":"IF(AND(Hospitality_Expenses=Yes_Select,Hospitality_Alcohol=No_Select),\"bntChecked\",\"btnUnchecked\")","v":"btnUnchecked"}]
["alcoholYes",{"$f":"IF(AND(Hospitality_Expenses=Yes_Select,Hospitality_Alcohol=Yes_Select),\"bntChecked\",\"btnUnchecked\")","v":"btnUnchecked"}]
["spouseNo",{"$f":"IF(AND(Hospitality_Expenses=Yes_Select,Exc_Spouse_Hospitality=No_Select),\"bntChecked\",\"btnUnchecked\")","v":"btnUnchecked"}]
["spouseYes",{"$f":"IF(AND(Hospitality_Expenses=Yes_Select,Exc_Spouse_Hospitality=Yes_Select),\"bntChecked\",\"btnUnchecked\")","v":"btnUnchecked"}]
["residenceNo",{"$f":"IF(AND(Hospitality_Expenses=Yes_Select,Hospitality_In_Residence=No_Select),\"bntChecked\",\"btnUnchecked\")","v":"btnUnchecked"}]
["residenceYes",{"$f":"IF(AND(Hospitality_Expenses=Yes_Select,Hospitality_In_Residence=Yes_Select),\"bntChecked\",\"btnUnchecked\")","v":"btnUnchecked"}]
["hospitalityJustification",{"$f":"IF(Hospitality_Expenses=Yes_Select,IF(AND(NOT(Hospitality_Alcohol=No_Select),NOT(Hospitality_Alcohol_Justification=0)),Hospitality_Alcohol_Justification&IF(AND(Exc_Spouse_Hospitality=Yes_Select,NOT(Exc_Spouse_Hospitality_Justification=0)),CHAR(10)&Exc_Spouse_Hospitality_Justification&IF(AND(Hospitality_In_Residence=Yes_Select,NOT(Hospitality_In_Residence_Justification=0)),CHAR(10)&Hospitality_In_Residence_Justification,\"\"),IF(AND(Hospitality_In_Residence=Yes_Select,NOT(Hospitality_In_Residence_Justification=0)),CHAR(10)&Hospitality_In_Residence_Justification,\"\")),IF(AND(Exc_Spouse_Hospitality=Yes_Select,NOT(Exc_Spouse_Hospitality_Justification=0)),Exc_Spouse_Hospitality_Justification&IF(AND(Hospitality_In_Residence=Yes_Select,NOT(Hospitality_In_Residence_Justification=0)),CHAR(10)&Hospitality_In_Residence_Justification,\"\"),IF(AND(Hospitality_In_Residence=Yes_Select,NOT(Hospitality_In_Residence_Justification=0)),Hospitality_In_Residence_Justification,\"\")))&IF(AND(Hospitality_Other_Exceptional>0,NOT(Other_Exceptional_Justification=0)),CHAR(10)&Other_Exceptional_Justification,\"\"),\"\")&IF(AND(Hospitality_Expenses=Yes_Select,NOT(Hospitality_BreakFast_Justification=0)),CHAR(10)&Hospitality_BreakFast_Justification,\"\")","v":""}]
["conferenceCost",{"$f":"Conference_Cost","v":0}]
["infoOnProdServ",{"$f":"IF(btnConfParticipation=1,\"bntChecked\",\"btnUnchecked\")","v":"btnUnchecked"}]
["promoteDept",{"$f":"IF(btnConfParticipation=2,\"bntChecked\",\"btnUnchecked\")","v":"btnUnchecked"}]
["eventProfDev",{"$f":"IF(btnConfParticipation=3,\"bntChecked\",\"btnUnchecked\")","v":"btnUnchecked"}]
["trainingProfDev",{"$f":"IF(AND(btnConfParticipation=3,btnConfList=1),\"bntChecked\",\"btnUnchecked\")","v":"btnUnchecked"}]
["confSponsorship",{"$f":"IF(Conference_Sponsorship=Yes_Select,\"bntChecked\",\"btnUnchecked\")","v":"btnUnchecked"}]
["travelCategory",{"$f":"IF(AND(Travel_Expenses=Yes_Select,NOT(Travel_Category=\"\")),\n       VLOOKUP(Travel_Category,'Travel - System'!T3:V7,2,FALSE)&CHAR(10)&CHAR(10)&VLOOKUP(Travel_Category,'Travel - System'!T3:V7,3,FALSE)\n                                          &IF(Travel_Category=5,CHAR(10)&CHAR(10)&Travel_CategoryOther,\"\"),\n       \"\")","v":""}]
["virtualPresence",{"$f":"IF(AND(Travel_Expenses=Yes_Select,NOT(Virtual_Presence_Justification=\"\")),Virtual_Presence_Justification,\"\")","v":""}]
["branch1",{"$f":"'Authorisation - Autorisation'!B126","v":""}]
["branch1TravellerCount",{"$f":"'Authorisation - Autorisation'!F126","v":0}]
["branch1TransportCost",{"$f":"'Authorisation - Autorisation'!H126","v":0}]
["branch1AccommodationCost",{"$f":"'Authorisation - Autorisation'!K126","v":0}]
["branch1MealCost",{"$f":"'Authorisation - Autorisation'!N126","v":0}]
["branch1IncidentalCost",{"$f":"'Authorisation - Autorisation'!P126","v":0}]
["branch1TotalCost",{"$f":"'Authorisation - Autorisation'!S126","v":0}]
["branch2",{"$f":"'Authorisation - Autorisation'!B127","v":""}]
["branch2TravellerCount",{"$f":"'Authorisation - Autorisation'!F127","v":0}]
["branch2TransportCost",{"$f":"'Authorisation - Autorisation'!H127","v":0}]
["branch2AccommodationCost",{"$f":"'Authorisation - Autorisation'!K127","v":0}]
["branch2MealCost",{"$f":"'Authorisation - Autorisation'!N127","v":0}]
["branch2IncidentalCost",{"$f":"'Authorisation - Autorisation'!P127","v":0}]
["branch2TotalCost",{"$f":"'Authorisation - Autorisation'!S127","v":0}]
["branch3",{"$f":"'Authorisation - Autorisation'!B128","v":""}]
["branch3TravellerCount",{"$f":"'Authorisation - Autorisation'!F128","v":0}]
["branch3TransportCost",{"$f":"'Authorisation - Autorisation'!H128","v":0}]
["branch3AccommodationCost",{"$f":"'Authorisation - Autorisation'!K128","v":0}]
["branch3MealCost",{"$f":"'Authorisation - Autorisation'!N128","v":0}]
["branch3IncidentalCost",{"$f":"'Authorisation - Autorisation'!P128","v":0}]
["branch3TotalCost",{"$f":"'Authorisation - Autorisation'!S128","v":0}]
["branch4",{"$f":"'Authorisation - Autorisation'!B129","v":""}]
["branch4TravellerCount",{"$f":"'Authorisation - Autorisation'!F129","v":0}]
["branch4TransportCost",{"$f":"'Authorisation - Autorisation'!H129","v":0}]
["branch4AccommodationCost",{"$f":"'Authorisation - Autorisation'!K129","v":0}]
["branch4MealCost",{"$f":"'Authorisation - Autorisation'!N129","v":0}]
["branch4IncidentalCost",{"$f":"'Authorisation - Autorisation'!P129","v":0}]
["branch4TotalCost",{"$f":"'Authorisation - Autorisation'!S129","v":0}]
["branch5",{"$f":"'Authorisation - Autorisation'!B130","v":""}]
["branch5TravellerCount",{"$f":"'Authorisation - Autorisation'!F130","v":0}]
["branch5TransportCost",{"$f":"'Authorisation - Autorisation'!H130","v":0}]
["branch5AccommodationCost",{"$f":"'Authorisation - Autorisation'!K130","v":0}]
["branch5MealCost",{"$f":"'Authorisation - Autorisation'!N130","v":0}]
["branch5IncidentalCost",{"$f":"'Authorisation - Autorisation'!P130","v":0}]
["branch5TotalCost",{"$f":"'Authorisation - Autorisation'!S130","v":0}]
["branch6",{"$f":"'Authorisation - Autorisation'!B131","v":""}]
["branch6TravellerCount",{"$f":"'Authorisation - Autorisation'!F131","v":0}]
["branch6TransportCost",{"$f":"'Authorisation - Autorisation'!H131","v":0}]
["branch6AccommodationCost",{"$f":"'Authorisation - Autorisation'!K131","v":0}]
["branch6MealCost",{"$f":"'Authorisation - Autorisation'!N131","v":0}]
["branch6IncidentalCost",{"$f":"'Authorisation - Autorisation'!P131","v":0}]
["branch6TotalCost",{"$f":"'Authorisation - Autorisation'!S131","v":0}]
["branch7",{"$f":"'Authorisation - Autorisation'!B132","v":""}]
["branch7TravellerCount",{"$f":"'Authorisation - Autorisation'!F132","v":0}]
["branch7TransportCost",{"$f":"'Authorisation - Autorisation'!H132","v":0}]
["branch7AccommodationCost",{"$f":"'Authorisation - Autorisation'!K132","v":0}]
["branch7MealCost",{"$f":"'Authorisation - Autorisation'!N132","v":0}]
["branch7IncidentalCost",{"$f":"'Authorisation - Autorisation'!P132","v":0}]
["branch7TotalCost",{"$f":"'Authorisation - Autorisation'!S132","v":0}]
["branch8",{"$f":"'Authorisation - Autorisation'!B133","v":""}]
["branch8TravellerCount",{"$f":"'Authorisation - Autorisation'!F133","v":0}]
["branch8TransportCost",{"$f":"'Authorisation - Autorisation'!H133","v":0}]
["branch8AccommodationCost",{"$f":"'Authorisation - Autorisation'!K133","v":0}]
["branch8MealCost",{"$f":"'Authorisation - Autorisation'!N133","v":0}]
["branch8IncidentalCost",{"$f":"'Authorisation - Autorisation'!P133","v":0}]
["branch8TotalCost",{"$f":"'Authorisation - Autorisation'!S133","v":0}]
["branch9",{"$f":"'Authorisation - Autorisation'!B134","v":""}]
["branch9TravellerCount",{"$f":"'Authorisation - Autorisation'!F134","v":0}]
["branch9TransportCost",{"$f":"'Authorisation - Autorisation'!H134","v":0}]
["branch9AccommodationCost",{"$f":"'Authorisation - Autorisation'!K134","v":0}]
["branch9MealCost",{"$f":"'Authorisation - Autorisation'!N134","v":0}]
["branch9IncidentalCost",{"$f":"'Authorisation - Autorisation'!P134","v":0}]
["branch9TotalCost",{"$f":"'Authorisation - Autorisation'!S134","v":0}]
["branch10",{"$f":"'Authorisation - Autorisation'!B135","v":""}]
["branch10TravellerCount",{"$f":"'Authorisation - Autorisation'!F135","v":0}]
["branch10TransportCost",{"$f":"'Authorisation - Autorisation'!H135","v":0}]
["branch10AccommodationCost",{"$f":"'Authorisation - Autorisation'!K135","v":0}]
["branch10MealCost",{"$f":"'Authorisation - Autorisation'!N135","v":0}]
["branch10IncidentalCost",{"$f":"'Authorisation - Autorisation'!P135","v":0}]
["branch10TotalCost",{"$f":"'Authorisation - Autorisation'!S135","v":0}]
["branch1NPS",{"$f":"'Authorisation - Autorisation'!B140","v":0}]
["branch1TravellerCountNPS",{"$f":"'Authorisation - Autorisation'!F140","v":0}]
["branch1TransportCostNPS",{"$f":"'Authorisation - Autorisation'!H140","v":0}]
["branch1AccommodationCostNPS",{"$f":"'Authorisation - Autorisation'!K140","v":0}]
["branch1MealCostNPS",{"$f":"'Authorisation - Autorisation'!N140","v":0}]
["branch1TotalCostNPS",{"$f":"'Authorisation - Autorisation'!S140","v":0}]
["branch2NPS",{"$f":"'Authorisation - Autorisation'!B141","v":""}]
["branch2TravellerCountNPS",{"$f":"'Authorisation - Autorisation'!F141","v":0}]
["branch2TransportCostNPS",{"$f":"'Authorisation - Autorisation'!H141","v":0}]
["branch2AccommodationCostNPS",{"$f":"'Authorisation - Autorisation'!K141","v":0}]
["branch2MealCostNPS",{"$f":"'Authorisation - Autorisation'!N141","v":0}]
["branch2TotalCostNPS",{"$f":"'Authorisation - Autorisation'!S141","v":0}]
["branch3NPS",{"$f":"'Authorisation - Autorisation'!B142","v":""}]
["branch3TravellerCountNPS",{"$f":"'Authorisation - Autorisation'!F142","v":0}]
["branch3TransportCostNPS",{"$f":"'Authorisation - Autorisation'!H142","v":0}]
["branch3AccommodationCostNPS",{"$f":"'Authorisation - Autorisation'!K142","v":0}]
["branch3MealCostNPS",{"$f":"'Authorisation - Autorisation'!N142","v":0}]
["branch3TotalCostNPS",{"$f":"'Authorisation - Autorisation'!S142","v":0}]
["branch4NPS",{"$f":"'Authorisation - Autorisation'!B143","v":""}]
["branch4TravellerCountNPS",{"$f":"'Authorisation - Autorisation'!F143","v":0}]
["branch4TransportCostNPS",{"$f":"'Authorisation - Autorisation'!H143","v":0}]
["branch4AccommodationCostNPS",{"$f":"'Authorisation - Autorisation'!K143","v":0}]
["branch4MealCostNPS",{"$f":"'Authorisation - Autorisation'!N143","v":0}]
["branch4TotalCostNPS",{"$f":"'Authorisation - Autorisation'!S143","v":0}]
["branch5NPS",{"$f":"'Authorisation - Autorisation'!B144","v":""}]
["branch5TravellerCountNPS",{"$f":"'Authorisation - Autorisation'!F144","v":0}]
["branch5TransportCostNPS",{"$f":"'Authorisation - Autorisation'!H144","v":0}]
["branch5AccommodationCostNPS",{"$f":"'Authorisation - Autorisation'!K144","v":0}]
["branch5MealCostNPS",{"$f":"'Authorisation - Autorisation'!N144","v":0}]
["branch5TotalCostNPS",{"$f":"'Authorisation - Autorisation'!S144","v":0}]
["branch6NPS",{"$f":"'Authorisation - Autorisation'!B145","v":""}]
["branch6TravellerCountNPS",{"$f":"'Authorisation - Autorisation'!F145","v":0}]
["branch6TransportCostNPS",{"$f":"'Authorisation - Autorisation'!H145","v":0}]
["branch6AccommodationCostNPS",{"$f":"'Authorisation - Autorisation'!K145","v":0}]
["branch6MealCostNPS",{"$f":"'Authorisation - Autorisation'!N145","v":0}]
["branch6TotalCostNPS",{"$f":"'Authorisation - Autorisation'!S145","v":0}]
["branch7NPS",{"$f":"'Authorisation - Autorisation'!B146","v":""}]
["branch7TravellerCountNPS",{"$f":"'Authorisation - Autorisation'!F146","v":0}]
["branch7TransportCostNPS",{"$f":"'Authorisation - Autorisation'!H146","v":0}]
["branch7AccommodationCostNPS",{"$f":"'Authorisation - Autorisation'!K146","v":0}]
["branch7MealCostNPS",{"$f":"'Authorisation - Autorisation'!N146","v":0}]
["branch7TotalCostNPS",{"$f":"'Authorisation - Autorisation'!S146","v":0}]
["branch8NPS",{"$f":"'Authorisation - Autorisation'!B147","v":""}]
["branch8TravellerCountNPS",{"$f":"'Authorisation - Autorisation'!F147","v":0}]
["branch8TransportCostNPS",{"$f":"'Authorisation - Autorisation'!H147","v":0}]
["branch8AccommodationCostNPS",{"$f":"'Authorisation - Autorisation'!K147","v":0}]
["branch8MealCostNPS",{"$f":"'Authorisation - Autorisation'!N147","v":0}]
["branch8TotalCostNPS",{"$f":"'Authorisation - Autorisation'!S147","v":0}]
["branch9NPS",{"$f":"'Authorisation - Autorisation'!B148","v":""}]
["branch9TravellerCountNPS",{"$f":"'Authorisation - Autorisation'!F148","v":0}]
["branch9TransportCostNPS",{"$f":"'Authorisation - Autorisation'!H148","v":0}]
["branch9AccommodationCostNPS",{"$f":"'Authorisation - Autorisation'!K148","v":0}]
["branch9MealCostNPS",{"$f":"'Authorisation - Autorisation'!N148","v":0}]
["branch9TotalCostNPS",{"$f":"'Authorisation - Autorisation'!S148","v":0}]
["branch10NPS",{"$f":"'Authorisation - Autorisation'!B149","v":""}]
["branch10TravellerCountNPS",{"$f":"'Authorisation - Autorisation'!F149","v":0}]
["branch10TransportCostNPS",{"$f":"'Authorisation - Autorisation'!H149","v":0}]
["branch10AccommodationCostNPS",{"$f":"'Authorisation - Autorisation'!K149","v":0}]
["branch10MealCostNPS",{"$f":"'Authorisation - Autorisation'!N149","v":0}]
["branch10TotalCostNPS",{"$f":"'Authorisation - Autorisation'!S149","v":0}]
["otherRoomRentalCheck",{"$f":"IF(NOT(Other_Room_Cost=0),\"bntChecked\",\"btnUnchecked\")","v":"btnUnchecked"}]
["otherRoomRentalAmount",{"$f":"Other_Room_Cost","v":0}]
["otherRoomRentalJustification",{"$f":"IF(Other_Room_Justification=0,\"\",Other_Room_Justification)","v":""}]
["otherEquipementCheck",{"$f":"IF(NOT(Other_Equipement_Cost=0),\"bntChecked\",\"btnUnchecked\")","v":"btnUnchecked"}]
["otherEquipementAmount",{"$f":"Other_Equipement_Cost","v":0}]
["otherEquipementJustification",{"$f":"IF(Other_Equipment_Justification=0,\"\",Other_Equipment_Justification)","v":""}]
["otherMaterialCheck",{"$f":"IF(NOT(Other_Material_Cost=0),\"bntChecked\",\"btnUnchecked\")","v":"btnUnchecked"}]
["otherMaterialAmount",{"$f":"Other_Material_Cost","v":0}]
["otherMaterialJustification",{"$f":"IF(Other_Material_Justification=0,\"\",Other_Material_Justification)","v":""}]
["otherProfessionalCheck",{"$f":"IF(NOT(Other_Professional_Cost=0),\"bntChecked\",\"btnUnchecked\")","v":"btnUnchecked"}]
["otherProfessionalAmount",{"$f":"Other_Professional_Cost","v":0}]
["otherProfessionalJustification",{"$f":"IF(Other_Professional_Justification=0,\"\",Other_Professional_Justification)","v":""}]
["otherRecognitionCheck",{"$f":"IF(NOT(Other_Awards_Cost=0),\"bntChecked\",\"btnUnchecked\")","v":"btnUnchecked"}]
["otherRecognitionAmount",{"$f":"Other_Awards_Cost","v":0}]
["otherRecognitionJustification",{"$f":"IF(Other_Awards_Justification=0,\"\",Other_Awards_Justification)","v":""}]
["otherCheck",{"$f":"IF(NOT(Other_Other_Cost=0),\"bntChecked\",\"btnUnchecked\")","v":"btnUnchecked"}]
["otherAmount",{"$f":"Other_Other_Cost","v":0}]
["otherJustification",{"$f":"IF(Other_Other_Justification=0,\"\",Other_Other_Justification)","v":""}]
["thceePreparedBy",{"$f":"IF(Prepared_by=0,\"\",Prepared_by)","v":""}]
["ESDCTotalCost",{"$f":"B36","v":0}]
["eventDG",{"$f":"IF(AND(Activity_is_Event,OR(Event_Delegation_Level=2,Hospitality_Delegation_Level=2)),\"bntChecked\",\"btnUnchecked\")","v":"btnUnchecked"}]
["eventADM",{"$f":"IF(AND(Activity_is_Event,OR(Event_Delegation_Level=3,Hospitality_Delegation_Level=3)),\"bntChecked\",\"btnUnchecked\")","v":"btnUnchecked"}]
["eventCFO",{"$f":"IF(AND(Activity_is_Event,OR(Event_Delegation_Level=4.1,Hospitality_Delegation_Level=4.1)),\"bntChecked\",\"btnUnchecked\")","v":"btnUnchecked"}]
["eventDM",{"$f":"IF(AND(Activity_is_Event,OR(Event_Delegation_Level=4,Hospitality_Delegation_Level=4)),\"bntChecked\",\"btnUnchecked\")","v":"btnUnchecked"}]
["eventADMSPR",{"$f":"IF(AND(Activity_is_Event,OR(Event_Delegation_Level=3.5,Hospitality_Delegation_Level=3.5)),\"bntChecked\",\"btnUnchecked\")","v":"btnUnchecked"}]
["eventMinister",{"$f":"IF(AND(Activity_is_Event,OR(Event_Delegation_Level=5,Hospitality_Delegation_Level=5)),\"bntChecked\",\"btnUnchecked\")","v":"btnUnchecked"}]
["hospitalityDirector",{"$f":"IF(AND(NOT(Activity_is_Event),Hospitality_Delegation_Level=1),\"bntChecked\",\"btnUnchecked\")","v":"btnUnchecked"}]
["hospitalityDG",{"$f":"IF(AND(NOT(Activity_is_Event),Hospitality_Delegation_Level=2),\"bntChecked\",\"btnUnchecked\")","v":"btnUnchecked"}]
["hospitalityADM",{"$f":"IF(AND(NOT(Activity_is_Event),Hospitality_Delegation_Level=3),\"bntChecked\",\"btnUnchecked\")","v":"btnUnchecked"}]
["hospitalityCFO",{"$f":"IF(AND(NOT(Activity_is_Event),Hospitality_Delegation_Level=4.1),\"bntChecked\",\"btnUnchecked\")","v":"btnUnchecked"}]
["hospitalityDM",{"$f":"IF(AND(NOT(Activity_is_Event),Hospitality_Delegation_Level=4),\"bntChecked\",\"btnUnchecked\")","v":"btnUnchecked"}]
["hospitalityADMSPR","btnChecked"]
["hospitalityMinister",{"$f":"IF(AND(NOT(Activity_is_Event),Hospitality_Delegation_Level=5),\"bntChecked\",\"btnUnchecked\")","v":"btnUnchecked"}]
["conferenceADM",{"$f":"IF(AND(NOT(Activity_is_Event),Conference_Delegation_Level=3),\"bntChecked\",\"btnUnchecked\")","v":"btnUnchecked"}]
["conferenceCFO",{"$f":"IF(AND(NOT(Activity_is_Event),Conference_Delegation_Level=4.1),\"bntChecked\",\"btnUnchecked\")","v":"btnUnchecked"}]
["conferenceDM",{"$f":"IF(AND(NOT(Activity_is_Event),Conference_Delegation_Level=4),\"bntChecked\",\"btnUnchecked\")","v":"btnUnchecked"}]
["conferenceADMSPR","btnChecked"]
["conferenceMinister","btnChecked"]
[]
[]
[]
[]
[]
[]
[]
[]
[]
[]
[]
[]
[]
[]
[]
[]
[]
[]
[]
[]
[]
[]
[]
[]
[]
[]
[]
[]
[]
[]
[]
[]
[]
[]
[]
[]
[]
[]
[]
[]
[]
[]
[]
[]
[]
[]
[]
[]
[]
[]
[]
[]
[]
[]
[]
[]
[]
[]
[]
[]
[]
[]
[]
[]
[]
[]
[]
[]
[]
[]
[]
[]
[]
[]
[]
[]
[]
[]
[]
[]
[]
[]
[]
[]
[]
[]
[]
[]
[]
[]
[]
[]
[]
[]
[]
[]
[]
[]
[]
[]
[]
[]
[]
[]
[]
[]
[]
[]
[]
[]
[]
[]
[]
[]
[]
[]
[]
[]
[]
[]
[]
[]
[]
[]
[]
[]
[]
[]
[]
[]
[]
[]
[]
[]
[]
[]
[]
[]
[]
[]
["Location of Word Templates"]
["http://dialogue/grp/AO-Transformation-OC/THCEE/"]

{"sheet":"System - Messages","index":21,"n_rows":21,"n_cols":3,"rows_kept":21,"cut":false,"hidden":true,"merged":[]}
["MessageID","MessageEN","MessageFR"]
[1,"Warning! The English and French versions of the memorandum generated by this tool are draft only. They must be reviewed and adapted to your situation.\nIf changes are made to a previous THCEE scenario, the Tool will generate a completely new memo. If you have saved the previous memo with modifications of your own, these corrections will not be taken into account by the new memo. If need be, be sure to keep backup copies of your previous memo.","Avertissement! Les notes anglaises et françaises générées par ce système sont des ébauches. Elles doivent être revues et adaptées à votre situation.\nSi des modifications sont apportées à un scénario DVACÉ existant, l’Outil va générer une note entièrement nouvelle. Si vous avez sauvegardé la note précédente après y avoir fait des ajouts personnels, la nouvelle note ne va pas en tenir compte. S’il y a lieu, assurez-vous de conserver une copie de la note précédente."]
[2,"The template is currently not available","Le gabarit n'est présentement pas disponible"]
[3,"You already entered travel expenses not authorized for local travel","Vous avez déjà saisi des dépenses de voyage incompatibles avec les déplacements locaux"]
[4,"You must enter a valid numeric value!","Vous devez entrer une valeur numérique!"]
[5,"Input must be a date in the format: \"dd/mm/yyyy\"","Vous devez entrer une date dans le format: \"jj/mm/aaaa\""]
[6,"The worksheet must contain at least one traveller","La grille doit contenir au moins un voyageur"]
[7,"All fields identified with red asterisk must be completed.","Tous les champs identifiés par un astérisque rouge doivent être complétés."]
[8,"All fields identified with red asterisk must be completed.","Tous les champs identifiés par un astérisque rouge doivent être complétés."]
[9,"All fields identified with red asterisk must be completed.","Tous les champs identifiés par un astérisque rouge doivent être complétés."]
[10,"As a matter of protocol, small tokens of appreciation (little no market value - chocolates, flowers, etc.) may be given when a non-government employee renders a service without remuneration.","Des symboles d’appréciation (peu ou pas de valeur marchande - chocolats, fleurs, etc.) peuvent être remis, à titre protocolaire, lorsque des employés qui ne sont pas des fonctionnaires rendent un service sans rémunération."]
[11,"Warning! If you had already answered questions related to events, the information will be lost. Continue?. ","Avertissement! Si vous avez déjà répondu à certaines questions relatives aux événements, l'information entrée sera effacée. Poursuivre?"]
[12,"All fields identified with red asterisk must be completed.","Tous les champs identifiés par un astérisque rouge doivent être complétés."]
[13,"All fields identified with red asterisk must be completed.","Tous les champs identifiés par un astérisque rouge doivent être complétés."]
[14,"All fields identified with red asterisk must be completed.","Tous les champs identifiés par un astérisque rouge doivent être complétés."]
[15,"All fields identified with red asterisk must be completed.","Tous les champs identifiés par un astérisque rouge doivent être complétés."]
[16,"All fields identified with red asterisk must be completed.","Tous les champs identifiés par un astérisque rouge doivent être complétés."]
[17,"All fields identified with red asterisk must be completed.","Tous les champs identifiés par un astérisque rouge doivent être complétés."]
[18,"All fields identified with red asterisk must be completed.","Tous les champs identifiés par un astérisque rouge doivent être complétés."]
[19,"- Gifts of greater resale value or that have a set monetary value (e. g. gift cards).\n- Entertainment such as tickets to theatre or sporting events, tours of the national capital.\n-  In exceptional circumstances, official hospitality may include other items such as room rental, equipment rental, decorations etc. for the purpose of hosting a function (i.e. the event is held in a tipi to share a cultural experience with a foreign dignitary).","- Cadeaux ayant une plus grande valeur de revente ou qui ont une valeur monétaire précise (par exemple des cartes-cadeaux).\n- Divertissements tels que des billets pour le théâtre ou des manifestations sportives, visites de la Capitale nationale.\n- Dans des circonstances exceptionnelles, l’accueil officiel peut inclure d'autres éléments tels que la location de salle, location d’équipements, décorations, etc. nécessaires pour la tenue d’une activité à caractère officiel (par exemple lorsque l'événement est tenu dans un tipi afin de partager une expérience culturelle avec un dignitaire étranger)."]
[20,"Travel start date must occur before travel end date, or at least be the same.","La date de retour doit être, au minimum, la même que la date de départ, ou lui être postérieure."]